Workbook

Sheet Portada
B90: FALSE
B91: FALSE
B92: TRUE
B93: TRUE
B94: FALSE

Sheet Resultados
A1: Resultados
A3: Parámetros Básicos
C6: Tasa de Costo de Capital [%] | F6: 0 | G6: tcc
C8: Tasa de Tributación [%] | F8: 0 | G8: tax
C10: Tipo de Cambio | F10: 1 | G10: Tc_dolar
C12: Porcentaje de Contraprestaciones Mensuales [%] | F12: 0 | G12: P_Contraprestaciones
A14: Escenarios
C16: Sistemas (1 si aplica, 0 no aplica) | F16: 1 | G16: Res.Sist.Esc
F17: 1
F18: 0
A22: Resultados
B24: Tarifa Definitiva por Uso [US$/minuto]
G26: Cargo de Acceso Uso | M26: Cargo de Acceso Uso
C27: ID | D27: Escenarios | G27: CTLP | H27: LRIC Puro | M27: CTLP | N27: LRIC Puro
C28: 1 | D28: =INDEX(lista.escenarios,C28) -> escenario 1 | F28: [pesos/min] | G28: =M28*Tc_dolar/100 -> 0 | H28: =N28*Tc_dolar/100 -> 0 | L28: [US cents/min] | M28: =INDEX(CTLP.Tar,$C28)/(1-P_Contraprestaciones)*100 -> 0 | N28: =INDEX(CIP.ct.tar,4,$C28)/(1-P_Contraprestaciones)*100 -> 0
C29: 2 | D29: =INDEX(lista.escenarios,C29) -> escenario 2 | F29: [pesos/min] | G29: 0 | H29: =N29*Tc_dolar/100 -> 0 | L29: [US cents/min] | M29: =INDEX(CTLP.Tar,$C29)/(1-P_Contraprestaciones)*100 -> 0 | N29: =INDEX(CIP.ct.tar,4,$C29)/(1-P_Contraprestaciones)*100 -> 0
C30: 3 | D30: =INDEX(lista.escenarios,C30) -> escenario 3 | F30: [pesos/min] | G30: 0 | H30: =N30*Tc_dolar/100 -> 0 | L30: [US cents/min] | M30: =INDEX(CTLP.Tar,$C30)/(1-P_Contraprestaciones)*100 -> 0 | N30: =INDEX(CIP.ct.tar,4,$C30)/(1-P_Contraprestaciones)*100 -> 0
C31: 4 | D31: =INDEX(lista.escenarios,C31) -> escenario 4 | F31: [pesos/min] | G31: 0 | H31: =N31*Tc_dolar/100 -> 0 | L31: [US cents/min] | M31: =INDEX(CTLP.Tar,$C31)/(1-P_Contraprestaciones)*100 -> 0 | N31: =INDEX(CIP.ct.tar,4,$C31)/(1-P_Contraprestaciones)*100 -> 0
C32: 5 | D32: =INDEX(lista.escenarios,C32) -> escenario 5 | F32: [pesos/min] | G32: 0 | H32: =N32*Tc_dolar/100 -> 0 | L32: [US cents/min] | M32: =INDEX(CTLP.Tar,$C32)/(1-P_Contraprestaciones)*100 -> 0 | N32: =INDEX(CIP.ct.tar,4,$C32)/(1-P_Contraprestaciones)*100 -> 0
B34: Tarifa Definitiva por Capacidad [US$/E1/mes], para ITX con canales PCM (30 canales de voz por E1)
G36: Cargo de Acceso Capacidad US$ | M36: Cargo de Acceso Capacidad US$
C37: ID | D37: Escenarios | G37: CTLP | H37: LRIC Puro | M37: CTLP | N37: LRIC Puro
C38: 1 | D38: =INDEX(lista.escenarios,C38) -> escenario 1 | F38: [pesos/E1/mes] | G38: =M38*Tc_dolar -> 0 | H38: =N38*Tc_dolar -> 0 | L38: [U$/E1/mes] | M38: =INDEX(Tarifa_CACC_Capacidad,$C38)/(1-P_Contraprestaciones) -> 0 | N38: =INDEX(CIP.Cap,$C38)/(1-P_Contraprestaciones) -> 0
C39: 2 | D39: =INDEX(lista.escenarios,C39) -> escenario 2 | F39: [pesos/E1/mes] | G39: 0 | H39: =N39*Tc_dolar -> 0 | L39: [U$/E1/mes] | M39: =INDEX(Tarifa_CACC_Capacidad,$C39)/(1-P_Contraprestaciones) -> 0 | N39: =INDEX(CIP.Cap,$C39)/(1-P_Contraprestaciones) -> 0
C40: 3 | D40: =INDEX(lista.escenarios,C40) -> escenario 3 | F40: [pesos/E1/mes] | G40: 0 | H40: =N40*Tc_dolar -> 0 | L40: [U$/E1/mes] | M40: =INDEX(Tarifa_CACC_Capacidad,$C40)/(1-P_Contraprestaciones) -> 0 | N40: =INDEX(CIP.Cap,$C40)/(1-P_Contraprestaciones) -> 0
C41: 4 | D41: =INDEX(lista.escenarios,C41) -> escenario 4 | F41: [pesos/E1/mes] | G41: 0 | H41: =N41*Tc_dolar -> 0 | L41: [U$/E1/mes] | M41: =INDEX(Tarifa_CACC_Capacidad,$C41)/(1-P_Contraprestaciones) -> 0 | N41: =INDEX(CIP.Cap,$C41)/(1-P_Contraprestaciones) -> 0
C42: 5 | D42: Avantel | F42: [pesos/E1/mes] | G42: 0 | H42: =N42*Tc_dolar -> 0 | L42: [U$/E1/mes] | M42: =INDEX(Tarifa_CACC_Capacidad,$C42)/(1-P_Contraprestaciones) -> 0 | N42: =INDEX(CIP.Cap,$C42)/(1-P_Contraprestaciones) -> 0
B44: Gráficos

Sheet Predicción.Demanda.Voz
E1: Predicción de Demanda
F3: años | G3: 1 | H3: 2 | I3: 3 | J3: 4 | K3: 5 | L3: 6 | M3: =G3 -> 1 | N3: 2 | O3: 3 | P3: 4 | Q3: 5 | R3: 6 | S3: =M3 -> 1 | T3: 2 | U3: 3 | V3: 4 | W3: 5 | X3: 6 | Y3: =S3 -> 1 | Z3: 2 | AA3: 3 | AB3: 4 | AC3: 5 | AD3: 6 | AE3: =Y3 -> 1 | AF3: 2 | AG3: 3 | AH3: 4 | AI3: 5 | AJ3: 6 | AO3: =AI3 -> 5 | AP3: 2 | AQ3: 3 | AR3: 4 | AS3: 5 | AT3: 6
F4: escenario | G4: 1 | H4: 1 | I4: 1 | J4: 1 | K4: 1 | L4: 1 | M4: =G4+1 -> 2 | N4: 2 | O4: 2 | P4: 2 | Q4: 2 | R4: 2 | S4: 3 | T4: 3 | U4: 3 | V4: 3 | W4: 3 | X4: 3 | Y4: 4 | Z4: 4 | AA4: 4 | AB4: 4 | AC4: 4 | AD4: 4 | AE4: 5 | AF4: 5 | AG4: 5 | AH4: 5 | AI4: 5 | AJ4: 5
F5: columna | G5: 1 | H5: 2 | I5: 3 | J5: 4 | K5: 5 | L5: 6 | M5: 7 | N5: 8 | O5: 9 | P5: 10 | Q5: 11 | R5: 12 | S5: 13 | T5: 14 | U5: 15 | V5: 16 | W5: 17 | X5: 18 | Y5: 19 | Z5: 20 | AA5: 21 | AB5: 22 | AC5: 23 | AD5: 24 | AE5: 25 | AF5: 26 | AG5: 27 | AH5: 28 | AI5: 29 | AJ5: 30
B6: Resultado del Pronóstico de Demanda
C7: En Términos de Promedios (Para Cálculos de Tarifas)
G9: =G36+2 -> 23 | H9: =H36+2 -> 23 | I9: 23 | J9: 23 | K9: 23 | L9: 23 | M9: 5 | N9: 5 | O9: 5 | P9: 5 | Q9: 5 | R9: 5 | S9: 11 | T9: 11 | U9: 11 | V9: 11 | W9: 11 | X9: 11 | Y9: 17 | Z9: 17 | AA9: 17 | AB9: 17 | AC9: 17 | AD9: 17 | AE9: 17 | AF9: 17 | AG9: 17 | AH9: 17 | AI9: 17 | AJ9: 17
G10: =INDEX(lista.escenarios,G$4) -> escenario 1 | M10: =INDEX(lista.escenarios,M$4) -> escenario 2 | S10: =INDEX(lista.escenarios,S$4) -> escenario 3 | Y10: =INDEX(lista.escenarios,Y$4) -> escenario 4 | AE10: =INDEX(lista.escenarios,AE$4) -> escenario 5
D11: id | E11: Parámetro | G11: =INDEX(años,G$3) -> 2010 | H11: 2011 | I11: 2012 | J11: 2013 | K11: 2014 | L11: 2015 | M11: =INDEX(años,M$3) -> 2010 | N11: 2011 | O11: 2012 | P11: 2013 | Q11: 2014 | R11: 2015 | S11: 2010 | T11: 2011 | U11: 2012 | V11: 2013 | W11: 2014 | X11: 2015 | Y11: 2010 | Z11: 2011 | AA11: 2012 | AB11: 2013 | AC11: 2014 | AD11: 2015 | AE11: 2010 | AF11: 2011 | AG11: 2012 | AH11: 2013 | AI11: 2014 | AJ11: 2015 | AK11: Nombre_años | AL11: Variables Auxiliares
D12: 1 | E12: Promedio anual del número de suscriptores Contrato | F12: [Abonados] | G12: =INDEX(Pred.Dda.Abon,G$3,G$9+$D12-1)*$AL12 -> 1 | H12: 1 | I12: 1 | J12: 1 | K12: 1 | L12: 1 | M12: 1 | N12: 1 | O12: 1 | P12: 1 | Q12: =INDEX(Pred.Dda.Abon,Q$3,Q$9+$D12-1)*$AL12 -> 1 | R12: 1 | S12: 1 | T12: 1 | U12: 1 | V12: 1 | W12: 1 | X12: 1 | Y12: 1 | Z12: 1 | AA12: =INDEX(Pred.Dda.Abon,AA$3,AA$9+$D12-1)*$AL12 -> 1 | AB12: 1 | AC12: 1 | AD12: 1 | AE12: 1 | AF12: 1 | AG12: 1 | AH12: 1 | AI12: 1 | AJ12: 1 | AK12: Suscriptores.Contrato | AL12: =D12<>CIP.Var -> TRUE
D13: 2 | E13: Promedio anual del número de suscriptores Prepago | F13: [Abonados] | G13: 1 | H13: 1 | I13: 1 | J13: 1 | K13: 1 | L13: 1 | M13: 1 | N13: 1 | O13: 1 | P13: 1 | Q13: 1 | R13: 1 | S13: 1 | T13: 1 | U13: 1 | V13: 1 | W13: 1 | X13: 1 | Y13: 1 | Z13: 1 | AA13: 1 | AB13: 1 | AC13: 1 | AD13: 1 | AE13: 1 | AF13: 1 | AG13: 1 | AH13: 1 | AI13: 1 | AJ13: 1 | AK13: Suscriptores.Prepago | AL13: =D13<>CIP.Var -> TRUE
D14: 3 | E14: Promedio anual del número de suscriptores | F14: [Abonados] | G14: =SUM(G12:G13)*$AL14 -> 2 | H14: =SUM(H12:H13)*$AL14 -> 2 | I14: 2 | J14: 2 | K14: 2 | L14: 2 | M14: 2 | N14: 2 | O14: 2 | P14: 2 | Q14: 2 | R14: 2 | S14: 2 | T14: 2 | U14: 2 | V14: 2 | W14: 2 | X14: 2 | Y14: 2 | Z14: 2 | AA14: 2 | AB14: 2 | AC14: 2 | AD14: 2 | AE14: 2 | AF14: 2 | AG14: 2 | AH14: 2 | AI14: 2 | AJ14: 2 | AK14: Suscriptores.Todos | AL14: =D14<>CIP.Var -> TRUE
D15: 4 | E15: Total anual de minutos entrantes | F15: [minutos/año] | G15: =G22 -> 1 | H15: =H22 -> 1 | I15: 1 | J15: 1 | K15: 1 | L15: 1 | M15: 1 | N15: =N22 -> 1 | O15: 1 | P15: 1 | Q15: 1 | R15: 1 | S15: 1 | T15: 1 | U15: 1 | V15: 1 | W15: 1 | X15: 1 | Y15: 1 | Z15: 1 | AA15: 1 | AB15: 1 | AC15: 1 | AD15: 1 | AE15: 1 | AF15: 1 | AG15: 1 | AH15: 1 | AI15: 1 | AJ15: 1 | AK15: Minutos_Entrantes
D16: 5 | E16: Total anual de minutos salientes | F16: [minutos/año] | G16: =SUM(G23:G26) -> 4 | H16: =SUM(H23:H26) -> 4 | I16: 4 | J16: 4 | K16: 4 | L16: 4 | M16: 4 | N16: =SUM(N23:N26) -> 4 | O16: 4 | P16: 4 | Q16: 4 | R16: 4 | S16: 4 | T16: 4 | U16: 4 | V16: 4 | W16: 4 | X16: 4 | Y16: 4 | Z16: 4 | AA16: 4 | AB16: 4 | AC16: 4 | AD16: 4 | AE16: 4 | AF16: 4 | AG16: 4 | AH16: 4 | AI16: 4 | AJ16: 4 | AK16: Minutos_Salientes
G19: 16 | H19: =G19 -> 16 | I19: =H19 -> 16 | J19: 16 | K19: 16 | L19: 16 | M19: 0 | N19: =M19 -> 0 | O19: =N19 -> 0 | P19: 0 | Q19: 0 | R19: 0 | S19: =M19+4 -> 4 | T19: 4 | U19: 4 | V19: 4 | W19: 4 | X19: 4 | Y19: 8 | Z19: 8 | AA19: 8 | AB19: 8 | AC19: 8 | AD19: 8 | AE19: =Y19 -> 8 | AF19: =Z19 -> 8 | AG19: 8 | AH19: 8 | AI19: 8 | AJ19: 8
G20: =INDEX(lista.escenarios,G$4) -> escenario 1 | M20: =INDEX(lista.escenarios,M$4) -> escenario 2 | S20: =INDEX(lista.escenarios,S$4) -> escenario 3 | Y20: =INDEX(lista.escenarios,Y$4) -> escenario 4 | AE20: =INDEX(lista.escenarios,AE$4) -> escenario 5
D21: id | E21: Tipo tráfico | G21: =INDEX(años,G$3) -> 2010 | H21: 2011 | I21: 2012 | J21: 2013 | K21: 2014 | L21: 2015 | M21: 2010 | N21: 2011 | O21: 2012 | P21: 2013 | Q21: 2014 | R21: 2015 | S21: 2010 | T21: 2011 | U21: 2012 | V21: 2013 | W21: 2014 | X21: 2015 | Y21: 2010 | Z21: 2011 | AA21: 2012 | AB21: 2013 | AC21: 2014 | AD21: 2015 | AE21: 2010 | AF21: 2011 | AG21: 2012 | AH21: 2013 | AI21: 2014 | AJ21: 2015 | AL21: Variables Auxiliares
D22: 1 | E22: Redes de otros operadores a red móvil propia | F22: [minutos/año] | G22: 1 | H22: 1 | I22: 1 | J22: 1 | K22: 1 | L22: 1 | M22: 1 | N22: 1 | O22: 1 | P22: 1 | Q22: 1 | R22: 1 | S22: 1 | T22: 1 | U22: 1 | V22: 1 | W22: 1 | X22: 1 | Y22: 1 | Z22: 1 | AA22: 1 | AB22: 1 | AC22: 1 | AD22: 1 | AE22: 1 | AF22: 1 | AG22: 1 | AH22: 1 | AI22: 1 | AJ22: 1 | AK22: Dda.Ent.Tot | AL22: =(D22+3)<>CIP.Var -> TRUE
D23: 2 | E23: Red móvil propia a redes fijas | F23: [minutos/año] | G23: 1 | H23: 1 | I23: 1 | J23: 1 | K23: 1 | L23: 1 | M23: 1 | N23: 1 | O23: 1 | P23: 1 | Q23: 1 | R23: 1 | S23: 1 | T23: 1 | U23: 1 | V23: 1 | W23: 1 | X23: 1 | Y23: 1 | Z23: 1 | AA23: 1 | AB23: 1 | AC23: 1 | AD23: 1 | AE23: 1 | AF23: 1 | AG23: 1 | AH23: 1 | AI23: 1 | AJ23: 1 | AK23: Dda.Sal.Fija | AL23: =(D23+3)<>CIP.Var -> TRUE
D24: 3 | E24: Red móvil propia a red móvil propia | F24: [minutos/año] | G24: 1 | H24: 1 | I24: 1 | J24: 1 | K24: 1 | L24: 1 | M24: 1 | N24: 1 | O24: 1 | P24: 1 | Q24: 1 | R24: 1 | S24: 1 | T24: 1 | U24: 1 | V24: 1 | W24: 1 | X24: 1 | Y24: 1 | Z24: 1 | AA24: 1 | AB24: 1 | AC24: 1 | AD24: 1 | AE24: 1 | AF24: 1 | AG24: 1 | AH24: 1 | AI24: 1 | AJ24: 1 | AK24: Dda.Sal.Onnet | AL24: =(D24+3)<>CIP.Var -> TRUE
D25: 4 | E25: Red móvil propia a red móvil de otro operador | F25: [minutos/año] | G25: 1 | H25: 1 | I25: 1 | J25: 1 | K25: 1 | L25: 1 | M25: 1 | N25: 1 | O25: 1 | P25: 1 | Q25: 1 | R25: 1 | S25: 1 | T25: 1 | U25: 1 | V25: 1 | W25: 1 | X25: 1 | Y25: 1 | Z25: 1 | AA25: 1 | AB25: 1 | AC25: 1 | AD25: 1 | AE25: 1 | AF25: 1 | AG25: 1 | AH25: 1 | AI25: 1 | AJ25: 1 | AK25: Dda.Sal.O_Movil | AL25: =(D25+3)<>CIP.Var -> TRUE
D26: 5 | E26: Red móvil propia a larga distancia | F26: [minutos/año] | G26: 1 | H26: 1 | I26: 1 | J26: 1 | K26: 1 | L26: 1 | M26: 1 | N26: 1 | O26: 1 | P26: 1 | Q26: 1 | R26: 1 | S26: 1 | T26: 1 | U26: 1 | V26: 1 | W26: 1 | X26: 1 | Y26: 1 | Z26: 1 | AA26: 1 | AB26: 1 | AC26: 1 | AD26: 1 | AE26: 1 | AF26: 1 | AG26: 1 | AH26: 1 | AI26: 1 | AJ26: 1 | AK26: Dda.Sal.LDI | AL26: =(D26+3)<>CIP.Var -> TRUE
G29: =INDEX(lista.escenarios,G$4) -> escenario 1 | M29: =INDEX(lista.escenarios,M$4) -> escenario 2 | S29: =INDEX(lista.escenarios,S$4) -> escenario 3 | Y29: =INDEX(lista.escenarios,Y$4) -> escenario 4 | AE29: =INDEX(lista.escenarios,AE$4) -> escenario 5
G30: =INDEX(años,G$3) -> 2010 | H30: 2011 | I30: 2012 | J30: 2013 | K30: 2014 | L30: 2015 | M30: 2010 | N30: 2011 | O30: 2012 | P30: 2013 | Q30: 2014 | R30: 2015 | S30: 2010 | T30: 2011 | U30: 2012 | V30: 2013 | W30: 2014 | X30: 2015 | Y30: 2010 | Z30: 2011 | AA30: 2012 | AB30: 2013 | AC30: 2014 | AD30: 2015 | AE30: 2010 | AF30: 2011 | AG30: 2012 | AH30: 2013 | AI30: 2014 | AJ30: 2015
E31: Proporción del tráfico entrante que viene de operadores fijos | F31: [%] | G31: =G23/SUM(G23:G26) -> 0.25 | H31: =H23/SUM(H23:H25) -> 0.3333333333 | I31: 0.3333333333 | J31: 0.3333333333 | K31: 0.3333333333 | L31: 0.3333333333 | M31: 0.3333333333 | N31: 0.3333333333 | O31: 0.3333333333 | P31: 0.3333333333 | Q31: 0.3333333333 | R31: 0.3333333333 | S31: 0.3333333333 | T31: 0.3333333333 | U31: 0.3333333333 | V31: 0.3333333333 | W31: 0.3333333333 | X31: 0.3333333333 | Y31: 0.3333333333 | Z31: 0.3333333333 | AA31: 0.3333333333 | AB31: 0.3333333333 | AC31: 0.3333333333 | AD31: 0.3333333333 | AE31: 0.3333333333 | AF31: 0.3333333333 | AG31: 0.3333333333 | AH31: 0.3333333333 | AI31: 0.3333333333 | AJ31: 0.3333333333 | AK31: Prop.Ent.Fijo
C34: En Términos de Diciembre de Cada año para el Cálculo de Componentes de Red
G36: 21 | H36: =G36 -> 21 | I36: =H36 -> 21 | J36: =I36 -> 21 | K36: =J36 -> 21 | L36: =K36 -> 21 | M36: 3 | N36: =M36 -> 3 | O36: =N36 -> 3 | P36: =O36 -> 3 | Q36: =P36 -> 3 | R36: =Q36 -> 3 | S36: =M36+6 -> 9 | T36: =N36+6 -> 9 | U36: 9 | V36: 9 | W36: 9 | X36: 9 | Y36: 15 | Z36: 15 | AA36: 15 | AB36: 15 | AC36: 15 | AD36: 15 | AE36: =Y36 -> 15 | AF36: =Z36 -> 15 | AG36: 15 | AH36: 15 | AI36: 15 | AJ36: 15
G37: =INDEX(lista.escenarios,G$4) -> escenario 1 | M37: =INDEX(lista.escenarios,M$4) -> escenario 2 | S37: =INDEX(lista.escenarios,S$4) -> escenario 3 | Y37: =INDEX(lista.escenarios,Y$4) -> escenario 4 | AE37: =INDEX(lista.escenarios,AE$4) -> escenario 5
D38: id | E38: Parámetro | G38: =INDEX(años,G$3) -> 2010 | H38: 2011 | I38: 2012 | J38: 2013 | K38: 2014 | L38: 2015 | M38: 2010 | N38: 2011 | O38: 2012 | P38: 2013 | Q38: 2014 | R38: 2015 | S38: 2010 | T38: 2011 | U38: 2012 | V38: 2013 | W38: 2014 | X38: 2015 | Y38: 2010 | Z38: 2011 | AA38: 2012 | AB38: 2013 | AC38: 2014 | AD38: 2015 | AE38: 2010 | AF38: 2011 | AG38: 2012 | AH38: 2013 | AI38: 2014 | AJ38: 2015 | AL38: Variables Auxiliares
D39: 1 | E39: Número de Suscriptores de Contrato en Diciembre | F39: [Abonados] | G39: =INDEX(Pred.Dda.Abon,G$3,G$36+$D39-1)*$AL39 -> 1 | H39: 1 | I39: 1 | J39: 1 | K39: 1 | L39: 1 | M39: 1 | N39: 1 | O39: 1 | P39: 1 | Q39: =INDEX(Pred.Dda.Abon,Q$3,Q$36+$D39-1)*$AL39 -> 1 | R39: 1 | S39: 1 | T39: 1 | U39: 1 | V39: 1 | W39: 1 | X39: 1 | Y39: 1 | Z39: 1 | AA39: =INDEX(Pred.Dda.Abon,AA$3,AA$36+$D39-1)*$AL39 -> 1 | AB39: 1 | AC39: 1 | AD39: 1 | AE39: 1 | AF39: 1 | AG39: 1 | AH39: 1 | AI39: 1 | AJ39: 1 | AK39: Suscriptores.Contrato.Dic | AL39: =D39<>CIP.Var -> TRUE
D40: 2 | E40: Número de Suscriptores de Prepago en Diciembre | F40: [Abonados] | G40: 1 | H40: 1 | I40: 1 | J40: 1 | K40: 1 | L40: 1 | M40: 1 | N40: 1 | O40: 1 | P40: 1 | Q40: 1 | R40: 1 | S40: 1 | T40: 1 | U40: 1 | V40: 1 | W40: 1 | X40: 1 | Y40: 1 | Z40: 1 | AA40: 1 | AB40: 1 | AC40: 1 | AD40: 1 | AE40: 1 | AF40: 1 | AG40: 1 | AH40: 1 | AI40: 1 | AJ40: 1 | AK40: Suscriptores.Prepago.Dic | AL40: =D40<>CIP.Var -> TRUE
D41: 3 | E41: Número de Suscriptores en Diciembre | F41: [Abonados] | G41: =SUM(G39:G40)*$AL41 -> 2 | H41: =SUM(H39:H40)*$AL41 -> 2 | I41: 2 | J41: 2 | K41: 2 | L41: 2 | M41: 2 | N41: 2 | O41: 2 | P41: 2 | Q41: 2 | R41: 2 | S41: 2 | T41: 2 | U41: 2 | V41: 2 | W41: 2 | X41: 2 | Y41: 2 | Z41: 2 | AA41: 2 | AB41: 2 | AC41: 2 | AD41: 2 | AE41: 2 | AF41: 2 | AG41: 2 | AH41: 2 | AI41: 2 | AJ41: 2 | AK41: Suscriptores.Todos.Dic | AL41: =D41<>CIP.Var -> TRUE
C44: Datos Gráficos
E47: Promedio anual del número de suscriptores | G47: =G14/1000000 -> 2e-06 | H47: =H14/1000000 -> 2e-06 | I47: 2e-06 | J47: 2e-06 | K47: 2e-06 | L47: 2e-06 | M47: 2e-06 | N47: 2e-06 | O47: 2e-06 | P47: 2e-06 | Q47: 2e-06 | R47: 2e-06 | S47: 2e-06 | T47: 2e-06 | U47: 2e-06 | V47: 2e-06 | W47: 2e-06 | X47: 2e-06 | Y47: 2e-06 | Z47: 2e-06 | AA47: 2e-06 | AB47: 2e-06 | AC47: 2e-06 | AD47: 2e-06 | AE47: 2e-06 | AF47: 2e-06 | AG47: 2e-06 | AH47: 2e-06 | AI47: 2e-06 | AJ47: 2e-06
E48: Total anual de minutos entrantes | G48: =G15/1000000 -> 1e-06 | H48: =H15/1000000 -> 1e-06 | I48: 1e-06 | J48: 1e-06 | K48: 1e-06 | L48: 1e-06 | M48: 1e-06 | N48: 1e-06 | O48: 1e-06 | P48: 1e-06 | Q48: 1e-06 | R48: 1e-06 | S48: 1e-06 | T48: 1e-06 | U48: 1e-06 | V48: 1e-06 | W48: 1e-06 | X48: 1e-06 | Y48: 1e-06 | Z48: 1e-06 | AA48: 1e-06 | AB48: 1e-06 | AC48: 1e-06 | AD48: 1e-06 | AE48: 1e-06 | AF48: 1e-06 | AG48: 1e-06 | AH48: 1e-06 | AI48: 1e-06 | AJ48: 1e-06
E49: Total anual de minutos salientes | G49: =G16/1000000 -> 4e-06 | H49: 4e-06 | I49: 4e-06 | J49: 4e-06 | K49: 4e-06 | L49: 4e-06 | M49: 4e-06 | N49: 4e-06 | O49: 4e-06 | P49: 4e-06 | Q49: 4e-06 | R49: 4e-06 | S49: 4e-06 | T49: 4e-06 | U49: 4e-06 | V49: 4e-06 | W49: 4e-06 | X49: 4e-06 | Y49: 4e-06 | Z49: 4e-06 | AA49: 4e-06 | AB49: 4e-06 | AC49: 4e-06 | AD49: 4e-06 | AE49: 4e-06 | AF49: 4e-06 | AG49: 4e-06 | AH49: 4e-06 | AI49: 4e-06 | AJ49: 4e-06
G50: =G49+G48 -> 5e-06 | H50: =H49+H48 -> 5e-06 | I50: 5e-06 | J50: 5e-06 | K50: 5e-06 | L50: 5e-06 | M50: 5e-06 | N50: 5e-06 | O50: 5e-06 | P50: 5e-06 | Q50: 5e-06 | R50: 5e-06 | S50: 5e-06 | T50: 5e-06 | U50: 5e-06 | V50: 5e-06 | W50: 5e-06 | X50: 5e-06 | Y50: 5e-06 | Z50: 5e-06 | AA50: 5e-06 | AB50: 5e-06 | AC50: 5e-06 | AD50: 5e-06 | AE50: 5e-06 | AF50: 5e-06 | AG50: 5e-06 | AH50: 5e-06 | AI50: 5e-06 | AJ50: 5e-06
B84: Pronóstico de Abonados
F86: 1 | G86: 2 | H86: 3 | I86: 4 | J86: 5 | K86: 6 | L86: 7 | M86: 8 | N86: 9 | O86: 10 | P86: 11 | Q86: 12 | R86: 13 | S86: 14 | T86: 15 | U86: 16 | V86: 17 | W86: 18 | X86: 19 | Y86: 20 | Z86: 21 | AA86: 22 | AB86: 23 | AC86: 24 | AD86: 25 | AE86: 26 | AF86: 27 | AG86: 28 | AH86: 29 | AI86: 30
F87: 5 | G87: 1 | H87: =F87 -> 5 | I87: =G87 -> 1 | J87: =H87 -> 5 | K87: =I87 -> 1 | L87: =F87+1 -> 6 | M87: =G87+1 -> 2 | N87: 6 | O87: 2 | P87: 6 | Q87: 2 | R87: 7 | S87: 3 | T87: 7 | U87: 3 | V87: 7 | W87: 3
F88: e2 | L88: e3 | R88: e4 | X88: e5 | AD88: Avantel
D89: ID | E89: Fecha | F89: Postpago BOP | G89: Prepago BOP | H89: Postpago EOP | I89: Prepago EOP | J89: Postpago AVG | K89: Prepago AVG | L89: Postpago BOP | M89: Prepago BOP | N89: Postpago EOP | O89: Prepago EOP | P89: Postpago AVG | Q89: Prepago AVG | R89: Postpago BOP | S89: Prepago BOP | T89: Postpago EOP | U89: Prepago EOP | V89: Postpago AVG | W89: Prepago AVG | X89: Postpago BOP | Y89: Prepago BOP | Z89: Postpago EOP | AA89: Prepago EOP | AB89: Postpago AVG | AC89: Prepago AVG | AD89: Postpago BOP | AE89: Prepago BOP | AF89: Postpago EOP | AG89: Prepago EOP | AH89: Postpago AVG | AI89: Prepago AVG
D90: 1 | E90: 2007 | F90: 1 | G90: 1 | H90: 1 | I90: 1 | J90: 1 | K90: 1 | L90: 1 | M90: 1 | N90: 1 | O90: 1 | P90: 1 | Q90: 1 | R90: 1 | S90: 1 | T90: 1 | U90: 1 | V90: 1 | W90: 1 | X90: 1 | Y90: 1 | Z90: 1 | AA90: 1 | AB90: 1 | AC90: 1 | AD90: 1 | AE90: 1 | AF90: 1 | AG90: 1 | AH90: 1 | AI90: 1
D91: 2 | E91: 2008 | F91: 1 | G91: 1 | H91: 1 | I91: 1 | J91: 1 | K91: 1 | L91: 1 | M91: 1 | N91: 1 | O91: 1 | P91: 1 | Q91: 1 | R91: 1 | S91: 1 | T91: 1 | U91: 1 | V91: 1 | W91: 1 | X91: 1 | Y91: 1 | Z91: 1 | AA91: 1 | AB91: 1 | AC91: 1 | AD91: 1 | AE91: 1 | AF91: 1 | AG91: 1 | AH91: 1 | AI91: 1
D92: 3 | E92: 2009 | F92: 1 | G92: 1 | H92: 1 | I92: 1 | J92: 1 | K92: 1 | L92: 1 | M92: 1 | N92: 1 | O92: 1 | P92: 1 | Q92: 1 | R92: 1 | S92: 1 | T92: 1 | U92: 1 | V92: 1 | W92: 1 | X92: 1 | Y92: 1 | Z92: 1 | AA92: 1 | AB92: 1 | AC92: 1 | AD92: 1 | AE92: 1 | AF92: 1 | AG92: 1 | AH92: 1 | AI92: 1
D93: 4 | E93: 2010 | F93: 1 | G93: 1 | H93: 1 | I93: 1 | J93: 1 | K93: 1 | L93: 1 | M93: 1 | N93: 1 | O93: 1 | P93: 1 | Q93: 1 | R93: 1 | S93: 1 | T93: 1 | U93: 1 | V93: 1 | W93: 1 | X93: 1 | Y93: 1 | Z93: 1 | AA93: 1 | AB93: 1 | AC93: 1 | AD93: 1 | AE93: 1 | AF93: 1 | AG93: 1 | AH93: 1 | AI93: 1
D94: 5 | E94: 2011 | F94: 1 | G94: 1 | H94: 1 | I94: 1 | J94: 1 | K94: 1 | L94: 1 | M94: 1 | N94: 1 | O94: 1 | P94: 1 | Q94: 1 | R94: 1 | S94: 1 | T94: 1 | U94: 1 | V94: 1 | W94: 1 | X94: 1 | Y94: 1 | Z94: 1 | AA94: 1 | AB94: 1 | AC94: 1 | AD94: 1 | AE94: 1 | AF94: 1 | AG94: 1 | AH94: 1 | AI94: 1
D95: 6 | E95: 2012 | F95: 1 | G95: 1 | H95: 1 | I95: 1 | J95: 1 | K95: 1 | L95: 1 | M95: 1 | N95: 1 | O95: 1 | P95: 1 | Q95: 1 | R95: 1 | S95: 1 | T95: 1 | U95: 1 | V95: 1 | W95: 1 | X95: 1 | Y95: 1 | Z95: 1 | AA95: 1 | AB95: 1 | AC95: 1 | AD95: 1 | AE95: 1 | AF95: 1 | AG95: 1 | AH95: 1 | AI95: 1
D96: 7 | E96: 2013 | F96: 1 | G96: 1 | H96: 1 | I96: 1 | J96: 1 | K96: 1 | L96: 1 | M96: 1 | N96: 1 | O96: 1 | P96: 1 | Q96: 1 | R96: 1 | S96: 1 | T96: 1 | U96: 1 | V96: 1 | W96: 1 | X96: 1 | Y96: 1 | Z96: 1 | AA96: 1 | AB96: 1 | AC96: 1 | AD96: 1 | AE96: 1 | AF96: 1 | AG96: 1 | AH96: 1 | AI96: 1
D97: 8 | E97: 2014 | F97: 1 | G97: 1 | H97: 1 | I97: 1 | J97: 1 | K97: 1 | L97: 1 | M97: 1 | N97: 1 | O97: 1 | P97: 1 | Q97: 1 | R97: 1 | S97: 1 | T97: 1 | U97: 1 | V97: 1 | W97: 1 | X97: 1 | Y97: 1 | Z97: 1 | AA97: 1 | AB97: 1 | AC97: 1 | AD97: 1 | AE97: 1 | AF97: 1 | AG97: 1 | AH97: 1 | AI97: 1
D98: 9 | E98: 2015 | F98: 1 | G98: 1 | H98: 1 | I98: 1 | J98: 1 | K98: 1 | L98: 1 | M98: 1 | N98: 1 | O98: 1 | P98: 1 | Q98: 1 | R98: 1 | S98: 1 | T98: 1 | U98: 1 | V98: 1 | W98: 1 | X98: 1 | Y98: 1 | Z98: 1 | AA98: 1 | AB98: 1 | AC98: 1 | AD98: 1 | AE98: 1 | AF98: 1 | AG98: 1 | AH98: 1 | AI98: 1
D99: 10 | E99: 2016 | F99: 1 | G99: 1 | H99: 1 | I99: 1 | J99: 1 | K99: 1 | L99: 1 | M99: 1 | N99: 1 | O99: 1 | P99: 1 | Q99: 1 | R99: 1 | S99: 1 | T99: 1 | U99: 1 | V99: 1 | W99: 1 | X99: 1 | Y99: 1 | Z99: 1 | AA99: 1 | AB99: 1 | AC99: 1 | AD99: 1 | AE99: 1 | AF99: 1 | AG99: 1 | AH99: 1 | AI99: 1 | AJ99: Pred.Dda.Abon

Sheet Demanda.Diseño
E1: Cálculo de la demanda de diseño
F3: años | G3: 1 | H3: 2 | I3: 3 | J3: 4 | K3: 5 | L3: 6 | M3: =G3 -> 1 | N3: 2 | O3: 3 | P3: 4 | Q3: 5 | R3: 6 | S3: =M3 -> 1 | T3: 2 | U3: 3 | V3: 4 | W3: 5 | X3: 6 | Y3: =S3 -> 1 | Z3: 2 | AA3: 3 | AB3: 4 | AC3: 5 | AD3: 6 | AE3: =Y3 -> 1 | AF3: 2 | AG3: 3 | AH3: 4 | AI3: 5 | AJ3: 6
F4: escenario | G4: 1 | H4: 1 | I4: 1 | J4: 1 | K4: 1 | L4: 1 | M4: =G4+1 -> 2 | N4: 2 | O4: 2 | P4: 2 | Q4: 2 | R4: 2 | S4: 3 | T4: 3 | U4: 3 | V4: 3 | W4: 3 | X4: 3 | Y4: 4 | Z4: 4 | AA4: 4 | AB4: 4 | AC4: 4 | AD4: 4 | AE4: 5 | AF4: 5 | AG4: 5 | AH4: 5 | AI4: 5 | AJ4: 5
F5: columna | G5: 1 | H5: 2 | I5: 3 | J5: 4 | K5: 5 | L5: 6 | M5: 7 | N5: 8 | O5: 9 | P5: 10 | Q5: 11 | R5: 12 | S5: 13 | T5: 14 | U5: 15 | V5: 16 | W5: 17 | X5: 18 | Y5: 19 | Z5: 20 | AA5: 21 | AB5: 22 | AC5: 23 | AD5: 24 | AE5: 25 | AF5: 26 | AG5: 27 | AH5: 28 | AI5: 29 | AJ5: 30
C6: Demanda en horas cargadas
D8: id | E8: Parámetro | G8: Valor
D9: 1 | E9: Meses por año | G9: 1
D10: 2 | E10: Días cargados por mes | G10: 1
D11: 3 | E11: Días cargados por año | G11: =G10*G9 -> 1
D12: 4 | E12: Porcentaje del tráfico diario en hora cargada | G12: 0.01
D13: 5 | E13: Factor de concentración de movilidad geográfica | G13: 1 | H13: factor.concentración
D14: 6 | E14: Factor de concentración de tráfico diario para diseño de red | G14: =G12*factor.concentración -> 0.01
D15: 7 | E15: Minutos por hora | G15: 1
D16: 8 | E16: Erlangs como proporción del tráfico anual | G16: =G14/(G11*G15) -> 0.01 | H16: factor.conv.min2erl
D17: 9 | E17: Factor redondeo de minutos | G17: 0.01 | H17: factor.redondeo.minutos
D18: 10 | E18: Razón tráfico facturado a cursado | G18: 0.01 | H18: razón.facturado.cursado
G19: 0
D20: id | E20: Parámetro
D21: 1 | E21: bit por byte | G21: 1
D22: 2 | E22: Velocidad canal PCM | F22: [kbps/canal] | G22: 1
D23: 3 | E23: Conversión de Erlang a Mbps | F23: [Mbps/Erlang] | G23: =1/G22/1000 -> 0.001 | H23: f.conv.erl.2.mbps
C25: Factores de ruteo
D27: id | E27: Tráfico | G27: TRX | H27: Tx BSC-MGW | I27: Tx MGW | J27: Tx MGW-MGW | K27: Tx PTR
D28: 1 | E28: Redes de otros operadores a red móvil propia | G28: 1 | H28: 1 | I28: 1 | J28: =$G$160 -> 2.220446049e-16 | K28: 1 | N28: RF.OO_Movil.TRX | O28: RF.OO_Movil.BSC_MSC | P28: RF.OO_Movil.Interconexion | Q28: RF.OO_Movil.Inter_switch
D29: 2 | E29: Red móvil propia a redes fijas | G29: 1 | H29: 1 | I29: 1 | J29: =$G$160 -> 2.220446049e-16 | K29: 1 | N29: RF.Movil_OO.TRX | O29: RF.Movil_OO.BSC_MSC | P29: RF.Movil_OO.Interconexion | Q29: RF.Movil_OO.Inter_switch
D30: 3 | E30: Red móvil propia a red móvil propia | G30: 2 | H30: 2 | I30: 1 | J30: =$G$160 -> 2.220446049e-16 | K30: 0 | N30: RF.Movil_RedPropia.TRX | O30: RF.Movil_RedPropia.BSC_MSC | P30: RF.Movil_RedPropia.Interconexión | Q30: RF.Movil_RedPropia.Inter_switch
D31: 4 | E31: Red móvil propia a red móvil de otro operador | G31: 1 | H31: 1 | I31: 1 | J31: 0 | K31: 1 | N31: RF.Movil_OtraRed.TRX | O31: RF.Movil_OtraRed.BSC_MSC | P31: RF.Movil_OtraRed.Interconexión | Q31: RF.Movil_OtraRed.Inter_switch
D32: 5 | E32: Red móvil propia a larga distancia | G32: 1 | H32: 1 | I32: 1 | J32: 0 | K32: 1 | N32: RF.Movil_LD.TRX | O32: RF.Movil_LD.BSC_MSC | P32: RF.Movil_LD.Interconexión | Q32: RF.Movil_LD.Inter_switch
C34: Cálculos de demanda para el diseño de red
G36: =INDEX(lista.escenarios,G$4) -> escenario 1 | M36: =INDEX(lista.escenarios,M$4) -> escenario 2 | S36: =INDEX(lista.escenarios,S$4) -> escenario 3 | Y36: =INDEX(lista.escenarios,Y$4) -> escenario 4 | AE36: =INDEX(lista.escenarios,AE$4) -> escenario 5
D37: id | E37: Información de totales de proyección de demanda | G37: =INDEX(años,G$3) -> 2010 | H37: 2011 | I37: 2012 | J37: 2013 | K37: 2014 | L37: 2015 | M37: 2010 | N37: 2011 | O37: 2012 | P37: 2013 | Q37: 2014 | R37: 2015 | S37: 2010 | T37: 2011 | U37: 2012 | V37: 2013 | W37: 2014 | X37: 2015 | Y37: 2010 | Z37: 2011 | AA37: 2012 | AB37: 2013 | AC37: 2014 | AD37: 2015 | AE37: 2010 | AF37: 2011 | AG37: 2012 | AH37: 2013 | AI37: 2014 | AJ37: 2015
B38: abonados | D38: 1 | E38: Abonado a fin de año | F38: [abonado] | G38: =Predicción.Demanda.Voz!G41 -> 2 | H38: =Predicción.Demanda.Voz!H41 -> 2 | I38: =Predicción.Demanda.Voz!I41 -> 2 | J38: =Predicción.Demanda.Voz!J41 -> 2 | K38: =Predicción.Demanda.Voz!K41 -> 2 | L38: =Predicción.Demanda.Voz!L41 -> 2 | M38: =Predicción.Demanda.Voz!M41 -> 2 | N38: =Predicción.Demanda.Voz!N41 -> 2 | O38: =Predicción.Demanda.Voz!O41 -> 2 | P38: =Predicción.Demanda.Voz!P41 -> 2 | Q38: =Predicción.Demanda.Voz!Q41 -> 2 | R38: =Predicción.Demanda.Voz!R41 -> 2 | S38: =Predicción.Demanda.Voz!S41 -> 2 | T38: =Predicción.Demanda.Voz!T41 -> 2 | U38: =Predicción.Demanda.Voz!U41 -> 2 | V38: =Predicción.Demanda.Voz!V41 -> 2 | W38: =Predicción.Demanda.Voz!W41 -> 2 | X38: =Predicción.Demanda.Voz!X41 -> 2 | Y38: =Predicción.Demanda.Voz!Y41 -> 2 | Z38: =Predicción.Demanda.Voz!Z41 -> 2 | AA38: =Predicción.Demanda.Voz!AA41 -> 2 | AB38: =Predicción.Demanda.Voz!AB41 -> 2 | AC38: =Predicción.Demanda.Voz!AC41 -> 2 | AD38: =Predicción.Demanda.Voz!AD41 -> 2 | AE38: =Predicción.Demanda.Voz!AE41 -> 2 | AF38: =Predicción.Demanda.Voz!AF41 -> 2 | AG38: =Predicción.Demanda.Voz!AG41 -> 2 | AH38: =Predicción.Demanda.Voz!AH41 -> 2 | AI38: =Predicción.Demanda.Voz!AI41 -> 2 | AJ38: =Predicción.Demanda.Voz!AJ41 -> 2
D39: 2 | E39: Total anual de minutos entrantes (estimado acumulado fin de año) | F39: [minuto] | G39: =Predicción.Demanda.Voz!G15 -> 1 | H39: =Predicción.Demanda.Voz!H15 -> 1 | I39: =Predicción.Demanda.Voz!I15 -> 1 | J39: =Predicción.Demanda.Voz!J15 -> 1 | K39: =Predicción.Demanda.Voz!K15 -> 1 | L39: =Predicción.Demanda.Voz!L15 -> 1 | M39: =Predicción.Demanda.Voz!M15 -> 1 | N39: =Predicción.Demanda.Voz!N15 -> 1 | O39: =Predicción.Demanda.Voz!O15 -> 1 | P39: =Predicción.Demanda.Voz!P15 -> 1 | Q39: =Predicción.Demanda.Voz!Q15 -> 1 | R39: =Predicción.Demanda.Voz!R15 -> 1 | S39: =Predicción.Demanda.Voz!S15 -> 1 | T39: =Predicción.Demanda.Voz!T15 -> 1 | U39: =Predicción.Demanda.Voz!U15 -> 1 | V39: =Predicción.Demanda.Voz!V15 -> 1 | W39: =Predicción.Demanda.Voz!W15 -> 1 | X39: =Predicción.Demanda.Voz!X15 -> 1 | Y39: =Predicción.Demanda.Voz!Y15 -> 1 | Z39: =Predicción.Demanda.Voz!Z15 -> 1 | AA39: =Predicción.Demanda.Voz!AA15 -> 1 | AB39: =Predicción.Demanda.Voz!AB15 -> 1 | AC39: =Predicción.Demanda.Voz!AC15 -> 1 | AD39: =Predicción.Demanda.Voz!AD15 -> 1 | AE39: =Predicción.Demanda.Voz!AE15 -> 1 | AF39: =Predicción.Demanda.Voz!AF15 -> 1 | AG39: =Predicción.Demanda.Voz!AG15 -> 1 | AH39: =Predicción.Demanda.Voz!AH15 -> 1 | AI39: =Predicción.Demanda.Voz!AI15 -> 1 | AJ39: =Predicción.Demanda.Voz!AJ15 -> 1
D40: 3 | E40: Total anual de minutos salientes (estimado acumulado fin de año) | F40: [minuto] | G40: =Predicción.Demanda.Voz!G16 -> 4 | H40: =Predicción.Demanda.Voz!H16 -> 4 | I40: =Predicción.Demanda.Voz!I16 -> 4 | J40: =Predicción.Demanda.Voz!J16 -> 4 | K40: =Predicción.Demanda.Voz!K16 -> 4 | L40: =Predicción.Demanda.Voz!L16 -> 4 | M40: =Predicción.Demanda.Voz!M16 -> 4 | N40: =Predicción.Demanda.Voz!N16 -> 4 | O40: =Predicción.Demanda.Voz!O16 -> 4 | P40: =Predicción.Demanda.Voz!P16 -> 4 | Q40: =Predicción.Demanda.Voz!Q16 -> 4 | R40: =Predicción.Demanda.Voz!R16 -> 4 | S40: =Predicción.Demanda.Voz!S16 -> 4 | T40: =Predicción.Demanda.Voz!T16 -> 4 | U40: =Predicción.Demanda.Voz!U16 -> 4 | V40: =Predicción.Demanda.Voz!V16 -> 4 | W40: =Predicción.Demanda.Voz!W16 -> 4 | X40: =Predicción.Demanda.Voz!X16 -> 4 | Y40: =Predicción.Demanda.Voz!Y16 -> 4 | Z40: =Predicción.Demanda.Voz!Z16 -> 4 | AA40: =Predicción.Demanda.Voz!AA16 -> 4 | AB40: =Predicción.Demanda.Voz!AB16 -> 4 | AC40: =Predicción.Demanda.Voz!AC16 -> 4 | AD40: =Predicción.Demanda.Voz!AD16 -> 4 | AE40: =Predicción.Demanda.Voz!AE16 -> 4 | AF40: =Predicción.Demanda.Voz!AF16 -> 4 | AG40: =Predicción.Demanda.Voz!AG16 -> 4 | AH40: =Predicción.Demanda.Voz!AH16 -> 4 | AI40: =Predicción.Demanda.Voz!AI16 -> 4 | AJ40: =Predicción.Demanda.Voz!AJ16 -> 4
G42: =INDEX(lista.escenarios,G$4) -> escenario 1 | M42: =INDEX(lista.escenarios,M$4) -> escenario 2 | S42: =INDEX(lista.escenarios,S$4) -> escenario 3 | Y42: =INDEX(lista.escenarios,Y$4) -> escenario 4 | AE42: =INDEX(lista.escenarios,AE$4) -> escenario 5
D43: id | E43: Información de tráfico anual de proyección de demanda | G43: =INDEX(años,G$3) -> 2010 | H43: 2011 | I43: 2012 | J43: 2013 | K43: 2014 | L43: 2015 | M43: 2010 | N43: 2011 | O43: 2012 | P43: 2013 | Q43: 2014 | R43: 2015 | S43: 2010 | T43: 2011 | U43: 2012 | V43: 2013 | W43: 2014 | X43: 2015 | Y43: 2010 | Z43: 2011 | AA43: 2012 | AB43: 2013 | AC43: 2014 | AD43: 2015 | AE43: 2010 | AF43: 2011 | AG43: 2012 | AH43: 2013 | AI43: 2014 | AJ43: 2015
B44: Dda.MME | D44: 1 | E44: Redes de otros operadores a red móvil propia | F44: [minuto] | G44: =Predicción.Demanda.Voz!G22/razón.facturado.cursado/(factor.redondeo.minutos+1) -> 99.00990099 | H44: =Predicción.Demanda.Voz!H22/razón.facturado.cursado/(factor.redondeo.minutos+1) -> 99.00990099 | I44: =Predicción.Demanda.Voz!I22/razón.facturado.cursado/(factor.redondeo.minutos+1) -> 99.00990099 | J44: =Predicción.Demanda.Voz!J22/razón.facturado.cursado/(factor.redondeo.minutos+1) -> 99.00990099 | K44: =Predicción.Demanda.Voz!K22/razón.facturado.cursado/(factor.redondeo.minutos+1) -> 99.00990099 | L44: =Predicción.Demanda.Voz!L22/razón.facturado.cursado/(factor.redondeo.minutos+1) -> 99.00990099 | M44: =Predicción.Demanda.Voz!M22/razón.facturado.cursado/(factor.redondeo.minutos+1) -> 99.00990099 | N44: =Predicción.Demanda.Voz!N22/razón.facturado.cursado/(factor.redondeo.minutos+1) -> 99.00990099 | O44: =Predicción.Demanda.Voz!O22/razón.facturado.cursado/(factor.redondeo.minutos+1) -> 99.00990099 | P44: =Predicción.Demanda.Voz!P22/razón.facturado.cursado/(factor.redondeo.minutos+1) -> 99.00990099 | Q44: =Predicción.Demanda.Voz!Q22/razón.facturado.cursado/(factor.redondeo.minutos+1) -> 99.00990099 | R44: =Predicción.Demanda.Voz!R22/razón.facturado.cursado/(factor.redondeo.minutos+1) -> 99.00990099 | S44: =Predicción.Demanda.Voz!S22/razón.facturado.cursado/(factor.redondeo.minutos+1) -> 99.00990099 | T44: =Predicción.Demanda.Voz!T22/razón.facturado.cursado/(factor.redondeo.minutos+1) -> 99.00990099 | U44: =Predicción.Demanda.Voz!U22/razón.facturado.cursado/(factor.redondeo.minutos+1) -> 99.00990099 | V44: =Predicción.Demanda.Voz!V22/razón.facturado.cursado/(factor.redondeo.minutos+1) -> 99.00990099 | W44: =Predicción.Demanda.Voz!W22/razón.facturado.cursado/(factor.redondeo.minutos+1) -> 99.00990099 | X44: =Predicción.Demanda.Voz!X22/razón.facturado.cursado/(factor.redondeo.minutos+1) -> 99.00990099 | Y44: =Predicción.Demanda.Voz!Y22/razón.facturado.cursado/(factor.redondeo.minutos+1) -> 99.00990099 | Z44: =Predicción.Demanda.Voz!Z22/razón.facturado.cursado/(factor.redondeo.minutos+1) -> 99.00990099 | AA44: =Predicción.Demanda.Voz!AA22/razón.facturado.cursado/(factor.redondeo.minutos+1) -> 99.00990099 | AB44: =Predicción.Demanda.Voz!AB22/razón.facturado.cursado/(factor.redondeo.minutos+1) -> 99.00990099 | AC44: =Predicción.Demanda.Voz!AC22/razón.facturado.cursado/(factor.redondeo.minutos+1) -> 99.00990099 | AD44: =Predicción.Demanda.Voz!AD22/razón.facturado.cursado/(factor.redondeo.minutos+1) -> 99.00990099 | AE44: =Predicción.Demanda.Voz!AE22/razón.facturado.cursado/(factor.redondeo.minutos+1) -> 99.00990099 | AF44: =Predicción.Demanda.Voz!AF22/razón.facturado.cursado/(factor.redondeo.minutos+1) -> 99.00990099 | AG44: =Predicción.Demanda.Voz!AG22/razón.facturado.cursado/(factor.redondeo.minutos+1) -> 99.00990099 | AH44: =Predicción.Demanda.Voz!AH22/razón.facturado.cursado/(factor.redondeo.minutos+1) -> 99.00990099 | AI44: =Predicción.Demanda.Voz!AI22/razón.facturado.cursado/(factor.redondeo.minutos+1) -> 99.00990099 | AJ44: =Predicción.Demanda.Voz!AJ22/razón.facturado.cursado/(factor.redondeo.minutos+1) -> 99.00990099
B45: Dda.MLOC | D45: 2 | E45: Red móvil propia a redes fijas | F45: [minuto] | G45: =Predicción.Demanda.Voz!G23/razón.facturado.cursado/(factor.redondeo.minutos+1) -> 99.00990099 | H45: =Predicción.Demanda.Voz!H23/razón.facturado.cursado/(factor.redondeo.minutos+1) -> 99.00990099 | I45: =Predicción.Demanda.Voz!I23/razón.facturado.cursado/(factor.redondeo.minutos+1) -> 99.00990099 | J45: =Predicción.Demanda.Voz!J23/razón.facturado.cursado/(factor.redondeo.minutos+1) -> 99.00990099 | K45: =Predicción.Demanda.Voz!K23/razón.facturado.cursado/(factor.redondeo.minutos+1) -> 99.00990099 | L45: =Predicción.Demanda.Voz!L23/razón.facturado.cursado/(factor.redondeo.minutos+1) -> 99.00990099 | M45: =Predicción.Demanda.Voz!M23/razón.facturado.cursado/(factor.redondeo.minutos+1) -> 99.00990099 | N45: =Predicción.Demanda.Voz!N23/razón.facturado.cursado/(factor.redondeo.minutos+1) -> 99.00990099 | O45: =Predicción.Demanda.Voz!O23/razón.facturado.cursado/(factor.redondeo.minutos+1) -> 99.00990099 | P45: =Predicción.Demanda.Voz!P23/razón.facturado.cursado/(factor.redondeo.minutos+1) -> 99.00990099 | Q45: =Predicción.Demanda.Voz!Q23/razón.facturado.cursado/(factor.redondeo.minutos+1) -> 99.00990099 | R45: =Predicción.Demanda.Voz!R23/razón.facturado.cursado/(factor.redondeo.minutos+1) -> 99.00990099 | S45: =Predicción.Demanda.Voz!S23/razón.facturado.cursado/(factor.redondeo.minutos+1) -> 99.00990099 | T45: =Predicción.Demanda.Voz!T23/razón.facturado.cursado/(factor.redondeo.minutos+1) -> 99.00990099 | U45: =Predicción.Demanda.Voz!U23/razón.facturado.cursado/(factor.redondeo.minutos+1) -> 99.00990099 | V45: =Predicción.Demanda.Voz!V23/razón.facturado.cursado/(factor.redondeo.minutos+1) -> 99.00990099 | W45: =Predicción.Demanda.Voz!W23/razón.facturado.cursado/(factor.redondeo.minutos+1) -> 99.00990099 | X45: =Predicción.Demanda.Voz!X23/razón.facturado.cursado/(factor.redondeo.minutos+1) -> 99.00990099 | Y45: =Predicción.Demanda.Voz!Y23/razón.facturado.cursado/(factor.redondeo.minutos+1) -> 99.00990099 | Z45: =Predicción.Demanda.Voz!Z23/razón.facturado.cursado/(factor.redondeo.minutos+1) -> 99.00990099 | AA45: =Predicción.Demanda.Voz!AA23/razón.facturado.cursado/(factor.redondeo.minutos+1) -> 99.00990099 | AB45: =Predicción.Demanda.Voz!AB23/razón.facturado.cursado/(factor.redondeo.minutos+1) -> 99.00990099 | AC45: =Predicción.Demanda.Voz!AC23/razón.facturado.cursado/(factor.redondeo.minutos+1) -> 99.00990099 | AD45: =Predicción.Demanda.Voz!AD23/razón.facturado.cursado/(factor.redondeo.minutos+1) -> 99.00990099 | AE45: =Predicción.Demanda.Voz!AE23/razón.facturado.cursado/(factor.redondeo.minutos+1) -> 99.00990099 | AF45: =Predicción.Demanda.Voz!AF23/razón.facturado.cursado/(factor.redondeo.minutos+1) -> 99.00990099 | AG45: =Predicción.Demanda.Voz!AG23/razón.facturado.cursado/(factor.redondeo.minutos+1) -> 99.00990099 | AH45: =Predicción.Demanda.Voz!AH23/razón.facturado.cursado/(factor.redondeo.minutos+1) -> 99.00990099 | AI45: =Predicción.Demanda.Voz!AI23/razón.facturado.cursado/(factor.redondeo.minutos+1) -> 99.00990099 | AJ45: =Predicción.Demanda.Voz!AJ23/razón.facturado.cursado/(factor.redondeo.minutos+1) -> 99.00990099
B46: Dda.MMP | D46: 3 | E46: Red móvil propia a red móvil propia | F46: [minuto] | G46: =Predicción.Demanda.Voz!G24/razón.facturado.cursado/(factor.redondeo.minutos+1) -> 99.00990099 | H46: =Predicción.Demanda.Voz!H24/razón.facturado.cursado/(factor.redondeo.minutos+1) -> 99.00990099 | I46: =Predicción.Demanda.Voz!I24/razón.facturado.cursado/(factor.redondeo.minutos+1) -> 99.00990099 | J46: =Predicción.Demanda.Voz!J24/razón.facturado.cursado/(factor.redondeo.minutos+1) -> 99.00990099 | K46: =Predicción.Demanda.Voz!K24/razón.facturado.cursado/(factor.redondeo.minutos+1) -> 99.00990099 | L46: =Predicción.Demanda.Voz!L24/razón.facturado.cursado/(factor.redondeo.minutos+1) -> 99.00990099 | M46: =Predicción.Demanda.Voz!M24/razón.facturado.cursado/(factor.redondeo.minutos+1) -> 99.00990099 | N46: =Predicción.Demanda.Voz!N24/razón.facturado.cursado/(factor.redondeo.minutos+1) -> 99.00990099 | O46: =Predicción.Demanda.Voz!O24/razón.facturado.cursado/(factor.redondeo.minutos+1) -> 99.00990099 | P46: =Predicción.Demanda.Voz!P24/razón.facturado.cursado/(factor.redondeo.minutos+1) -> 99.00990099 | Q46: =Predicción.Demanda.Voz!Q24/razón.facturado.cursado/(factor.redondeo.minutos+1) -> 99.00990099 | R46: =Predicción.Demanda.Voz!R24/razón.facturado.cursado/(factor.redondeo.minutos+1) -> 99.00990099 | S46: =Predicción.Demanda.Voz!S24/razón.facturado.cursado/(factor.redondeo.minutos+1) -> 99.00990099 | T46: =Predicción.Demanda.Voz!T24/razón.facturado.cursado/(factor.redondeo.minutos+1) -> 99.00990099 | U46: =Predicción.Demanda.Voz!U24/razón.facturado.cursado/(factor.redondeo.minutos+1) -> 99.00990099 | V46: =Predicción.Demanda.Voz!V24/razón.facturado.cursado/(factor.redondeo.minutos+1) -> 99.00990099 | W46: =Predicción.Demanda.Voz!W24/razón.facturado.cursado/(factor.redondeo.minutos+1) -> 99.00990099 | X46: =Predicción.Demanda.Voz!X24/razón.facturado.cursado/(factor.redondeo.minutos+1) -> 99.00990099 | Y46: =Predicción.Demanda.Voz!Y24/razón.facturado.cursado/(factor.redondeo.minutos+1) -> 99.00990099 | Z46: =Predicción.Demanda.Voz!Z24/razón.facturado.cursado/(factor.redondeo.minutos+1) -> 99.00990099 | AA46: =Predicción.Demanda.Voz!AA24/razón.facturado.cursado/(factor.redondeo.minutos+1) -> 99.00990099 | AB46: =Predicción.Demanda.Voz!AB24/razón.facturado.cursado/(factor.redondeo.minutos+1) -> 99.00990099 | AC46: =Predicción.Demanda.Voz!AC24/razón.facturado.cursado/(factor.redondeo.minutos+1) -> 99.00990099 | AD46: =Predicción.Demanda.Voz!AD24/razón.facturado.cursado/(factor.redondeo.minutos+1) -> 99.00990099 | AE46: =Predicción.Demanda.Voz!AE24/razón.facturado.cursado/(factor.redondeo.minutos+1) -> 99.00990099 | AF46: =Predicción.Demanda.Voz!AF24/razón.facturado.cursado/(factor.redondeo.minutos+1) -> 99.00990099 | AG46: =Predicción.Demanda.Voz!AG24/razón.facturado.cursado/(factor.redondeo.minutos+1) -> 99.00990099 | AH46: =Predicción.Demanda.Voz!AH24/razón.facturado.cursado/(factor.redondeo.minutos+1) -> 99.00990099 | AI46: =Predicción.Demanda.Voz!AI24/razón.facturado.cursado/(factor.redondeo.minutos+1) -> 99.00990099 | AJ46: =Predicción.Demanda.Voz!AJ24/razón.facturado.cursado/(factor.redondeo.minutos+1) -> 99.00990099
B47: Dda.MMOR | D47: 4 | E47: Red móvil propia a red móvil de otro operador | F47: [minuto] | G47: =Predicción.Demanda.Voz!G25/razón.facturado.cursado/(factor.redondeo.minutos+1) -> 99.00990099 | H47: =Predicción.Demanda.Voz!H25/razón.facturado.cursado/(factor.redondeo.minutos+1) -> 99.00990099 | I47: =Predicción.Demanda.Voz!I25/razón.facturado.cursado/(factor.redondeo.minutos+1) -> 99.00990099 | J47: =Predicción.Demanda.Voz!J25/razón.facturado.cursado/(factor.redondeo.minutos+1) -> 99.00990099 | K47: =Predicción.Demanda.Voz!K25/razón.facturado.cursado/(factor.redondeo.minutos+1) -> 99.00990099 | L47: =Predicción.Demanda.Voz!L25/razón.facturado.cursado/(factor.redondeo.minutos+1) -> 99.00990099 | M47: =Predicción.Demanda.Voz!M25/razón.facturado.cursado/(factor.redondeo.minutos+1) -> 99.00990099 | N47: =Predicción.Demanda.Voz!N25/razón.facturado.cursado/(factor.redondeo.minutos+1) -> 99.00990099 | O47: =Predicción.Demanda.Voz!O25/razón.facturado.cursado/(factor.redondeo.minutos+1) -> 99.00990099 | P47: =Predicción.Demanda.Voz!P25/razón.facturado.cursado/(factor.redondeo.minutos+1) -> 99.00990099 | Q47: =Predicción.Demanda.Voz!Q25/razón.facturado.cursado/(factor.redondeo.minutos+1) -> 99.00990099 | R47: =Predicción.Demanda.Voz!R25/razón.facturado.cursado/(factor.redondeo.minutos+1) -> 99.00990099 | S47: =Predicción.Demanda.Voz!S25/razón.facturado.cursado/(factor.redondeo.minutos+1) -> 99.00990099 | T47: =Predicción.Demanda.Voz!T25/razón.facturado.cursado/(factor.redondeo.minutos+1) -> 99.00990099 | U47: =Predicción.Demanda.Voz!U25/razón.facturado.cursado/(factor.redondeo.minutos+1) -> 99.00990099 | V47: =Predicción.Demanda.Voz!V25/razón.facturado.cursado/(factor.redondeo.minutos+1) -> 99.00990099 | W47: =Predicción.Demanda.Voz!W25/razón.facturado.cursado/(factor.redondeo.minutos+1) -> 99.00990099 | X47: =Predicción.Demanda.Voz!X25/razón.facturado.cursado/(factor.redondeo.minutos+1) -> 99.00990099 | Y47: =Predicción.Demanda.Voz!Y25/razón.facturado.cursado/(factor.redondeo.minutos+1) -> 99.00990099 | Z47: =Predicción.Demanda.Voz!Z25/razón.facturado.cursado/(factor.redondeo.minutos+1) -> 99.00990099 | AA47: =Predicción.Demanda.Voz!AA25/razón.facturado.cursado/(factor.redondeo.minutos+1) -> 99.00990099 | AB47: =Predicción.Demanda.Voz!AB25/razón.facturado.cursado/(factor.redondeo.minutos+1) -> 99.00990099 | AC47: =Predicción.Demanda.Voz!AC25/razón.facturado.cursado/(factor.redondeo.minutos+1) -> 99.00990099 | AD47: =Predicción.Demanda.Voz!AD25/razón.facturado.cursado/(factor.redondeo.minutos+1) -> 99.00990099 | AE47: =Predicción.Demanda.Voz!AE25/razón.facturado.cursado/(factor.redondeo.minutos+1) -> 99.00990099 | AF47: =Predicción.Demanda.Voz!AF25/razón.facturado.cursado/(factor.redondeo.minutos+1) -> 99.00990099 | AG47: =Predicción.Demanda.Voz!AG25/razón.facturado.cursado/(factor.redondeo.minutos+1) -> 99.00990099 | AH47: =Predicción.Demanda.Voz!AH25/razón.facturado.cursado/(factor.redondeo.minutos+1) -> 99.00990099 | AI47: =Predicción.Demanda.Voz!AI25/razón.facturado.cursado/(factor.redondeo.minutos+1) -> 99.00990099 | AJ47: =Predicción.Demanda.Voz!AJ25/razón.facturado.cursado/(factor.redondeo.minutos+1) -> 99.00990099
B48: Dda.MLD | D48: 5 | E48: Red móvil propia a larga distancia | F48: [minuto] | G48: =Predicción.Demanda.Voz!G26/razón.facturado.cursado/(factor.redondeo.minutos+1) -> 99.00990099 | H48: =Predicción.Demanda.Voz!H26/razón.facturado.cursado/(factor.redondeo.minutos+1) -> 99.00990099 | I48: =Predicción.Demanda.Voz!I26/razón.facturado.cursado/(factor.redondeo.minutos+1) -> 99.00990099 | J48: =Predicción.Demanda.Voz!J26/razón.facturado.cursado/(factor.redondeo.minutos+1) -> 99.00990099 | K48: =Predicción.Demanda.Voz!K26/razón.facturado.cursado/(factor.redondeo.minutos+1) -> 99.00990099 | L48: =Predicción.Demanda.Voz!L26/razón.facturado.cursado/(factor.redondeo.minutos+1) -> 99.00990099 | M48: =Predicción.Demanda.Voz!M26/razón.facturado.cursado/(factor.redondeo.minutos+1) -> 99.00990099 | N48: =Predicción.Demanda.Voz!N26/razón.facturado.cursado/(factor.redondeo.minutos+1) -> 99.00990099 | O48: =Predicción.Demanda.Voz!O26/razón.facturado.cursado/(factor.redondeo.minutos+1) -> 99.00990099 | P48: =Predicción.Demanda.Voz!P26/razón.facturado.cursado/(factor.redondeo.minutos+1) -> 99.00990099 | Q48: =Predicción.Demanda.Voz!Q26/razón.facturado.cursado/(factor.redondeo.minutos+1) -> 99.00990099 | R48: =Predicción.Demanda.Voz!R26/razón.facturado.cursado/(factor.redondeo.minutos+1) -> 99.00990099 | S48: =Predicción.Demanda.Voz!S26/razón.facturado.cursado/(factor.redondeo.minutos+1) -> 99.00990099 | T48: =Predicción.Demanda.Voz!T26/razón.facturado.cursado/(factor.redondeo.minutos+1) -> 99.00990099 | U48: =Predicción.Demanda.Voz!U26/razón.facturado.cursado/(factor.redondeo.minutos+1) -> 99.00990099 | V48: =Predicción.Demanda.Voz!V26/razón.facturado.cursado/(factor.redondeo.minutos+1) -> 99.00990099 | W48: =Predicción.Demanda.Voz!W26/razón.facturado.cursado/(factor.redondeo.minutos+1) -> 99.00990099 | X48: =Predicción.Demanda.Voz!X26/razón.facturado.cursado/(factor.redondeo.minutos+1) -> 99.00990099 | Y48: =Predicción.Demanda.Voz!Y26/razón.facturado.cursado/(factor.redondeo.minutos+1) -> 99.00990099 | Z48: =Predicción.Demanda.Voz!Z26/razón.facturado.cursado/(factor.redondeo.minutos+1) -> 99.00990099 | AA48: =Predicción.Demanda.Voz!AA26/razón.facturado.cursado/(factor.redondeo.minutos+1) -> 99.00990099 | AB48: =Predicción.Demanda.Voz!AB26/razón.facturado.cursado/(factor.redondeo.minutos+1) -> 99.00990099 | AC48: =Predicción.Demanda.Voz!AC26/razón.facturado.cursado/(factor.redondeo.minutos+1) -> 99.00990099 | AD48: =Predicción.Demanda.Voz!AD26/razón.facturado.cursado/(factor.redondeo.minutos+1) -> 99.00990099 | AE48: =Predicción.Demanda.Voz!AE26/razón.facturado.cursado/(factor.redondeo.minutos+1) -> 99.00990099 | AF48: =Predicción.Demanda.Voz!AF26/razón.facturado.cursado/(factor.redondeo.minutos+1) -> 99.00990099 | AG48: =Predicción.Demanda.Voz!AG26/razón.facturado.cursado/(factor.redondeo.minutos+1) -> 99.00990099 | AH48: =Predicción.Demanda.Voz!AH26/razón.facturado.cursado/(factor.redondeo.minutos+1) -> 99.00990099 | AI48: =Predicción.Demanda.Voz!AI26/razón.facturado.cursado/(factor.redondeo.minutos+1) -> 99.00990099 | AJ48: =Predicción.Demanda.Voz!AJ26/razón.facturado.cursado/(factor.redondeo.minutos+1) -> 99.00990099
G50: =INDEX(lista.escenarios,G$4) -> escenario 1 | M50: =INDEX(lista.escenarios,M$4) -> escenario 2 | S50: =INDEX(lista.escenarios,S$4) -> escenario 3 | Y50: =INDEX(lista.escenarios,Y$4) -> escenario 4 | AE50: =INDEX(lista.escenarios,AE$4) -> escenario 5
D51: id | E51: Tráfico total en la hora cargada | G51: =INDEX(años,G$3) -> 2010 | H51: 2011 | I51: 2012 | J51: 2013 | K51: 2014 | L51: 2015 | M51: 2010 | N51: 2011 | O51: 2012 | P51: 2013 | Q51: 2014 | R51: 2015 | S51: 2010 | T51: 2011 | U51: 2012 | V51: 2013 | W51: 2014 | X51: 2015 | Y51: 2010 | Z51: 2011 | AA51: 2012 | AB51: 2013 | AC51: 2014 | AD51: 2015 | AE51: 2010 | AF51: 2011 | AG51: 2012 | AH51: 2013 | AI51: 2014 | AJ51: 2015
D52: 1 | E52: Redes de otros operadores a red móvil propia | F52: [Erlang] | G52: =G44*factor.conv.min2erl -> 0.9900990099 | H52: =H44*factor.conv.min2erl -> 0.9900990099 | I52: 0.9900990099 | J52: 0.9900990099 | K52: 0.9900990099 | L52: 0.9900990099 | M52: 0.9900990099 | N52: 0.9900990099 | O52: 0.9900990099 | P52: 0.9900990099 | Q52: 0.9900990099 | R52: 0.9900990099 | S52: 0.9900990099 | T52: 0.9900990099 | U52: 0.9900990099 | V52: 0.9900990099 | W52: 0.9900990099 | X52: 0.9900990099 | Y52: 0.9900990099 | Z52: 0.9900990099 | AA52: 0.9900990099 | AB52: 0.9900990099 | AC52: 0.9900990099 | AD52: 0.9900990099 | AE52: 0.9900990099 | AF52: 0.9900990099 | AG52: 0.9900990099 | AH52: 0.9900990099 | AI52: 0.9900990099 | AJ52: 0.9900990099
D53: 2 | E53: Red móvil propia a redes fijas | F53: [Erlang] | G53: =G45*factor.conv.min2erl -> 0.9900990099 | H53: 0.9900990099 | I53: 0.9900990099 | J53: 0.9900990099 | K53: 0.9900990099 | L53: 0.9900990099 | M53: 0.9900990099 | N53: 0.9900990099 | O53: 0.9900990099 | P53: 0.9900990099 | Q53: 0.9900990099 | R53: 0.9900990099 | S53: 0.9900990099 | T53: 0.9900990099 | U53: 0.9900990099 | V53: 0.9900990099 | W53: 0.9900990099 | X53: 0.9900990099 | Y53: 0.9900990099 | Z53: 0.9900990099 | AA53: 0.9900990099 | AB53: 0.9900990099 | AC53: 0.9900990099 | AD53: 0.9900990099 | AE53: 0.9900990099 | AF53: 0.9900990099 | AG53: 0.9900990099 | AH53: 0.9900990099 | AI53: 0.9900990099 | AJ53: 0.9900990099
D54: 3 | E54: Red móvil propia a red móvil propia | F54: [Erlang] | G54: =G46*factor.conv.min2erl -> 0.9900990099 | H54: 0.9900990099 | I54: 0.9900990099 | J54: 0.9900990099 | K54: 0.9900990099 | L54: 0.9900990099 | M54: 0.9900990099 | N54: 0.9900990099 | O54: 0.9900990099 | P54: 0.9900990099 | Q54: 0.9900990099 | R54: 0.9900990099 | S54: 0.9900990099 | T54: 0.9900990099 | U54: 0.9900990099 | V54: 0.9900990099 | W54: 0.9900990099 | X54: 0.9900990099 | Y54: 0.9900990099 | Z54: 0.9900990099 | AA54: 0.9900990099 | AB54: 0.9900990099 | AC54: 0.9900990099 | AD54: 0.9900990099 | AE54: 0.9900990099 | AF54: 0.9900990099 | AG54: 0.9900990099 | AH54: 0.9900990099 | AI54: 0.9900990099 | AJ54: 0.9900990099
D55: 4 | E55: Red móvil propia a red móvil de otro operador | F55: [Erlang] | G55: =G47*factor.conv.min2erl -> 0.9900990099 | H55: 0.9900990099 | I55: 0.9900990099 | J55: 0.9900990099 | K55: 0.9900990099 | L55: 0.9900990099 | M55: 0.9900990099 | N55: 0.9900990099 | O55: 0.9900990099 | P55: 0.9900990099 | Q55: 0.9900990099 | R55: 0.9900990099 | S55: 0.9900990099 | T55: 0.9900990099 | U55: 0.9900990099 | V55: 0.9900990099 | W55: 0.9900990099 | X55: 0.9900990099 | Y55: 0.9900990099 | Z55: 0.9900990099 | AA55: 0.9900990099 | AB55: 0.9900990099 | AC55: 0.9900990099 | AD55: 0.9900990099 | AE55: 0.9900990099 | AF55: 0.9900990099 | AG55: 0.9900990099 | AH55: 0.9900990099 | AI55: 0.9900990099 | AJ55: 0.9900990099
D56: 5 | E56: Red móvil propia a larga distancia | F56: [Erlang] | G56: =G48*factor.conv.min2erl -> 0.9900990099 | H56: 0.9900990099 | I56: 0.9900990099 | J56: 0.9900990099 | K56: 0.9900990099 | L56: 0.9900990099 | M56: 0.9900990099 | N56: 0.9900990099 | O56: 0.9900990099 | P56: 0.9900990099 | Q56: 0.9900990099 | R56: 0.9900990099 | S56: 0.9900990099 | T56: 0.9900990099 | U56: 0.9900990099 | V56: 0.9900990099 | W56: 0.9900990099 | X56: 0.9900990099 | Y56: 0.9900990099 | Z56: 0.9900990099 | AA56: 0.9900990099 | AB56: 0.9900990099 | AC56: 0.9900990099 | AD56: 0.9900990099 | AE56: 0.9900990099 | AF56: 0.9900990099 | AG56: 0.9900990099 | AH56: 0.9900990099 | AI56: 0.9900990099 | AJ56: 0.9900990099
G58: =INDEX(lista.escenarios,G$4) -> escenario 1 | M58: =INDEX(lista.escenarios,M$4) -> escenario 2 | S58: =INDEX(lista.escenarios,S$4) -> escenario 3 | Y58: =INDEX(lista.escenarios,Y$4) -> escenario 4 | AE58: =INDEX(lista.escenarios,AE$4) -> escenario 5
D59: id | E59: Tráfico en transmisión entre sitios y BSC | G59: =INDEX(años,G$3) -> 2010 | H59: 2011 | I59: 2012 | J59: 2013 | K59: 2014 | L59: 2015 | M59: 2010 | N59: 2011 | O59: 2012 | P59: 2013 | Q59: 2014 | R59: 2015 | S59: 2010 | T59: 2011 | U59: 2012 | V59: 2013 | W59: 2014 | X59: 2015 | Y59: 2010 | Z59: 2011 | AA59: 2012 | AB59: 2013 | AC59: 2014 | AD59: 2015 | AE59: 2010 | AF59: 2011 | AG59: 2012 | AH59: 2013 | AI59: 2014 | AJ59: 2015
D60: 1 | E60: Redes de otros operadores a red móvil propia | F60: [Erlang] | G60: =G52*$G28 -> 0.9900990099 | H60: 0.9900990099 | I60: 0.9900990099 | J60: 0.9900990099 | K60: 0.9900990099 | L60: 0.9900990099 | M60: 0.9900990099 | N60: 0.9900990099 | O60: 0.9900990099 | P60: 0.9900990099 | Q60: 0.9900990099 | R60: 0.9900990099 | S60: 0.9900990099 | T60: 0.9900990099 | U60: 0.9900990099 | V60: 0.9900990099 | W60: 0.9900990099 | X60: 0.9900990099 | Y60: 0.9900990099 | Z60: 0.9900990099 | AA60: 0.9900990099 | AB60: 0.9900990099 | AC60: 0.9900990099 | AD60: 0.9900990099 | AE60: 0.9900990099 | AF60: 0.9900990099 | AG60: 0.9900990099 | AH60: 0.9900990099 | AI60: 0.9900990099 | AJ60: 0.9900990099
D61: 2 | E61: Red móvil propia a redes fijas | F61: [Erlang] | G61: =G53*$G29 -> 0.9900990099 | H61: 0.9900990099 | I61: 0.9900990099 | J61: 0.9900990099 | K61: 0.9900990099 | L61: 0.9900990099 | M61: 0.9900990099 | N61: 0.9900990099 | O61: 0.9900990099 | P61: 0.9900990099 | Q61: 0.9900990099 | R61: 0.9900990099 | S61: 0.9900990099 | T61: 0.9900990099 | U61: 0.9900990099 | V61: 0.9900990099 | W61: 0.9900990099 | X61: 0.9900990099 | Y61: 0.9900990099 | Z61: 0.9900990099 | AA61: 0.9900990099 | AB61: 0.9900990099 | AC61: 0.9900990099 | AD61: 0.9900990099 | AE61: 0.9900990099 | AF61: 0.9900990099 | AG61: 0.9900990099 | AH61: 0.9900990099 | AI61: 0.9900990099 | AJ61: 0.9900990099
D62: 3 | E62: Red móvil propia a red móvil propia | F62: [Erlang] | G62: =G54*$G30 -> 1.98019802 | H62: 1.98019802 | I62: 1.98019802 | J62: 1.98019802 | K62: 1.98019802 | L62: 1.98019802 | M62: 1.98019802 | N62: 1.98019802 | O62: 1.98019802 | P62: 1.98019802 | Q62: 1.98019802 | R62: 1.98019802 | S62: 1.98019802 | T62: 1.98019802 | U62: 1.98019802 | V62: 1.98019802 | W62: 1.98019802 | X62: 1.98019802 | Y62: 1.98019802 | Z62: 1.98019802 | AA62: 1.98019802 | AB62: 1.98019802 | AC62: 1.98019802 | AD62: 1.98019802 | AE62: 1.98019802 | AF62: 1.98019802 | AG62: 1.98019802 | AH62: 1.98019802 | AI62: 1.98019802 | AJ62: 1.98019802
D63: 4 | E63: Red móvil propia a red móvil de otro operador | F63: [Erlang] | G63: =G55*$G31 -> 0.9900990099 | H63: 0.9900990099 | I63: 0.9900990099 | J63: 0.9900990099 | K63: 0.9900990099 | L63: 0.9900990099 | M63: 0.9900990099 | N63: 0.9900990099 | O63: 0.9900990099 | P63: 0.9900990099 | Q63: 0.9900990099 | R63: 0.9900990099 | S63: 0.9900990099 | T63: 0.9900990099 | U63: 0.9900990099 | V63: 0.9900990099 | W63: 0.9900990099 | X63: 0.9900990099 | Y63: 0.9900990099 | Z63: 0.9900990099 | AA63: 0.9900990099 | AB63: 0.9900990099 | AC63: 0.9900990099 | AD63: 0.9900990099 | AE63: 0.9900990099 | AF63: 0.9900990099 | AG63: 0.9900990099 | AH63: 0.9900990099 | AI63: 0.9900990099 | AJ63: 0.9900990099
D64: 5 | E64: Red móvil propia a larga distancia | F64: [Erlang] | G64: =G56*$G32 -> 0.9900990099 | H64: 0.9900990099 | I64: 0.9900990099 | J64: 0.9900990099 | K64: 0.9900990099 | L64: 0.9900990099 | M64: 0.9900990099 | N64: 0.9900990099 | O64: 0.9900990099 | P64: 0.9900990099 | Q64: 0.9900990099 | R64: 0.9900990099 | S64: 0.9900990099 | T64: 0.9900990099 | U64: 0.9900990099 | V64: 0.9900990099 | W64: 0.9900990099 | X64: 0.9900990099 | Y64: 0.9900990099 | Z64: 0.9900990099 | AA64: 0.9900990099 | AB64: 0.9900990099 | AC64: 0.9900990099 | AD64: 0.9900990099 | AE64: 0.9900990099 | AF64: 0.9900990099 | AG64: 0.9900990099 | AH64: 0.9900990099 | AI64: 0.9900990099 | AJ64: 0.9900990099
C66: tráfico.total.HC.BTS_BSC | E66: Tráfico total en tránsmisión sitio - concentrador | F66: [Erlang] | G66: =SUM(G60:G64) -> 5.940594059 | H66: 5.940594059 | I66: 5.940594059 | J66: 5.940594059 | K66: 5.940594059 | L66: 5.940594059 | M66: 5.940594059 | N66: 5.940594059 | O66: 5.940594059 | P66: 5.940594059 | Q66: 5.940594059 | R66: 5.940594059 | S66: 5.940594059 | T66: 5.940594059 | U66: 5.940594059 | V66: 5.940594059 | W66: 5.940594059 | X66: 5.940594059 | Y66: 5.940594059 | Z66: 5.940594059 | AA66: 5.940594059 | AB66: 5.940594059 | AC66: 5.940594059 | AD66: 5.940594059 | AE66: 5.940594059 | AF66: 5.940594059 | AG66: 5.940594059 | AH66: 5.940594059 | AI66: 5.940594059 | AJ66: 5.940594059
G68: =INDEX(lista.escenarios,G$4) -> escenario 1 | M68: =INDEX(lista.escenarios,M$4) -> escenario 2 | S68: =INDEX(lista.escenarios,S$4) -> escenario 3 | Y68: =INDEX(lista.escenarios,Y$4) -> escenario 4 | AE68: =INDEX(lista.escenarios,AE$4) -> escenario 5
D69: id | E69: Tráfico en transmisión entre BSC y MGW | G69: =INDEX(años,G$3) -> 2010 | H69: 2011 | I69: 2012 | J69: 2013 | K69: 2014 | L69: 2015 | M69: 2010 | N69: 2011 | O69: 2012 | P69: 2013 | Q69: 2014 | R69: 2015 | S69: 2010 | T69: 2011 | U69: 2012 | V69: 2013 | W69: 2014 | X69: 2015 | Y69: 2010 | Z69: 2011 | AA69: 2012 | AB69: 2013 | AC69: 2014 | AD69: 2015 | AE69: 2010 | AF69: 2011 | AG69: 2012 | AH69: 2013 | AI69: 2014 | AJ69: 2015
D70: 1 | E70: Redes de otros operadores a red móvil propia | F70: [Erlang] | G70: =IF(factor.concentración=0,0,G52*$H28/factor.concentración) -> 0.9900990099 | H70: =IF(factor.concentración=0,0,H52*$H28/factor.concentración) -> 0.9900990099 | I70: 0.9900990099 | J70: 0.9900990099 | K70: 0.9900990099 | L70: 0.9900990099 | M70: 0.9900990099 | N70: 0.9900990099 | O70: 0.9900990099 | P70: 0.9900990099 | Q70: 0.9900990099 | R70: 0.9900990099 | S70: 0.9900990099 | T70: 0.9900990099 | U70: 0.9900990099 | V70: 0.9900990099 | W70: 0.9900990099 | X70: 0.9900990099 | Y70: 0.9900990099 | Z70: 0.9900990099 | AA70: 0.9900990099 | AB70: 0.9900990099 | AC70: 0.9900990099 | AD70: 0.9900990099 | AE70: 0.9900990099 | AF70: 0.9900990099 | AG70: 0.9900990099 | AH70: 0.9900990099 | AI70: 0.9900990099 | AJ70: 0.9900990099
D71: 2 | E71: Red móvil propia a redes fijas | F71: [Erlang] | G71: =IF(factor.concentración=0,0,G53*$H29/factor.concentración) -> 0.9900990099 | H71: 0.9900990099 | I71: 0.9900990099 | J71: 0.9900990099 | K71: 0.9900990099 | L71: 0.9900990099 | M71: 0.9900990099 | N71: 0.9900990099 | O71: 0.9900990099 | P71: 0.9900990099 | Q71: 0.9900990099 | R71: 0.9900990099 | S71: 0.9900990099 | T71: 0.9900990099 | U71: 0.9900990099 | V71: 0.9900990099 | W71: 0.9900990099 | X71: 0.9900990099 | Y71: 0.9900990099 | Z71: 0.9900990099 | AA71: 0.9900990099 | AB71: 0.9900990099 | AC71: 0.9900990099 | AD71: 0.9900990099 | AE71: 0.9900990099 | AF71: 0.9900990099 | AG71: 0.9900990099 | AH71: 0.9900990099 | AI71: 0.9900990099 | AJ71: 0.9900990099
D72: 3 | E72: Red móvil propia a red móvil propia | F72: [Erlang] | G72: =IF(factor.concentración=0,0,G54*$H30/factor.concentración) -> 1.98019802 | H72: 1.98019802 | I72: 1.98019802 | J72: 1.98019802 | K72: 1.98019802 | L72: 1.98019802 | M72: 1.98019802 | N72: 1.98019802 | O72: 1.98019802 | P72: 1.98019802 | Q72: 1.98019802 | R72: 1.98019802 | S72: 1.98019802 | T72: 1.98019802 | U72: 1.98019802 | V72: 1.98019802 | W72: 1.98019802 | X72: 1.98019802 | Y72: 1.98019802 | Z72: 1.98019802 | AA72: 1.98019802 | AB72: 1.98019802 | AC72: 1.98019802 | AD72: 1.98019802 | AE72: 1.98019802 | AF72: 1.98019802 | AG72: 1.98019802 | AH72: 1.98019802 | AI72: 1.98019802 | AJ72: 1.98019802
D73: 4 | E73: Red móvil propia a red móvil de otro operador | F73: [Erlang] | G73: =IF(factor.concentración=0,0,G55*$H31/factor.concentración) -> 0.9900990099 | H73: 0.9900990099 | I73: 0.9900990099 | J73: 0.9900990099 | K73: 0.9900990099 | L73: 0.9900990099 | M73: 0.9900990099 | N73: 0.9900990099 | O73: 0.9900990099 | P73: 0.9900990099 | Q73: 0.9900990099 | R73: 0.9900990099 | S73: 0.9900990099 | T73: 0.9900990099 | U73: 0.9900990099 | V73: 0.9900990099 | W73: 0.9900990099 | X73: 0.9900990099 | Y73: 0.9900990099 | Z73: 0.9900990099 | AA73: 0.9900990099 | AB73: 0.9900990099 | AC73: 0.9900990099 | AD73: 0.9900990099 | AE73: 0.9900990099 | AF73: 0.9900990099 | AG73: 0.9900990099 | AH73: 0.9900990099 | AI73: 0.9900990099 | AJ73: 0.9900990099
D74: 5 | E74: Red móvil propia a larga distancia | F74: [Erlang] | G74: =IF(factor.concentración=0,0,G56*$H32/factor.concentración) -> 0.9900990099 | H74: =IF(factor.concentración=0,0,H56*$H32/factor.concentración) -> 0.9900990099 | I74: 0.9900990099 | J74: 0.9900990099 | K74: 0.9900990099 | L74: 0.9900990099 | M74: 0.9900990099 | N74: 0.9900990099 | O74: 0.9900990099 | P74: 0.9900990099 | Q74: 0.9900990099 | R74: 0.9900990099 | S74: 0.9900990099 | T74: 0.9900990099 | U74: 0.9900990099 | V74: 0.9900990099 | W74: 0.9900990099 | X74: 0.9900990099 | Y74: 0.9900990099 | Z74: 0.9900990099 | AA74: 0.9900990099 | AB74: 0.9900990099 | AC74: 0.9900990099 | AD74: 0.9900990099 | AE74: 0.9900990099 | AF74: 0.9900990099 | AG74: 0.9900990099 | AH74: 0.9900990099 | AI74: 0.9900990099 | AJ74: 0.9900990099
C76: tráfico.total.HC.BSC_MGW | E76: Tráfico total en transmisión concentrador - conmutador | F76: [Erlang] | G76: =SUM(G70:G74) -> 5.940594059 | H76: 5.940594059 | I76: 5.940594059 | J76: 5.940594059 | K76: 5.940594059 | L76: 5.940594059 | M76: 5.940594059 | N76: 5.940594059 | O76: 5.940594059 | P76: 5.940594059 | Q76: 5.940594059 | R76: 5.940594059 | S76: 5.940594059 | T76: 5.940594059 | U76: 5.940594059 | V76: 5.940594059 | W76: 5.940594059 | X76: 5.940594059 | Y76: 5.940594059 | Z76: 5.940594059 | AA76: 5.940594059 | AB76: 5.940594059 | AC76: 5.940594059 | AD76: 5.940594059 | AE76: 5.940594059 | AF76: 5.940594059 | AG76: 5.940594059 | AH76: 5.940594059 | AI76: 5.940594059 | AJ76: 5.940594059
G78: =INDEX(lista.escenarios,G$4) -> escenario 1 | M78: =INDEX(lista.escenarios,M$4) -> escenario 2 | S78: =INDEX(lista.escenarios,S$4) -> escenario 3 | Y78: =INDEX(lista.escenarios,Y$4) -> escenario 4 | AE78: =INDEX(lista.escenarios,AE$4) -> escenario 5
D79: id | E79: Tráfico para diseñar MGW | G79: =INDEX(años,G$3) -> 2010 | H79: 2011 | I79: 2012 | J79: 2013 | K79: 2014 | L79: 2015 | M79: 2010 | N79: 2011 | O79: 2012 | P79: 2013 | Q79: 2014 | R79: 2015 | S79: 2010 | T79: 2011 | U79: 2012 | V79: 2013 | W79: 2014 | X79: 2015 | Y79: 2010 | Z79: 2011 | AA79: 2012 | AB79: 2013 | AC79: 2014 | AD79: 2015 | AE79: 2010 | AF79: 2011 | AG79: 2012 | AH79: 2013 | AI79: 2014 | AJ79: 2015
D80: 1 | E80: Redes de otros operadores a red móvil propia | F80: [Erlang] | G80: =IF(factor.concentración=0,0,G52*($I28+$J28)/factor.concentración) -> 0.9900990099 | H80: 0.9900990099 | I80: 0.9900990099 | J80: 0.9900990099 | K80: 0.9900990099 | L80: 0.9900990099 | M80: 0.9900990099 | N80: 0.9900990099 | O80: 0.9900990099 | P80: 0.9900990099 | Q80: 0.9900990099 | R80: 0.9900990099 | S80: 0.9900990099 | T80: 0.9900990099 | U80: 0.9900990099 | V80: 0.9900990099 | W80: 0.9900990099 | X80: 0.9900990099 | Y80: 0.9900990099 | Z80: 0.9900990099 | AA80: 0.9900990099 | AB80: 0.9900990099 | AC80: 0.9900990099 | AD80: 0.9900990099 | AE80: 0.9900990099 | AF80: 0.9900990099 | AG80: 0.9900990099 | AH80: 0.9900990099 | AI80: 0.9900990099 | AJ80: 0.9900990099
D81: 2 | E81: Red móvil propia a redes fijas | F81: [Erlang] | G81: =IF(factor.concentración=0,0,G53*($I29+$J29)/factor.concentración) -> 0.9900990099 | H81: 0.9900990099 | I81: 0.9900990099 | J81: 0.9900990099 | K81: 0.9900990099 | L81: 0.9900990099 | M81: 0.9900990099 | N81: 0.9900990099 | O81: 0.9900990099 | P81: 0.9900990099 | Q81: 0.9900990099 | R81: 0.9900990099 | S81: 0.9900990099 | T81: 0.9900990099 | U81: 0.9900990099 | V81: 0.9900990099 | W81: 0.9900990099 | X81: 0.9900990099 | Y81: 0.9900990099 | Z81: 0.9900990099 | AA81: 0.9900990099 | AB81: 0.9900990099 | AC81: 0.9900990099 | AD81: 0.9900990099 | AE81: 0.9900990099 | AF81: 0.9900990099 | AG81: 0.9900990099 | AH81: 0.9900990099 | AI81: 0.9900990099 | AJ81: 0.9900990099
D82: 3 | E82: Red móvil propia a red móvil propia | F82: [Erlang] | G82: =IF(factor.concentración=0,0,G54*($I30+$J30)/factor.concentración) -> 0.9900990099 | H82: 0.9900990099 | I82: 0.9900990099 | J82: 0.9900990099 | K82: 0.9900990099 | L82: 0.9900990099 | M82: 0.9900990099 | N82: 0.9900990099 | O82: 0.9900990099 | P82: 0.9900990099 | Q82: 0.9900990099 | R82: 0.9900990099 | S82: 0.9900990099 | T82: 0.9900990099 | U82: 0.9900990099 | V82: 0.9900990099 | W82: 0.9900990099 | X82: 0.9900990099 | Y82: 0.9900990099 | Z82: 0.9900990099 | AA82: 0.9900990099 | AB82: 0.9900990099 | AC82: 0.9900990099 | AD82: 0.9900990099 | AE82: 0.9900990099 | AF82: 0.9900990099 | AG82: 0.9900990099 | AH82: 0.9900990099 | AI82: 0.9900990099 | AJ82: 0.9900990099
D83: 4 | E83: Red móvil propia a red móvil de otro operador | F83: [Erlang] | G83: =IF(factor.concentración=0,0,G55*($I31+$J31)/factor.concentración) -> 0.9900990099 | H83: 0.9900990099 | I83: 0.9900990099 | J83: 0.9900990099 | K83: 0.9900990099 | L83: 0.9900990099 | M83: 0.9900990099 | N83: 0.9900990099 | O83: 0.9900990099 | P83: 0.9900990099 | Q83: 0.9900990099 | R83: 0.9900990099 | S83: 0.9900990099 | T83: 0.9900990099 | U83: 0.9900990099 | V83: 0.9900990099 | W83: 0.9900990099 | X83: 0.9900990099 | Y83: 0.9900990099 | Z83: 0.9900990099 | AA83: 0.9900990099 | AB83: 0.9900990099 | AC83: 0.9900990099 | AD83: 0.9900990099 | AE83: 0.9900990099 | AF83: 0.9900990099 | AG83: 0.9900990099 | AH83: 0.9900990099 | AI83: 0.9900990099 | AJ83: 0.9900990099
D84: 5 | E84: Red móvil propia a larga distancia | F84: [Erlang] | G84: =IF(factor.concentración=0,0,G56*($I32+$J32)/factor.concentración) -> 0.9900990099 | H84: =IF(factor.concentración=0,0,H56*($I32+$J32)/factor.concentración) -> 0.9900990099 | I84: 0.9900990099 | J84: 0.9900990099 | K84: 0.9900990099 | L84: 0.9900990099 | M84: 0.9900990099 | N84: 0.9900990099 | O84: 0.9900990099 | P84: 0.9900990099 | Q84: 0.9900990099 | R84: 0.9900990099 | S84: 0.9900990099 | T84: 0.9900990099 | U84: 0.9900990099 | V84: 0.9900990099 | W84: 0.9900990099 | X84: 0.9900990099 | Y84: 0.9900990099 | Z84: 0.9900990099 | AA84: 0.9900990099 | AB84: 0.9900990099 | AC84: 0.9900990099 | AD84: 0.9900990099 | AE84: 0.9900990099 | AF84: 0.9900990099 | AG84: 0.9900990099 | AH84: 0.9900990099 | AI84: 0.9900990099 | AJ84: 0.9900990099
C86: tráfico.total.HC.MGW | E86: Tráfico total en transmisión concentrador - conmutador | F86: [Erlang] | G86: =SUM(G80:G84) -> 4.95049505 | H86: 4.95049505 | I86: 4.95049505 | J86: 4.95049505 | K86: 4.95049505 | L86: 4.95049505 | M86: 4.95049505 | N86: 4.95049505 | O86: 4.95049505 | P86: 4.95049505 | Q86: 4.95049505 | R86: 4.95049505 | S86: 4.95049505 | T86: 4.95049505 | U86: 4.95049505 | V86: 4.95049505 | W86: 4.95049505 | X86: 4.95049505 | Y86: 4.95049505 | Z86: 4.95049505 | AA86: 4.95049505 | AB86: 4.95049505 | AC86: 4.95049505 | AD86: 4.95049505 | AE86: 4.95049505 | AF86: 4.95049505 | AG86: 4.95049505 | AH86: 4.95049505 | AI86: 4.95049505 | AJ86: 4.95049505
G88: =INDEX(lista.escenarios,G$4) -> escenario 1 | M88: =INDEX(lista.escenarios,M$4) -> escenario 2 | S88: =INDEX(lista.escenarios,S$4) -> escenario 3 | Y88: =INDEX(lista.escenarios,Y$4) -> escenario 4 | AE88: =INDEX(lista.escenarios,AE$4) -> escenario 5
D89: id | E89: Tráfico entre MGW | G89: =INDEX(años,G$3) -> 2010 | H89: 2011 | I89: 2012 | J89: 2013 | K89: 2014 | L89: 2015 | M89: 2010 | N89: 2011 | O89: 2012 | P89: 2013 | Q89: 2014 | R89: 2015 | S89: 2010 | T89: 2011 | U89: 2012 | V89: 2013 | W89: 2014 | X89: 2015 | Y89: 2010 | Z89: 2011 | AA89: 2012 | AB89: 2013 | AC89: 2014 | AD89: 2015 | AE89: 2010 | AF89: 2011 | AG89: 2012 | AH89: 2013 | AI89: 2014 | AJ89: 2015
D90: 1 | E90: Redes de otros operadores a red móvil propia | F90: [Erlang] | G90: =IF(factor.concentración=0,0,G52*$J28/factor.concentración) -> 2.198461435e-16 | H90: 2.198461435e-16 | I90: 2.198461435e-16 | J90: 2.198461435e-16 | K90: 2.198461435e-16 | L90: 2.198461435e-16 | M90: 2.198461435e-16 | N90: 2.198461435e-16 | O90: 2.198461435e-16 | P90: 2.198461435e-16 | Q90: 2.198461435e-16 | R90: 2.198461435e-16 | S90: 2.198461435e-16 | T90: 2.198461435e-16 | U90: 2.198461435e-16 | V90: 2.198461435e-16 | W90: 2.198461435e-16 | X90: 2.198461435e-16 | Y90: 2.198461435e-16 | Z90: 2.198461435e-16 | AA90: 2.198461435e-16 | AB90: 2.198461435e-16 | AC90: 2.198461435e-16 | AD90: 2.198461435e-16 | AE90: 2.198461435e-16 | AF90: 2.198461435e-16 | AG90: 2.198461435e-16 | AH90: 2.198461435e-16 | AI90: 2.198461435e-16 | AJ90: 2.198461435e-16
D91: 2 | E91: Red móvil propia a redes fijas | F91: [Erlang] | G91: =IF(factor.concentración=0,0,G53*$J29/factor.concentración) -> 2.198461435e-16 | H91: 2.198461435e-16 | I91: 2.198461435e-16 | J91: 2.198461435e-16 | K91: 2.198461435e-16 | L91: 2.198461435e-16 | M91: 2.198461435e-16 | N91: 2.198461435e-16 | O91: 2.198461435e-16 | P91: 2.198461435e-16 | Q91: 2.198461435e-16 | R91: 2.198461435e-16 | S91: 2.198461435e-16 | T91: 2.198461435e-16 | U91: 2.198461435e-16 | V91: 2.198461435e-16 | W91: 2.198461435e-16 | X91: 2.198461435e-16 | Y91: 2.198461435e-16 | Z91: 2.198461435e-16 | AA91: 2.198461435e-16 | AB91: 2.198461435e-16 | AC91: 2.198461435e-16 | AD91: 2.198461435e-16 | AE91: 2.198461435e-16 | AF91: 2.198461435e-16 | AG91: 2.198461435e-16 | AH91: 2.198461435e-16 | AI91: 2.198461435e-16 | AJ91: 2.198461435e-16
D92: 3 | E92: Red móvil propia a red móvil propia | F92: [Erlang] | G92: =IF(factor.concentración=0,0,G54*$J30/factor.concentración) -> 2.198461435e-16 | H92: 2.198461435e-16 | I92: 2.198461435e-16 | J92: 2.198461435e-16 | K92: 2.198461435e-16 | L92: 2.198461435e-16 | M92: 2.198461435e-16 | N92: 2.198461435e-16 | O92: 2.198461435e-16 | P92: 2.198461435e-16 | Q92: 2.198461435e-16 | R92: 2.198461435e-16 | S92: 2.198461435e-16 | T92: 2.198461435e-16 | U92: 2.198461435e-16 | V92: 2.198461435e-16 | W92: 2.198461435e-16 | X92: 2.198461435e-16 | Y92: 2.198461435e-16 | Z92: 2.198461435e-16 | AA92: 2.198461435e-16 | AB92: 2.198461435e-16 | AC92: 2.198461435e-16 | AD92: 2.198461435e-16 | AE92: 2.198461435e-16 | AF92: 2.198461435e-16 | AG92: 2.198461435e-16 | AH92: 2.198461435e-16 | AI92: 2.198461435e-16 | AJ92: 2.198461435e-16
D93: 4 | E93: Red móvil propia a red móvil de otro operador | F93: [Erlang] | G93: =IF(factor.concentración=0,0,G55*$J31/factor.concentración) -> 0 | H93: 0 | I93: 0 | J93: 0 | K93: 0 | L93: 0 | M93: 0 | N93: 0 | O93: 0 | P93: 0 | Q93: 0 | R93: 0 | S93: 0 | T93: 0 | U93: 0 | V93: 0 | W93: 0 | X93: 0 | Y93: 0 | Z93: 0 | AA93: 0 | AB93: 0 | AC93: 0 | AD93: 0 | AE93: 0 | AF93: 0 | AG93: 0 | AH93: 0 | AI93: 0 | AJ93: 0
D94: 5 | E94: Red móvil propia a larga distancia | F94: [Erlang] | G94: =IF(factor.concentración=0,0,G56*$J32/factor.concentración) -> 0 | H94: 0 | I94: 0 | J94: 0 | K94: 0 | L94: 0 | M94: 0 | N94: 0 | O94: 0 | P94: 0 | Q94: 0 | R94: 0 | S94: 0 | T94: 0 | U94: 0 | V94: 0 | W94: 0 | X94: 0 | Y94: 0 | Z94: 0 | AA94: 0 | AB94: 0 | AC94: 0 | AD94: 0 | AE94: 0 | AF94: 0 | AG94: 0 | AH94: 0 | AI94: 0 | AJ94: 0
C96: tráfico.total.HC.MGW_MGW | E96: Tráfico total en transmisión concentrador - conmutador | F96: [Erlang] | G96: =SUM(G90:G94) -> 6.595384305e-16 | H96: 6.595384305e-16 | I96: 6.595384305e-16 | J96: 6.595384305e-16 | K96: 6.595384305e-16 | L96: 6.595384305e-16 | M96: 6.595384305e-16 | N96: 6.595384305e-16 | O96: 6.595384305e-16 | P96: 6.595384305e-16 | Q96: 6.595384305e-16 | R96: 6.595384305e-16 | S96: 6.595384305e-16 | T96: 6.595384305e-16 | U96: 6.595384305e-16 | V96: 6.595384305e-16 | W96: 6.595384305e-16 | X96: 6.595384305e-16 | Y96: 6.595384305e-16 | Z96: 6.595384305e-16 | AA96: 6.595384305e-16 | AB96: 6.595384305e-16 | AC96: 6.595384305e-16 | AD96: 6.595384305e-16 | AE96: 6.595384305e-16 | AF96: 6.595384305e-16 | AG96: 6.595384305e-16 | AH96: 6.595384305e-16 | AI96: 6.595384305e-16 | AJ96: 6.595384305e-16
G98: =INDEX(lista.escenarios,G$4) -> escenario 1 | M98: =INDEX(lista.escenarios,M$4) -> escenario 2 | S98: =INDEX(lista.escenarios,S$4) -> escenario 3 | Y98: =INDEX(lista.escenarios,Y$4) -> escenario 4 | AE98: =INDEX(lista.escenarios,AE$4) -> escenario 5
D99: id | E99: Tráfico en MSCS | G99: =INDEX(años,G$3) -> 2010 | H99: 2011 | I99: 2012 | J99: 2013 | K99: 2014 | L99: 2015 | M99: 2010 | N99: 2011 | O99: 2012 | P99: 2013 | Q99: 2014 | R99: 2015 | S99: 2010 | T99: 2011 | U99: 2012 | V99: 2013 | W99: 2014 | X99: 2015 | Y99: 2010 | Z99: 2011 | AA99: 2012 | AB99: 2013 | AC99: 2014 | AD99: 2015 | AE99: 2010 | AF99: 2011 | AG99: 2012 | AH99: 2013 | AI99: 2014 | AJ99: 2015
D100: 1 | E100: Redes de otros operadores a red móvil propia | F100: [Erlang] | G100: =G80 -> 0.9900990099 | H100: 0.9900990099 | I100: 0.9900990099 | J100: 0.9900990099 | K100: 0.9900990099 | L100: 0.9900990099 | M100: 0.9900990099 | N100: 0.9900990099 | O100: 0.9900990099 | P100: 0.9900990099 | Q100: 0.9900990099 | R100: 0.9900990099 | S100: 0.9900990099 | T100: 0.9900990099 | U100: 0.9900990099 | V100: 0.9900990099 | W100: 0.9900990099 | X100: 0.9900990099 | Y100: 0.9900990099 | Z100: 0.9900990099 | AA100: 0.9900990099 | AB100: 0.9900990099 | AC100: 0.9900990099 | AD100: 0.9900990099 | AE100: 0.9900990099 | AF100: 0.9900990099 | AG100: 0.9900990099 | AH100: 0.9900990099 | AI100: 0.9900990099 | AJ100: 0.9900990099
D101: 2 | E101: Red móvil propia a redes fijas | F101: [Erlang] | G101: =G81 -> 0.9900990099 | H101: 0.9900990099 | I101: 0.9900990099 | J101: 0.9900990099 | K101: 0.9900990099 | L101: 0.9900990099 | M101: 0.9900990099 | N101: 0.9900990099 | O101: 0.9900990099 | P101: 0.9900990099 | Q101: 0.9900990099 | R101: 0.9900990099 | S101: 0.9900990099 | T101: 0.9900990099 | U101: 0.9900990099 | V101: 0.9900990099 | W101: 0.9900990099 | X101: 0.9900990099 | Y101: 0.9900990099 | Z101: 0.9900990099 | AA101: 0.9900990099 | AB101: 0.9900990099 | AC101: 0.9900990099 | AD101: 0.9900990099 | AE101: 0.9900990099 | AF101: 0.9900990099 | AG101: 0.9900990099 | AH101: 0.9900990099 | AI101: 0.9900990099 | AJ101: 0.9900990099
D102: 3 | E102: Red móvil propia a red móvil propia | F102: [Erlang] | G102: =G82 -> 0.9900990099 | H102: 0.9900990099 | I102: 0.9900990099 | J102: 0.9900990099 | K102: 0.9900990099 | L102: 0.9900990099 | M102: 0.9900990099 | N102: 0.9900990099 | O102: 0.9900990099 | P102: 0.9900990099 | Q102: 0.9900990099 | R102: 0.9900990099 | S102: 0.9900990099 | T102: 0.9900990099 | U102: 0.9900990099 | V102: 0.9900990099 | W102: 0.9900990099 | X102: 0.9900990099 | Y102: 0.9900990099 | Z102: 0.9900990099 | AA102: 0.9900990099 | AB102: 0.9900990099 | AC102: 0.9900990099 | AD102: 0.9900990099 | AE102: 0.9900990099 | AF102: 0.9900990099 | AG102: 0.9900990099 | AH102: 0.9900990099 | AI102: 0.9900990099 | AJ102: 0.9900990099
D103: 4 | E103: Red móvil propia a red móvil de otro operador | F103: [Erlang] | G103: =G83 -> 0.9900990099 | H103: 0.9900990099 | I103: 0.9900990099 | J103: 0.9900990099 | K103: 0.9900990099 | L103: 0.9900990099 | M103: 0.9900990099 | N103: 0.9900990099 | O103: 0.9900990099 | P103: 0.9900990099 | Q103: 0.9900990099 | R103: 0.9900990099 | S103: 0.9900990099 | T103: 0.9900990099 | U103: 0.9900990099 | V103: 0.9900990099 | W103: 0.9900990099 | X103: 0.9900990099 | Y103: 0.9900990099 | Z103: 0.9900990099 | AA103: 0.9900990099 | AB103: 0.9900990099 | AC103: 0.9900990099 | AD103: 0.9900990099 | AE103: 0.9900990099 | AF103: 0.9900990099 | AG103: 0.9900990099 | AH103: 0.9900990099 | AI103: 0.9900990099 | AJ103: 0.9900990099
D104: 5 | E104: Red móvil propia a larga distancia | F104: [Erlang] | G104: =G84 -> 0.9900990099 | H104: 0.9900990099 | I104: 0.9900990099 | J104: 0.9900990099 | K104: 0.9900990099 | L104: 0.9900990099 | M104: 0.9900990099 | N104: 0.9900990099 | O104: 0.9900990099 | P104: 0.9900990099 | Q104: 0.9900990099 | R104: 0.9900990099 | S104: 0.9900990099 | T104: 0.9900990099 | U104: 0.9900990099 | V104: 0.9900990099 | W104: 0.9900990099 | X104: 0.9900990099 | Y104: 0.9900990099 | Z104: 0.9900990099 | AA104: 0.9900990099 | AB104: 0.9900990099 | AC104: 0.9900990099 | AD104: 0.9900990099 | AE104: 0.9900990099 | AF104: 0.9900990099 | AG104: 0.9900990099 | AH104: 0.9900990099 | AI104: 0.9900990099 | AJ104: 0.9900990099
C106: tráfico.total.HC.MSC | E106: Total | F106: [Erlang] | G106: =SUM(G100:G104) -> 4.95049505 | H106: 4.95049505 | I106: 4.95049505 | J106: 4.95049505 | K106: 4.95049505 | L106: 4.95049505 | M106: 4.95049505 | N106: 4.95049505 | O106: 4.95049505 | P106: 4.95049505 | Q106: 4.95049505 | R106: 4.95049505 | S106: 4.95049505 | T106: 4.95049505 | U106: 4.95049505 | V106: 4.95049505 | W106: 4.95049505 | X106: 4.95049505 | Y106: 4.95049505 | Z106: 4.95049505 | AA106: 4.95049505 | AB106: 4.95049505 | AC106: 4.95049505 | AD106: 4.95049505 | AE106: 4.95049505 | AF106: 4.95049505 | AG106: 4.95049505 | AH106: 4.95049505 | AI106: 4.95049505 | AJ106: 4.95049505
D108: id | E108: Tráfico en transmisión en puntos de terminación de red | G108: =INDEX(años,G$3) -> 2010 | H108: 2011 | I108: 2012 | J108: 2013 | K108: 2014 | L108: 2015 | M108: 2010 | N108: 2011 | O108: 2012 | P108: 2013 | Q108: 2014 | R108: 2015 | S108: 2010 | T108: 2011 | U108: 2012 | V108: 2013 | W108: 2014 | X108: 2015 | Y108: 2010 | Z108: 2011 | AA108: 2012 | AB108: 2013 | AC108: 2014 | AD108: 2015 | AE108: 2010 | AF108: 2011 | AG108: 2012 | AH108: 2013 | AI108: 2014 | AJ108: 2015
C109: tráfico.total.HC.PTR.entrante | D109: 1 | E109: Redes de otros operadores a red móvil propia | F109: tráfico.total.HC.PTR.entrante | G109: =IF(factor.concentración=0,0,G52*$K28/factor.concentración) -> 0.9900990099 | H109: 0.9900990099 | I109: 0.9900990099 | J109: 0.9900990099 | K109: 0.9900990099 | L109: 0.9900990099 | M109: 0.9900990099 | N109: 0.9900990099 | O109: 0.9900990099 | P109: 0.9900990099 | Q109: 0.9900990099 | R109: 0.9900990099 | S109: 0.9900990099 | T109: 0.9900990099 | U109: 0.9900990099 | V109: 0.9900990099 | W109: 0.9900990099 | X109: 0.9900990099 | Y109: 0.9900990099 | Z109: 0.9900990099 | AA109: 0.9900990099 | AB109: 0.9900990099 | AC109: 0.9900990099 | AD109: 0.9900990099 | AE109: 0.9900990099 | AF109: 0.9900990099 | AG109: 0.9900990099 | AH109: 0.9900990099 | AI109: 0.9900990099 | AJ109: 0.9900990099
C110: tráfico.total.HC.PTR.fijo | D110: 2 | E110: Red móvil propia a redes fijas | F110: tráfico.total.HC.PTR.fijo | G110: =IF(factor.concentración=0,0,G53*$K29/factor.concentración) -> 0.9900990099 | H110: 0.9900990099 | I110: 0.9900990099 | J110: 0.9900990099 | K110: 0.9900990099 | L110: 0.9900990099 | M110: 0.9900990099 | N110: 0.9900990099 | O110: 0.9900990099 | P110: 0.9900990099 | Q110: 0.9900990099 | R110: 0.9900990099 | S110: 0.9900990099 | T110: 0.9900990099 | U110: 0.9900990099 | V110: 0.9900990099 | W110: 0.9900990099 | X110: 0.9900990099 | Y110: 0.9900990099 | Z110: 0.9900990099 | AA110: 0.9900990099 | AB110: 0.9900990099 | AC110: 0.9900990099 | AD110: 0.9900990099 | AE110: 0.9900990099 | AF110: 0.9900990099 | AG110: 0.9900990099 | AH110: 0.9900990099 | AI110: 0.9900990099 | AJ110: 0.9900990099
D111: 3 | E111: Red móvil propia a red móvil propia | G111: =IF(factor.concentración=0,0,G54*$K30/factor.concentración) -> 0 | H111: 0 | I111: 0 | J111: 0 | K111: 0 | L111: 0 | M111: 0 | N111: 0 | O111: 0 | P111: 0 | Q111: 0 | R111: 0 | S111: 0 | T111: 0 | U111: 0 | V111: 0 | W111: 0 | X111: 0 | Y111: 0 | Z111: 0 | AA111: 0 | AB111: 0 | AC111: 0 | AD111: 0 | AE111: 0 | AF111: 0 | AG111: 0 | AH111: 0 | AI111: 0 | AJ111: 0
C112: tráfico.total.HC.PTR.móvil | D112: 4 | E112: Red móvil propia a red móvil de otro operador | F112: tráfico.total.HC.PTR.móvil | G112: =IF(factor.concentración=0,0,G55*$K31/factor.concentración) -> 0.9900990099 | H112: 0.9900990099 | I112: 0.9900990099 | J112: 0.9900990099 | K112: 0.9900990099 | L112: 0.9900990099 | M112: 0.9900990099 | N112: 0.9900990099 | O112: 0.9900990099 | P112: 0.9900990099 | Q112: 0.9900990099 | R112: 0.9900990099 | S112: 0.9900990099 | T112: 0.9900990099 | U112: 0.9900990099 | V112: 0.9900990099 | W112: 0.9900990099 | X112: 0.9900990099 | Y112: 0.9900990099 | Z112: 0.9900990099 | AA112: 0.9900990099 | AB112: 0.9900990099 | AC112: 0.9900990099 | AD112: 0.9900990099 | AE112: 0.9900990099 | AF112: 0.9900990099 | AG112: 0.9900990099 | AH112: 0.9900990099 | AI112: 0.9900990099 | AJ112: 0.9900990099
C113: tráfico.total.HC.PTR.ld | D113: 5 | E113: Red móvil propia a larga distancia | F113: tráfico.total.HC.PTR.ld | G113: =IF(factor.concentración=0,0,G56*$K32/factor.concentración) -> 0.9900990099 | H113: 0.9900990099 | I113: 0.9900990099 | J113: 0.9900990099 | K113: 0.9900990099 | L113: 0.9900990099 | M113: 0.9900990099 | N113: 0.9900990099 | O113: 0.9900990099 | P113: 0.9900990099 | Q113: 0.9900990099 | R113: 0.9900990099 | S113: 0.9900990099 | T113: 0.9900990099 | U113: 0.9900990099 | V113: 0.9900990099 | W113: 0.9900990099 | X113: 0.9900990099 | Y113: 0.9900990099 | Z113: 0.9900990099 | AA113: 0.9900990099 | AB113: 0.9900990099 | AC113: 0.9900990099 | AD113: 0.9900990099 | AE113: 0.9900990099 | AF113: 0.9900990099 | AG113: 0.9900990099 | AH113: 0.9900990099 | AI113: 0.9900990099 | AJ113: 0.9900990099
C115: tráfico.total.HC.PTR | E115: Total | F115: tráfico.total.HC.PTR | G115: =SUM(G109:G113) -> 3.96039604 | H115: 3.96039604 | I115: 3.96039604 | J115: 3.96039604 | K115: 3.96039604 | L115: 3.96039604 | M115: 3.96039604 | N115: 3.96039604 | O115: 3.96039604 | P115: 3.96039604 | Q115: 3.96039604 | R115: 3.96039604 | S115: 3.96039604 | T115: 3.96039604 | U115: 3.96039604 | V115: 3.96039604 | W115: 3.96039604 | X115: 3.96039604 | Y115: 3.96039604 | Z115: 3.96039604 | AA115: 3.96039604 | AB115: 3.96039604 | AC115: 3.96039604 | AD115: 3.96039604 | AE115: 3.96039604 | AF115: 3.96039604 | AG115: 3.96039604 | AH115: 3.96039604 | AI115: 3.96039604 | AJ115: 3.96039604
E117: Proporción tráfico entrante desde fijos | F117: [%] | G117: =INDEX(Prop.Ent.Fijo,G$5) -> 0.25 | H117: 0.3333333333 | I117: 0.3333333333 | J117: 0.3333333333 | K117: 0.3333333333 | L117: 0.3333333333 | M117: 0.3333333333 | N117: 0.3333333333 | O117: 0.3333333333 | P117: 0.3333333333 | Q117: 0.3333333333 | R117: 0.3333333333 | S117: 0.3333333333 | T117: 0.3333333333 | U117: 0.3333333333 | V117: 0.3333333333 | W117: 0.3333333333 | X117: 0.3333333333 | Y117: 0.3333333333 | Z117: 0.3333333333 | AA117: 0.3333333333 | AB117: 0.3333333333 | AC117: 0.3333333333 | AD117: 0.3333333333 | AE117: 0.3333333333 | AF117: 0.3333333333 | AG117: 0.3333333333 | AH117: 0.3333333333 | AI117: 0.3333333333 | AJ117: 0.3333333333
G119: =INDEX(lista.escenarios,G$4) -> escenario 1 | M119: =INDEX(lista.escenarios,M$4) -> escenario 2 | S119: =INDEX(lista.escenarios,S$4) -> escenario 3 | Y119: =INDEX(lista.escenarios,Y$4) -> escenario 4 | AE119: =INDEX(lista.escenarios,AE$4) -> escenario 5
D120: id | E120: Tráfico | G120: =INDEX(años,G$3) -> 2010 | H120: 2011 | I120: 2012 | J120: 2013 | K120: 2014 | L120: 2015 | M120: 2010 | N120: 2011 | O120: 2012 | P120: 2013 | Q120: 2014 | R120: 2015 | S120: 2010 | T120: 2011 | U120: 2012 | V120: 2013 | W120: 2014 | X120: 2015 | Y120: 2010 | Z120: 2011 | AA120: 2012 | AB120: 2013 | AC120: 2014 | AD120: 2015 | AE120: 2010 | AF120: 2011 | AG120: 2012 | AH120: 2013 | AI120: 2014 | AJ120: 2015
D121: 1 | E121: Total anual de minutos entrantes sin contar fijos | F121: [minuto] | G121: =G39*(1-G117) -> 0.75 | H121: 0.6666666667 | I121: 0.6666666667 | J121: 0.6666666667 | K121: 0.6666666667 | L121: 0.6666666667 | M121: 0.6666666667 | N121: 0.6666666667 | O121: 0.6666666667 | P121: 0.6666666667 | Q121: 0.6666666667 | R121: 0.6666666667 | S121: 0.6666666667 | T121: 0.6666666667 | U121: 0.6666666667 | V121: 0.6666666667 | W121: 0.6666666667 | X121: 0.6666666667 | Y121: 0.6666666667 | Z121: 0.6666666667 | AA121: 0.6666666667 | AB121: 0.6666666667 | AC121: 0.6666666667 | AD121: 0.6666666667 | AE121: 0.6666666667 | AF121: 0.6666666667 | AG121: 0.6666666667 | AH121: 0.6666666667 | AI121: 0.6666666667 | AJ121: 0.6666666667
D122: 2 | E122: Tráfico en hora cargada entrante sin contar fijos | F122: [Erlang] | G122: =G121*$G$16 -> 0.0075 | H122: 0.006666666667 | I122: 0.006666666667 | J122: 0.006666666667 | K122: 0.006666666667 | L122: 0.006666666667 | M122: 0.006666666667 | N122: 0.006666666667 | O122: 0.006666666667 | P122: 0.006666666667 | Q122: 0.006666666667 | R122: 0.006666666667 | S122: 0.006666666667 | T122: 0.006666666667 | U122: 0.006666666667 | V122: 0.006666666667 | W122: 0.006666666667 | X122: 0.006666666667 | Y122: 0.006666666667 | Z122: 0.006666666667 | AA122: 0.006666666667 | AB122: 0.006666666667 | AC122: 0.006666666667 | AD122: 0.006666666667 | AE122: 0.006666666667 | AF122: 0.006666666667 | AG122: 0.006666666667 | AH122: 0.006666666667 | AI122: 0.006666666667 | AJ122: 0.006666666667
C123: tráfico.total.HC.PTR.entrante.sin.fijo | D123: 3 | E123: Tráfico en hora cargada entrate en PTR | F123: [Erlang] | G123: =IF(factor.concentración=0,0,G122*$K28/factor.concentración) -> 0.0075 | H123: 0.006666666667 | I123: 0.006666666667 | J123: 0.006666666667 | K123: 0.006666666667 | L123: 0.006666666667 | M123: 0.006666666667 | N123: 0.006666666667 | O123: 0.006666666667 | P123: 0.006666666667 | Q123: 0.006666666667 | R123: 0.006666666667 | S123: 0.006666666667 | T123: 0.006666666667 | U123: 0.006666666667 | V123: 0.006666666667 | W123: 0.006666666667 | X123: 0.006666666667 | Y123: 0.006666666667 | Z123: 0.006666666667 | AA123: 0.006666666667 | AB123: 0.006666666667 | AC123: 0.006666666667 | AD123: 0.006666666667 | AE123: 0.006666666667 | AF123: 0.006666666667 | AG123: 0.006666666667 | AH123: 0.006666666667 | AI123: 0.006666666667 | AJ123: 0.006666666667
F124: =+(G124-G123)/G124 -> 0.9999997236 | G124: 27133.19802 | H124: 29307.65868 | I124: 29617.62437 | J124: 29631.51974 | K124: 29628.54772 | L124: 29688.18289
C125: Cálculo auxiliar para tráfico MGW
D127: id | E127: Tráfico en HC entre operadores | G127: =INDEX(años,G$3) -> 2010
D128: 1 | E128: Redes de otros operadores a red móvil propia | F128: [Erlang] | G128: =G52 -> 0.9900990099 | H128: t.entrante
D129: =D128+1 -> 2 | E129: Red móvil propia a redes fijas | F129: [Erlang] | G129: =G53 -> 0.9900990099 | H129: t.saliente
D130: =D129+1 -> 3 | E130: Red móvil propia a red móvil propia | F130: [Erlang] | G130: =G54 -> 0.9900990099 | H130: t.intrared
E132: Total | F132: [Erlang] | G132: =SUM(G128:G130) -> 2.97029703
G134: [%] | H134: [Erlang] | I134: [Erlang] | J134: [%]
D135: id | E135: Locación MGW | G135: % población | H135: Tr. por loc. | I135: Tr. fuera loc. | J135: % Tr. fuera loc
D136: 1 | E136: =INDEX(mgw.lista.locaciones,D136) -> Bogotá | G136: =INDEX(mgw.distribución.población,$D136,G$3) -> 1 | H136: =G136*$G$132 -> 2.97029703 | I136: =H136*(1-G136) -> 1.319076861e-15 | J136: =IF(H136+H136=0,0,I136/(H136+H136)) -> 2.220446049e-16
D137: =D136+1 -> 2 | E137: Bucaramanga | G137: 0 | H137: 0 | I137: 0 | J137: 0
D138: 3 | E138: Neiva | G138: 0 | H138: 0 | I138: 0 | J138: 0
D139: 4 | E139: Barranquilla | G139: 0 | H139: 0 | I139: 0 | J139: 0
D140: 5 | E140: Turbaco | G140: 0 | H140: 0 | I140: 0 | J140: 0
D141: 6 | E141: Sincelejo | G141: 0 | H141: 0 | I141: 0 | J141: 0
D142: 7 | E142: Cali | G142: 0 | H142: 0 | I142: 0 | J142: 0
D143: 8 | E143: Medellín | G143: 0 | H143: 0 | I143: 0 | J143: 0
D144: 9 | E144: Pasto | G144: 0 | H144: 0 | I144: 0 | J144: 0
D145: 10 | E145: Pereira | G145: 0 | H145: 0 | I145: 0 | J145: 0
D146: 11 | E146: libre | G146: 0 | H146: 0 | I146: 0 | J146: 0
D147: 12 | E147: libre | G147: 0 | H147: 0 | I147: 0 | J147: 0
D148: 13 | E148: libre | G148: 0 | H148: 0 | I148: 0 | J148: 0
D149: 14 | E149: libre | G149: 0 | H149: 0 | I149: 0 | J149: 0
D150: 15 | E150: libre | G150: 0 | H150: 0 | I150: 0 | J150: 0
D151: 16 | E151: libre | G151: 0 | H151: 0 | I151: 0 | J151: 0
D152: 17 | E152: libre | G152: 0 | H152: 0 | I152: 0 | J152: 0
D153: 18 | E153: libre | G153: 0 | H153: 0 | I153: 0 | J153: 0
D154: 19 | E154: libre | G154: 0 | H154: 0 | I154: 0 | J154: 0
D155: 20 | E155: libre | G155: 0 | H155: 0 | I155: 0 | J155: 0
G156: aux.p.pob
E157: Total | G157: =SUM(G136:G155) -> 1 | H157: =SUM(H136:H155) -> 2.97029703 | I157: =SUM(I136:I155) -> 1.319076861e-15 | J157: =SUM(J136:J155) -> 2.220446049e-16
D159: id | E159: Estimador factor ruteo | G159: valor
D160: 1 | E160: Promedio ponderado | F160: [%] | G160: =SUMPRODUCT(G136:G155,J136:J155) -> 2.220446049e-16

Sheet Factores.Utilización
E1: Factores de utilización de los elementos de red
F3: años | G3: 1 | H3: 2 | I3: 3 | J3: 4 | K3: 5 | L3: 6 | M3: =G3 -> 1 | N3: 2 | O3: 3 | P3: 4 | Q3: 5 | R3: 6 | S3: =M3 -> 1 | T3: 2 | U3: 3 | V3: 4 | W3: 5 | X3: 6 | Y3: =S3 -> 1 | Z3: 2 | AA3: 3 | AB3: 4 | AC3: 5 | AD3: 6 | AE3: =Y3 -> 1 | AF3: 2 | AG3: 3 | AH3: 4 | AI3: 5 | AJ3: 6
F4: escenario | G4: 1 | H4: 1 | I4: 1 | J4: 1 | K4: 1 | L4: 1 | M4: =G4+1 -> 2 | N4: 2 | O4: 2 | P4: 2 | Q4: 2 | R4: 2 | S4: 3 | T4: 3 | U4: 3 | V4: 3 | W4: 3 | X4: 3 | Y4: 4 | Z4: 4 | AA4: 4 | AB4: 4 | AC4: 4 | AD4: 4 | AE4: 5 | AF4: 5 | AG4: 5 | AH4: 5 | AI4: 5 | AJ4: 5
F5: columna | G5: 1 | H5: 2 | I5: 3 | J5: 4 | K5: 5 | L5: 6 | M5: 7 | N5: 8 | O5: 9 | P5: 10 | Q5: 11 | R5: 12 | S5: 13 | T5: 14 | U5: 15 | V5: 16 | W5: 17 | X5: 18 | Y5: 19 | Z5: 20 | AA5: 21 | AB5: 22 | AC5: 23 | AD5: 24 | AE5: 25 | AF5: 26 | AG5: 27 | AH5: 28 | AI5: 29 | AJ5: 30
B6: I | C6: Selección del horizonte de planificación
D8: id | E8: Elemento | G8: Procesador | H8: Scorched Node | I8: Planificación | J8: aux | L8: aux. planif
D9: 1 | E9: TRX | G9: 1 | H9: 1 | I9: Tiempo Actual | J9: =MATCH($I9,lista.periódo.planificación,0) -> 1 | L9: Tiempo Actual
D10: =D9+1 -> 2 | E10: Macrocelda urbana | G10: 1 | H10: 1 | I10: Tiempo Actual | J10: 1 | L10: 1 Mes
D11: 3 | E11: Macrocelda semiurbana | G11: 1 | H11: 1 | I11: Tiempo Actual | J11: 1 | L11: 1 Trimestre
D12: 4 | E12: Macrocelda rural | G12: 1 | H12: 1 | I12: Tiempo Actual | J12: 1 | L12: 1 Semestre
D13: 5 | E13: Macrocelda carretera | G13: 1 | H13: 1 | I13: Tiempo Actual | J13: 1 | L13: 1 Año
D14: 6 | E14: Microcelda urbana | G14: 1 | H14: 1 | I14: Tiempo Actual | J14: 1 | L14: 2 Años
D15: 7 | E15: Microcelda semiurbana | G15: 1 | H15: 1 | I15: Tiempo Actual | J15: 1 | L15: 3 o más Años | M15: lista.periódo.planificación
D16: 8 | E16: Enlace backhaul | G16: 1 | H16: 1 | I16: Tiempo Actual | J16: 1
D17: 9 | E17: BSC | G17: 1 | H17: 1 | I17: Tiempo Actual | J17: 1
D18: 10 | E18: Enlace BSC - MGW | G18: 1 | H18: 1 | I18: Tiempo Actual | J18: 1
D19: 11 | E19: MGW | G19: 1 | H19: 1 | I19: Tiempo Actual | J19: 1
D20: 12 | E20: MSCS | G20: 1 | H20: 1 | I20: Tiempo Actual | J20: 1
D21: 13 | E21: PTR | G21: 1 | H21: 1 | I21: Tiempo Actual | J21: 1
D22: 14 | E22: HLR | G22: 1 | H22: 1 | I22: Tiempo Actual | J22: 1
D23: 15 | E23: Routers | G23: 1 | H23: 1 | I23: Tiempo Actual | J23: 1
B25: II | C25: Cálculos de utilización
G27: =INDEX(lista.escenarios,G$4) -> escenario 1 | M27: =INDEX(lista.escenarios,M$4) -> escenario 2 | S27: =INDEX(lista.escenarios,S$4) -> escenario 3 | Y27: =INDEX(lista.escenarios,Y$4) -> escenario 4 | AE27: =INDEX(lista.escenarios,AE$4) -> escenario 5
D28: id | E28: Información predicción de demanda | G28: =INDEX(años,G$3) -> 2010 | H28: 2011 | I28: 2012 | J28: 2013 | K28: 2014 | L28: 2015 | M28: 2010 | N28: 2011 | O28: 2012 | P28: 2013 | Q28: 2014 | R28: 2015 | S28: 2010 | T28: 2011 | U28: 2012 | V28: 2013 | W28: 2014 | X28: 2015 | Y28: 2010 | Z28: 2011 | AA28: 2012 | AB28: 2013 | AC28: 2014 | AD28: 2015 | AE28: 2010 | AF28: 2011 | AG28: 2012 | AH28: 2013 | AI28: 2014 | AJ28: 2015
D29: 1 | E29: Cantidad de suscriptores a fin de año | F29: [suscriptor] | G29: =Demanda.Diseño!G38 -> 2 | H29: =Demanda.Diseño!H38 -> 2 | I29: =Demanda.Diseño!I38 -> 2 | J29: =Demanda.Diseño!J38 -> 2 | K29: =Demanda.Diseño!K38 -> 2 | L29: =Demanda.Diseño!L38 -> 2 | M29: =Demanda.Diseño!M38 -> 2 | N29: =Demanda.Diseño!N38 -> 2 | O29: =Demanda.Diseño!O38 -> 2 | P29: =Demanda.Diseño!P38 -> 2 | Q29: =Demanda.Diseño!Q38 -> 2 | R29: =Demanda.Diseño!R38 -> 2 | S29: =Demanda.Diseño!S38 -> 2 | T29: =Demanda.Diseño!T38 -> 2 | U29: =Demanda.Diseño!U38 -> 2 | V29: =Demanda.Diseño!V38 -> 2 | W29: =Demanda.Diseño!W38 -> 2 | X29: =Demanda.Diseño!X38 -> 2 | Y29: =Demanda.Diseño!Y38 -> 2 | Z29: =Demanda.Diseño!Z38 -> 2 | AA29: =Demanda.Diseño!AA38 -> 2 | AB29: =Demanda.Diseño!AB38 -> 2 | AC29: =Demanda.Diseño!AC38 -> 2 | AD29: =Demanda.Diseño!AD38 -> 2 | AE29: =Demanda.Diseño!AE38 -> 2 | AF29: =Demanda.Diseño!AF38 -> 2 | AG29: =Demanda.Diseño!AG38 -> 2 | AH29: =Demanda.Diseño!AH38 -> 2 | AI29: =Demanda.Diseño!AI38 -> 2 | AJ29: =Demanda.Diseño!AJ38 -> 2
D30: =D29+1 -> 2 | E30: Total minutos entrantes | F30: [minuto] | G30: =Demanda.Diseño!G39 -> 1 | H30: =Demanda.Diseño!H39 -> 1 | I30: =Demanda.Diseño!I39 -> 1 | J30: =Demanda.Diseño!J39 -> 1 | K30: =Demanda.Diseño!K39 -> 1 | L30: =Demanda.Diseño!L39 -> 1 | M30: =Demanda.Diseño!M39 -> 1 | N30: =Demanda.Diseño!N39 -> 1 | O30: =Demanda.Diseño!O39 -> 1 | P30: =Demanda.Diseño!P39 -> 1 | Q30: =Demanda.Diseño!Q39 -> 1 | R30: =Demanda.Diseño!R39 -> 1 | S30: =Demanda.Diseño!S39 -> 1 | T30: =Demanda.Diseño!T39 -> 1 | U30: =Demanda.Diseño!U39 -> 1 | V30: =Demanda.Diseño!V39 -> 1 | W30: =Demanda.Diseño!W39 -> 1 | X30: =Demanda.Diseño!X39 -> 1 | Y30: =Demanda.Diseño!Y39 -> 1 | Z30: =Demanda.Diseño!Z39 -> 1 | AA30: =Demanda.Diseño!AA39 -> 1 | AB30: =Demanda.Diseño!AB39 -> 1 | AC30: =Demanda.Diseño!AC39 -> 1 | AD30: =Demanda.Diseño!AD39 -> 1 | AE30: =Demanda.Diseño!AE39 -> 1 | AF30: =Demanda.Diseño!AF39 -> 1 | AG30: =Demanda.Diseño!AG39 -> 1 | AH30: =Demanda.Diseño!AH39 -> 1 | AI30: =Demanda.Diseño!AI39 -> 1 | AJ30: =Demanda.Diseño!AJ39 -> 1
D31: =D30+1 -> 3 | E31: Total minutos salientes | F31: [minuto] | G31: =Demanda.Diseño!G40 -> 4 | H31: =Demanda.Diseño!H40 -> 4 | I31: =Demanda.Diseño!I40 -> 4 | J31: =Demanda.Diseño!J40 -> 4 | K31: =Demanda.Diseño!K40 -> 4 | L31: =Demanda.Diseño!L40 -> 4 | M31: =Demanda.Diseño!M40 -> 4 | N31: =Demanda.Diseño!N40 -> 4 | O31: =Demanda.Diseño!O40 -> 4 | P31: =Demanda.Diseño!P40 -> 4 | Q31: =Demanda.Diseño!Q40 -> 4 | R31: =Demanda.Diseño!R40 -> 4 | S31: =Demanda.Diseño!S40 -> 4 | T31: =Demanda.Diseño!T40 -> 4 | U31: =Demanda.Diseño!U40 -> 4 | V31: =Demanda.Diseño!V40 -> 4 | W31: =Demanda.Diseño!W40 -> 4 | X31: =Demanda.Diseño!X40 -> 4 | Y31: =Demanda.Diseño!Y40 -> 4 | Z31: =Demanda.Diseño!Z40 -> 4 | AA31: =Demanda.Diseño!AA40 -> 4 | AB31: =Demanda.Diseño!AB40 -> 4 | AC31: =Demanda.Diseño!AC40 -> 4 | AD31: =Demanda.Diseño!AD40 -> 4 | AE31: =Demanda.Diseño!AE40 -> 4 | AF31: =Demanda.Diseño!AF40 -> 4 | AG31: =Demanda.Diseño!AG40 -> 4 | AH31: =Demanda.Diseño!AH40 -> 4 | AI31: =Demanda.Diseño!AI40 -> 4 | AJ31: =Demanda.Diseño!AJ40 -> 4
D32: =D31+1 -> 4 | E32: Total minutos | F32: [minuto] | G32: =G31+G30 -> 5 | H32: 5 | I32: 5 | J32: 5 | K32: 5 | L32: 5 | M32: 5 | N32: 5 | O32: 5 | P32: 5 | Q32: 5 | R32: 5 | S32: 5 | T32: 5 | U32: 5 | V32: 5 | W32: 5 | X32: 5 | Y32: 5 | Z32: 5 | AA32: 5 | AB32: 5 | AC32: 5 | AD32: 5 | AE32: 5 | AF32: 5 | AG32: 5 | AH32: 5 | AI32: 5 | AJ32: 5
G34: =INDEX(lista.escenarios,G$4) -> escenario 1 | M34: =INDEX(lista.escenarios,M$4) -> escenario 2 | S34: =INDEX(lista.escenarios,S$4) -> escenario 3 | Y34: =INDEX(lista.escenarios,Y$4) -> escenario 4 | AE34: =INDEX(lista.escenarios,AE$4) -> escenario 5
D35: id | E35: Interpolación anual suscriptores | G35: =INDEX(años,G$3) -> 2010 | H35: 2011 | I35: 2012 | J35: 2013 | K35: 2014 | L35: 2015 | M35: 2010 | N35: 2011 | O35: 2012 | P35: 2013 | Q35: 2014 | R35: 2015 | S35: 2010 | T35: 2011 | U35: 2012 | V35: 2013 | W35: 2014 | X35: 2015 | Y35: 2010 | Z35: 2011 | AA35: 2012 | AB35: 2013 | AC35: 2014 | AD35: 2015 | AE35: 2010 | AF35: 2011 | AG35: 2012 | AH35: 2013 | AI35: 2014 | AJ35: 2015
D36: 1 | E36: Hoy | F36: [suscriptor] | G36: =G29 -> 2 | H36: 2 | I36: 2 | J36: 2 | K36: 2 | L36: 2 | M36: 2 | N36: 2 | O36: 2 | P36: 2 | Q36: 2 | R36: 2 | S36: 2 | T36: 2 | U36: 2 | V36: 2 | W36: 2 | X36: 2 | Y36: 2 | Z36: 2 | AA36: 2 | AB36: 2 | AC36: 2 | AD36: 2 | AE36: 2 | AF36: 2 | AG36: 2 | AH36: 2 | AI36: 2 | AJ36: 2
D37: =D36+1 -> 2 | E37: 1 Mes más | F37: [suscriptor] | G37: =G36+(H36-G36)/12 -> 2 | H37: =H36+(I36-H36)/12 -> 2 | I37: =I36+(J36-I36)/12 -> 2 | J37: =J36+(K36-J36)/12 -> 2 | K37: =K36+(L36-K36)/12 -> 2 | L37: =L36 -> 2 | M37: =M36+(N36-M36)/12 -> 2 | N37: =N36+(O36-N36)/12 -> 2 | O37: =O36+(P36-O36)/12 -> 2 | P37: =P36+(Q36-P36)/12 -> 2 | Q37: =Q36+(R36-Q36)/12 -> 2 | R37: =R36 -> 2 | S37: =S36+(T36-S36)/12 -> 2 | T37: =T36+(U36-T36)/12 -> 2 | U37: =U36+(V36-U36)/12 -> 2 | V37: =V36+(W36-V36)/12 -> 2 | W37: =W36+(X36-W36)/12 -> 2 | X37: =X36 -> 2 | Y37: =Y36+(Z36-Y36)/12 -> 2 | Z37: =Z36+(AA36-Z36)/12 -> 2 | AA37: =AA36+(AB36-AA36)/12 -> 2 | AB37: =AB36+(AC36-AB36)/12 -> 2 | AC37: =AC36+(AD36-AC36)/12 -> 2 | AD37: =AD36 -> 2 | AE37: =AE36+(AF36-AE36)/12 -> 2 | AF37: =AF36+(AG36-AF36)/12 -> 2 | AG37: =AG36+(AH36-AG36)/12 -> 2 | AH37: =AH36+(AI36-AH36)/12 -> 2 | AI37: =AI36+(AJ36-AI36)/12 -> 2 | AJ37: =AJ36 -> 2
D38: 3 | E38: 1 Trimestre más | F38: [suscriptor] | G38: =G36+(H36-G36)/4 -> 2 | H38: =H36+(I36-H36)/4 -> 2 | I38: =I36+(J36-I36)/4 -> 2 | J38: =J36+(K36-J36)/4 -> 2 | K38: =K36+(L36-K36)/4 -> 2 | L38: =L37 -> 2 | M38: =M36+(N36-M36)/4 -> 2 | N38: =N36+(O36-N36)/4 -> 2 | O38: =O36+(P36-O36)/4 -> 2 | P38: =P36+(Q36-P36)/4 -> 2 | Q38: =Q36+(R36-Q36)/4 -> 2 | R38: =R37 -> 2 | S38: =S36+(T36-S36)/4 -> 2 | T38: =T36+(U36-T36)/4 -> 2 | U38: =U36+(V36-U36)/4 -> 2 | V38: =V36+(W36-V36)/4 -> 2 | W38: =W36+(X36-W36)/4 -> 2 | X38: =X37 -> 2 | Y38: =Y36+(Z36-Y36)/4 -> 2 | Z38: =Z36+(AA36-Z36)/4 -> 2 | AA38: =AA36+(AB36-AA36)/4 -> 2 | AB38: =AB36+(AC36-AB36)/4 -> 2 | AC38: =AC36+(AD36-AC36)/4 -> 2 | AD38: =AD37 -> 2 | AE38: =AE36+(AF36-AE36)/4 -> 2 | AF38: =AF36+(AG36-AF36)/4 -> 2 | AG38: =AG36+(AH36-AG36)/4 -> 2 | AH38: =AH36+(AI36-AH36)/4 -> 2 | AI38: =AI36+(AJ36-AI36)/4 -> 2 | AJ38: =AJ37 -> 2
D39: 4 | E39: 1 Semestre más | F39: [suscriptor] | G39: =G36+(H36-G36)/2 -> 2 | H39: =H36+(I36-H36)/2 -> 2 | I39: =I36+(J36-I36)/2 -> 2 | J39: =J36+(K36-J36)/2 -> 2 | K39: =K36+(L36-K36)/2 -> 2 | L39: =L36 -> 2 | M39: =M36+(N36-M36)/2 -> 2 | N39: =N36+(O36-N36)/2 -> 2 | O39: =O36+(P36-O36)/2 -> 2 | P39: =P36+(Q36-P36)/2 -> 2 | Q39: =Q36+(R36-Q36)/2 -> 2 | R39: =R36 -> 2 | S39: =S36+(T36-S36)/2 -> 2 | T39: =T36+(U36-T36)/2 -> 2 | U39: =U36+(V36-U36)/2 -> 2 | V39: =V36+(W36-V36)/2 -> 2 | W39: =W36+(X36-W36)/2 -> 2 | X39: =X36 -> 2 | Y39: =Y36+(Z36-Y36)/2 -> 2 | Z39: =Z36+(AA36-Z36)/2 -> 2 | AA39: =AA36+(AB36-AA36)/2 -> 2 | AB39: =AB36+(AC36-AB36)/2 -> 2 | AC39: =AC36+(AD36-AC36)/2 -> 2 | AD39: =AD36 -> 2 | AE39: =AE36+(AF36-AE36)/2 -> 2 | AF39: =AF36+(AG36-AF36)/2 -> 2 | AG39: =AG36+(AH36-AG36)/2 -> 2 | AH39: =AH36+(AI36-AH36)/2 -> 2 | AI39: =AI36+(AJ36-AI36)/2 -> 2 | AJ39: =AJ36 -> 2
D40: 5 | E40: 1 año más | F40: [suscriptor] | G40: =H36 -> 2 | H40: =I36 -> 2 | I40: =J36 -> 2 | J40: =K36 -> 2 | K40: =L36 -> 2 | L40: =L36 -> 2 | M40: =N36 -> 2 | N40: =O36 -> 2 | O40: =P36 -> 2 | P40: =Q36 -> 2 | Q40: =R36 -> 2 | R40: =R36 -> 2 | S40: =T36 -> 2 | T40: =U36 -> 2 | U40: =V36 -> 2 | V40: =W36 -> 2 | W40: =X36 -> 2 | X40: =X36 -> 2 | Y40: =Z36 -> 2 | Z40: =AA36 -> 2 | AA40: =AB36 -> 2 | AB40: =AC36 -> 2 | AC40: =AD36 -> 2 | AD40: =AD36 -> 2 | AE40: =AF36 -> 2 | AF40: =AG36 -> 2 | AG40: =AH36 -> 2 | AH40: =AI36 -> 2 | AI40: =AJ36 -> 2 | AJ40: =AJ36 -> 2
D41: 6 | E41: 2 años más | F41: [suscriptor] | G41: =I36 -> 2 | H41: =J36 -> 2 | I41: =K36 -> 2 | J41: =L36 -> 2 | K41: =L36 -> 2 | L41: =L36 -> 2 | M41: =O36 -> 2 | N41: =P36 -> 2 | O41: =Q36 -> 2 | P41: =R36 -> 2 | Q41: =R36 -> 2 | R41: =R36 -> 2 | S41: =U36 -> 2 | T41: =V36 -> 2 | U41: =W36 -> 2 | V41: =X36 -> 2 | W41: =X36 -> 2 | X41: =X36 -> 2 | Y41: =AA36 -> 2 | Z41: =AB36 -> 2 | AA41: =AC36 -> 2 | AB41: =AD36 -> 2 | AC41: =AD36 -> 2 | AD41: =AD36 -> 2 | AE41: =AG36 -> 2 | AF41: =AH36 -> 2 | AG41: =AI36 -> 2 | AH41: =AJ36 -> 2 | AI41: =AJ36 -> 2 | AJ41: =AJ36 -> 2
D42: 7 | E42: 3 o más años en el futuro | F42: [suscriptor] | G42: =J36 -> 2 | H42: =K36 -> 2 | I42: =L36 -> 2 | J42: =L36 -> 2 | K42: =L36 -> 2 | L42: =L36 -> 2 | M42: =P36 -> 2 | N42: =Q36 -> 2 | O42: =R36 -> 2 | P42: =R36 -> 2 | Q42: =R36 -> 2 | R42: =R36 -> 2 | S42: =V36 -> 2 | T42: =W36 -> 2 | U42: =X36 -> 2 | V42: =X36 -> 2 | W42: =X36 -> 2 | X42: =X36 -> 2 | Y42: =AB36 -> 2 | Z42: =AC36 -> 2 | AA42: =AD36 -> 2 | AB42: =AD36 -> 2 | AC42: =AD36 -> 2 | AD42: =AD36 -> 2 | AE42: =AH36 -> 2 | AF42: =AI36 -> 2 | AG42: =AJ36 -> 2 | AH42: =AJ36 -> 2 | AI42: =AJ36 -> 2 | AJ42: =AJ36 -> 2
G44: =INDEX(lista.escenarios,G$4) -> escenario 1 | M44: =INDEX(lista.escenarios,M$4) -> escenario 2 | S44: =INDEX(lista.escenarios,S$4) -> escenario 3 | Y44: =INDEX(lista.escenarios,Y$4) -> escenario 4 | AE44: =INDEX(lista.escenarios,AE$4) -> escenario 5
D45: id | E45: Interpolación anual minutos | G45: =INDEX(años,G$3) -> 2010 | H45: 2011 | I45: 2012 | J45: 2013 | K45: 2014 | L45: 2015 | M45: 2010 | N45: 2011 | O45: 2012 | P45: 2013 | Q45: 2014 | R45: 2015 | S45: 2010 | T45: 2011 | U45: 2012 | V45: 2013 | W45: 2014 | X45: 2015 | Y45: 2010 | Z45: 2011 | AA45: 2012 | AB45: 2013 | AC45: 2014 | AD45: 2015 | AE45: 2010 | AF45: 2011 | AG45: 2012 | AH45: 2013 | AI45: 2014 | AJ45: 2015
D46: 1 | E46: Hoy | F46: [minuto] | G46: =G32 -> 5 | H46: 5 | I46: 5 | J46: 5 | K46: 5 | L46: 5 | M46: 5 | N46: 5 | O46: 5 | P46: 5 | Q46: 5 | R46: 5 | S46: 5 | T46: 5 | U46: 5 | V46: 5 | W46: 5 | X46: 5 | Y46: 5 | Z46: 5 | AA46: 5 | AB46: 5 | AC46: 5 | AD46: 5 | AE46: 5 | AF46: 5 | AG46: 5 | AH46: 5 | AI46: 5 | AJ46: 5
D47: =D46+1 -> 2 | E47: 1 Mes más | F47: [minuto] | G47: =G46+(H46-G46)/12 -> 5 | H47: =H46+(I46-H46)/12 -> 5 | I47: =I46+(J46-I46)/12 -> 5 | J47: =J46+(K46-J46)/12 -> 5 | K47: =K46+(L46-K46)/12 -> 5 | L47: =L46 -> 5 | M47: =M46+(N46-M46)/12 -> 5 | N47: =N46+(O46-N46)/12 -> 5 | O47: =O46+(P46-O46)/12 -> 5 | P47: =P46+(Q46-P46)/12 -> 5 | Q47: =Q46+(R46-Q46)/12 -> 5 | R47: =R46 -> 5 | S47: =S46+(T46-S46)/12 -> 5 | T47: =T46+(U46-T46)/12 -> 5 | U47: =U46+(V46-U46)/12 -> 5 | V47: =V46+(W46-V46)/12 -> 5 | W47: =W46+(X46-W46)/12 -> 5 | X47: =X46 -> 5 | Y47: =Y46+(Z46-Y46)/12 -> 5 | Z47: =Z46+(AA46-Z46)/12 -> 5 | AA47: =AA46+(AB46-AA46)/12 -> 5 | AB47: =AB46+(AC46-AB46)/12 -> 5 | AC47: =AC46+(AD46-AC46)/12 -> 5 | AD47: =AD46 -> 5 | AE47: =AE46+(AF46-AE46)/12 -> 5 | AF47: =AF46+(AG46-AF46)/12 -> 5 | AG47: =AG46+(AH46-AG46)/12 -> 5 | AH47: =AH46+(AI46-AH46)/12 -> 5 | AI47: =AI46+(AJ46-AI46)/12 -> 5 | AJ47: =AJ46 -> 5
D48: 3 | E48: 1 Trimestre más | F48: [minuto] | G48: =G46+(H46-G46)/4 -> 5 | H48: =H46+(I46-H46)/4 -> 5 | I48: =I46+(J46-I46)/4 -> 5 | J48: =J46+(K46-J46)/4 -> 5 | K48: =K46+(L46-K46)/4 -> 5 | L48: =L47 -> 5 | M48: =M46+(N46-M46)/4 -> 5 | N48: =N46+(O46-N46)/4 -> 5 | O48: =O46+(P46-O46)/4 -> 5 | P48: =P46+(Q46-P46)/4 -> 5 | Q48: =Q46+(R46-Q46)/4 -> 5 | R48: =R47 -> 5 | S48: =S46+(T46-S46)/4 -> 5 | T48: =T46+(U46-T46)/4 -> 5 | U48: =U46+(V46-U46)/4 -> 5 | V48: =V46+(W46-V46)/4 -> 5 | W48: =W46+(X46-W46)/4 -> 5 | X48: =X47 -> 5 | Y48: =Y46+(Z46-Y46)/4 -> 5 | Z48: =Z46+(AA46-Z46)/4 -> 5 | AA48: =AA46+(AB46-AA46)/4 -> 5 | AB48: =AB46+(AC46-AB46)/4 -> 5 | AC48: =AC46+(AD46-AC46)/4 -> 5 | AD48: =AD47 -> 5 | AE48: =AE46+(AF46-AE46)/4 -> 5 | AF48: =AF46+(AG46-AF46)/4 -> 5 | AG48: =AG46+(AH46-AG46)/4 -> 5 | AH48: =AH46+(AI46-AH46)/4 -> 5 | AI48: =AI46+(AJ46-AI46)/4 -> 5 | AJ48: =AJ47 -> 5
D49: 4 | E49: 1 Semestre más | F49: [minuto] | G49: =G46+(H46-G46)/2 -> 5 | H49: =H46+(I46-H46)/2 -> 5 | I49: =I46+(J46-I46)/2 -> 5 | J49: =J46+(K46-J46)/2 -> 5 | K49: =K46+(L46-K46)/2 -> 5 | L49: =L46 -> 5 | M49: =M46+(N46-M46)/2 -> 5 | N49: =N46+(O46-N46)/2 -> 5 | O49: =O46+(P46-O46)/2 -> 5 | P49: =P46+(Q46-P46)/2 -> 5 | Q49: =Q46+(R46-Q46)/2 -> 5 | R49: =R46 -> 5 | S49: =S46+(T46-S46)/2 -> 5 | T49: =T46+(U46-T46)/2 -> 5 | U49: =U46+(V46-U46)/2 -> 5 | V49: =V46+(W46-V46)/2 -> 5 | W49: =W46+(X46-W46)/2 -> 5 | X49: =X46 -> 5 | Y49: =Y46+(Z46-Y46)/2 -> 5 | Z49: =Z46+(AA46-Z46)/2 -> 5 | AA49: =AA46+(AB46-AA46)/2 -> 5 | AB49: =AB46+(AC46-AB46)/2 -> 5 | AC49: =AC46+(AD46-AC46)/2 -> 5 | AD49: =AD46 -> 5 | AE49: =AE46+(AF46-AE46)/2 -> 5 | AF49: =AF46+(AG46-AF46)/2 -> 5 | AG49: =AG46+(AH46-AG46)/2 -> 5 | AH49: =AH46+(AI46-AH46)/2 -> 5 | AI49: =AI46+(AJ46-AI46)/2 -> 5 | AJ49: =AJ46 -> 5
D50: 5 | E50: 1 año más | F50: [minuto] | G50: =H46 -> 5 | H50: =I46 -> 5 | I50: =J46 -> 5 | J50: =K46 -> 5 | K50: =L46 -> 5 | L50: =L46 -> 5 | M50: =N46 -> 5 | N50: =O46 -> 5 | O50: =P46 -> 5 | P50: =Q46 -> 5 | Q50: =R46 -> 5 | R50: =R46 -> 5 | S50: =T46 -> 5 | T50: =U46 -> 5 | U50: =V46 -> 5 | V50: =W46 -> 5 | W50: =X46 -> 5 | X50: =X46 -> 5 | Y50: =Z46 -> 5 | Z50: =AA46 -> 5 | AA50: =AB46 -> 5 | AB50: =AC46 -> 5 | AC50: =AD46 -> 5 | AD50: =AD46 -> 5 | AE50: =AF46 -> 5 | AF50: =AG46 -> 5 | AG50: =AH46 -> 5 | AH50: =AI46 -> 5 | AI50: =AJ46 -> 5 | AJ50: =AJ46 -> 5
D51: 6 | E51: 2 años más | F51: [minuto] | G51: =I46 -> 5 | H51: =J46 -> 5 | I51: =K46 -> 5 | J51: =L46 -> 5 | K51: =L46 -> 5 | L51: =L46 -> 5 | M51: =O46 -> 5 | N51: =P46 -> 5 | O51: =Q46 -> 5 | P51: =R46 -> 5 | Q51: =R46 -> 5 | R51: =R46 -> 5 | S51: =U46 -> 5 | T51: =V46 -> 5 | U51: =W46 -> 5 | V51: =X46 -> 5 | W51: =X46 -> 5 | X51: =X46 -> 5 | Y51: =AA46 -> 5 | Z51: =AB46 -> 5 | AA51: =AC46 -> 5 | AB51: =AD46 -> 5 | AC51: =AD46 -> 5 | AD51: =AD46 -> 5 | AE51: =AG46 -> 5 | AF51: =AH46 -> 5 | AG51: =AI46 -> 5 | AH51: =AJ46 -> 5 | AI51: =AJ46 -> 5 | AJ51: =AJ46 -> 5
D52: 7 | E52: 3 o más años en el futuro | F52: [minuto] | G52: =J46 -> 5 | H52: =K46 -> 5 | I52: =L46 -> 5 | J52: =L46 -> 5 | K52: =L46 -> 5 | L52: =L46 -> 5 | M52: =P46 -> 5 | N52: =Q46 -> 5 | O52: =R46 -> 5 | P52: =R46 -> 5 | Q52: =R46 -> 5 | R52: =R46 -> 5 | S52: =V46 -> 5 | T52: =W46 -> 5 | U52: =X46 -> 5 | V52: =X46 -> 5 | W52: =X46 -> 5 | X52: =X46 -> 5 | Y52: =AB46 -> 5 | Z52: =AC46 -> 5 | AA52: =AD46 -> 5 | AB52: =AD46 -> 5 | AC52: =AD46 -> 5 | AD52: =AD46 -> 5 | AE52: =AH46 -> 5 | AF52: =AI46 -> 5 | AG52: =AJ46 -> 5 | AH52: =AJ46 -> 5 | AI52: =AJ46 -> 5 | AJ52: =AJ46 -> 5
G54: =INDEX(lista.escenarios,G$4) -> escenario 1 | M54: =INDEX(lista.escenarios,M$4) -> escenario 2 | S54: =INDEX(lista.escenarios,S$4) -> escenario 3 | Y54: =INDEX(lista.escenarios,Y$4) -> escenario 4 | AE54: =INDEX(lista.escenarios,AE$4) -> escenario 5
D55: id | E55: Porcentaje interpolación anual suscriptores | G55: =INDEX(años,G$3) -> 2010 | H55: 2011 | I55: 2012 | J55: 2013 | K55: 2014 | L55: 2015 | M55: 2010 | N55: 2011 | O55: 2012 | P55: 2013 | Q55: 2014 | R55: 2015 | S55: 2010 | T55: 2011 | U55: 2012 | V55: 2013 | W55: 2014 | X55: 2015 | Y55: 2010 | Z55: 2011 | AA55: 2012 | AB55: 2013 | AC55: 2014 | AD55: 2015 | AE55: 2010 | AF55: 2011 | AG55: 2012 | AH55: 2013 | AI55: 2014 | AJ55: 2015
D56: 1 | E56: Hoy | F56: [%] | G56: =IF(G36=0,1,G$36/G36) -> 1 | H56: 1 | I56: 1 | J56: 1 | K56: 1 | L56: 1 | M56: 1 | N56: 1 | O56: 1 | P56: 1 | Q56: 1 | R56: 1 | S56: 1 | T56: 1 | U56: 1 | V56: 1 | W56: 1 | X56: 1 | Y56: 1 | Z56: 1 | AA56: 1 | AB56: 1 | AC56: 1 | AD56: 1 | AE56: 1 | AF56: 1 | AG56: 1 | AH56: 1 | AI56: 1 | AJ56: 1
D57: =D56+1 -> 2 | E57: 1 Mes más | F57: [%] | G57: =IF(G37=0,1,G$36/G37) -> 1 | H57: 1 | I57: 1 | J57: 1 | K57: 1 | L57: 1 | M57: 1 | N57: 1 | O57: 1 | P57: 1 | Q57: 1 | R57: 1 | S57: 1 | T57: 1 | U57: 1 | V57: 1 | W57: 1 | X57: 1 | Y57: 1 | Z57: 1 | AA57: 1 | AB57: 1 | AC57: 1 | AD57: 1 | AE57: 1 | AF57: 1 | AG57: 1 | AH57: 1 | AI57: 1 | AJ57: 1
D58: 3 | E58: 1 Trimestre más | F58: [%] | G58: =IF(G38=0,1,G$36/G38) -> 1 | H58: 1 | I58: 1 | J58: 1 | K58: 1 | L58: 1 | M58: 1 | N58: 1 | O58: 1 | P58: 1 | Q58: 1 | R58: 1 | S58: 1 | T58: 1 | U58: 1 | V58: 1 | W58: 1 | X58: 1 | Y58: 1 | Z58: 1 | AA58: 1 | AB58: 1 | AC58: 1 | AD58: 1 | AE58: 1 | AF58: 1 | AG58: 1 | AH58: 1 | AI58: 1 | AJ58: 1
D59: 4 | E59: 1 Semestre más | F59: [%] | G59: =IF(G39=0,1,G$36/G39) -> 1 | H59: 1 | I59: 1 | J59: 1 | K59: 1 | L59: 1 | M59: 1 | N59: 1 | O59: 1 | P59: 1 | Q59: 1 | R59: 1 | S59: 1 | T59: 1 | U59: 1 | V59: 1 | W59: 1 | X59: 1 | Y59: 1 | Z59: 1 | AA59: 1 | AB59: 1 | AC59: 1 | AD59: 1 | AE59: 1 | AF59: 1 | AG59: 1 | AH59: 1 | AI59: 1 | AJ59: 1
D60: 5 | E60: 1 año más | F60: [%] | G60: =IF(G40=0,1,G$36/G40) -> 1 | H60: 1 | I60: 1 | J60: 1 | K60: 1 | L60: 1 | M60: 1 | N60: 1 | O60: 1 | P60: 1 | Q60: 1 | R60: 1 | S60: 1 | T60: 1 | U60: 1 | V60: 1 | W60: 1 | X60: 1 | Y60: 1 | Z60: 1 | AA60: 1 | AB60: 1 | AC60: 1 | AD60: 1 | AE60: 1 | AF60: 1 | AG60: 1 | AH60: 1 | AI60: 1 | AJ60: 1
D61: 6 | E61: 2 años más | F61: [%] | G61: =IF(G41=0,1,G$36/G41) -> 1 | H61: 1 | I61: 1 | J61: 1 | K61: 1 | L61: 1 | M61: 1 | N61: 1 | O61: 1 | P61: 1 | Q61: 1 | R61: 1 | S61: 1 | T61: 1 | U61: 1 | V61: 1 | W61: 1 | X61: 1 | Y61: 1 | Z61: 1 | AA61: 1 | AB61: 1 | AC61: 1 | AD61: 1 | AE61: 1 | AF61: 1 | AG61: 1 | AH61: 1 | AI61: 1 | AJ61: 1
C62: porcentaje.utilización.suscriptores | D62: 7 | E62: 3 o más años en el futuro | F62: [%] | G62: =IF(G42=0,1,G$36/G42) -> 1 | H62: 1 | I62: 1 | J62: 1 | K62: 1 | L62: 1 | M62: 1 | N62: 1 | O62: 1 | P62: 1 | Q62: 1 | R62: 1 | S62: 1 | T62: 1 | U62: 1 | V62: 1 | W62: 1 | X62: 1 | Y62: 1 | Z62: 1 | AA62: 1 | AB62: 1 | AC62: 1 | AD62: 1 | AE62: 1 | AF62: 1 | AG62: 1 | AH62: 1 | AI62: 1 | AJ62: 1
G64: =INDEX(lista.escenarios,G$4) -> escenario 1 | M64: =INDEX(lista.escenarios,M$4) -> escenario 2 | S64: =INDEX(lista.escenarios,S$4) -> escenario 3 | Y64: =INDEX(lista.escenarios,Y$4) -> escenario 4 | AE64: =INDEX(lista.escenarios,AE$4) -> escenario 5
D65: id | E65: Porcentaje interpolación anual minutos | G65: =INDEX(años,G$3) -> 2010 | H65: 2011 | I65: 2012 | J65: 2013 | K65: 2014 | L65: 2015 | M65: 2010 | N65: 2011 | O65: 2012 | P65: 2013 | Q65: 2014 | R65: 2015 | S65: 2010 | T65: 2011 | U65: 2012 | V65: 2013 | W65: 2014 | X65: 2015 | Y65: 2010 | Z65: 2011 | AA65: 2012 | AB65: 2013 | AC65: 2014 | AD65: 2015 | AE65: 2010 | AF65: 2011 | AG65: 2012 | AH65: 2013 | AI65: 2014 | AJ65: 2015
D66: 1 | E66: Hoy | F66: [%] | G66: =IF(G$46=0,1,G$46/G46) -> 1 | H66: 1 | I66: 1 | J66: 1 | K66: 1 | L66: 1 | M66: 1 | N66: 1 | O66: 1 | P66: 1 | Q66: 1 | R66: 1 | S66: 1 | T66: 1 | U66: 1 | V66: 1 | W66: 1 | X66: 1 | Y66: 1 | Z66: 1 | AA66: 1 | AB66: 1 | AC66: 1 | AD66: 1 | AE66: 1 | AF66: 1 | AG66: 1 | AH66: 1 | AI66: 1 | AJ66: 1
D67: =D66+1 -> 2 | E67: 1 Mes más | F67: [%] | G67: =IF(G$46=0,1,G$46/G47) -> 1 | H67: 1 | I67: 1 | J67: 1 | K67: 1 | L67: 1 | M67: 1 | N67: 1 | O67: 1 | P67: 1 | Q67: 1 | R67: 1 | S67: 1 | T67: 1 | U67: 1 | V67: 1 | W67: 1 | X67: 1 | Y67: 1 | Z67: 1 | AA67: 1 | AB67: 1 | AC67: 1 | AD67: 1 | AE67: 1 | AF67: 1 | AG67: 1 | AH67: 1 | AI67: 1 | AJ67: 1
D68: 3 | E68: 1 Trimestre más | F68: [%] | G68: =IF(G$46=0,1,G$46/G48) -> 1 | H68: 1 | I68: 1 | J68: 1 | K68: 1 | L68: 1 | M68: 1 | N68: 1 | O68: 1 | P68: 1 | Q68: 1 | R68: 1 | S68: 1 | T68: 1 | U68: 1 | V68: 1 | W68: 1 | X68: 1 | Y68: 1 | Z68: 1 | AA68: 1 | AB68: 1 | AC68: 1 | AD68: 1 | AE68: 1 | AF68: 1 | AG68: 1 | AH68: 1 | AI68: 1 | AJ68: 1
D69: 4 | E69: 1 Semestre más | F69: [%] | G69: =IF(G$46=0,1,G$46/G49) -> 1 | H69: 1 | I69: 1 | J69: 1 | K69: 1 | L69: 1 | M69: 1 | N69: 1 | O69: 1 | P69: 1 | Q69: 1 | R69: 1 | S69: 1 | T69: 1 | U69: 1 | V69: 1 | W69: 1 | X69: 1 | Y69: 1 | Z69: 1 | AA69: 1 | AB69: 1 | AC69: 1 | AD69: 1 | AE69: 1 | AF69: 1 | AG69: 1 | AH69: 1 | AI69: 1 | AJ69: 1
D70: 5 | E70: 1 año más | F70: [%] | G70: =IF(G$46=0,1,G$46/G50) -> 1 | H70: 1 | I70: 1 | J70: 1 | K70: 1 | L70: 1 | M70: 1 | N70: 1 | O70: 1 | P70: 1 | Q70: 1 | R70: 1 | S70: 1 | T70: 1 | U70: 1 | V70: 1 | W70: 1 | X70: 1 | Y70: 1 | Z70: 1 | AA70: 1 | AB70: 1 | AC70: 1 | AD70: 1 | AE70: 1 | AF70: 1 | AG70: 1 | AH70: 1 | AI70: 1 | AJ70: 1
D71: 6 | E71: 2 años más | F71: [%] | G71: =IF(G$46=0,1,G$46/G51) -> 1 | H71: 1 | I71: 1 | J71: 1 | K71: 1 | L71: 1 | M71: 1 | N71: 1 | O71: 1 | P71: 1 | Q71: 1 | R71: 1 | S71: 1 | T71: 1 | U71: 1 | V71: 1 | W71: 1 | X71: 1 | Y71: 1 | Z71: 1 | AA71: 1 | AB71: 1 | AC71: 1 | AD71: 1 | AE71: 1 | AF71: 1 | AG71: 1 | AH71: 1 | AI71: 1 | AJ71: 1
C72: porcentaje.utilización.minutos | D72: 7 | E72: 3 o más años en el futuro | F72: [%] | G72: =IF(G$46=0,1,G$46/G52) -> 1 | H72: 1 | I72: 1 | J72: 1 | K72: 1 | L72: 1 | M72: 1 | N72: 1 | O72: 1 | P72: 1 | Q72: 1 | R72: 1 | S72: 1 | T72: 1 | U72: 1 | V72: 1 | W72: 1 | X72: 1 | Y72: 1 | Z72: 1 | AA72: 1 | AB72: 1 | AC72: 1 | AD72: 1 | AE72: 1 | AF72: 1 | AG72: 1 | AH72: 1 | AI72: 1 | AJ72: 1
D74: id | E74: Utilización combinada diseño y subutilización | G74: Valor
D75: 1 | E75: =E9 -> TRX | F75: [%] | G75: =G9*H9 -> 1
D76: =D75+1 -> 2 | E76: Macrocelda urbana | F76: [%] | G76: =G10*H10 -> 1
D77: 3 | E77: Macrocelda semiurbana | F77: [%] | G77: 1
D78: 4 | E78: Macrocelda rural | F78: [%] | G78: 1
D79: 5 | E79: Macrocelda carretera | F79: [%] | G79: 1
D80: 6 | E80: Microcelda urbana | F80: [%] | G80: 1
D81: 7 | E81: Microcelda semiurbana | F81: [%] | G81: 1
D82: 8 | E82: Enlace backhaul | F82: [%] | G82: 1
D83: 9 | E83: BSC | F83: [%] | G83: 1
D84: 10 | E84: Enlace BSC - MGW | F84: [%] | G84: 1
D85: 11 | E85: MGW | F85: [%] | G85: 1
D86: 12 | E86: MSCS | F86: [%] | G86: 1
D87: 13 | E87: PTR | F87: [%] | G87: =G21*H21 -> 1
D88: 14 | E88: HLR | F88: [%] | G88: 1
D89: 15 | E89: Routers | F89: [%] | G89: 1
G91: =INDEX(lista.escenarios,G$4) -> escenario 1 | M91: =INDEX(lista.escenarios,M$4) -> escenario 2 | S91: =INDEX(lista.escenarios,S$4) -> escenario 3 | Y91: =INDEX(lista.escenarios,Y$4) -> escenario 4 | AE91: =INDEX(lista.escenarios,AE$4) -> escenario 5
D92: id | E92: Utilización completa | G92: =INDEX(años,G$3) -> 2010 | H92: 2011 | I92: 2012 | J92: 2013 | K92: 2014 | L92: 2015 | M92: 2010 | N92: 2011 | O92: 2012 | P92: 2013 | Q92: 2014 | R92: 2015 | S92: 2010 | T92: 2011 | U92: 2012 | V92: 2013 | W92: 2014 | X92: 2015 | Y92: 2010 | Z92: 2011 | AA92: 2012 | AB92: 2013 | AC92: 2014 | AD92: 2015 | AE92: 2010 | AF92: 2011 | AG92: 2012 | AH92: 2013 | AI92: 2014 | AJ92: 2015
D93: 1 | E93: =E57 -> 1 Mes más | F93: [%] | G93: =$G75*INDEX(porcentaje.utilización.minutos,$J9,G$5) -> 1 | H93: 1 | I93: 1 | J93: 1 | K93: 1 | L93: 1 | M93: 1 | N93: 1 | O93: 1 | P93: 1 | Q93: 1 | R93: 1 | S93: 1 | T93: 1 | U93: 1 | V93: 1 | W93: 1 | X93: 1 | Y93: 1 | Z93: 1 | AA93: 1 | AB93: 1 | AC93: 1 | AD93: 1 | AE93: 1 | AF93: 1 | AG93: 1 | AH93: 1 | AI93: 1 | AJ93: 1 | AK93: x
D94: =D93+1 -> 2 | E94: 1 Trimestre más | F94: [%] | G94: =$G76*INDEX(porcentaje.utilización.minutos,$J10,G$5) -> 1 | H94: 1 | I94: 1 | J94: 1 | K94: 1 | L94: 1 | M94: 1 | N94: 1 | O94: 1 | P94: 1 | Q94: 1 | R94: 1 | S94: 1 | T94: 1 | U94: 1 | V94: 1 | W94: 1 | X94: 1 | Y94: 1 | Z94: 1 | AA94: 1 | AB94: 1 | AC94: 1 | AD94: 1 | AE94: 1 | AF94: 1 | AG94: 1 | AH94: 1 | AI94: 1 | AJ94: 1 | AK94: x
D95: 3 | E95: 1 Semestre más | F95: [%] | G95: =$G77*INDEX(porcentaje.utilización.minutos,$J11,G$5) -> 1 | H95: 1 | I95: 1 | J95: 1 | K95: 1 | L95: 1 | M95: 1 | N95: 1 | O95: 1 | P95: 1 | Q95: 1 | R95: 1 | S95: 1 | T95: 1 | U95: 1 | V95: 1 | W95: 1 | X95: 1 | Y95: 1 | Z95: 1 | AA95: 1 | AB95: 1 | AC95: 1 | AD95: 1 | AE95: 1 | AF95: 1 | AG95: 1 | AH95: 1 | AI95: 1 | AJ95: 1 | AK95: x
D96: 4 | E96: 1 año más | F96: [%] | G96: =$G78*INDEX(porcentaje.utilización.minutos,$J12,G$5) -> 1 | H96: 1 | I96: 1 | J96: 1 | K96: 1 | L96: 1 | M96: 1 | N96: 1 | O96: 1 | P96: 1 | Q96: 1 | R96: 1 | S96: 1 | T96: 1 | U96: 1 | V96: 1 | W96: 1 | X96: 1 | Y96: 1 | Z96: 1 | AA96: 1 | AB96: 1 | AC96: 1 | AD96: 1 | AE96: 1 | AF96: 1 | AG96: 1 | AH96: 1 | AI96: 1 | AJ96: 1 | AK96: x
D97: 5 | E97: 2 años más | F97: [%] | G97: =$G79*INDEX(porcentaje.utilización.minutos,$J13,G$5) -> 1 | H97: 1 | I97: 1 | J97: 1 | K97: 1 | L97: 1 | M97: 1 | N97: 1 | O97: 1 | P97: 1 | Q97: 1 | R97: 1 | S97: 1 | T97: 1 | U97: 1 | V97: 1 | W97: 1 | X97: 1 | Y97: 1 | Z97: 1 | AA97: 1 | AB97: 1 | AC97: 1 | AD97: 1 | AE97: 1 | AF97: 1 | AG97: 1 | AH97: 1 | AI97: 1 | AJ97: 1 | AK97: x
D98: 6 | E98: 3 o más años en el futuro | F98: [%] | G98: =$G80*INDEX(porcentaje.utilización.minutos,$J14,G$5) -> 1 | H98: 1 | I98: 1 | J98: 1 | K98: 1 | L98: 1 | M98: 1 | N98: 1 | O98: 1 | P98: 1 | Q98: 1 | R98: 1 | S98: 1 | T98: 1 | U98: 1 | V98: 1 | W98: 1 | X98: 1 | Y98: 1 | Z98: 1 | AA98: 1 | AB98: 1 | AC98: 1 | AD98: 1 | AE98: 1 | AF98: 1 | AG98: 1 | AH98: 1 | AI98: 1 | AJ98: 1 | AK98: x
D99: 7 | E99: 0 | F99: [%] | G99: =$G81*INDEX(porcentaje.utilización.minutos,$J15,G$5) -> 1 | H99: 1 | I99: 1 | J99: 1 | K99: 1 | L99: 1 | M99: 1 | N99: 1 | O99: 1 | P99: 1 | Q99: 1 | R99: 1 | S99: 1 | T99: 1 | U99: 1 | V99: 1 | W99: 1 | X99: 1 | Y99: 1 | Z99: 1 | AA99: 1 | AB99: 1 | AC99: 1 | AD99: 1 | AE99: 1 | AF99: 1 | AG99: 1 | AH99: 1 | AI99: 1 | AJ99: 1 | AK99: x
D100: 8 | E100: 0 | F100: [%] | G100: =$G82*INDEX(porcentaje.utilización.minutos,$J16,G$5) -> 1 | H100: 1 | I100: 1 | J100: 1 | K100: 1 | L100: 1 | M100: 1 | N100: 1 | O100: 1 | P100: 1 | Q100: 1 | R100: 1 | S100: 1 | T100: 1 | U100: 1 | V100: 1 | W100: 1 | X100: 1 | Y100: 1 | Z100: 1 | AA100: 1 | AB100: 1 | AC100: 1 | AD100: 1 | AE100: 1 | AF100: 1 | AG100: 1 | AH100: 1 | AI100: 1 | AJ100: 1 | AK100: x
D101: 9 | E101: Porcentaje interpolación anual minutos | F101: [%] | G101: =$G83*INDEX(porcentaje.utilización.minutos,$J17,G$5) -> 1 | H101: 1 | I101: 1 | J101: 1 | K101: 1 | L101: 1 | M101: 1 | N101: 1 | O101: 1 | P101: 1 | Q101: 1 | R101: 1 | S101: 1 | T101: 1 | U101: 1 | V101: 1 | W101: 1 | X101: 1 | Y101: 1 | Z101: 1 | AA101: 1 | AB101: 1 | AC101: 1 | AD101: 1 | AE101: 1 | AF101: 1 | AG101: 1 | AH101: 1 | AI101: 1 | AJ101: 1 | AK101: x
D102: 10 | E102: Hoy | F102: [%] | G102: =$G84*INDEX(porcentaje.utilización.minutos,$J18,G$5) -> 1 | H102: 1 | I102: 1 | J102: 1 | K102: 1 | L102: 1 | M102: 1 | N102: 1 | O102: 1 | P102: 1 | Q102: 1 | R102: 1 | S102: 1 | T102: 1 | U102: 1 | V102: 1 | W102: 1 | X102: 1 | Y102: 1 | Z102: 1 | AA102: 1 | AB102: 1 | AC102: 1 | AD102: 1 | AE102: 1 | AF102: 1 | AG102: 1 | AH102: 1 | AI102: 1 | AJ102: 1 | AK102: x
D103: 11 | E103: 1 Mes más | F103: [%] | G103: =$G85*INDEX(porcentaje.utilización.minutos,$J19,G$5) -> 1 | H103: 1 | I103: 1 | J103: 1 | K103: 1 | L103: 1 | M103: 1 | N103: 1 | O103: 1 | P103: 1 | Q103: 1 | R103: 1 | S103: 1 | T103: 1 | U103: 1 | V103: 1 | W103: 1 | X103: 1 | Y103: 1 | Z103: 1 | AA103: 1 | AB103: 1 | AC103: 1 | AD103: 1 | AE103: 1 | AF103: 1 | AG103: 1 | AH103: 1 | AI103: 1 | AJ103: 1 | AK103: x
D104: 12 | E104: 1 Trimestre más | F104: [%] | G104: =$G86*INDEX(porcentaje.utilización.minutos,$J20,G$5) -> 1 | H104: 1 | I104: 1 | J104: 1 | K104: 1 | L104: 1 | M104: 1 | N104: 1 | O104: 1 | P104: 1 | Q104: 1 | R104: 1 | S104: 1 | T104: 1 | U104: 1 | V104: 1 | W104: 1 | X104: 1 | Y104: 1 | Z104: 1 | AA104: 1 | AB104: 1 | AC104: 1 | AD104: 1 | AE104: 1 | AF104: 1 | AG104: 1 | AH104: 1 | AI104: 1 | AJ104: 1 | AK104: x
D105: 13 | E105: 1 Semestre más | F105: [%] | G105: =$G87*INDEX(porcentaje.utilización.minutos,$J21,G$5) -> 1 | H105: 1 | I105: 1 | J105: 1 | K105: 1 | L105: 1 | M105: 1 | N105: 1 | O105: 1 | P105: 1 | Q105: 1 | R105: 1 | S105: 1 | T105: 1 | U105: 1 | V105: 1 | W105: 1 | X105: 1 | Y105: 1 | Z105: 1 | AA105: 1 | AB105: 1 | AC105: 1 | AD105: 1 | AE105: 1 | AF105: 1 | AG105: 1 | AH105: 1 | AI105: 1 | AJ105: 1 | AK105: x
D106: 14 | E106: 1 año más | F106: [%] | G106: =$G88*INDEX(porcentaje.utilización.suscriptores,$J22,G$5) -> 1 | H106: 1 | I106: 1 | J106: 1 | K106: 1 | L106: 1 | M106: 1 | N106: 1 | O106: 1 | P106: 1 | Q106: 1 | R106: 1 | S106: 1 | T106: 1 | U106: 1 | V106: 1 | W106: 1 | X106: 1 | Y106: 1 | Z106: 1 | AA106: 1 | AB106: 1 | AC106: 1 | AD106: 1 | AE106: 1 | AF106: 1 | AG106: 1 | AH106: 1 | AI106: 1 | AJ106: 1 | AK106: x
D107: 15 | E107: 2 años más | F107: [%] | G107: =$G89*INDEX(porcentaje.utilización.minutos,$J23,G$5) -> 1 | H107: 1 | I107: 1 | J107: 1 | K107: 1 | L107: 1 | M107: 1 | N107: 1 | O107: 1 | P107: 1 | Q107: 1 | R107: 1 | S107: 1 | T107: 1 | U107: 1 | V107: 1 | W107: 1 | X107: 1 | Y107: 1 | Z107: 1 | AA107: 1 | AB107: 1 | AC107: 1 | AD107: 1 | AE107: 1 | AF107: 1 | AG107: 1 | AH107: 1 | AI107: 1 | AJ107: 1 | AK107: x
G109: =INDEX(lista.escenarios,G$4) -> escenario 1 | M109: =INDEX(lista.escenarios,M$4) -> escenario 2 | S109: =INDEX(lista.escenarios,S$4) -> escenario 3 | Y109: =INDEX(lista.escenarios,Y$4) -> escenario 4 | AE109: =INDEX(lista.escenarios,AE$4) -> escenario 5
D110: id | E110: Utilización completa | G110: =INDEX(años,G$3) -> 2010 | H110: 2011 | I110: 2012 | J110: 2013 | K110: 2014 | L110: 2015 | M110: 2010 | N110: 2011 | O110: 2012 | P110: 2013 | Q110: 2014 | R110: 2015 | S110: 2010 | T110: 2011 | U110: 2012 | V110: 2013 | W110: 2014 | X110: 2015 | Y110: 2010 | Z110: 2011 | AA110: 2012 | AB110: 2013 | AC110: 2014 | AD110: 2015 | AE110: 2010 | AF110: 2011 | AG110: 2012 | AH110: 2013 | AI110: 2014 | AJ110: 2015
D111: 1 | E111: =E75 -> TRX | F111: [%] | G111: =AVERAGE(G93:L93) -> 1 | H111: =G111 -> 1 | I111: =H111 -> 1 | J111: 1 | K111: 1 | L111: 1 | M111: =G111 -> 1 | N111: =H111 -> 1 | O111: 1 | P111: 1 | Q111: 1 | R111: 1 | S111: 1 | T111: 1 | U111: 1 | V111: 1 | W111: 1 | X111: 1 | Y111: 1 | Z111: 1 | AA111: 1 | AB111: 1 | AC111: 1 | AD111: 1 | AE111: 1 | AF111: 1 | AG111: 1 | AH111: 1 | AI111: 1 | AJ111: 1 | AK111: porcentaje.utilización.TRX
D112: =D111+1 -> 2 | E112: Macrocelda urbana | F112: [%] | G112: =AVERAGE(G94:L94) -> 1 | H112: =G112 -> 1 | I112: 1 | J112: 1 | K112: 1 | L112: 1 | M112: =G112 -> 1 | N112: 1 | O112: 1 | P112: 1 | Q112: 1 | R112: 1 | S112: 1 | T112: 1 | U112: 1 | V112: 1 | W112: 1 | X112: 1 | Y112: 1 | Z112: 1 | AA112: 1 | AB112: 1 | AC112: 1 | AD112: 1 | AE112: 1 | AF112: 1 | AG112: 1 | AH112: 1 | AI112: 1 | AJ112: 1 | AK112: porcentaje.utilización.macrocelda.urbana
D113: 3 | E113: Macrocelda semiurbana | F113: [%] | G113: 1 | H113: =G113 -> 1 | I113: 1 | J113: 1 | K113: 1 | L113: 1 | M113: 1 | N113: 1 | O113: 1 | P113: 1 | Q113: 1 | R113: 1 | S113: 1 | T113: 1 | U113: 1 | V113: 1 | W113: 1 | X113: 1 | Y113: 1 | Z113: 1 | AA113: 1 | AB113: 1 | AC113: 1 | AD113: 1 | AE113: 1 | AF113: 1 | AG113: 1 | AH113: 1 | AI113: 1 | AJ113: 1 | AK113: porcentaje.utilización.macrocelda.semiurbana
D114: 4 | E114: Macrocelda rural | F114: [%] | G114: 1 | H114: =G114 -> 1 | I114: 1 | J114: 1 | K114: 1 | L114: 1 | M114: 1 | N114: 1 | O114: 1 | P114: 1 | Q114: 1 | R114: 1 | S114: 1 | T114: 1 | U114: 1 | V114: 1 | W114: 1 | X114: 1 | Y114: 1 | Z114: 1 | AA114: 1 | AB114: 1 | AC114: 1 | AD114: 1 | AE114: 1 | AF114: 1 | AG114: 1 | AH114: 1 | AI114: 1 | AJ114: 1 | AK114: porcentaje.utilización.macrocelda.rural
D115: 5 | E115: Macrocelda carretera | F115: [%] | G115: 1 | H115: =G115 -> 1 | I115: 1 | J115: 1 | K115: 1 | L115: 1 | M115: 1 | N115: 1 | O115: 1 | P115: 1 | Q115: 1 | R115: 1 | S115: 1 | T115: 1 | U115: 1 | V115: 1 | W115: 1 | X115: 1 | Y115: 1 | Z115: 1 | AA115: 1 | AB115: 1 | AC115: 1 | AD115: 1 | AE115: 1 | AF115: 1 | AG115: 1 | AH115: 1 | AI115: 1 | AJ115: 1 | AK115: porcentaje.utilización.macrocelda.carretera
D116: 6 | E116: Microcelda urbana | F116: [%] | G116: 1 | H116: =G116 -> 1 | I116: 1 | J116: 1 | K116: 1 | L116: 1 | M116: 1 | N116: 1 | O116: 1 | P116: 1 | Q116: 1 | R116: 1 | S116: 1 | T116: 1 | U116: 1 | V116: 1 | W116: 1 | X116: 1 | Y116: 1 | Z116: 1 | AA116: 1 | AB116: 1 | AC116: 1 | AD116: 1 | AE116: 1 | AF116: 1 | AG116: 1 | AH116: 1 | AI116: 1 | AJ116: 1 | AK116: porcentaje.utilización.microcelda.urbana
D117: 7 | E117: Microcelda semiurbana | F117: [%] | G117: 1 | H117: =G117 -> 1 | I117: 1 | J117: 1 | K117: 1 | L117: 1 | M117: 1 | N117: 1 | O117: 1 | P117: 1 | Q117: 1 | R117: 1 | S117: 1 | T117: 1 | U117: 1 | V117: 1 | W117: 1 | X117: 1 | Y117: 1 | Z117: 1 | AA117: 1 | AB117: 1 | AC117: 1 | AD117: 1 | AE117: 1 | AF117: 1 | AG117: 1 | AH117: 1 | AI117: 1 | AJ117: 1 | AK117: porcentaje.utilización.microcelda.semiurbana
D118: 8 | E118: Enlace backhaul | F118: [%] | G118: 1 | H118: =G118 -> 1 | I118: 1 | J118: 1 | K118: 1 | L118: 1 | M118: 1 | N118: 1 | O118: 1 | P118: 1 | Q118: 1 | R118: 1 | S118: 1 | T118: 1 | U118: 1 | V118: 1 | W118: 1 | X118: 1 | Y118: 1 | Z118: 1 | AA118: 1 | AB118: 1 | AC118: 1 | AD118: 1 | AE118: 1 | AF118: 1 | AG118: 1 | AH118: 1 | AI118: 1 | AJ118: 1 | AK118: porcentaje.utilización.enlace.BTS_BSC
D119: 9 | E119: BSC | F119: [%] | G119: 1 | H119: =G119 -> 1 | I119: 1 | J119: 1 | K119: 1 | L119: 1 | M119: 1 | N119: 1 | O119: 1 | P119: 1 | Q119: 1 | R119: 1 | S119: 1 | T119: 1 | U119: 1 | V119: 1 | W119: 1 | X119: 1 | Y119: 1 | Z119: 1 | AA119: 1 | AB119: 1 | AC119: 1 | AD119: 1 | AE119: 1 | AF119: 1 | AG119: 1 | AH119: 1 | AI119: 1 | AJ119: 1 | AK119: porcentaje.utilización.BSC
D120: 10 | E120: Enlace BSC - MGW | F120: [%] | G120: 1 | H120: =G120 -> 1 | I120: 1 | J120: 1 | K120: 1 | L120: 1 | M120: 1 | N120: 1 | O120: 1 | P120: 1 | Q120: 1 | R120: 1 | S120: 1 | T120: 1 | U120: 1 | V120: 1 | W120: 1 | X120: 1 | Y120: 1 | Z120: 1 | AA120: 1 | AB120: 1 | AC120: 1 | AD120: 1 | AE120: 1 | AF120: 1 | AG120: 1 | AH120: 1 | AI120: 1 | AJ120: 1 | AK120: porcentaje.utilización.enlace.BSC_MSC
D121: 11 | E121: MGW | F121: [%] | G121: 1 | H121: =G121 -> 1 | I121: 1 | J121: 1 | K121: 1 | L121: 1 | M121: 1 | N121: 1 | O121: 1 | P121: 1 | Q121: 1 | R121: 1 | S121: 1 | T121: 1 | U121: 1 | V121: 1 | W121: 1 | X121: 1 | Y121: 1 | Z121: 1 | AA121: 1 | AB121: 1 | AC121: 1 | AD121: 1 | AE121: 1 | AF121: 1 | AG121: 1 | AH121: 1 | AI121: 1 | AJ121: 1 | AK121: porcentaje.utilización.mgw
D122: 12 | E122: MSCS | F122: [%] | G122: 1 | H122: =G122 -> 1 | I122: 1 | J122: 1 | K122: 1 | L122: 1 | M122: 1 | N122: 1 | O122: 1 | P122: =J122 -> 1 | Q122: =K122 -> 1 | R122: =L122 -> 1 | S122: =M122 -> 1 | T122: =N122 -> 1 | U122: =O122 -> 1 | V122: =P122 -> 1 | W122: =Q122 -> 1 | X122: =R122 -> 1 | Y122: =S122 -> 1 | Z122: =T122 -> 1 | AA122: =U122 -> 1 | AB122: =V122 -> 1 | AC122: =W122 -> 1 | AD122: =X122 -> 1 | AE122: =Y122 -> 1 | AF122: =Z122 -> 1 | AG122: =AA122 -> 1 | AH122: =AB122 -> 1 | AI122: =AC122 -> 1 | AJ122: =AD122 -> 1 | AK122: porcentaje.utilización.mscs
D123: 13 | E123: PTR | F123: [%] | G123: 1 | H123: =G123 -> 1 | I123: 1 | J123: 1 | K123: 1 | L123: 1 | M123: 1 | N123: =H123 -> 1 | O123: =I123 -> 1 | P123: 1 | Q123: 1 | R123: 1 | S123: 1 | T123: 1 | U123: 1 | V123: 1 | W123: 1 | X123: 1 | Y123: 1 | Z123: 1 | AA123: 1 | AB123: 1 | AC123: 1 | AD123: 1 | AE123: 1 | AF123: 1 | AG123: 1 | AH123: 1 | AI123: 1 | AJ123: 1 | AK123: porcentaje.utilización.PTR
D124: 14 | E124: HLR | F124: [%] | G124: 1 | H124: =G124 -> 1 | I124: 1 | J124: 1 | K124: 1 | L124: 1 | M124: 1 | N124: 1 | O124: 1 | P124: 1 | Q124: 1 | R124: 1 | S124: 1 | T124: 1 | U124: 1 | V124: 1 | W124: 1 | X124: 1 | Y124: 1 | Z124: 1 | AA124: 1 | AB124: 1 | AC124: 1 | AD124: 1 | AE124: 1 | AF124: 1 | AG124: 1 | AH124: 1 | AI124: 1 | AJ124: 1 | AK124: porcentaje.utilización.hlr
D125: 15 | E125: Routers | F125: [%] | G125: 1 | H125: =G125 -> 1 | I125: 1 | J125: 1 | K125: 1 | L125: 1 | M125: 1 | N125: 1 | O125: 1 | P125: 1 | Q125: 1 | R125: 1 | S125: 1 | T125: 1 | U125: 1 | V125: 1 | W125: 1 | X125: 1 | Y125: 1 | Z125: 1 | AA125: 1 | AB125: 1 | AC125: 1 | AD125: 1 | AE125: 1 | AF125: 1 | AG125: 1 | AH125: 1 | AI125: 1 | AJ125: 1 | AK125: porcentaje.utilización.router

Sheet Parámetros.Red
E1: Parámetros para el diseño de red
F3: años | G3: 1 | H3: 2 | I3: 3 | J3: 4 | K3: 5 | L3: 6 | M3: =G3 -> 1 | N3: 2 | O3: 3 | P3: 4 | Q3: 5 | R3: 6 | S3: =M3 -> 1 | T3: 2 | U3: 3 | V3: 4 | W3: 5 | X3: 6 | Y3: =S3 -> 1 | Z3: 2 | AA3: 3 | AB3: 4 | AC3: 5 | AD3: 6 | AE3: =Y3 -> 1 | AF3: 2 | AG3: 3 | AH3: 4 | AI3: 5 | AJ3: 6
F4: escenario | G4: 1 | H4: 1 | I4: 1 | J4: 1 | K4: 1 | L4: 1 | M4: =G4+1 -> 2 | N4: 2 | O4: 2 | P4: 2 | Q4: 2 | R4: 2 | S4: 3 | T4: 3 | U4: 3 | V4: 3 | W4: 3 | X4: 3 | Y4: 4 | Z4: 4 | AA4: 4 | AB4: 4 | AC4: 4 | AD4: 4 | AE4: 5 | AF4: 5 | AG4: 5 | AH4: 5 | AI4: 5 | AJ4: 5
F5: columna | G5: 1 | H5: 2 | I5: 3 | J5: 4 | K5: 5 | L5: 6 | M5: 7 | N5: 8 | O5: 9 | P5: 10 | Q5: 11 | R5: 12 | S5: 13 | T5: 14 | U5: 15 | V5: 16 | W5: 17 | X5: 18 | Y5: 19 | Z5: 20 | AA5: 21 | AB5: 22 | AC5: 23 | AD5: 24 | AE5: 25 | AF5: 26 | AG5: 27 | AH5: 28 | AI5: 29 | AJ5: 30
C6: Generales
D8: id | E8: Parámetros
D9: 1 | E9: Horizonte de estudio | G9: 2010 | H9: 2011 | I9: 2012 | J9: 2013 | K9: 2014 | L9: 2015 | M9: años
D10: =D9+1 -> 2 | E10: Empresas | G10: escenario 1 | H10: escenario 2 | I10: escenario 3 | J10: escenario 4 | K10: escenario 5 | L10: lista.escenarios
D11: =D10+1 -> 3 | E11: Factor de área de las celdas | G11: 1 | L11: factor.área
D13: id | E13: Lista tecnologías
D14: 1 | E14: GSM_850
D15: 2 | E15: GSM_1900 | F15: lista.tecnología
C17: Población y locaciones para el diseño
D19: id | E19: Población por departamento | G19: =INDEX(años,G$3) -> 2010 | H19: 2011 | I19: 2012 | J19: 2013 | K19: 2014 | L19: 2015
D20: 1 | E20: Antioquia | G20: 1 | H20: 1 | I20: 1 | J20: 1 | K20: 1 | L20: 1
D21: =D20+1 -> 2 | E21: Atlántico | G21: 1 | H21: 1 | I21: 1 | J21: 1 | K21: 1 | L21: 1
D22: 3 | E22: Bogotá, D.C. | G22: 1 | H22: 1 | I22: 1 | J22: 1 | K22: 1 | L22: 1
D23: 4 | E23: Bolívar | G23: 1 | H23: 1 | I23: 1 | J23: 1 | K23: 1 | L23: 1
D24: 5 | E24: Boyacá | G24: 1 | H24: 1 | I24: 1 | J24: 1 | K24: 1 | L24: 1
D25: 6 | E25: Caldas | G25: 1 | H25: 1 | I25: 1 | J25: 1 | K25: 1 | L25: 1
D26: 7 | E26: Caquetá | G26: 1 | H26: 1 | I26: 1 | J26: 1 | K26: 1 | L26: 1
D27: 8 | E27: Cauca | G27: 1 | H27: 1 | I27: 1 | J27: 1 | K27: 1 | L27: 1
D28: 9 | E28: Cesar | G28: 1 | H28: 1 | I28: 1 | J28: 1 | K28: 1 | L28: 1
D29: 10 | E29: Córdoba | G29: 1 | H29: 1 | I29: 1 | J29: 1 | K29: 1 | L29: 1
D30: 11 | E30: Cundinamarca | G30: 1 | H30: 1 | I30: 1 | J30: 1 | K30: 1 | L30: 1
D31: 12 | E31: Chocó | G31: 1 | H31: 1 | I31: 1 | J31: 1 | K31: 1 | L31: 1
D32: 13 | E32: Huila | G32: 1 | H32: 1 | I32: 1 | J32: 1 | K32: 1 | L32: 1
D33: 14 | E33: La Guajira | G33: 1 | H33: 1 | I33: 1 | J33: 1 | K33: 1 | L33: 1
D34: 15 | E34: Magdalena | G34: 1 | H34: 1 | I34: 1 | J34: 1 | K34: 1 | L34: 1
D35: 16 | E35: Meta | G35: 1 | H35: 1 | I35: 1 | J35: 1 | K35: 1 | L35: 1
D36: 17 | E36: Nariño | G36: 1 | H36: 1 | I36: 1 | J36: 1 | K36: 1 | L36: 1
D37: 18 | E37: Norte de Santander | G37: 1 | H37: 1 | I37: 1 | J37: 1 | K37: 1 | L37: 1
D38: 19 | E38: Quindio | G38: 1 | H38: 1 | I38: 1 | J38: 1 | K38: 1 | L38: 1
D39: 20 | E39: Risaralda | G39: 1 | H39: 1 | I39: 1 | J39: 1 | K39: 1 | L39: 1
D40: 21 | E40: Santander | G40: 1 | H40: 1 | I40: 1 | J40: 1 | K40: 1 | L40: 1
D41: 22 | E41: Sucre | G41: 1 | H41: 1 | I41: 1 | J41: 1 | K41: 1 | L41: 1
D42: 23 | E42: Tolima | G42: 1 | H42: 1 | I42: 1 | J42: 1 | K42: 1 | L42: 1
D43: 24 | E43: Valle del Cauca | G43: 1 | H43: 1 | I43: 1 | J43: 1 | K43: 1 | L43: 1
D44: 25 | E44: Arauca | G44: 1 | H44: 1 | I44: 1 | J44: 1 | K44: 1 | L44: 1
D45: 26 | E45: Casanare | G45: 1 | H45: 1 | I45: 1 | J45: 1 | K45: 1 | L45: 1
D46: 27 | E46: Putumayo | G46: 1 | H46: 1 | I46: 1 | J46: 1 | K46: 1 | L46: 1
D47: 28 | E47: Archipiélago de San Andrés | G47: 1 | H47: 1 | I47: 1 | J47: 1 | K47: 1 | L47: 1
D48: 29 | E48: Grupo amazonia | G48: 1 | H48: 1 | I48: 1 | J48: 1 | K48: 1 | L48: 1
D49: 30 | E49: libre | G49: 0 | H49: 0 | I49: 0 | J49: 0 | K49: 0 | L49: 0
D50: 31 | E50: libre | G50: 0 | H50: 0 | I50: 0 | J50: 0 | K50: 0 | L50: 0
D51: 32 | E51: libre | G51: 0 | H51: 0 | I51: 0 | J51: 0 | K51: 0 | L51: 0
D52: 33 | E52: libre | G52: 0 | H52: 0 | I52: 0 | J52: 0 | K52: 0 | L52: 0
D53: 34 | E53: libre | G53: 0 | H53: 0 | I53: 0 | J53: 0 | K53: 0 | L53: 0
D54: 35 | E54: libre | G54: 0 | H54: 0 | I54: 0 | J54: 0 | K54: 0 | L54: 0
D55: 36 | E55: libre | G55: 0 | H55: 0 | I55: 0 | J55: 0 | K55: 0 | L55: 0
D56: 37 | E56: libre | G56: 0 | H56: 0 | I56: 0 | J56: 0 | K56: 0 | L56: 0
D57: 38 | E57: libre | G57: 0 | H57: 0 | I57: 0 | J57: 0 | K57: 0 | L57: 0
D58: 39 | E58: libre | G58: 0 | H58: 0 | I58: 0 | J58: 0 | K58: 0 | L58: 0
D59: 40 | E59: libre | G59: 0 | H59: 0 | I59: 0 | J59: 0 | K59: 0 | L59: 0
E60: lista.departamentos
E61: Total | G61: =SUM(G20:G59) -> 29 | H61: 29 | I61: 29 | J61: 29 | K61: 29 | L61: 29
D63: id | E63: Porcentaje de población por departamento | G63: =INDEX(años,G$3) -> 2010 | H63: 2011 | I63: 2012 | J63: 2013 | K63: 2014 | L63: 2015 | N63: BSC | O63: HLR
D64: 1 | E64: =INDEX(lista.departamentos,D64) -> Antioquia | G64: =G20/G$61 -> 0.03448275862 | H64: 0.03448275862 | I64: 0.03448275862 | J64: 0.03448275862 | K64: 0.03448275862 | L64: 0.03448275862 | N64: Bogotá | O64: Bogotá
D65: =D64+1 -> 2 | E65: Atlántico | G65: 0.03448275862 | H65: 0.03448275862 | I65: 0.03448275862 | J65: 0.03448275862 | K65: 0.03448275862 | L65: 0.03448275862 | N65: Bogotá | O65: Bogotá
D66: 3 | E66: Bogotá, D.C. | G66: 0.03448275862 | H66: 0.03448275862 | I66: 0.03448275862 | J66: 0.03448275862 | K66: 0.03448275862 | L66: 0.03448275862 | N66: Bogotá | O66: Bogotá
D67: 4 | E67: Bolívar | G67: 0.03448275862 | H67: 0.03448275862 | I67: 0.03448275862 | J67: 0.03448275862 | K67: 0.03448275862 | L67: 0.03448275862 | N67: Bogotá | O67: Bogotá
D68: 5 | E68: Boyacá | G68: 0.03448275862 | H68: 0.03448275862 | I68: 0.03448275862 | J68: 0.03448275862 | K68: 0.03448275862 | L68: 0.03448275862 | N68: Bogotá | O68: Bogotá
D69: 6 | E69: Caldas | G69: 0.03448275862 | H69: 0.03448275862 | I69: 0.03448275862 | J69: 0.03448275862 | K69: 0.03448275862 | L69: 0.03448275862 | N69: Bogotá | O69: Bogotá
D70: 7 | E70: Caquetá | G70: 0.03448275862 | H70: 0.03448275862 | I70: 0.03448275862 | J70: 0.03448275862 | K70: 0.03448275862 | L70: 0.03448275862 | N70: Bogotá | O70: Bogotá
D71: 8 | E71: Cauca | G71: 0.03448275862 | H71: 0.03448275862 | I71: 0.03448275862 | J71: 0.03448275862 | K71: 0.03448275862 | L71: 0.03448275862 | N71: Bogotá | O71: Bogotá
D72: 9 | E72: Cesar | G72: 0.03448275862 | H72: 0.03448275862 | I72: 0.03448275862 | J72: 0.03448275862 | K72: 0.03448275862 | L72: 0.03448275862 | N72: Bogotá | O72: Bogotá
D73: 10 | E73: Córdoba | G73: 0.03448275862 | H73: 0.03448275862 | I73: 0.03448275862 | J73: 0.03448275862 | K73: 0.03448275862 | L73: 0.03448275862 | N73: Bogotá | O73: Bogotá
D74: 11 | E74: Cundinamarca | G74: =G30/G$61 -> 0.03448275862 | H74: 0.03448275862 | I74: 0.03448275862 | J74: 0.03448275862 | K74: 0.03448275862 | L74: 0.03448275862 | N74: Bogotá | O74: Bogotá
D75: 12 | E75: Chocó | G75: 0.03448275862 | H75: 0.03448275862 | I75: 0.03448275862 | J75: 0.03448275862 | K75: 0.03448275862 | L75: 0.03448275862 | N75: Bogotá | O75: Bogotá
D76: 13 | E76: Huila | G76: 0.03448275862 | H76: 0.03448275862 | I76: 0.03448275862 | J76: 0.03448275862 | K76: 0.03448275862 | L76: 0.03448275862 | N76: Bogotá | O76: Bogotá
D77: 14 | E77: La Guajira | G77: 0.03448275862 | H77: 0.03448275862 | I77: 0.03448275862 | J77: 0.03448275862 | K77: 0.03448275862 | L77: 0.03448275862 | N77: Bogotá | O77: Bogotá
D78: 15 | E78: Magdalena | G78: 0.03448275862 | H78: 0.03448275862 | I78: 0.03448275862 | J78: 0.03448275862 | K78: 0.03448275862 | L78: 0.03448275862 | N78: Bogotá | O78: Bogotá
D79: 16 | E79: Meta | G79: 0.03448275862 | H79: 0.03448275862 | I79: 0.03448275862 | J79: 0.03448275862 | K79: 0.03448275862 | L79: 0.03448275862 | N79: Bogotá | O79: Bogotá
D80: 17 | E80: Nariño | G80: 0.03448275862 | H80: 0.03448275862 | I80: 0.03448275862 | J80: 0.03448275862 | K80: 0.03448275862 | L80: 0.03448275862 | N80: Bogotá | O80: Bogotá
D81: 18 | E81: Norte de Santander | G81: 0.03448275862 | H81: 0.03448275862 | I81: 0.03448275862 | J81: 0.03448275862 | K81: 0.03448275862 | L81: 0.03448275862 | N81: Bogotá | O81: Bogotá
D82: 19 | E82: Quindio | G82: 0.03448275862 | H82: 0.03448275862 | I82: 0.03448275862 | J82: 0.03448275862 | K82: 0.03448275862 | L82: 0.03448275862 | N82: Bogotá | O82: Bogotá
D83: 20 | E83: Risaralda | G83: 0.03448275862 | H83: 0.03448275862 | I83: 0.03448275862 | J83: 0.03448275862 | K83: 0.03448275862 | L83: 0.03448275862 | N83: Bogotá | O83: Bogotá
D84: 21 | E84: Santander | G84: =G40/G$61 -> 0.03448275862 | H84: 0.03448275862 | I84: 0.03448275862 | J84: 0.03448275862 | K84: 0.03448275862 | L84: 0.03448275862 | N84: Bogotá | O84: Bogotá
D85: 22 | E85: Sucre | G85: 0.03448275862 | H85: 0.03448275862 | I85: 0.03448275862 | J85: 0.03448275862 | K85: 0.03448275862 | L85: 0.03448275862 | N85: Bogotá | O85: Bogotá
D86: 23 | E86: Tolima | G86: 0.03448275862 | H86: 0.03448275862 | I86: 0.03448275862 | J86: 0.03448275862 | K86: 0.03448275862 | L86: 0.03448275862 | N86: Bogotá | O86: Bogotá
D87: 24 | E87: Valle del Cauca | G87: 0.03448275862 | H87: 0.03448275862 | I87: 0.03448275862 | J87: 0.03448275862 | K87: 0.03448275862 | L87: 0.03448275862 | N87: Bogotá | O87: Bogotá
D88: 25 | E88: Arauca | G88: 0.03448275862 | H88: 0.03448275862 | I88: 0.03448275862 | J88: 0.03448275862 | K88: 0.03448275862 | L88: 0.03448275862 | N88: Bogotá | O88: Bogotá
D89: 26 | E89: Casanare | G89: 0.03448275862 | H89: 0.03448275862 | I89: 0.03448275862 | J89: 0.03448275862 | K89: 0.03448275862 | L89: 0.03448275862 | N89: Bogotá | O89: Bogotá
D90: 27 | E90: Putumayo | G90: 0.03448275862 | H90: 0.03448275862 | I90: 0.03448275862 | J90: 0.03448275862 | K90: 0.03448275862 | L90: 0.03448275862 | N90: Bogotá | O90: Bogotá
D91: 28 | E91: Archipiélago de San Andrés | G91: 0.03448275862 | H91: 0.03448275862 | I91: 0.03448275862 | J91: 0.03448275862 | K91: 0.03448275862 | L91: 0.03448275862 | N91: Bogotá | O91: Bogotá
D92: 29 | E92: Grupo amazonia | G92: 0.03448275862 | H92: 0.03448275862 | I92: 0.03448275862 | J92: 0.03448275862 | K92: 0.03448275862 | L92: 0.03448275862 | N92: Bogotá | O92: Bogotá
D93: 30 | E93: libre | G93: 0 | H93: 0 | I93: 0 | J93: 0 | K93: 0 | L93: 0 | N93: libre | O93: libre
D94: 31 | E94: libre | G94: =G50/G$61 -> 0 | H94: 0 | I94: 0 | J94: 0 | K94: 0 | L94: 0 | N94: libre | O94: libre
D95: 32 | E95: libre | G95: 0 | H95: 0 | I95: 0 | J95: 0 | K95: 0 | L95: 0 | N95: libre | O95: libre
D96: 33 | E96: libre | G96: 0 | H96: 0 | I96: 0 | J96: 0 | K96: 0 | L96: 0 | N96: libre | O96: libre
D97: 34 | E97: libre | G97: 0 | H97: 0 | I97: 0 | J97: 0 | K97: 0 | L97: 0 | N97: libre | O97: libre
D98: 35 | E98: libre | G98: 0 | H98: 0 | I98: 0 | J98: 0 | K98: 0 | L98: 0 | N98: libre | O98: libre
D99: 36 | E99: libre | G99: 0 | H99: 0 | I99: 0 | J99: 0 | K99: 0 | L99: 0 | N99: libre | O99: libre
D100: 37 | E100: libre | G100: 0 | H100: 0 | I100: 0 | J100: 0 | K100: 0 | L100: 0 | N100: libre | O100: libre
D101: 38 | E101: libre | G101: 0 | H101: 0 | I101: 0 | J101: 0 | K101: 0 | L101: 0 | N101: libre | O101: libre
D102: 39 | E102: libre | G102: 0 | H102: 0 | I102: 0 | J102: 0 | K102: 0 | L102: 0 | N102: libre | O102: libre
D103: 40 | E103: libre | G103: 0 | H103: 0 | I103: 0 | J103: 0 | K103: 0 | L103: 0 | N103: libre | O103: libre
N104: lista.dpto.a.bsc | O104: lista.dpto.a.hlr
E105: Total | G105: =SUM(G64:G103) -> 1 | H105: 1 | I105: 1 | J105: 1 | K105: 1 | L105: 1
D107: id | E107: Departamento y nodo por el que es atendido | G107: BSC | H107: MGW | I107: MSCS | J107: PTR | K107: HLR
D108: 1 | E108: =INDEX(lista.departamentos,D108) -> Antioquia | G108: =INDEX(lista.dpto.a.bsc,D108) -> Bogotá | H108: =INDEX(lista.bsc.a.mgw,MATCH(G108,bsc.lista.locaciones,0)) -> Bogotá | I108: =INDEX(lista.mgw.a.msc,MATCH(H108,mgw.lista.locaciones,0)) -> Bogotá | J108: =INDEX(lista.mgw.a.ptr,MATCH(H108,mgw.lista.locaciones,0)) -> Bogotá | K108: =INDEX(lista.dpto.a.hlr,D108) -> Bogotá
D109: =D108+1 -> 2 | E109: Atlántico | G109: Bogotá | H109: Bogotá | I109: Bogotá | J109: Bogotá | K109: Bogotá
D110: 3 | E110: Bogotá, D.C. | G110: Bogotá | H110: Bogotá | I110: Bogotá | J110: Bogotá | K110: Bogotá
D111: 4 | E111: Bolívar | G111: Bogotá | H111: Bogotá | I111: Bogotá | J111: Bogotá | K111: Bogotá
D112: 5 | E112: Boyacá | G112: Bogotá | H112: Bogotá | I112: Bogotá | J112: Bogotá | K112: Bogotá
D113: 6 | E113: Caldas | G113: Bogotá | H113: Bogotá | I113: Bogotá | J113: Bogotá | K113: Bogotá
D114: 7 | E114: Caquetá | G114: Bogotá | H114: Bogotá | I114: Bogotá | J114: Bogotá | K114: Bogotá
D115: 8 | E115: Cauca | G115: Bogotá | H115: Bogotá | I115: Bogotá | J115: Bogotá | K115: Bogotá
D116: 9 | E116: Cesar | G116: Bogotá | H116: Bogotá | I116: Bogotá | J116: Bogotá | K116: Bogotá
D117: 10 | E117: Córdoba | G117: Bogotá | H117: Bogotá | I117: Bogotá | J117: Bogotá | K117: Bogotá
D118: 11 | E118: Cundinamarca | G118: Bogotá | H118: Bogotá | I118: Bogotá | J118: Bogotá | K118: Bogotá
D119: 12 | E119: Chocó | G119: Bogotá | H119: Bogotá | I119: Bogotá | J119: Bogotá | K119: Bogotá
D120: 13 | E120: Huila | G120: Bogotá | H120: Bogotá | I120: Bogotá | J120: Bogotá | K120: Bogotá
D121: 14 | E121: La Guajira | G121: Bogotá | H121: Bogotá | I121: Bogotá | J121: Bogotá | K121: Bogotá
D122: 15 | E122: Magdalena | G122: Bogotá | H122: Bogotá | I122: Bogotá | J122: Bogotá | K122: Bogotá
D123: 16 | E123: Meta | G123: Bogotá | H123: Bogotá | I123: Bogotá | J123: Bogotá | K123: Bogotá
D124: 17 | E124: Nariño | G124: Bogotá | H124: Bogotá | I124: Bogotá | J124: Bogotá | K124: Bogotá
D125: 18 | E125: Norte de Santander | G125: Bogotá | H125: Bogotá | I125: Bogotá | J125: Bogotá | K125: Bogotá
D126: 19 | E126: Quindio | G126: Bogotá | H126: Bogotá | I126: Bogotá | J126: Bogotá | K126: Bogotá
D127: 20 | E127: Risaralda | G127: Bogotá | H127: Bogotá | I127: Bogotá | J127: Bogotá | K127: Bogotá
D128: 21 | E128: Santander | G128: Bogotá | H128: Bogotá | I128: Bogotá | J128: Bogotá | K128: Bogotá
D129: 22 | E129: Sucre | G129: Bogotá | H129: Bogotá | I129: Bogotá | J129: Bogotá | K129: Bogotá
D130: 23 | E130: Tolima | G130: Bogotá | H130: Bogotá | I130: Bogotá | J130: Bogotá | K130: Bogotá
D131: 24 | E131: Valle del Cauca | G131: Bogotá | H131: Bogotá | I131: Bogotá | J131: Bogotá | K131: Bogotá
D132: 25 | E132: Arauca | G132: Bogotá | H132: Bogotá | I132: Bogotá | J132: Bogotá | K132: Bogotá
D133: 26 | E133: Casanare | G133: Bogotá | H133: Bogotá | I133: Bogotá | J133: Bogotá | K133: Bogotá
D134: 27 | E134: Putumayo | G134: Bogotá | H134: Bogotá | I134: Bogotá | J134: Bogotá | K134: Bogotá
D135: 28 | E135: Archipiélago de San Andrés | G135: Bogotá | H135: Bogotá | I135: Bogotá | J135: Bogotá | K135: Bogotá
D136: 29 | E136: Grupo amazonia | G136: Bogotá | H136: Bogotá | I136: Bogotá | J136: Bogotá | K136: Bogotá
D137: 30 | E137: libre | G137: libre | H137: libre | I137: libre | J137: libre | K137: libre
D138: 31 | E138: libre | G138: libre | H138: libre | I138: libre | J138: libre | K138: libre
D139: 32 | E139: libre | G139: libre | H139: libre | I139: libre | J139: libre | K139: libre
D140: 33 | E140: libre | G140: libre | H140: libre | I140: libre | J140: libre | K140: libre
D141: 34 | E141: libre | G141: libre | H141: libre | I141: libre | J141: libre | K141: libre
D142: 35 | E142: libre | G142: libre | H142: libre | I142: libre | J142: libre | K142: libre
D143: 36 | E143: libre | G143: libre | H143: libre | I143: libre | J143: libre | K143: libre
D144: 37 | E144: libre | G144: libre | H144: libre | I144: libre | J144: libre | K144: libre
D145: 38 | E145: libre | G145: libre | H145: libre | I145: libre | J145: libre | K145: libre
D146: 39 | E146: libre | G146: libre | H146: libre | I146: libre | J146: libre | K146: libre
D147: 40 | E147: libre | G147: libre | H147: libre | I147: libre | J147: libre | K147: libre
E149: Fuente: Operadores
D150: id | E150: Locaciones de diseño y población asociada para BSC | G150: =INDEX(años,G$3) -> 2010 | H150: 2011 | I150: 2012 | J150: 2013 | K150: 2014 | L150: 2015 | N150: MGW
D151: 1 | E151: Bogotá | G151: =SUM((($E151=$G$108:$G$147)*G$64:G$103)) -> 1 | H151: =SUM((($E151=$G$108:$G$147)*H$64:H$103)) -> 1 | I151: =SUM((($E151=$G$108:$G$147)*I$64:I$103)) -> 1 | J151: =SUM((($E151=$G$108:$G$147)*J$64:J$103)) -> 1 | K151: =SUM((($E151=$G$108:$G$147)*K$64:K$103)) -> 1 | L151: =SUM((($E151=$G$108:$G$147)*L$64:L$103)) -> 1 | N151: Bogotá
D152: =D151+1 -> 2 | E152: Bucaramanga | G152: =SUM((($E152=$G$108:$G$147)*G$64:G$103)) -> 0 | H152: =SUM((($E152=$G$108:$G$147)*H$64:H$103)) -> 0 | I152: =SUM((($E152=$G$108:$G$147)*I$64:I$103)) -> 0 | J152: =SUM((($E152=$G$108:$G$147)*J$64:J$103)) -> 0 | K152: =SUM((($E152=$G$108:$G$147)*K$64:K$103)) -> 0 | L152: =SUM((($E152=$G$108:$G$147)*L$64:L$103)) -> 0 | N152: Bogotá
D153: 3 | E153: Cúcuta | G153: =SUM((($E153=$G$108:$G$147)*G$64:G$103)) -> 0 | H153: =SUM((($E153=$G$108:$G$147)*H$64:H$103)) -> 0 | I153: =SUM((($E153=$G$108:$G$147)*I$64:I$103)) -> 0 | J153: =SUM((($E153=$G$108:$G$147)*J$64:J$103)) -> 0 | K153: =SUM((($E153=$G$108:$G$147)*K$64:K$103)) -> 0 | L153: =SUM((($E153=$G$108:$G$147)*L$64:L$103)) -> 0 | N153: Bogotá
D154: 4 | E154: Florencia | G154: =SUM((($E154=$G$108:$G$147)*G$64:G$103)) -> 0 | H154: =SUM((($E154=$G$108:$G$147)*H$64:H$103)) -> 0 | I154: =SUM((($E154=$G$108:$G$147)*I$64:I$103)) -> 0 | J154: =SUM((($E154=$G$108:$G$147)*J$64:J$103)) -> 0 | K154: =SUM((($E154=$G$108:$G$147)*K$64:K$103)) -> 0 | L154: =SUM((($E154=$G$108:$G$147)*L$64:L$103)) -> 0 | N154: Bogotá
D155: 5 | E155: Ibagué | G155: =SUM((($E155=$G$108:$G$147)*G$64:G$103)) -> 0 | H155: =SUM((($E155=$G$108:$G$147)*H$64:H$103)) -> 0 | I155: =SUM((($E155=$G$108:$G$147)*I$64:I$103)) -> 0 | J155: =SUM((($E155=$G$108:$G$147)*J$64:J$103)) -> 0 | K155: =SUM((($E155=$G$108:$G$147)*K$64:K$103)) -> 0 | L155: =SUM((($E155=$G$108:$G$147)*L$64:L$103)) -> 0 | N155: Bogotá
D156: 6 | E156: Neiva | G156: =SUM((($E156=$G$108:$G$147)*G$64:G$103)) -> 0 | H156: =SUM((($E156=$G$108:$G$147)*H$64:H$103)) -> 0 | I156: =SUM((($E156=$G$108:$G$147)*I$64:I$103)) -> 0 | J156: =SUM((($E156=$G$108:$G$147)*J$64:J$103)) -> 0 | K156: =SUM((($E156=$G$108:$G$147)*K$64:K$103)) -> 0 | L156: =SUM((($E156=$G$108:$G$147)*L$64:L$103)) -> 0 | N156: Bogotá
D157: 7 | E157: Tunja | G157: =SUM((($E157=$G$108:$G$147)*G$64:G$103)) -> 0 | H157: =SUM((($E157=$G$108:$G$147)*H$64:H$103)) -> 0 | I157: =SUM((($E157=$G$108:$G$147)*I$64:I$103)) -> 0 | J157: =SUM((($E157=$G$108:$G$147)*J$64:J$103)) -> 0 | K157: =SUM((($E157=$G$108:$G$147)*K$64:K$103)) -> 0 | L157: =SUM((($E157=$G$108:$G$147)*L$64:L$103)) -> 0 | N157: Bogotá
D158: 8 | E158: Villavicencio | G158: =SUM((($E158=$G$108:$G$147)*G$64:G$103)) -> 0 | H158: =SUM((($E158=$G$108:$G$147)*H$64:H$103)) -> 0 | I158: =SUM((($E158=$G$108:$G$147)*I$64:I$103)) -> 0 | J158: =SUM((($E158=$G$108:$G$147)*J$64:J$103)) -> 0 | K158: =SUM((($E158=$G$108:$G$147)*K$64:K$103)) -> 0 | L158: =SUM((($E158=$G$108:$G$147)*L$64:L$103)) -> 0 | N158: Bogotá
D159: 9 | E159: Barranquilla | G159: =SUM((($E159=$G$108:$G$147)*G$64:G$103)) -> 0 | H159: =SUM((($E159=$G$108:$G$147)*H$64:H$103)) -> 0 | I159: =SUM((($E159=$G$108:$G$147)*I$64:I$103)) -> 0 | J159: =SUM((($E159=$G$108:$G$147)*J$64:J$103)) -> 0 | K159: =SUM((($E159=$G$108:$G$147)*K$64:K$103)) -> 0 | L159: =SUM((($E159=$G$108:$G$147)*L$64:L$103)) -> 0 | N159: Bogotá
D160: 10 | E160: Turbaco | G160: =SUM((($E160=$G$108:$G$147)*G$64:G$103)) -> 0 | H160: =SUM((($E160=$G$108:$G$147)*H$64:H$103)) -> 0 | I160: =SUM((($E160=$G$108:$G$147)*I$64:I$103)) -> 0 | J160: =SUM((($E160=$G$108:$G$147)*J$64:J$103)) -> 0 | K160: =SUM((($E160=$G$108:$G$147)*K$64:K$103)) -> 0 | L160: =SUM((($E160=$G$108:$G$147)*L$64:L$103)) -> 0 | N160: Bogotá
D161: 11 | E161: Sincelejo | G161: =SUM((($E161=$G$108:$G$147)*G$64:G$103)) -> 0 | H161: =SUM((($E161=$G$108:$G$147)*H$64:H$103)) -> 0 | I161: =SUM((($E161=$G$108:$G$147)*I$64:I$103)) -> 0 | J161: =SUM((($E161=$G$108:$G$147)*J$64:J$103)) -> 0 | K161: =SUM((($E161=$G$108:$G$147)*K$64:K$103)) -> 0 | L161: =SUM((($E161=$G$108:$G$147)*L$64:L$103)) -> 0 | N161: Bogotá
D162: 12 | E162: Santa Marta | G162: =SUM((($E162=$G$108:$G$147)*G$64:G$103)) -> 0 | H162: =SUM((($E162=$G$108:$G$147)*H$64:H$103)) -> 0 | I162: =SUM((($E162=$G$108:$G$147)*I$64:I$103)) -> 0 | J162: =SUM((($E162=$G$108:$G$147)*J$64:J$103)) -> 0 | K162: =SUM((($E162=$G$108:$G$147)*K$64:K$103)) -> 0 | L162: =SUM((($E162=$G$108:$G$147)*L$64:L$103)) -> 0 | N162: Bogotá
D163: 13 | E163: Valledupar | G163: =SUM((($E163=$G$108:$G$147)*G$64:G$103)) -> 0 | H163: =SUM((($E163=$G$108:$G$147)*H$64:H$103)) -> 0 | I163: =SUM((($E163=$G$108:$G$147)*I$64:I$103)) -> 0 | J163: =SUM((($E163=$G$108:$G$147)*J$64:J$103)) -> 0 | K163: =SUM((($E163=$G$108:$G$147)*K$64:K$103)) -> 0 | L163: =SUM((($E163=$G$108:$G$147)*L$64:L$103)) -> 0 | N163: Bogotá
D164: 14 | E164: Cali | G164: =SUM((($E164=$G$108:$G$147)*G$64:G$103)) -> 0 | H164: =SUM((($E164=$G$108:$G$147)*H$64:H$103)) -> 0 | I164: =SUM((($E164=$G$108:$G$147)*I$64:I$103)) -> 0 | J164: =SUM((($E164=$G$108:$G$147)*J$64:J$103)) -> 0 | K164: =SUM((($E164=$G$108:$G$147)*K$64:K$103)) -> 0 | L164: =SUM((($E164=$G$108:$G$147)*L$64:L$103)) -> 0 | N164: Bogotá
D165: 15 | E165: Medellín | G165: =SUM((($E165=$G$108:$G$147)*G$64:G$103)) -> 0 | H165: =SUM((($E165=$G$108:$G$147)*H$64:H$103)) -> 0 | I165: =SUM((($E165=$G$108:$G$147)*I$64:I$103)) -> 0 | J165: =SUM((($E165=$G$108:$G$147)*J$64:J$103)) -> 0 | K165: =SUM((($E165=$G$108:$G$147)*K$64:K$103)) -> 0 | L165: =SUM((($E165=$G$108:$G$147)*L$64:L$103)) -> 0 | N165: Bogotá
D166: 16 | E166: Pasto | G166: =SUM((($E166=$G$108:$G$147)*G$64:G$103)) -> 0 | H166: =SUM((($E166=$G$108:$G$147)*H$64:H$103)) -> 0 | I166: =SUM((($E166=$G$108:$G$147)*I$64:I$103)) -> 0 | J166: =SUM((($E166=$G$108:$G$147)*J$64:J$103)) -> 0 | K166: =SUM((($E166=$G$108:$G$147)*K$64:K$103)) -> 0 | L166: =SUM((($E166=$G$108:$G$147)*L$64:L$103)) -> 0 | N166: Bogotá
D167: 17 | E167: Pereira | G167: =SUM((($E167=$G$108:$G$147)*G$64:G$103)) -> 0 | H167: =SUM((($E167=$G$108:$G$147)*H$64:H$103)) -> 0 | I167: =SUM((($E167=$G$108:$G$147)*I$64:I$103)) -> 0 | J167: =SUM((($E167=$G$108:$G$147)*J$64:J$103)) -> 0 | K167: =SUM((($E167=$G$108:$G$147)*K$64:K$103)) -> 0 | L167: =SUM((($E167=$G$108:$G$147)*L$64:L$103)) -> 0 | N167: Bogotá
D168: 18 | E168: libre | G168: =SUM((($E168=$G$108:$G$147)*G$64:G$103)) -> 0 | H168: =SUM((($E168=$G$108:$G$147)*H$64:H$103)) -> 0 | I168: =SUM((($E168=$G$108:$G$147)*I$64:I$103)) -> 0 | J168: =SUM((($E168=$G$108:$G$147)*J$64:J$103)) -> 0 | K168: =SUM((($E168=$G$108:$G$147)*K$64:K$103)) -> 0 | L168: =SUM((($E168=$G$108:$G$147)*L$64:L$103)) -> 0 | N168: libre
D169: 19 | E169: libre | G169: =SUM((($E169=$G$108:$G$147)*G$64:G$103)) -> 0 | H169: =SUM((($E169=$G$108:$G$147)*H$64:H$103)) -> 0 | I169: =SUM((($E169=$G$108:$G$147)*I$64:I$103)) -> 0 | J169: =SUM((($E169=$G$108:$G$147)*J$64:J$103)) -> 0 | K169: =SUM((($E169=$G$108:$G$147)*K$64:K$103)) -> 0 | L169: =SUM((($E169=$G$108:$G$147)*L$64:L$103)) -> 0 | N169: libre
D170: 20 | E170: libre | G170: =SUM((($E170=$G$108:$G$147)*G$64:G$103)) -> 0 | H170: =SUM((($E170=$G$108:$G$147)*H$64:H$103)) -> 0 | I170: =SUM((($E170=$G$108:$G$147)*I$64:I$103)) -> 0 | J170: =SUM((($E170=$G$108:$G$147)*J$64:J$103)) -> 0 | K170: =SUM((($E170=$G$108:$G$147)*K$64:K$103)) -> 0 | L170: =SUM((($E170=$G$108:$G$147)*L$64:L$103)) -> 0 | N170: libre
D171: 21 | E171: libre | G171: =SUM((($E171=$G$108:$G$147)*G$64:G$103)) -> 0 | H171: =SUM((($E171=$G$108:$G$147)*H$64:H$103)) -> 0 | I171: =SUM((($E171=$G$108:$G$147)*I$64:I$103)) -> 0 | J171: =SUM((($E171=$G$108:$G$147)*J$64:J$103)) -> 0 | K171: =SUM((($E171=$G$108:$G$147)*K$64:K$103)) -> 0 | L171: =SUM((($E171=$G$108:$G$147)*L$64:L$103)) -> 0 | N171: libre
D172: 22 | E172: libre | G172: =SUM((($E172=$G$108:$G$147)*G$64:G$103)) -> 0 | H172: =SUM((($E172=$G$108:$G$147)*H$64:H$103)) -> 0 | I172: =SUM((($E172=$G$108:$G$147)*I$64:I$103)) -> 0 | J172: =SUM((($E172=$G$108:$G$147)*J$64:J$103)) -> 0 | K172: =SUM((($E172=$G$108:$G$147)*K$64:K$103)) -> 0 | L172: =SUM((($E172=$G$108:$G$147)*L$64:L$103)) -> 0 | N172: libre
D173: 23 | E173: libre | G173: =SUM((($E173=$G$108:$G$147)*G$64:G$103)) -> 0 | H173: =SUM((($E173=$G$108:$G$147)*H$64:H$103)) -> 0 | I173: =SUM((($E173=$G$108:$G$147)*I$64:I$103)) -> 0 | J173: =SUM((($E173=$G$108:$G$147)*J$64:J$103)) -> 0 | K173: =SUM((($E173=$G$108:$G$147)*K$64:K$103)) -> 0 | L173: =SUM((($E173=$G$108:$G$147)*L$64:L$103)) -> 0 | N173: libre
D174: 24 | E174: libre | G174: =SUM((($E174=$G$108:$G$147)*G$64:G$103)) -> 0 | H174: =SUM((($E174=$G$108:$G$147)*H$64:H$103)) -> 0 | I174: =SUM((($E174=$G$108:$G$147)*I$64:I$103)) -> 0 | J174: =SUM((($E174=$G$108:$G$147)*J$64:J$103)) -> 0 | K174: =SUM((($E174=$G$108:$G$147)*K$64:K$103)) -> 0 | L174: =SUM((($E174=$G$108:$G$147)*L$64:L$103)) -> 0 | N174: libre
D175: 25 | E175: libre | G175: =SUM((($E175=$G$108:$G$147)*G$64:G$103)) -> 0 | H175: =SUM((($E175=$G$108:$G$147)*H$64:H$103)) -> 0 | I175: =SUM((($E175=$G$108:$G$147)*I$64:I$103)) -> 0 | J175: =SUM((($E175=$G$108:$G$147)*J$64:J$103)) -> 0 | K175: =SUM((($E175=$G$108:$G$147)*K$64:K$103)) -> 0 | L175: =SUM((($E175=$G$108:$G$147)*L$64:L$103)) -> 0 | N175: libre
D176: 26 | E176: libre | G176: =SUM((($E176=$G$108:$G$147)*G$64:G$103)) -> 0 | H176: =SUM((($E176=$G$108:$G$147)*H$64:H$103)) -> 0 | I176: =SUM((($E176=$G$108:$G$147)*I$64:I$103)) -> 0 | J176: =SUM((($E176=$G$108:$G$147)*J$64:J$103)) -> 0 | K176: =SUM((($E176=$G$108:$G$147)*K$64:K$103)) -> 0 | L176: =SUM((($E176=$G$108:$G$147)*L$64:L$103)) -> 0 | N176: libre
D177: 27 | E177: libre | G177: =SUM((($E177=$G$108:$G$147)*G$64:G$103)) -> 0 | H177: =SUM((($E177=$G$108:$G$147)*H$64:H$103)) -> 0 | I177: =SUM((($E177=$G$108:$G$147)*I$64:I$103)) -> 0 | J177: =SUM((($E177=$G$108:$G$147)*J$64:J$103)) -> 0 | K177: =SUM((($E177=$G$108:$G$147)*K$64:K$103)) -> 0 | L177: =SUM((($E177=$G$108:$G$147)*L$64:L$103)) -> 0 | N177: libre
D178: 28 | E178: libre | G178: =SUM((($E178=$G$108:$G$147)*G$64:G$103)) -> 0 | H178: =SUM((($E178=$G$108:$G$147)*H$64:H$103)) -> 0 | I178: =SUM((($E178=$G$108:$G$147)*I$64:I$103)) -> 0 | J178: =SUM((($E178=$G$108:$G$147)*J$64:J$103)) -> 0 | K178: =SUM((($E178=$G$108:$G$147)*K$64:K$103)) -> 0 | L178: =SUM((($E178=$G$108:$G$147)*L$64:L$103)) -> 0 | N178: libre
D179: 29 | E179: libre | G179: =SUM((($E179=$G$108:$G$147)*G$64:G$103)) -> 0 | H179: =SUM((($E179=$G$108:$G$147)*H$64:H$103)) -> 0 | I179: =SUM((($E179=$G$108:$G$147)*I$64:I$103)) -> 0 | J179: =SUM((($E179=$G$108:$G$147)*J$64:J$103)) -> 0 | K179: =SUM((($E179=$G$108:$G$147)*K$64:K$103)) -> 0 | L179: =SUM((($E179=$G$108:$G$147)*L$64:L$103)) -> 0 | N179: libre
D180: 30 | E180: libre | G180: =SUM((($E180=$G$108:$G$147)*G$64:G$103)) -> 0 | H180: =SUM((($E180=$G$108:$G$147)*H$64:H$103)) -> 0 | I180: =SUM((($E180=$G$108:$G$147)*I$64:I$103)) -> 0 | J180: =SUM((($E180=$G$108:$G$147)*J$64:J$103)) -> 0 | K180: =SUM((($E180=$G$108:$G$147)*K$64:K$103)) -> 0 | L180: =SUM((($E180=$G$108:$G$147)*L$64:L$103)) -> 0 | N180: libre
E181: bsc.lista.locaciones | G181: bsc.distribución.población | N181: lista.bsc.a.mgw
E182: Total | G182: =SUM(G151:G180) -> 1 | H182: 1 | I182: 1 | J182: 1 | K182: 1 | L182: 1
E184: Fuente: Operadores
D185: id | E185: Locaciones de diseño y población asociada para MGW | G185: =INDEX(años,G$3) -> 2010 | H185: 2011 | I185: 2012 | J185: 2013 | K185: 2014 | L185: 2015 | N185: MSCS | O185: PTR
D186: 1 | E186: Bogotá | G186: =SUM((($E186=$H$108:$H$147)*G$64:G$103)) -> 1 | H186: =SUM((($E186=$H$108:$H$147)*H$64:H$103)) -> 1 | I186: =SUM((($E186=$H$108:$H$147)*I$64:I$103)) -> 1 | J186: =SUM((($E186=$H$108:$H$147)*J$64:J$103)) -> 1 | K186: =SUM((($E186=$H$108:$H$147)*K$64:K$103)) -> 1 | L186: =SUM((($E186=$H$108:$H$147)*L$64:L$103)) -> 1 | N186: Bogotá | O186: Bogotá
D187: =D186+1 -> 2 | E187: Bucaramanga | G187: =SUM((($E187=$H$108:$H$147)*G$64:G$103)) -> 0 | H187: =SUM((($E187=$H$108:$H$147)*H$64:H$103)) -> 0 | I187: =SUM((($E187=$H$108:$H$147)*I$64:I$103)) -> 0 | J187: =SUM((($E187=$H$108:$H$147)*J$64:J$103)) -> 0 | K187: =SUM((($E187=$H$108:$H$147)*K$64:K$103)) -> 0 | L187: =SUM((($E187=$H$108:$H$147)*L$64:L$103)) -> 0 | N187: Bogotá | O187: Bogotá
D188: 3 | E188: Neiva | G188: =SUM((($E188=$H$108:$H$147)*G$64:G$103)) -> 0 | H188: =SUM((($E188=$H$108:$H$147)*H$64:H$103)) -> 0 | I188: =SUM((($E188=$H$108:$H$147)*I$64:I$103)) -> 0 | J188: =SUM((($E188=$H$108:$H$147)*J$64:J$103)) -> 0 | K188: =SUM((($E188=$H$108:$H$147)*K$64:K$103)) -> 0 | L188: =SUM((($E188=$H$108:$H$147)*L$64:L$103)) -> 0 | N188: Bogotá | O188: Bogotá
D189: 4 | E189: Barranquilla | G189: =SUM((($E189=$H$108:$H$147)*G$64:G$103)) -> 0 | H189: =SUM((($E189=$H$108:$H$147)*H$64:H$103)) -> 0 | I189: =SUM((($E189=$H$108:$H$147)*I$64:I$103)) -> 0 | J189: =SUM((($E189=$H$108:$H$147)*J$64:J$103)) -> 0 | K189: =SUM((($E189=$H$108:$H$147)*K$64:K$103)) -> 0 | L189: =SUM((($E189=$H$108:$H$147)*L$64:L$103)) -> 0 | N189: Bogotá | O189: Bogotá
D190: 5 | E190: Turbaco | G190: =SUM((($E190=$H$108:$H$147)*G$64:G$103)) -> 0 | H190: =SUM((($E190=$H$108:$H$147)*H$64:H$103)) -> 0 | I190: =SUM((($E190=$H$108:$H$147)*I$64:I$103)) -> 0 | J190: =SUM((($E190=$H$108:$H$147)*J$64:J$103)) -> 0 | K190: =SUM((($E190=$H$108:$H$147)*K$64:K$103)) -> 0 | L190: =SUM((($E190=$H$108:$H$147)*L$64:L$103)) -> 0 | N190: Bogotá | O190: Bogotá
D191: 6 | E191: Sincelejo | G191: =SUM((($E191=$H$108:$H$147)*G$64:G$103)) -> 0 | H191: =SUM((($E191=$H$108:$H$147)*H$64:H$103)) -> 0 | I191: =SUM((($E191=$H$108:$H$147)*I$64:I$103)) -> 0 | J191: =SUM((($E191=$H$108:$H$147)*J$64:J$103)) -> 0 | K191: =SUM((($E191=$H$108:$H$147)*K$64:K$103)) -> 0 | L191: =SUM((($E191=$H$108:$H$147)*L$64:L$103)) -> 0 | N191: Bogotá | O191: Bogotá
D192: 7 | E192: Cali | G192: =SUM((($E192=$H$108:$H$147)*G$64:G$103)) -> 0 | H192: =SUM((($E192=$H$108:$H$147)*H$64:H$103)) -> 0 | I192: =SUM((($E192=$H$108:$H$147)*I$64:I$103)) -> 0 | J192: =SUM((($E192=$H$108:$H$147)*J$64:J$103)) -> 0 | K192: =SUM((($E192=$H$108:$H$147)*K$64:K$103)) -> 0 | L192: =SUM((($E192=$H$108:$H$147)*L$64:L$103)) -> 0 | N192: Bogotá | O192: Bogotá
D193: 8 | E193: Medellín | G193: =SUM((($E193=$H$108:$H$147)*G$64:G$103)) -> 0 | H193: =SUM((($E193=$H$108:$H$147)*H$64:H$103)) -> 0 | I193: =SUM((($E193=$H$108:$H$147)*I$64:I$103)) -> 0 | J193: =SUM((($E193=$H$108:$H$147)*J$64:J$103)) -> 0 | K193: =SUM((($E193=$H$108:$H$147)*K$64:K$103)) -> 0 | L193: =SUM((($E193=$H$108:$H$147)*L$64:L$103)) -> 0 | N193: Bogotá | O193: Bogotá
D194: 9 | E194: Pasto | G194: =SUM((($E194=$H$108:$H$147)*G$64:G$103)) -> 0 | H194: =SUM((($E194=$H$108:$H$147)*H$64:H$103)) -> 0 | I194: =SUM((($E194=$H$108:$H$147)*I$64:I$103)) -> 0 | J194: =SUM((($E194=$H$108:$H$147)*J$64:J$103)) -> 0 | K194: =SUM((($E194=$H$108:$H$147)*K$64:K$103)) -> 0 | L194: =SUM((($E194=$H$108:$H$147)*L$64:L$103)) -> 0 | N194: Bogotá | O194: Bogotá
D195: 10 | E195: Pereira | G195: =SUM((($E195=$H$108:$H$147)*G$64:G$103)) -> 0 | H195: =SUM((($E195=$H$108:$H$147)*H$64:H$103)) -> 0 | I195: =SUM((($E195=$H$108:$H$147)*I$64:I$103)) -> 0 | J195: =SUM((($E195=$H$108:$H$147)*J$64:J$103)) -> 0 | K195: =SUM((($E195=$H$108:$H$147)*K$64:K$103)) -> 0 | L195: =SUM((($E195=$H$108:$H$147)*L$64:L$103)) -> 0 | N195: Bogotá | O195: Bogotá
D196: 11 | E196: libre | G196: =SUM((($E196=$H$108:$H$147)*G$64:G$103)) -> 0 | H196: =SUM((($E196=$H$108:$H$147)*H$64:H$103)) -> 0 | I196: =SUM((($E196=$H$108:$H$147)*I$64:I$103)) -> 0 | J196: =SUM((($E196=$H$108:$H$147)*J$64:J$103)) -> 0 | K196: =SUM((($E196=$H$108:$H$147)*K$64:K$103)) -> 0 | L196: =SUM((($E196=$H$108:$H$147)*L$64:L$103)) -> 0 | N196: libre | O196: libre
D197: 12 | E197: libre | G197: =SUM((($E197=$H$108:$H$147)*G$64:G$103)) -> 0 | H197: =SUM((($E197=$H$108:$H$147)*H$64:H$103)) -> 0 | I197: =SUM((($E197=$H$108:$H$147)*I$64:I$103)) -> 0 | J197: =SUM((($E197=$H$108:$H$147)*J$64:J$103)) -> 0 | K197: =SUM((($E197=$H$108:$H$147)*K$64:K$103)) -> 0 | L197: =SUM((($E197=$H$108:$H$147)*L$64:L$103)) -> 0 | N197: libre | O197: libre
D198: 13 | E198: libre | G198: =SUM((($E198=$H$108:$H$147)*G$64:G$103)) -> 0 | H198: =SUM((($E198=$H$108:$H$147)*H$64:H$103)) -> 0 | I198: =SUM((($E198=$H$108:$H$147)*I$64:I$103)) -> 0 | J198: =SUM((($E198=$H$108:$H$147)*J$64:J$103)) -> 0 | K198: =SUM((($E198=$H$108:$H$147)*K$64:K$103)) -> 0 | L198: =SUM((($E198=$H$108:$H$147)*L$64:L$103)) -> 0 | N198: libre | O198: libre
D199: 14 | E199: libre | G199: =SUM((($E199=$H$108:$H$147)*G$64:G$103)) -> 0 | H199: =SUM((($E199=$H$108:$H$147)*H$64:H$103)) -> 0 | I199: =SUM((($E199=$H$108:$H$147)*I$64:I$103)) -> 0 | J199: =SUM((($E199=$H$108:$H$147)*J$64:J$103)) -> 0 | K199: =SUM((($E199=$H$108:$H$147)*K$64:K$103)) -> 0 | L199: =SUM((($E199=$H$108:$H$147)*L$64:L$103)) -> 0 | N199: libre | O199: libre
D200: 15 | E200: libre | G200: =SUM((($E200=$H$108:$H$147)*G$64:G$103)) -> 0 | H200: =SUM((($E200=$H$108:$H$147)*H$64:H$103)) -> 0 | I200: =SUM((($E200=$H$108:$H$147)*I$64:I$103)) -> 0 | J200: =SUM((($E200=$H$108:$H$147)*J$64:J$103)) -> 0 | K200: =SUM((($E200=$H$108:$H$147)*K$64:K$103)) -> 0 | L200: =SUM((($E200=$H$108:$H$147)*L$64:L$103)) -> 0 | N200: libre | O200: libre
D201: 16 | E201: libre | G201: =SUM((($E201=$H$108:$H$147)*G$64:G$103)) -> 0 | H201: =SUM((($E201=$H$108:$H$147)*H$64:H$103)) -> 0 | I201: =SUM((($E201=$H$108:$H$147)*I$64:I$103)) -> 0 | J201: =SUM((($E201=$H$108:$H$147)*J$64:J$103)) -> 0 | K201: =SUM((($E201=$H$108:$H$147)*K$64:K$103)) -> 0 | L201: =SUM((($E201=$H$108:$H$147)*L$64:L$103)) -> 0 | N201: libre | O201: libre
D202: 17 | E202: libre | G202: =SUM((($E202=$H$108:$H$147)*G$64:G$103)) -> 0 | H202: =SUM((($E202=$H$108:$H$147)*H$64:H$103)) -> 0 | I202: =SUM((($E202=$H$108:$H$147)*I$64:I$103)) -> 0 | J202: =SUM((($E202=$H$108:$H$147)*J$64:J$103)) -> 0 | K202: =SUM((($E202=$H$108:$H$147)*K$64:K$103)) -> 0 | L202: =SUM((($E202=$H$108:$H$147)*L$64:L$103)) -> 0 | N202: libre | O202: libre
D203: 18 | E203: libre | G203: =SUM((($E203=$H$108:$H$147)*G$64:G$103)) -> 0 | H203: =SUM((($E203=$H$108:$H$147)*H$64:H$103)) -> 0 | I203: =SUM((($E203=$H$108:$H$147)*I$64:I$103)) -> 0 | J203: =SUM((($E203=$H$108:$H$147)*J$64:J$103)) -> 0 | K203: =SUM((($E203=$H$108:$H$147)*K$64:K$103)) -> 0 | L203: =SUM((($E203=$H$108:$H$147)*L$64:L$103)) -> 0 | N203: libre | O203: libre
D204: 19 | E204: libre | G204: =SUM((($E204=$H$108:$H$147)*G$64:G$103)) -> 0 | H204: =SUM((($E204=$H$108:$H$147)*H$64:H$103)) -> 0 | I204: =SUM((($E204=$H$108:$H$147)*I$64:I$103)) -> 0 | J204: =SUM((($E204=$H$108:$H$147)*J$64:J$103)) -> 0 | K204: =SUM((($E204=$H$108:$H$147)*K$64:K$103)) -> 0 | L204: =SUM((($E204=$H$108:$H$147)*L$64:L$103)) -> 0 | N204: libre | O204: libre
D205: 20 | E205: libre | G205: =SUM((($E205=$H$108:$H$147)*G$64:G$103)) -> 0 | H205: =SUM((($E205=$H$108:$H$147)*H$64:H$103)) -> 0 | I205: =SUM((($E205=$H$108:$H$147)*I$64:I$103)) -> 0 | J205: =SUM((($E205=$H$108:$H$147)*J$64:J$103)) -> 0 | K205: =SUM((($E205=$H$108:$H$147)*K$64:K$103)) -> 0 | L205: =SUM((($E205=$H$108:$H$147)*L$64:L$103)) -> 0 | N205: libre | O205: libre
E206: mgw.lista.locaciones | G206: mgw.distribución.población | N206: lista.mgw.a.msc | O206: lista.mgw.a.ptr
E207: Total | G207: =SUM(G186:G205) -> 1 | H207: 1 | I207: 1 | J207: 1 | K207: 1 | L207: 1
E209: Fuente: Operadores
D210: id | E210: Locaciones de diseño y población asociada para MSC | G210: =INDEX(años,G$3) -> 2010 | H210: 2011 | I210: 2012 | J210: 2013 | K210: 2014 | L210: 2015
... 568 more rows

Sheet Diseño.Red.Acceso
E1: Diseño de la red de acceso
F3: años | G3: 1 | H3: 2 | I3: 3 | J3: 4 | K3: 5 | L3: 6 | M3: =G3 -> 1 | N3: 2 | O3: 3 | P3: 4 | Q3: 5 | R3: 6 | S3: =M3 -> 1 | T3: 2 | U3: 3 | V3: 4 | W3: 5 | X3: 6 | Y3: =S3 -> 1 | Z3: 2 | AA3: 3 | AB3: 4 | AC3: 5 | AD3: 6 | AE3: =Y3 -> 1 | AF3: 2 | AG3: 3 | AH3: 4 | AI3: 5 | AJ3: 6
F4: escenario | G4: 1 | H4: 1 | I4: 1 | J4: 1 | K4: 1 | L4: 1 | M4: =G4+1 -> 2 | N4: 2 | O4: 2 | P4: 2 | Q4: 2 | R4: 2 | S4: 3 | T4: 3 | U4: 3 | V4: 3 | W4: 3 | X4: 3 | Y4: 4 | Z4: 4 | AA4: 4 | AB4: 4 | AC4: 4 | AD4: 4 | AE4: 5 | AF4: 5 | AG4: 5 | AH4: 5 | AI4: 5 | AJ4: 5
F5: columna | G5: 1 | H5: 2 | I5: 3 | J5: 4 | K5: 5 | L5: 6 | M5: 7 | N5: 8 | O5: 9 | P5: 10 | Q5: 11 | R5: 12 | S5: 13 | T5: 14 | U5: 15 | V5: 16 | W5: 17 | X5: 18 | Y5: 19 | Z5: 20 | AA5: 21 | AB5: 22 | AC5: 23 | AD5: 24 | AE5: 25 | AF5: 26 | AG5: 27 | AH5: 28 | AI5: 29 | AJ5: 30
B6: I | C6: Diseño de la red de acceso de cobertura
G8: =INDEX(lista.escenarios,G$4) -> escenario 1 | M8: =INDEX(lista.escenarios,M$4) -> escenario 2 | S8: =INDEX(lista.escenarios,S$4) -> escenario 3 | Y8: =INDEX(lista.escenarios,Y$4) -> escenario 4 | AE8: =INDEX(lista.escenarios,AE$4) -> escenario 5
D9: id | E9: Superficie o longitud total a cubrir con tipos de sitio | G9: =INDEX(años,G$3) -> 2010 | H9: 2011 | I9: 2012 | J9: 2013 | K9: 2014 | L9: 2015 | M9: 2010 | N9: 2011 | O9: 2012 | P9: 2013 | Q9: 2014 | R9: 2015 | S9: 2010 | T9: 2011 | U9: 2012 | V9: 2013 | W9: 2014 | X9: 2015 | Y9: 2010 | Z9: 2011 | AA9: 2012 | AB9: 2013 | AC9: 2014 | AD9: 2015 | AE9: 2010 | AF9: 2011 | AG9: 2012 | AH9: 2013 | AI9: 2014 | AJ9: 2015
D10: 1 | E10: =INDEX(lista.tipo.sitios,$D10) -> Sitio tipo 1 | F10: [km^2] | G10: =Parámetros.Red!G378 -> 0.3333333333 | H10: =Parámetros.Red!H378 -> 0.3366666667 | I10: =Parámetros.Red!I378 -> 0.34 | J10: =Parámetros.Red!J378 -> 0.3433333333 | K10: =Parámetros.Red!K378 -> 0.3466666667 | L10: =Parámetros.Red!L378 -> 0.35 | M10: =Parámetros.Red!M378 -> 0.3333333333 | N10: =Parámetros.Red!N378 -> 0.3366666667 | O10: =Parámetros.Red!O378 -> 0.34 | P10: =Parámetros.Red!P378 -> 0.3433333333 | Q10: =Parámetros.Red!Q378 -> 0.3466666667 | R10: =Parámetros.Red!R378 -> 0.35 | S10: =Parámetros.Red!S378 -> 0.3333333333 | T10: =Parámetros.Red!T378 -> 0.3366666667 | U10: =Parámetros.Red!U378 -> 0.34 | V10: =Parámetros.Red!V378 -> 0.3433333333 | W10: =Parámetros.Red!W378 -> 0.3466666667 | X10: =Parámetros.Red!X378 -> 0.35 | Y10: =Parámetros.Red!Y378 -> 0 | Z10: =Parámetros.Red!Z378 -> 0 | AA10: =Parámetros.Red!AA378 -> 0 | AB10: =Parámetros.Red!AB378 -> 0 | AC10: =Parámetros.Red!AC378 -> 0 | AD10: =Parámetros.Red!AD378 -> 0 | AE10: =Parámetros.Red!AE378 -> 0.3333333333 | AF10: =Parámetros.Red!AF378 -> 0.3366666667 | AG10: =Parámetros.Red!AG378 -> 0.34 | AH10: =Parámetros.Red!AH378 -> 0.3433333333 | AI10: =Parámetros.Red!AI378 -> 0.3466666667 | AJ10: =Parámetros.Red!AJ378 -> 0.35
D11: =D10+1 -> 2 | E11: Sitio tipo 2 | F11: [km^2] | G11: =Parámetros.Red!G379 -> 0.3333333333 | H11: =Parámetros.Red!H379 -> 0.3366666667 | I11: =Parámetros.Red!I379 -> 0.34 | J11: =Parámetros.Red!J379 -> 0.3433333333 | K11: =Parámetros.Red!K379 -> 0.3466666667 | L11: =Parámetros.Red!L379 -> 0.35 | M11: =Parámetros.Red!M379 -> 0.3333333333 | N11: =Parámetros.Red!N379 -> 0.3366666667 | O11: =Parámetros.Red!O379 -> 0.34 | P11: =Parámetros.Red!P379 -> 0.3433333333 | Q11: =Parámetros.Red!Q379 -> 0.3466666667 | R11: =Parámetros.Red!R379 -> 0.35 | S11: =Parámetros.Red!S379 -> 0.3333333333 | T11: =Parámetros.Red!T379 -> 0.3366666667 | U11: =Parámetros.Red!U379 -> 0.34 | V11: =Parámetros.Red!V379 -> 0.3433333333 | W11: =Parámetros.Red!W379 -> 0.3466666667 | X11: =Parámetros.Red!X379 -> 0.35 | Y11: =Parámetros.Red!Y379 -> 0 | Z11: =Parámetros.Red!Z379 -> 0 | AA11: =Parámetros.Red!AA379 -> 0 | AB11: =Parámetros.Red!AB379 -> 0 | AC11: =Parámetros.Red!AC379 -> 0 | AD11: =Parámetros.Red!AD379 -> 0 | AE11: =Parámetros.Red!AE379 -> 0.3333333333 | AF11: =Parámetros.Red!AF379 -> 0.3366666667 | AG11: =Parámetros.Red!AG379 -> 0.34 | AH11: =Parámetros.Red!AH379 -> 0.3433333333 | AI11: =Parámetros.Red!AI379 -> 0.3466666667 | AJ11: =Parámetros.Red!AJ379 -> 0.35
D12: 3 | E12: Sitio tipo 3 | F12: [km^2] | G12: =Parámetros.Red!G380 -> 0.3333333333 | H12: =Parámetros.Red!H380 -> 0.3366666667 | I12: =Parámetros.Red!I380 -> 0.34 | J12: =Parámetros.Red!J380 -> 0.3433333333 | K12: =Parámetros.Red!K380 -> 0.3466666667 | L12: =Parámetros.Red!L380 -> 0.35 | M12: =Parámetros.Red!M380 -> 0.3333333333 | N12: =Parámetros.Red!N380 -> 0.3366666667 | O12: =Parámetros.Red!O380 -> 0.34 | P12: =Parámetros.Red!P380 -> 0.3433333333 | Q12: =Parámetros.Red!Q380 -> 0.3466666667 | R12: =Parámetros.Red!R380 -> 0.35 | S12: =Parámetros.Red!S380 -> 0.3333333333 | T12: =Parámetros.Red!T380 -> 0.3366666667 | U12: =Parámetros.Red!U380 -> 0.34 | V12: =Parámetros.Red!V380 -> 0.3433333333 | W12: =Parámetros.Red!W380 -> 0.3466666667 | X12: =Parámetros.Red!X380 -> 0.35 | Y12: =Parámetros.Red!Y380 -> 0 | Z12: =Parámetros.Red!Z380 -> 0 | AA12: =Parámetros.Red!AA380 -> 0 | AB12: =Parámetros.Red!AB380 -> 0 | AC12: =Parámetros.Red!AC380 -> 0 | AD12: =Parámetros.Red!AD380 -> 0 | AE12: =Parámetros.Red!AE380 -> 0.3333333333 | AF12: =Parámetros.Red!AF380 -> 0.3366666667 | AG12: =Parámetros.Red!AG380 -> 0.34 | AH12: =Parámetros.Red!AH380 -> 0.3433333333 | AI12: =Parámetros.Red!AI380 -> 0.3466666667 | AJ12: =Parámetros.Red!AJ380 -> 0.35
D13: 4 | E13: Sitio tipo 4 | F13: [km] | G13: =Parámetros.Red!G381 -> 1 | H13: =Parámetros.Red!H381 -> 1.01 | I13: =Parámetros.Red!I381 -> 1.02 | J13: =Parámetros.Red!J381 -> 1.03 | K13: =Parámetros.Red!K381 -> 1.04 | L13: =Parámetros.Red!L381 -> 1.05 | M13: =Parámetros.Red!M381 -> 1 | N13: =Parámetros.Red!N381 -> 1.01 | O13: =Parámetros.Red!O381 -> 1.02 | P13: =Parámetros.Red!P381 -> 1.03 | Q13: =Parámetros.Red!Q381 -> 1.04 | R13: =Parámetros.Red!R381 -> 1.05 | S13: =Parámetros.Red!S381 -> 1 | T13: =Parámetros.Red!T381 -> 1.01 | U13: =Parámetros.Red!U381 -> 1.02 | V13: =Parámetros.Red!V381 -> 1.03 | W13: =Parámetros.Red!W381 -> 1.04 | X13: =Parámetros.Red!X381 -> 1.05 | Y13: =Parámetros.Red!Y381 -> 0 | Z13: =Parámetros.Red!Z381 -> 0 | AA13: =Parámetros.Red!AA381 -> 0 | AB13: =Parámetros.Red!AB381 -> 0 | AC13: =Parámetros.Red!AC381 -> 0 | AD13: =Parámetros.Red!AD381 -> 0 | AE13: =Parámetros.Red!AE381 -> 1 | AF13: =Parámetros.Red!AF381 -> 1.01 | AG13: =Parámetros.Red!AG381 -> 1.02 | AH13: =Parámetros.Red!AH381 -> 1.03 | AI13: =Parámetros.Red!AI381 -> 1.04 | AJ13: =Parámetros.Red!AJ381 -> 1.05
D14: 5 | E14: Sitio tipo 5 | F14: [km^2] | G14: =Parámetros.Red!G382 -> 0 | H14: =Parámetros.Red!H382 -> 0 | I14: =Parámetros.Red!I382 -> 0 | J14: =Parámetros.Red!J382 -> 0 | K14: =Parámetros.Red!K382 -> 0 | L14: =Parámetros.Red!L382 -> 0 | M14: =Parámetros.Red!M382 -> 0 | N14: =Parámetros.Red!N382 -> 0 | O14: =Parámetros.Red!O382 -> 0 | P14: =Parámetros.Red!P382 -> 0 | Q14: =Parámetros.Red!Q382 -> 0 | R14: =Parámetros.Red!R382 -> 0 | S14: =Parámetros.Red!S382 -> 0 | T14: =Parámetros.Red!T382 -> 0 | U14: =Parámetros.Red!U382 -> 0 | V14: =Parámetros.Red!V382 -> 0 | W14: =Parámetros.Red!W382 -> 0 | X14: =Parámetros.Red!X382 -> 0 | Y14: =Parámetros.Red!Y382 -> 0 | Z14: =Parámetros.Red!Z382 -> 0 | AA14: =Parámetros.Red!AA382 -> 0 | AB14: =Parámetros.Red!AB382 -> 0 | AC14: =Parámetros.Red!AC382 -> 0 | AD14: =Parámetros.Red!AD382 -> 0 | AE14: =Parámetros.Red!AE382 -> 0 | AF14: =Parámetros.Red!AF382 -> 0 | AG14: =Parámetros.Red!AG382 -> 0 | AH14: =Parámetros.Red!AH382 -> 0 | AI14: =Parámetros.Red!AI382 -> 0 | AJ14: =Parámetros.Red!AJ382 -> 0
D15: 6 | E15: Sitio tipo 6 | F15: [km^2] | G15: =Parámetros.Red!G383 -> 0 | H15: =Parámetros.Red!H383 -> 0 | I15: =Parámetros.Red!I383 -> 0 | J15: =Parámetros.Red!J383 -> 0 | K15: =Parámetros.Red!K383 -> 0 | L15: =Parámetros.Red!L383 -> 0 | M15: =Parámetros.Red!M383 -> 0 | N15: =Parámetros.Red!N383 -> 0 | O15: =Parámetros.Red!O383 -> 0 | P15: =Parámetros.Red!P383 -> 0 | Q15: =Parámetros.Red!Q383 -> 0 | R15: =Parámetros.Red!R383 -> 0 | S15: =Parámetros.Red!S383 -> 0 | T15: =Parámetros.Red!T383 -> 0 | U15: =Parámetros.Red!U383 -> 0 | V15: =Parámetros.Red!V383 -> 0 | W15: =Parámetros.Red!W383 -> 0 | X15: =Parámetros.Red!X383 -> 0 | Y15: =Parámetros.Red!Y383 -> 0 | Z15: =Parámetros.Red!Z383 -> 0 | AA15: =Parámetros.Red!AA383 -> 0 | AB15: =Parámetros.Red!AB383 -> 0 | AC15: =Parámetros.Red!AC383 -> 0 | AD15: =Parámetros.Red!AD383 -> 0 | AE15: =Parámetros.Red!AE383 -> 0 | AF15: =Parámetros.Red!AF383 -> 0 | AG15: =Parámetros.Red!AG383 -> 0 | AH15: =Parámetros.Red!AH383 -> 0 | AI15: =Parámetros.Red!AI383 -> 0 | AJ15: =Parámetros.Red!AJ383 -> 0
D16: 7 | E16: Sitio tipo 7 | F16: [km^2] | G16: =Parámetros.Red!G384 -> 0 | H16: =Parámetros.Red!H384 -> 0 | I16: =Parámetros.Red!I384 -> 0 | J16: =Parámetros.Red!J384 -> 0 | K16: =Parámetros.Red!K384 -> 0 | L16: =Parámetros.Red!L384 -> 0 | M16: =Parámetros.Red!M384 -> 0 | N16: =Parámetros.Red!N384 -> 0 | O16: =Parámetros.Red!O384 -> 0 | P16: =Parámetros.Red!P384 -> 0 | Q16: =Parámetros.Red!Q384 -> 0 | R16: =Parámetros.Red!R384 -> 0 | S16: =Parámetros.Red!S384 -> 0 | T16: =Parámetros.Red!T384 -> 0 | U16: =Parámetros.Red!U384 -> 0 | V16: =Parámetros.Red!V384 -> 0 | W16: =Parámetros.Red!W384 -> 0 | X16: =Parámetros.Red!X384 -> 0 | Y16: =Parámetros.Red!Y384 -> 0.3333333333 | Z16: =Parámetros.Red!Z384 -> 0.3366666667 | AA16: =Parámetros.Red!AA384 -> 0.34 | AB16: =Parámetros.Red!AB384 -> 0.3433333333 | AC16: =Parámetros.Red!AC384 -> 0.3466666667 | AD16: =Parámetros.Red!AD384 -> 0.35 | AE16: =Parámetros.Red!AE384 -> 0 | AF16: =Parámetros.Red!AF384 -> 0 | AG16: =Parámetros.Red!AG384 -> 0 | AH16: =Parámetros.Red!AH384 -> 0 | AI16: =Parámetros.Red!AI384 -> 0 | AJ16: =Parámetros.Red!AJ384 -> 0
D17: 8 | E17: Sitio tipo 8 | F17: [km^2] | G17: =Parámetros.Red!G385 -> 0 | H17: =Parámetros.Red!H385 -> 0 | I17: =Parámetros.Red!I385 -> 0 | J17: =Parámetros.Red!J385 -> 0 | K17: =Parámetros.Red!K385 -> 0 | L17: =Parámetros.Red!L385 -> 0 | M17: =Parámetros.Red!M385 -> 0 | N17: =Parámetros.Red!N385 -> 0 | O17: =Parámetros.Red!O385 -> 0 | P17: =Parámetros.Red!P385 -> 0 | Q17: =Parámetros.Red!Q385 -> 0 | R17: =Parámetros.Red!R385 -> 0 | S17: =Parámetros.Red!S385 -> 0 | T17: =Parámetros.Red!T385 -> 0 | U17: =Parámetros.Red!U385 -> 0 | V17: =Parámetros.Red!V385 -> 0 | W17: =Parámetros.Red!W385 -> 0 | X17: =Parámetros.Red!X385 -> 0 | Y17: =Parámetros.Red!Y385 -> 0.3333333333 | Z17: =Parámetros.Red!Z385 -> 0.3366666667 | AA17: =Parámetros.Red!AA385 -> 0.34 | AB17: =Parámetros.Red!AB385 -> 0.3433333333 | AC17: =Parámetros.Red!AC385 -> 0.3466666667 | AD17: =Parámetros.Red!AD385 -> 0.35 | AE17: =Parámetros.Red!AE385 -> 0 | AF17: =Parámetros.Red!AF385 -> 0 | AG17: =Parámetros.Red!AG385 -> 0 | AH17: =Parámetros.Red!AH385 -> 0 | AI17: =Parámetros.Red!AI385 -> 0 | AJ17: =Parámetros.Red!AJ385 -> 0
D18: 9 | E18: Sitio tipo 9 | F18: [km^2] | G18: =Parámetros.Red!G386 -> 0 | H18: =Parámetros.Red!H386 -> 0 | I18: =Parámetros.Red!I386 -> 0 | J18: =Parámetros.Red!J386 -> 0 | K18: =Parámetros.Red!K386 -> 0 | L18: =Parámetros.Red!L386 -> 0 | M18: =Parámetros.Red!M386 -> 0 | N18: =Parámetros.Red!N386 -> 0 | O18: =Parámetros.Red!O386 -> 0 | P18: =Parámetros.Red!P386 -> 0 | Q18: =Parámetros.Red!Q386 -> 0 | R18: =Parámetros.Red!R386 -> 0 | S18: =Parámetros.Red!S386 -> 0 | T18: =Parámetros.Red!T386 -> 0 | U18: =Parámetros.Red!U386 -> 0 | V18: =Parámetros.Red!V386 -> 0 | W18: =Parámetros.Red!W386 -> 0 | X18: =Parámetros.Red!X386 -> 0 | Y18: =Parámetros.Red!Y386 -> 0.3333333333 | Z18: =Parámetros.Red!Z386 -> 0.3366666667 | AA18: =Parámetros.Red!AA386 -> 0.34 | AB18: =Parámetros.Red!AB386 -> 0.3433333333 | AC18: =Parámetros.Red!AC386 -> 0.3466666667 | AD18: =Parámetros.Red!AD386 -> 0.35 | AE18: =Parámetros.Red!AE386 -> 0 | AF18: =Parámetros.Red!AF386 -> 0 | AG18: =Parámetros.Red!AG386 -> 0 | AH18: =Parámetros.Red!AH386 -> 0 | AI18: =Parámetros.Red!AI386 -> 0 | AJ18: =Parámetros.Red!AJ386 -> 0
D19: 10 | E19: Sitio tipo 10 | F19: [km] | G19: =Parámetros.Red!G387 -> 0 | H19: =Parámetros.Red!H387 -> 0 | I19: =Parámetros.Red!I387 -> 0 | J19: =Parámetros.Red!J387 -> 0 | K19: =Parámetros.Red!K387 -> 0 | L19: =Parámetros.Red!L387 -> 0 | M19: =Parámetros.Red!M387 -> 0 | N19: =Parámetros.Red!N387 -> 0 | O19: =Parámetros.Red!O387 -> 0 | P19: =Parámetros.Red!P387 -> 0 | Q19: =Parámetros.Red!Q387 -> 0 | R19: =Parámetros.Red!R387 -> 0 | S19: =Parámetros.Red!S387 -> 0 | T19: =Parámetros.Red!T387 -> 0 | U19: =Parámetros.Red!U387 -> 0 | V19: =Parámetros.Red!V387 -> 0 | W19: =Parámetros.Red!W387 -> 0 | X19: =Parámetros.Red!X387 -> 0 | Y19: =Parámetros.Red!Y387 -> 1 | Z19: =Parámetros.Red!Z387 -> 1.01 | AA19: =Parámetros.Red!AA387 -> 1.02 | AB19: =Parámetros.Red!AB387 -> 1.03 | AC19: =Parámetros.Red!AC387 -> 1.04 | AD19: =Parámetros.Red!AD387 -> 1.05 | AE19: =Parámetros.Red!AE387 -> 0 | AF19: =Parámetros.Red!AF387 -> 0 | AG19: =Parámetros.Red!AG387 -> 0 | AH19: =Parámetros.Red!AH387 -> 0 | AI19: =Parámetros.Red!AI387 -> 0 | AJ19: =Parámetros.Red!AJ387 -> 0
D20: 11 | E20: Sitio tipo 11 | F20: [km^2] | G20: =Parámetros.Red!G388 -> 0 | H20: =Parámetros.Red!H388 -> 0 | I20: =Parámetros.Red!I388 -> 0 | J20: =Parámetros.Red!J388 -> 0 | K20: =Parámetros.Red!K388 -> 0 | L20: =Parámetros.Red!L388 -> 0 | M20: =Parámetros.Red!M388 -> 0 | N20: =Parámetros.Red!N388 -> 0 | O20: =Parámetros.Red!O388 -> 0 | P20: =Parámetros.Red!P388 -> 0 | Q20: =Parámetros.Red!Q388 -> 0 | R20: =Parámetros.Red!R388 -> 0 | S20: =Parámetros.Red!S388 -> 0 | T20: =Parámetros.Red!T388 -> 0 | U20: =Parámetros.Red!U388 -> 0 | V20: =Parámetros.Red!V388 -> 0 | W20: =Parámetros.Red!W388 -> 0 | X20: =Parámetros.Red!X388 -> 0 | Y20: =Parámetros.Red!Y388 -> 0 | Z20: =Parámetros.Red!Z388 -> 0 | AA20: =Parámetros.Red!AA388 -> 0 | AB20: =Parámetros.Red!AB388 -> 0 | AC20: =Parámetros.Red!AC388 -> 0 | AD20: =Parámetros.Red!AD388 -> 0 | AE20: =Parámetros.Red!AE388 -> 0 | AF20: =Parámetros.Red!AF388 -> 0 | AG20: =Parámetros.Red!AG388 -> 0 | AH20: =Parámetros.Red!AH388 -> 0 | AI20: =Parámetros.Red!AI388 -> 0 | AJ20: =Parámetros.Red!AJ388 -> 0
D21: 12 | E21: Sitio tipo 12 | F21: [km^2] | G21: =Parámetros.Red!G389 -> 0 | H21: =Parámetros.Red!H389 -> 0 | I21: =Parámetros.Red!I389 -> 0 | J21: =Parámetros.Red!J389 -> 0 | K21: =Parámetros.Red!K389 -> 0 | L21: =Parámetros.Red!L389 -> 0 | M21: =Parámetros.Red!M389 -> 0 | N21: =Parámetros.Red!N389 -> 0 | O21: =Parámetros.Red!O389 -> 0 | P21: =Parámetros.Red!P389 -> 0 | Q21: =Parámetros.Red!Q389 -> 0 | R21: =Parámetros.Red!R389 -> 0 | S21: =Parámetros.Red!S389 -> 0 | T21: =Parámetros.Red!T389 -> 0 | U21: =Parámetros.Red!U389 -> 0 | V21: =Parámetros.Red!V389 -> 0 | W21: =Parámetros.Red!W389 -> 0 | X21: =Parámetros.Red!X389 -> 0 | Y21: =Parámetros.Red!Y389 -> 0 | Z21: =Parámetros.Red!Z389 -> 0 | AA21: =Parámetros.Red!AA389 -> 0 | AB21: =Parámetros.Red!AB389 -> 0 | AC21: =Parámetros.Red!AC389 -> 0 | AD21: =Parámetros.Red!AD389 -> 0 | AE21: =Parámetros.Red!AE389 -> 0 | AF21: =Parámetros.Red!AF389 -> 0 | AG21: =Parámetros.Red!AG389 -> 0 | AH21: =Parámetros.Red!AH389 -> 0 | AI21: =Parámetros.Red!AI389 -> 0 | AJ21: =Parámetros.Red!AJ389 -> 0
D22: 13 | E22: Sitio tipo 13 | F22: [km^2] | G22: =Parámetros.Red!G390 -> 0 | H22: =Parámetros.Red!H390 -> 0 | I22: =Parámetros.Red!I390 -> 0 | J22: =Parámetros.Red!J390 -> 0 | K22: =Parámetros.Red!K390 -> 0 | L22: =Parámetros.Red!L390 -> 0 | M22: =Parámetros.Red!M390 -> 0 | N22: =Parámetros.Red!N390 -> 0 | O22: =Parámetros.Red!O390 -> 0 | P22: =Parámetros.Red!P390 -> 0 | Q22: =Parámetros.Red!Q390 -> 0 | R22: =Parámetros.Red!R390 -> 0 | S22: =Parámetros.Red!S390 -> 0 | T22: =Parámetros.Red!T390 -> 0 | U22: =Parámetros.Red!U390 -> 0 | V22: =Parámetros.Red!V390 -> 0 | W22: =Parámetros.Red!W390 -> 0 | X22: =Parámetros.Red!X390 -> 0 | Y22: =Parámetros.Red!Y390 -> 0 | Z22: =Parámetros.Red!Z390 -> 0 | AA22: =Parámetros.Red!AA390 -> 0 | AB22: =Parámetros.Red!AB390 -> 0 | AC22: =Parámetros.Red!AC390 -> 0 | AD22: =Parámetros.Red!AD390 -> 0 | AE22: =Parámetros.Red!AE390 -> 0 | AF22: =Parámetros.Red!AF390 -> 0 | AG22: =Parámetros.Red!AG390 -> 0 | AH22: =Parámetros.Red!AH390 -> 0 | AI22: =Parámetros.Red!AI390 -> 0 | AJ22: =Parámetros.Red!AJ390 -> 0
D23: 14 | E23: Sitio tipo 14 | F23: [km^2] | G23: =Parámetros.Red!G391 -> 0 | H23: =Parámetros.Red!H391 -> 0 | I23: =Parámetros.Red!I391 -> 0 | J23: =Parámetros.Red!J391 -> 0 | K23: =Parámetros.Red!K391 -> 0 | L23: =Parámetros.Red!L391 -> 0 | M23: =Parámetros.Red!M391 -> 0 | N23: =Parámetros.Red!N391 -> 0 | O23: =Parámetros.Red!O391 -> 0 | P23: =Parámetros.Red!P391 -> 0 | Q23: =Parámetros.Red!Q391 -> 0 | R23: =Parámetros.Red!R391 -> 0 | S23: =Parámetros.Red!S391 -> 0 | T23: =Parámetros.Red!T391 -> 0 | U23: =Parámetros.Red!U391 -> 0 | V23: =Parámetros.Red!V391 -> 0 | W23: =Parámetros.Red!W391 -> 0 | X23: =Parámetros.Red!X391 -> 0 | Y23: =Parámetros.Red!Y391 -> 0 | Z23: =Parámetros.Red!Z391 -> 0 | AA23: =Parámetros.Red!AA391 -> 0 | AB23: =Parámetros.Red!AB391 -> 0 | AC23: =Parámetros.Red!AC391 -> 0 | AD23: =Parámetros.Red!AD391 -> 0 | AE23: =Parámetros.Red!AE391 -> 0 | AF23: =Parámetros.Red!AF391 -> 0 | AG23: =Parámetros.Red!AG391 -> 0 | AH23: =Parámetros.Red!AH391 -> 0 | AI23: =Parámetros.Red!AI391 -> 0 | AJ23: =Parámetros.Red!AJ391 -> 0
D24: 15 | E24: Sitio tipo 15 | F24: [km^2] | G24: =Parámetros.Red!G392 -> 0 | H24: =Parámetros.Red!H392 -> 0 | I24: =Parámetros.Red!I392 -> 0 | J24: =Parámetros.Red!J392 -> 0 | K24: =Parámetros.Red!K392 -> 0 | L24: =Parámetros.Red!L392 -> 0 | M24: =Parámetros.Red!M392 -> 0 | N24: =Parámetros.Red!N392 -> 0 | O24: =Parámetros.Red!O392 -> 0 | P24: =Parámetros.Red!P392 -> 0 | Q24: =Parámetros.Red!Q392 -> 0 | R24: =Parámetros.Red!R392 -> 0 | S24: =Parámetros.Red!S392 -> 0 | T24: =Parámetros.Red!T392 -> 0 | U24: =Parámetros.Red!U392 -> 0 | V24: =Parámetros.Red!V392 -> 0 | W24: =Parámetros.Red!W392 -> 0 | X24: =Parámetros.Red!X392 -> 0 | Y24: =Parámetros.Red!Y392 -> 0 | Z24: =Parámetros.Red!Z392 -> 0 | AA24: =Parámetros.Red!AA392 -> 0 | AB24: =Parámetros.Red!AB392 -> 0 | AC24: =Parámetros.Red!AC392 -> 0 | AD24: =Parámetros.Red!AD392 -> 0 | AE24: =Parámetros.Red!AE392 -> 0 | AF24: =Parámetros.Red!AF392 -> 0 | AG24: =Parámetros.Red!AG392 -> 0 | AH24: =Parámetros.Red!AH392 -> 0 | AI24: =Parámetros.Red!AI392 -> 0 | AJ24: =Parámetros.Red!AJ392 -> 0
D25: 16 | E25: Sitio tipo 16 | F25: [km] | G25: =Parámetros.Red!G393 -> 0 | H25: =Parámetros.Red!H393 -> 0 | I25: =Parámetros.Red!I393 -> 0 | J25: =Parámetros.Red!J393 -> 0 | K25: =Parámetros.Red!K393 -> 0 | L25: =Parámetros.Red!L393 -> 0 | M25: =Parámetros.Red!M393 -> 0 | N25: =Parámetros.Red!N393 -> 0 | O25: =Parámetros.Red!O393 -> 0 | P25: =Parámetros.Red!P393 -> 0 | Q25: =Parámetros.Red!Q393 -> 0 | R25: =Parámetros.Red!R393 -> 0 | S25: =Parámetros.Red!S393 -> 0 | T25: =Parámetros.Red!T393 -> 0 | U25: =Parámetros.Red!U393 -> 0 | V25: =Parámetros.Red!V393 -> 0 | W25: =Parámetros.Red!W393 -> 0 | X25: =Parámetros.Red!X393 -> 0 | Y25: =Parámetros.Red!Y393 -> 0 | Z25: =Parámetros.Red!Z393 -> 0 | AA25: =Parámetros.Red!AA393 -> 0 | AB25: =Parámetros.Red!AB393 -> 0 | AC25: =Parámetros.Red!AC393 -> 0 | AD25: =Parámetros.Red!AD393 -> 0 | AE25: =Parámetros.Red!AE393 -> 0 | AF25: =Parámetros.Red!AF393 -> 0 | AG25: =Parámetros.Red!AG393 -> 0 | AH25: =Parámetros.Red!AH393 -> 0 | AI25: =Parámetros.Red!AI393 -> 0 | AJ25: =Parámetros.Red!AJ393 -> 0
D26: 17 | E26: Sitio tipo 17 | F26: [km^2] | G26: =Parámetros.Red!G394 -> 0 | H26: =Parámetros.Red!H394 -> 0 | I26: =Parámetros.Red!I394 -> 0 | J26: =Parámetros.Red!J394 -> 0 | K26: =Parámetros.Red!K394 -> 0 | L26: =Parámetros.Red!L394 -> 0 | M26: =Parámetros.Red!M394 -> 0 | N26: =Parámetros.Red!N394 -> 0 | O26: =Parámetros.Red!O394 -> 0 | P26: =Parámetros.Red!P394 -> 0 | Q26: =Parámetros.Red!Q394 -> 0 | R26: =Parámetros.Red!R394 -> 0 | S26: =Parámetros.Red!S394 -> 0 | T26: =Parámetros.Red!T394 -> 0 | U26: =Parámetros.Red!U394 -> 0 | V26: =Parámetros.Red!V394 -> 0 | W26: =Parámetros.Red!W394 -> 0 | X26: =Parámetros.Red!X394 -> 0 | Y26: =Parámetros.Red!Y394 -> 0 | Z26: =Parámetros.Red!Z394 -> 0 | AA26: =Parámetros.Red!AA394 -> 0 | AB26: =Parámetros.Red!AB394 -> 0 | AC26: =Parámetros.Red!AC394 -> 0 | AD26: =Parámetros.Red!AD394 -> 0 | AE26: =Parámetros.Red!AE394 -> 0 | AF26: =Parámetros.Red!AF394 -> 0 | AG26: =Parámetros.Red!AG394 -> 0 | AH26: =Parámetros.Red!AH394 -> 0 | AI26: =Parámetros.Red!AI394 -> 0 | AJ26: =Parámetros.Red!AJ394 -> 0
D27: 18 | E27: Sitio tipo 18 | F27: [km^2] | G27: =Parámetros.Red!G395 -> 0 | H27: =Parámetros.Red!H395 -> 0 | I27: =Parámetros.Red!I395 -> 0 | J27: =Parámetros.Red!J395 -> 0 | K27: =Parámetros.Red!K395 -> 0 | L27: =Parámetros.Red!L395 -> 0 | M27: =Parámetros.Red!M395 -> 0 | N27: =Parámetros.Red!N395 -> 0 | O27: =Parámetros.Red!O395 -> 0 | P27: =Parámetros.Red!P395 -> 0 | Q27: =Parámetros.Red!Q395 -> 0 | R27: =Parámetros.Red!R395 -> 0 | S27: =Parámetros.Red!S395 -> 0 | T27: =Parámetros.Red!T395 -> 0 | U27: =Parámetros.Red!U395 -> 0 | V27: =Parámetros.Red!V395 -> 0 | W27: =Parámetros.Red!W395 -> 0 | X27: =Parámetros.Red!X395 -> 0 | Y27: =Parámetros.Red!Y395 -> 0 | Z27: =Parámetros.Red!Z395 -> 0 | AA27: =Parámetros.Red!AA395 -> 0 | AB27: =Parámetros.Red!AB395 -> 0 | AC27: =Parámetros.Red!AC395 -> 0 | AD27: =Parámetros.Red!AD395 -> 0 | AE27: =Parámetros.Red!AE395 -> 0 | AF27: =Parámetros.Red!AF395 -> 0 | AG27: =Parámetros.Red!AG395 -> 0 | AH27: =Parámetros.Red!AH395 -> 0 | AI27: =Parámetros.Red!AI395 -> 0 | AJ27: =Parámetros.Red!AJ395 -> 0
D28: 19 | E28: libre | G28: =Parámetros.Red!G396 -> 0 | H28: =Parámetros.Red!H396 -> 0 | I28: =Parámetros.Red!I396 -> 0 | J28: =Parámetros.Red!J396 -> 0 | K28: =Parámetros.Red!K396 -> 0 | L28: =Parámetros.Red!L396 -> 0 | M28: =Parámetros.Red!M396 -> 0 | N28: =Parámetros.Red!N396 -> 0 | O28: =Parámetros.Red!O396 -> 0 | P28: =Parámetros.Red!P396 -> 0 | Q28: =Parámetros.Red!Q396 -> 0 | R28: =Parámetros.Red!R396 -> 0 | S28: =Parámetros.Red!S396 -> 0 | T28: =Parámetros.Red!T396 -> 0 | U28: =Parámetros.Red!U396 -> 0 | V28: =Parámetros.Red!V396 -> 0 | W28: =Parámetros.Red!W396 -> 0 | X28: =Parámetros.Red!X396 -> 0 | Y28: =Parámetros.Red!Y396 -> 0 | Z28: =Parámetros.Red!Z396 -> 0 | AA28: =Parámetros.Red!AA396 -> 0 | AB28: =Parámetros.Red!AB396 -> 0 | AC28: =Parámetros.Red!AC396 -> 0 | AD28: =Parámetros.Red!AD396 -> 0 | AE28: =Parámetros.Red!AE396 -> 0 | AF28: =Parámetros.Red!AF396 -> 0 | AG28: =Parámetros.Red!AG396 -> 0 | AH28: =Parámetros.Red!AH396 -> 0 | AI28: =Parámetros.Red!AI396 -> 0 | AJ28: =Parámetros.Red!AJ396 -> 0
D29: 20 | E29: libre | G29: =Parámetros.Red!G397 -> 0 | H29: =Parámetros.Red!H397 -> 0 | I29: =Parámetros.Red!I397 -> 0 | J29: =Parámetros.Red!J397 -> 0 | K29: =Parámetros.Red!K397 -> 0 | L29: =Parámetros.Red!L397 -> 0 | M29: =Parámetros.Red!M397 -> 0 | N29: =Parámetros.Red!N397 -> 0 | O29: =Parámetros.Red!O397 -> 0 | P29: =Parámetros.Red!P397 -> 0 | Q29: =Parámetros.Red!Q397 -> 0 | R29: =Parámetros.Red!R397 -> 0 | S29: =Parámetros.Red!S397 -> 0 | T29: =Parámetros.Red!T397 -> 0 | U29: =Parámetros.Red!U397 -> 0 | V29: =Parámetros.Red!V397 -> 0 | W29: =Parámetros.Red!W397 -> 0 | X29: =Parámetros.Red!X397 -> 0 | Y29: =Parámetros.Red!Y397 -> 0 | Z29: =Parámetros.Red!Z397 -> 0 | AA29: =Parámetros.Red!AA397 -> 0 | AB29: =Parámetros.Red!AB397 -> 0 | AC29: =Parámetros.Red!AC397 -> 0 | AD29: =Parámetros.Red!AD397 -> 0 | AE29: =Parámetros.Red!AE397 -> 0 | AF29: =Parámetros.Red!AF397 -> 0 | AG29: =Parámetros.Red!AG397 -> 0 | AH29: =Parámetros.Red!AH397 -> 0 | AI29: =Parámetros.Red!AI397 -> 0 | AJ29: =Parámetros.Red!AJ397 -> 0
D30: 21 | E30: libre | G30: =Parámetros.Red!G398 -> 0 | H30: =Parámetros.Red!H398 -> 0 | I30: =Parámetros.Red!I398 -> 0 | J30: =Parámetros.Red!J398 -> 0 | K30: =Parámetros.Red!K398 -> 0 | L30: =Parámetros.Red!L398 -> 0 | M30: =Parámetros.Red!M398 -> 0 | N30: =Parámetros.Red!N398 -> 0 | O30: =Parámetros.Red!O398 -> 0 | P30: =Parámetros.Red!P398 -> 0 | Q30: =Parámetros.Red!Q398 -> 0 | R30: =Parámetros.Red!R398 -> 0 | S30: =Parámetros.Red!S398 -> 0 | T30: =Parámetros.Red!T398 -> 0 | U30: =Parámetros.Red!U398 -> 0 | V30: =Parámetros.Red!V398 -> 0 | W30: =Parámetros.Red!W398 -> 0 | X30: =Parámetros.Red!X398 -> 0 | Y30: =Parámetros.Red!Y398 -> 0 | Z30: =Parámetros.Red!Z398 -> 0 | AA30: =Parámetros.Red!AA398 -> 0 | AB30: =Parámetros.Red!AB398 -> 0 | AC30: =Parámetros.Red!AC398 -> 0 | AD30: =Parámetros.Red!AD398 -> 0 | AE30: =Parámetros.Red!AE398 -> 0 | AF30: =Parámetros.Red!AF398 -> 0 | AG30: =Parámetros.Red!AG398 -> 0 | AH30: =Parámetros.Red!AH398 -> 0 | AI30: =Parámetros.Red!AI398 -> 0 | AJ30: =Parámetros.Red!AJ398 -> 0
D31: 22 | E31: libre | G31: =Parámetros.Red!G399 -> 0 | H31: =Parámetros.Red!H399 -> 0 | I31: =Parámetros.Red!I399 -> 0 | J31: =Parámetros.Red!J399 -> 0 | K31: =Parámetros.Red!K399 -> 0 | L31: =Parámetros.Red!L399 -> 0 | M31: =Parámetros.Red!M399 -> 0 | N31: =Parámetros.Red!N399 -> 0 | O31: =Parámetros.Red!O399 -> 0 | P31: =Parámetros.Red!P399 -> 0 | Q31: =Parámetros.Red!Q399 -> 0 | R31: =Parámetros.Red!R399 -> 0 | S31: =Parámetros.Red!S399 -> 0 | T31: =Parámetros.Red!T399 -> 0 | U31: =Parámetros.Red!U399 -> 0 | V31: =Parámetros.Red!V399 -> 0 | W31: =Parámetros.Red!W399 -> 0 | X31: =Parámetros.Red!X399 -> 0 | Y31: =Parámetros.Red!Y399 -> 0 | Z31: =Parámetros.Red!Z399 -> 0 | AA31: =Parámetros.Red!AA399 -> 0 | AB31: =Parámetros.Red!AB399 -> 0 | AC31: =Parámetros.Red!AC399 -> 0 | AD31: =Parámetros.Red!AD399 -> 0 | AE31: =Parámetros.Red!AE399 -> 0 | AF31: =Parámetros.Red!AF399 -> 0 | AG31: =Parámetros.Red!AG399 -> 0 | AH31: =Parámetros.Red!AH399 -> 0 | AI31: =Parámetros.Red!AI399 -> 0 | AJ31: =Parámetros.Red!AJ399 -> 0
D32: 23 | E32: libre | G32: =Parámetros.Red!G400 -> 0 | H32: =Parámetros.Red!H400 -> 0 | I32: =Parámetros.Red!I400 -> 0 | J32: =Parámetros.Red!J400 -> 0 | K32: =Parámetros.Red!K400 -> 0 | L32: =Parámetros.Red!L400 -> 0 | M32: =Parámetros.Red!M400 -> 0 | N32: =Parámetros.Red!N400 -> 0 | O32: =Parámetros.Red!O400 -> 0 | P32: =Parámetros.Red!P400 -> 0 | Q32: =Parámetros.Red!Q400 -> 0 | R32: =Parámetros.Red!R400 -> 0 | S32: =Parámetros.Red!S400 -> 0 | T32: =Parámetros.Red!T400 -> 0 | U32: =Parámetros.Red!U400 -> 0 | V32: =Parámetros.Red!V400 -> 0 | W32: =Parámetros.Red!W400 -> 0 | X32: =Parámetros.Red!X400 -> 0 | Y32: =Parámetros.Red!Y400 -> 0 | Z32: =Parámetros.Red!Z400 -> 0 | AA32: =Parámetros.Red!AA400 -> 0 | AB32: =Parámetros.Red!AB400 -> 0 | AC32: =Parámetros.Red!AC400 -> 0 | AD32: =Parámetros.Red!AD400 -> 0 | AE32: =Parámetros.Red!AE400 -> 0 | AF32: =Parámetros.Red!AF400 -> 0 | AG32: =Parámetros.Red!AG400 -> 0 | AH32: =Parámetros.Red!AH400 -> 0 | AI32: =Parámetros.Red!AI400 -> 0 | AJ32: =Parámetros.Red!AJ400 -> 0
D33: 24 | E33: libre | G33: =Parámetros.Red!G401 -> 0 | H33: =Parámetros.Red!H401 -> 0 | I33: =Parámetros.Red!I401 -> 0 | J33: =Parámetros.Red!J401 -> 0 | K33: =Parámetros.Red!K401 -> 0 | L33: =Parámetros.Red!L401 -> 0 | M33: =Parámetros.Red!M401 -> 0 | N33: =Parámetros.Red!N401 -> 0 | O33: =Parámetros.Red!O401 -> 0 | P33: =Parámetros.Red!P401 -> 0 | Q33: =Parámetros.Red!Q401 -> 0 | R33: =Parámetros.Red!R401 -> 0 | S33: =Parámetros.Red!S401 -> 0 | T33: =Parámetros.Red!T401 -> 0 | U33: =Parámetros.Red!U401 -> 0 | V33: =Parámetros.Red!V401 -> 0 | W33: =Parámetros.Red!W401 -> 0 | X33: =Parámetros.Red!X401 -> 0 | Y33: =Parámetros.Red!Y401 -> 0 | Z33: =Parámetros.Red!Z401 -> 0 | AA33: =Parámetros.Red!AA401 -> 0 | AB33: =Parámetros.Red!AB401 -> 0 | AC33: =Parámetros.Red!AC401 -> 0 | AD33: =Parámetros.Red!AD401 -> 0 | AE33: =Parámetros.Red!AE401 -> 0 | AF33: =Parámetros.Red!AF401 -> 0 | AG33: =Parámetros.Red!AG401 -> 0 | AH33: =Parámetros.Red!AH401 -> 0 | AI33: =Parámetros.Red!AI401 -> 0 | AJ33: =Parámetros.Red!AJ401 -> 0
D34: 25 | E34: libre | G34: =Parámetros.Red!G402 -> 0 | H34: =Parámetros.Red!H402 -> 0 | I34: =Parámetros.Red!I402 -> 0 | J34: =Parámetros.Red!J402 -> 0 | K34: =Parámetros.Red!K402 -> 0 | L34: =Parámetros.Red!L402 -> 0 | M34: =Parámetros.Red!M402 -> 0 | N34: =Parámetros.Red!N402 -> 0 | O34: =Parámetros.Red!O402 -> 0 | P34: =Parámetros.Red!P402 -> 0 | Q34: =Parámetros.Red!Q402 -> 0 | R34: =Parámetros.Red!R402 -> 0 | S34: =Parámetros.Red!S402 -> 0 | T34: =Parámetros.Red!T402 -> 0 | U34: =Parámetros.Red!U402 -> 0 | V34: =Parámetros.Red!V402 -> 0 | W34: =Parámetros.Red!W402 -> 0 | X34: =Parámetros.Red!X402 -> 0 | Y34: =Parámetros.Red!Y402 -> 0 | Z34: =Parámetros.Red!Z402 -> 0 | AA34: =Parámetros.Red!AA402 -> 0 | AB34: =Parámetros.Red!AB402 -> 0 | AC34: =Parámetros.Red!AC402 -> 0 | AD34: =Parámetros.Red!AD402 -> 0 | AE34: =Parámetros.Red!AE402 -> 0 | AF34: =Parámetros.Red!AF402 -> 0 | AG34: =Parámetros.Red!AG402 -> 0 | AH34: =Parámetros.Red!AH402 -> 0 | AI34: =Parámetros.Red!AI402 -> 0 | AJ34: =Parámetros.Red!AJ402 -> 0
D35: 26 | E35: libre | G35: =Parámetros.Red!G403 -> 0 | H35: =Parámetros.Red!H403 -> 0 | I35: =Parámetros.Red!I403 -> 0 | J35: =Parámetros.Red!J403 -> 0 | K35: =Parámetros.Red!K403 -> 0 | L35: =Parámetros.Red!L403 -> 0 | M35: =Parámetros.Red!M403 -> 0 | N35: =Parámetros.Red!N403 -> 0 | O35: =Parámetros.Red!O403 -> 0 | P35: =Parámetros.Red!P403 -> 0 | Q35: =Parámetros.Red!Q403 -> 0 | R35: =Parámetros.Red!R403 -> 0 | S35: =Parámetros.Red!S403 -> 0 | T35: =Parámetros.Red!T403 -> 0 | U35: =Parámetros.Red!U403 -> 0 | V35: =Parámetros.Red!V403 -> 0 | W35: =Parámetros.Red!W403 -> 0 | X35: =Parámetros.Red!X403 -> 0 | Y35: =Parámetros.Red!Y403 -> 0 | Z35: =Parámetros.Red!Z403 -> 0 | AA35: =Parámetros.Red!AA403 -> 0 | AB35: =Parámetros.Red!AB403 -> 0 | AC35: =Parámetros.Red!AC403 -> 0 | AD35: =Parámetros.Red!AD403 -> 0 | AE35: =Parámetros.Red!AE403 -> 0 | AF35: =Parámetros.Red!AF403 -> 0 | AG35: =Parámetros.Red!AG403 -> 0 | AH35: =Parámetros.Red!AH403 -> 0 | AI35: =Parámetros.Red!AI403 -> 0 | AJ35: =Parámetros.Red!AJ403 -> 0
D36: 27 | E36: libre | G36: =Parámetros.Red!G404 -> 0 | H36: =Parámetros.Red!H404 -> 0 | I36: =Parámetros.Red!I404 -> 0 | J36: =Parámetros.Red!J404 -> 0 | K36: =Parámetros.Red!K404 -> 0 | L36: =Parámetros.Red!L404 -> 0 | M36: =Parámetros.Red!M404 -> 0 | N36: =Parámetros.Red!N404 -> 0 | O36: =Parámetros.Red!O404 -> 0 | P36: =Parámetros.Red!P404 -> 0 | Q36: =Parámetros.Red!Q404 -> 0 | R36: =Parámetros.Red!R404 -> 0 | S36: =Parámetros.Red!S404 -> 0 | T36: =Parámetros.Red!T404 -> 0 | U36: =Parámetros.Red!U404 -> 0 | V36: =Parámetros.Red!V404 -> 0 | W36: =Parámetros.Red!W404 -> 0 | X36: =Parámetros.Red!X404 -> 0 | Y36: =Parámetros.Red!Y404 -> 0 | Z36: =Parámetros.Red!Z404 -> 0 | AA36: =Parámetros.Red!AA404 -> 0 | AB36: =Parámetros.Red!AB404 -> 0 | AC36: =Parámetros.Red!AC404 -> 0 | AD36: =Parámetros.Red!AD404 -> 0 | AE36: =Parámetros.Red!AE404 -> 0 | AF36: =Parámetros.Red!AF404 -> 0 | AG36: =Parámetros.Red!AG404 -> 0 | AH36: =Parámetros.Red!AH404 -> 0 | AI36: =Parámetros.Red!AI404 -> 0 | AJ36: =Parámetros.Red!AJ404 -> 0
D37: 28 | E37: libre | G37: =Parámetros.Red!G405 -> 0 | H37: =Parámetros.Red!H405 -> 0 | I37: =Parámetros.Red!I405 -> 0 | J37: =Parámetros.Red!J405 -> 0 | K37: =Parámetros.Red!K405 -> 0 | L37: =Parámetros.Red!L405 -> 0 | M37: =Parámetros.Red!M405 -> 0 | N37: =Parámetros.Red!N405 -> 0 | O37: =Parámetros.Red!O405 -> 0 | P37: =Parámetros.Red!P405 -> 0 | Q37: =Parámetros.Red!Q405 -> 0 | R37: =Parámetros.Red!R405 -> 0 | S37: =Parámetros.Red!S405 -> 0 | T37: =Parámetros.Red!T405 -> 0 | U37: =Parámetros.Red!U405 -> 0 | V37: =Parámetros.Red!V405 -> 0 | W37: =Parámetros.Red!W405 -> 0 | X37: =Parámetros.Red!X405 -> 0 | Y37: =Parámetros.Red!Y405 -> 0 | Z37: =Parámetros.Red!Z405 -> 0 | AA37: =Parámetros.Red!AA405 -> 0 | AB37: =Parámetros.Red!AB405 -> 0 | AC37: =Parámetros.Red!AC405 -> 0 | AD37: =Parámetros.Red!AD405 -> 0 | AE37: =Parámetros.Red!AE405 -> 0 | AF37: =Parámetros.Red!AF405 -> 0 | AG37: =Parámetros.Red!AG405 -> 0 | AH37: =Parámetros.Red!AH405 -> 0 | AI37: =Parámetros.Red!AI405 -> 0 | AJ37: =Parámetros.Red!AJ405 -> 0
D38: 29 | E38: libre | G38: =Parámetros.Red!G406 -> 0 | H38: =Parámetros.Red!H406 -> 0 | I38: =Parámetros.Red!I406 -> 0 | J38: =Parámetros.Red!J406 -> 0 | K38: =Parámetros.Red!K406 -> 0 | L38: =Parámetros.Red!L406 -> 0 | M38: =Parámetros.Red!M406 -> 0 | N38: =Parámetros.Red!N406 -> 0 | O38: =Parámetros.Red!O406 -> 0 | P38: =Parámetros.Red!P406 -> 0 | Q38: =Parámetros.Red!Q406 -> 0 | R38: =Parámetros.Red!R406 -> 0 | S38: =Parámetros.Red!S406 -> 0 | T38: =Parámetros.Red!T406 -> 0 | U38: =Parámetros.Red!U406 -> 0 | V38: =Parámetros.Red!V406 -> 0 | W38: =Parámetros.Red!W406 -> 0 | X38: =Parámetros.Red!X406 -> 0 | Y38: =Parámetros.Red!Y406 -> 0 | Z38: =Parámetros.Red!Z406 -> 0 | AA38: =Parámetros.Red!AA406 -> 0 | AB38: =Parámetros.Red!AB406 -> 0 | AC38: =Parámetros.Red!AC406 -> 0 | AD38: =Parámetros.Red!AD406 -> 0 | AE38: =Parámetros.Red!AE406 -> 0 | AF38: =Parámetros.Red!AF406 -> 0 | AG38: =Parámetros.Red!AG406 -> 0 | AH38: =Parámetros.Red!AH406 -> 0 | AI38: =Parámetros.Red!AI406 -> 0 | AJ38: =Parámetros.Red!AJ406 -> 0
D39: 30 | E39: libre | G39: =Parámetros.Red!G407 -> 0 | H39: =Parámetros.Red!H407 -> 0 | I39: =Parámetros.Red!I407 -> 0 | J39: =Parámetros.Red!J407 -> 0 | K39: =Parámetros.Red!K407 -> 0 | L39: =Parámetros.Red!L407 -> 0 | M39: =Parámetros.Red!M407 -> 0 | N39: =Parámetros.Red!N407 -> 0 | O39: =Parámetros.Red!O407 -> 0 | P39: =Parámetros.Red!P407 -> 0 | Q39: =Parámetros.Red!Q407 -> 0 | R39: =Parámetros.Red!R407 -> 0 | S39: =Parámetros.Red!S407 -> 0 | T39: =Parámetros.Red!T407 -> 0 | U39: =Parámetros.Red!U407 -> 0 | V39: =Parámetros.Red!V407 -> 0 | W39: =Parámetros.Red!W407 -> 0 | X39: =Parámetros.Red!X407 -> 0 | Y39: =Parámetros.Red!Y407 -> 0 | Z39: =Parámetros.Red!Z407 -> 0 | AA39: =Parámetros.Red!AA407 -> 0 | AB39: =Parámetros.Red!AB407 -> 0 | AC39: =Parámetros.Red!AC407 -> 0 | AD39: =Parámetros.Red!AD407 -> 0 | AE39: =Parámetros.Red!AE407 -> 0 | AF39: =Parámetros.Red!AF407 -> 0 | AG39: =Parámetros.Red!AG407 -> 0 | AH39: =Parámetros.Red!AH407 -> 0 | AI39: =Parámetros.Red!AI407 -> 0 | AJ39: =Parámetros.Red!AJ407 -> 0
E41: Total superficie | F41: [km^2] | G41: =SUM(($F41=$F$10:$F$39)*G10:G39) -> 1 | H41: =SUM(($F41=$F$10:$F$39)*H10:H39) -> 1.01 | I41: =SUM(($F41=$F$10:$F$39)*I10:I39) -> 1.02 | J41: =SUM(($F41=$F$10:$F$39)*J10:J39) -> 1.03 | K41: =SUM(($F41=$F$10:$F$39)*K10:K39) -> 1.04 | L41: =SUM(($F41=$F$10:$F$39)*L10:L39) -> 1.05 | M41: =SUM(($F41=$F$10:$F$39)*M10:M39) -> 1 | N41: =SUM(($F41=$F$10:$F$39)*N10:N39) -> 1.01 | O41: =SUM(($F41=$F$10:$F$39)*O10:O39) -> 1.02 | P41: =SUM(($F41=$F$10:$F$39)*P10:P39) -> 1.03 | Q41: =SUM(($F41=$F$10:$F$39)*Q10:Q39) -> 1.04 | R41: =SUM(($F41=$F$10:$F$39)*R10:R39) -> 1.05 | S41: =SUM(($F41=$F$10:$F$39)*S10:S39) -> 1 | T41: =SUM(($F41=$F$10:$F$39)*T10:T39) -> 1.01 | U41: =SUM(($F41=$F$10:$F$39)*U10:U39) -> 1.02 | V41: =SUM(($F41=$F$10:$F$39)*V10:V39) -> 1.03 | W41: =SUM(($F41=$F$10:$F$39)*W10:W39) -> 1.04 | X41: =SUM(($F41=$F$10:$F$39)*X10:X39) -> 1.05 | Y41: =SUM(($F41=$F$10:$F$39)*Y10:Y39) -> 1 | Z41: =SUM(($F41=$F$10:$F$39)*Z10:Z39) -> 1.01 | AA41: =SUM(($F41=$F$10:$F$39)*AA10:AA39) -> 1.02 | AB41: =SUM(($F41=$F$10:$F$39)*AB10:AB39) -> 1.03 | AC41: =SUM(($F41=$F$10:$F$39)*AC10:AC39) -> 1.04 | AD41: =SUM(($F41=$F$10:$F$39)*AD10:AD39) -> 1.05 | AE41: =SUM(($F41=$F$10:$F$39)*AE10:AE39) -> 1 | AF41: =SUM(($F41=$F$10:$F$39)*AF10:AF39) -> 1.01 | AG41: =SUM(($F41=$F$10:$F$39)*AG10:AG39) -> 1.02 | AH41: =SUM(($F41=$F$10:$F$39)*AH10:AH39) -> 1.03 | AI41: =SUM(($F41=$F$10:$F$39)*AI10:AI39) -> 1.04 | AJ41: =SUM(($F41=$F$10:$F$39)*AJ10:AJ39) -> 1.05
E42: Total longitud | F42: [km] | G42: =SUM(($F42=$F$10:$F$39)*G10:G39) -> 1 | H42: =SUM(($F42=$F$10:$F$39)*H10:H39) -> 1.01 | I42: =SUM(($F42=$F$10:$F$39)*I10:I39) -> 1.02 | J42: =SUM(($F42=$F$10:$F$39)*J10:J39) -> 1.03 | K42: =SUM(($F42=$F$10:$F$39)*K10:K39) -> 1.04 | L42: =SUM(($F42=$F$10:$F$39)*L10:L39) -> 1.05 | M42: =SUM(($F42=$F$10:$F$39)*M10:M39) -> 1 | N42: =SUM(($F42=$F$10:$F$39)*N10:N39) -> 1.01 | O42: =SUM(($F42=$F$10:$F$39)*O10:O39) -> 1.02 | P42: =SUM(($F42=$F$10:$F$39)*P10:P39) -> 1.03 | Q42: =SUM(($F42=$F$10:$F$39)*Q10:Q39) -> 1.04 | R42: =SUM(($F42=$F$10:$F$39)*R10:R39) -> 1.05 | S42: =SUM(($F42=$F$10:$F$39)*S10:S39) -> 1 | T42: =SUM(($F42=$F$10:$F$39)*T10:T39) -> 1.01 | U42: =SUM(($F42=$F$10:$F$39)*U10:U39) -> 1.02 | V42: =SUM(($F42=$F$10:$F$39)*V10:V39) -> 1.03 | W42: =SUM(($F42=$F$10:$F$39)*W10:W39) -> 1.04 | X42: =SUM(($F42=$F$10:$F$39)*X10:X39) -> 1.05 | Y42: =SUM(($F42=$F$10:$F$39)*Y10:Y39) -> 1 | Z42: =SUM(($F42=$F$10:$F$39)*Z10:Z39) -> 1.01 | AA42: =SUM(($F42=$F$10:$F$39)*AA10:AA39) -> 1.02 | AB42: =SUM(($F42=$F$10:$F$39)*AB10:AB39) -> 1.03 | AC42: =SUM(($F42=$F$10:$F$39)*AC10:AC39) -> 1.04 | AD42: =SUM(($F42=$F$10:$F$39)*AD10:AD39) -> 1.05 | AE42: =SUM(($F42=$F$10:$F$39)*AE10:AE39) -> 1 | AF42: =SUM(($F42=$F$10:$F$39)*AF10:AF39) -> 1.01 | AG42: =SUM(($F42=$F$10:$F$39)*AG10:AG39) -> 1.02 | AH42: =SUM(($F42=$F$10:$F$39)*AH10:AH39) -> 1.03 | AI42: =SUM(($F42=$F$10:$F$39)*AI10:AI39) -> 1.04 | AJ42: =SUM(($F42=$F$10:$F$39)*AJ10:AJ39) -> 1.05
G44: =INDEX(lista.escenarios,G$4) -> escenario 1 | M44: =INDEX(lista.escenarios,M$4) -> escenario 2 | S44: =INDEX(lista.escenarios,S$4) -> escenario 3 | Y44: =INDEX(lista.escenarios,Y$4) -> escenario 4 | AE44: =INDEX(lista.escenarios,AE$4) -> escenario 5
D45: id | E45: Radio máximo de la superfie cubierta por los sitios | G45: =INDEX(años,G$3) -> 2010 | H45: 2011 | I45: 2012 | J45: 2013 | K45: 2014 | L45: 2015 | M45: 2010 | N45: 2011 | O45: 2012 | P45: 2013 | Q45: 2014 | R45: 2015 | S45: 2010 | T45: 2011 | U45: 2012 | V45: 2013 | W45: 2014 | X45: 2015 | Y45: 2010 | Z45: 2011 | AA45: 2012 | AB45: 2013 | AC45: 2014 | AD45: 2015 | AE45: 2010 | AF45: 2011 | AG45: 2012 | AH45: 2013 | AI45: 2014 | AJ45: 2015
D46: 1 | E46: =INDEX(lista.tipo.sitios,$D46) -> Sitio tipo 1 | F46: [km] | G46: =INDEX(radio.celdas,$D46,G$3) -> 1 | H46: 1 | I46: 1 | J46: 1 | K46: 1 | L46: 1 | M46: 1 | N46: 1 | O46: 1 | P46: 1 | Q46: =INDEX(radio.celdas,$D46,Q$3) -> 1 | R46: 1 | S46: 1 | T46: 1 | U46: 1 | V46: 1 | W46: 1 | X46: 1 | Y46: 1 | Z46: 1 | AA46: =INDEX(radio.celdas,$D46,AA$3) -> 1 | AB46: 1 | AC46: 1 | AD46: 1 | AE46: 1 | AF46: 1 | AG46: 1 | AH46: 1 | AI46: 1 | AJ46: 1
D47: =D46+1 -> 2 | E47: Sitio tipo 2 | F47: [km] | G47: 1 | H47: 1 | I47: 1 | J47: 1 | K47: 1 | L47: 1 | M47: 1 | N47: 1 | O47: 1 | P47: 1 | Q47: 1 | R47: 1 | S47: 1 | T47: 1 | U47: 1 | V47: 1 | W47: 1 | X47: 1 | Y47: 1 | Z47: 1 | AA47: 1 | AB47: 1 | AC47: 1 | AD47: 1 | AE47: 1 | AF47: 1 | AG47: 1 | AH47: 1 | AI47: 1 | AJ47: 1
D48: 3 | E48: Sitio tipo 3 | F48: [km] | G48: 1 | H48: 1 | I48: 1 | J48: 1 | K48: 1 | L48: 1 | M48: 1 | N48: 1 | O48: 1 | P48: 1 | Q48: 1 | R48: 1 | S48: 1 | T48: 1 | U48: 1 | V48: 1 | W48: 1 | X48: 1 | Y48: 1 | Z48: 1 | AA48: 1 | AB48: 1 | AC48: 1 | AD48: 1 | AE48: 1 | AF48: 1 | AG48: 1 | AH48: 1 | AI48: 1 | AJ48: 1
D49: 4 | E49: Sitio tipo 4 | F49: [km] | G49: 1 | H49: 1 | I49: 1 | J49: 1 | K49: 1 | L49: 1 | M49: 1 | N49: 1 | O49: 1 | P49: 1 | Q49: 1 | R49: 1 | S49: 1 | T49: 1 | U49: 1 | V49: 1 | W49: 1 | X49: 1 | Y49: 1 | Z49: 1 | AA49: 1 | AB49: 1 | AC49: 1 | AD49: 1 | AE49: 1 | AF49: 1 | AG49: 1 | AH49: 1 | AI49: 1 | AJ49: 1
D50: 5 | E50: Sitio tipo 5 | F50: [km] | G50: 0 | H50: 0 | I50: 0 | J50: 0 | K50: 0 | L50: 0 | M50: 0 | N50: 0 | O50: 0 | P50: 0 | Q50: 0 | R50: 0 | S50: 0 | T50: 0 | U50: 0 | V50: 0 | W50: 0 | X50: 0 | Y50: 0 | Z50: 0 | AA50: 0 | AB50: 0 | AC50: 0 | AD50: 0 | AE50: 0 | AF50: 0 | AG50: 0 | AH50: 0 | AI50: 0 | AJ50: 0
D51: 6 | E51: Sitio tipo 6 | F51: [km] | G51: 0 | H51: 0 | I51: 0 | J51: 0 | K51: 0 | L51: 0 | M51: 0 | N51: 0 | O51: 0 | P51: 0 | Q51: 0 | R51: 0 | S51: 0 | T51: 0 | U51: 0 | V51: 0 | W51: 0 | X51: 0 | Y51: 0 | Z51: 0 | AA51: 0 | AB51: 0 | AC51: 0 | AD51: 0 | AE51: 0 | AF51: 0 | AG51: 0 | AH51: 0 | AI51: 0 | AJ51: 0
D52: 7 | E52: Sitio tipo 7 | F52: [km] | G52: 1 | H52: 1 | I52: 1 | J52: 1 | K52: 1 | L52: 1 | M52: 1 | N52: 1 | O52: 1 | P52: 1 | Q52: 1 | R52: 1 | S52: 1 | T52: 1 | U52: 1 | V52: 1 | W52: 1 | X52: 1 | Y52: 1 | Z52: 1 | AA52: 1 | AB52: 1 | AC52: 1 | AD52: 1 | AE52: 1 | AF52: 1 | AG52: 1 | AH52: 1 | AI52: 1 | AJ52: 1
D53: 8 | E53: Sitio tipo 8 | F53: [km] | G53: 1 | H53: 1 | I53: 1 | J53: 1 | K53: 1 | L53: 1 | M53: 1 | N53: 1 | O53: 1 | P53: 1 | Q53: 1 | R53: 1 | S53: 1 | T53: 1 | U53: 1 | V53: 1 | W53: 1 | X53: 1 | Y53: 1 | Z53: 1 | AA53: 1 | AB53: 1 | AC53: 1 | AD53: 1 | AE53: 1 | AF53: 1 | AG53: 1 | AH53: 1 | AI53: 1 | AJ53: 1
D54: 9 | E54: Sitio tipo 9 | F54: [km] | G54: 1 | H54: 1 | I54: 1 | J54: 1 | K54: 1 | L54: 1 | M54: 1 | N54: 1 | O54: 1 | P54: 1 | Q54: 1 | R54: 1 | S54: 1 | T54: 1 | U54: 1 | V54: 1 | W54: 1 | X54: 1 | Y54: 1 | Z54: 1 | AA54: 1 | AB54: 1 | AC54: 1 | AD54: 1 | AE54: 1 | AF54: 1 | AG54: 1 | AH54: 1 | AI54: 1 | AJ54: 1
D55: 10 | E55: Sitio tipo 10 | F55: [km] | G55: 1 | H55: 1 | I55: 1 | J55: 1 | K55: 1 | L55: 1 | M55: 1 | N55: 1 | O55: 1 | P55: 1 | Q55: 1 | R55: 1 | S55: 1 | T55: 1 | U55: 1 | V55: 1 | W55: 1 | X55: 1 | Y55: 1 | Z55: 1 | AA55: 1 | AB55: 1 | AC55: 1 | AD55: 1 | AE55: 1 | AF55: 1 | AG55: 1 | AH55: 1 | AI55: 1 | AJ55: 1
D56: 11 | E56: Sitio tipo 11 | F56: [km] | G56: =INDEX(radio.celdas,$D56,G$3) -> 0 | H56: 0 | I56: 0 | J56: 0 | K56: 0 | L56: 0 | M56: 0 | N56: 0 | O56: 0 | P56: 0 | Q56: =INDEX(radio.celdas,$D56,Q$3) -> 0 | R56: 0 | S56: 0 | T56: 0 | U56: 0 | V56: 0 | W56: 0 | X56: 0 | Y56: 0 | Z56: 0 | AA56: =INDEX(radio.celdas,$D56,AA$3) -> 0 | AB56: 0 | AC56: 0 | AD56: 0 | AE56: 0 | AF56: 0 | AG56: 0 | AH56: 0 | AI56: 0 | AJ56: 0
D57: 12 | E57: Sitio tipo 12 | F57: [km] | G57: 0 | H57: 0 | I57: 0 | J57: 0 | K57: 0 | L57: 0 | M57: 0 | N57: 0 | O57: 0 | P57: 0 | Q57: 0 | R57: 0 | S57: 0 | T57: 0 | U57: 0 | V57: 0 | W57: 0 | X57: 0 | Y57: 0 | Z57: 0 | AA57: 0 | AB57: 0 | AC57: 0 | AD57: 0 | AE57: 0 | AF57: 0 | AG57: 0 | AH57: 0 | AI57: 0 | AJ57: 0
D58: 13 | E58: Sitio tipo 13 | F58: [km] | G58: 1 | H58: 1 | I58: 1 | J58: 1 | K58: 1 | L58: 1 | M58: 1 | N58: 1 | O58: 1 | P58: 1 | Q58: 1 | R58: 1 | S58: 1 | T58: 1 | U58: 1 | V58: 1 | W58: 1 | X58: 1 | Y58: 1 | Z58: 1 | AA58: 1 | AB58: 1 | AC58: 1 | AD58: 1 | AE58: 1 | AF58: 1 | AG58: 1 | AH58: 1 | AI58: 1 | AJ58: 1
D59: 14 | E59: Sitio tipo 14 | F59: [km] | G59: 1 | H59: 1 | I59: 1 | J59: 1 | K59: 1 | L59: 1 | M59: 1 | N59: 1 | O59: 1 | P59: 1 | Q59: 1 | R59: 1 | S59: 1 | T59: 1 | U59: 1 | V59: 1 | W59: 1 | X59: 1 | Y59: 1 | Z59: 1 | AA59: 1 | AB59: 1 | AC59: 1 | AD59: 1 | AE59: 1 | AF59: 1 | AG59: 1 | AH59: 1 | AI59: 1 | AJ59: 1
D60: 15 | E60: Sitio tipo 15 | F60: [km] | G60: 1 | H60: 1 | I60: 1 | J60: 1 | K60: 1 | L60: 1 | M60: 1 | N60: 1 | O60: 1 | P60: 1 | Q60: 1 | R60: 1 | S60: 1 | T60: 1 | U60: 1 | V60: 1 | W60: 1 | X60: 1 | Y60: 1 | Z60: 1 | AA60: 1 | AB60: 1 | AC60: 1 | AD60: 1 | AE60: 1 | AF60: 1 | AG60: 1 | AH60: 1 | AI60: 1 | AJ60: 1
D61: 16 | E61: Sitio tipo 16 | F61: [km] | G61: 1 | H61: 1 | I61: 1 | J61: 1 | K61: 1 | L61: 1 | M61: 1 | N61: 1 | O61: 1 | P61: 1 | Q61: 1 | R61: 1 | S61: 1 | T61: 1 | U61: 1 | V61: 1 | W61: 1 | X61: 1 | Y61: 1 | Z61: 1 | AA61: 1 | AB61: 1 | AC61: 1 | AD61: 1 | AE61: 1 | AF61: 1 | AG61: 1 | AH61: 1 | AI61: 1 | AJ61: 1
D62: 17 | E62: Sitio tipo 17 | F62: [km] | G62: 0 | H62: 0 | I62: 0 | J62: 0 | K62: 0 | L62: 0 | M62: 0 | N62: 0 | O62: 0 | P62: 0 | Q62: 0 | R62: 0 | S62: 0 | T62: 0 | U62: 0 | V62: 0 | W62: 0 | X62: 0 | Y62: 0 | Z62: 0 | AA62: 0 | AB62: 0 | AC62: 0 | AD62: 0 | AE62: 0 | AF62: 0 | AG62: 0 | AH62: 0 | AI62: 0 | AJ62: 0
D63: 18 | E63: Sitio tipo 18 | F63: [km] | G63: 0 | H63: 0 | I63: 0 | J63: 0 | K63: 0 | L63: 0 | M63: 0 | N63: 0 | O63: 0 | P63: 0 | Q63: 0 | R63: 0 | S63: 0 | T63: 0 | U63: 0 | V63: 0 | W63: 0 | X63: 0 | Y63: 0 | Z63: 0 | AA63: 0 | AB63: 0 | AC63: 0 | AD63: 0 | AE63: 0 | AF63: 0 | AG63: 0 | AH63: 0 | AI63: 0 | AJ63: 0
D64: 19 | E64: libre | F64: [km] | G64: 0 | H64: 0 | I64: 0 | J64: 0 | K64: 0 | L64: 0 | M64: 0 | N64: 0 | O64: 0 | P64: 0 | Q64: 0 | R64: 0 | S64: 0 | T64: 0 | U64: 0 | V64: 0 | W64: 0 | X64: 0 | Y64: 0 | Z64: 0 | AA64: 0 | AB64: 0 | AC64: 0 | AD64: 0 | AE64: 0 | AF64: 0 | AG64: 0 | AH64: 0 | AI64: 0 | AJ64: 0
D65: 20 | E65: libre | F65: [km] | G65: 0 | H65: 0 | I65: 0 | J65: 0 | K65: 0 | L65: 0 | M65: 0 | N65: 0 | O65: 0 | P65: 0 | Q65: 0 | R65: 0 | S65: 0 | T65: 0 | U65: 0 | V65: 0 | W65: 0 | X65: 0 | Y65: 0 | Z65: 0 | AA65: 0 | AB65: 0 | AC65: 0 | AD65: 0 | AE65: 0 | AF65: 0 | AG65: 0 | AH65: 0 | AI65: 0 | AJ65: 0
D66: 21 | E66: libre | F66: [km] | G66: =INDEX(radio.celdas,$D66,G$3) -> 0 | H66: 0 | I66: 0 | J66: 0 | K66: 0 | L66: 0 | M66: 0 | N66: 0 | O66: 0 | P66: 0 | Q66: =INDEX(radio.celdas,$D66,Q$3) -> 0 | R66: 0 | S66: 0 | T66: 0 | U66: 0 | V66: 0 | W66: 0 | X66: 0 | Y66: 0 | Z66: 0 | AA66: =INDEX(radio.celdas,$D66,AA$3) -> 0 | AB66: 0 | AC66: 0 | AD66: 0 | AE66: 0 | AF66: 0 | AG66: 0 | AH66: 0 | AI66: 0 | AJ66: 0
D67: 22 | E67: libre | F67: [km] | G67: 0 | H67: 0 | I67: 0 | J67: 0 | K67: 0 | L67: 0 | M67: 0 | N67: 0 | O67: 0 | P67: 0 | Q67: 0 | R67: 0 | S67: 0 | T67: 0 | U67: 0 | V67: 0 | W67: 0 | X67: 0 | Y67: 0 | Z67: 0 | AA67: 0 | AB67: 0 | AC67: 0 | AD67: 0 | AE67: 0 | AF67: 0 | AG67: 0 | AH67: 0 | AI67: 0 | AJ67: 0
D68: 23 | E68: libre | F68: [km] | G68: 0 | H68: 0 | I68: 0 | J68: 0 | K68: 0 | L68: 0 | M68: 0 | N68: 0 | O68: 0 | P68: 0 | Q68: 0 | R68: 0 | S68: 0 | T68: 0 | U68: 0 | V68: 0 | W68: 0 | X68: 0 | Y68: 0 | Z68: 0 | AA68: 0 | AB68: 0 | AC68: 0 | AD68: 0 | AE68: 0 | AF68: 0 | AG68: 0 | AH68: 0 | AI68: 0 | AJ68: 0
D69: 24 | E69: libre | F69: [km] | G69: 0 | H69: 0 | I69: 0 | J69: 0 | K69: 0 | L69: 0 | M69: 0 | N69: 0 | O69: 0 | P69: 0 | Q69: 0 | R69: 0 | S69: 0 | T69: 0 | U69: 0 | V69: 0 | W69: 0 | X69: 0 | Y69: 0 | Z69: 0 | AA69: 0 | AB69: 0 | AC69: 0 | AD69: 0 | AE69: 0 | AF69: 0 | AG69: 0 | AH69: 0 | AI69: 0 | AJ69: 0
D70: 25 | E70: libre | F70: [km] | G70: 0 | H70: 0 | I70: 0 | J70: 0 | K70: 0 | L70: 0 | M70: 0 | N70: 0 | O70: 0 | P70: 0 | Q70: 0 | R70: 0 | S70: 0 | T70: 0 | U70: 0 | V70: 0 | W70: 0 | X70: 0 | Y70: 0 | Z70: 0 | AA70: 0 | AB70: 0 | AC70: 0 | AD70: 0 | AE70: 0 | AF70: 0 | AG70: 0 | AH70: 0 | AI70: 0 | AJ70: 0
D71: 26 | E71: libre | F71: [km] | G71: 0 | H71: 0 | I71: 0 | J71: 0 | K71: 0 | L71: 0 | M71: 0 | N71: 0 | O71: 0 | P71: 0 | Q71: 0 | R71: 0 | S71: 0 | T71: 0 | U71: 0 | V71: 0 | W71: 0 | X71: 0 | Y71: 0 | Z71: 0 | AA71: 0 | AB71: 0 | AC71: 0 | AD71: 0 | AE71: 0 | AF71: 0 | AG71: 0 | AH71: 0 | AI71: 0 | AJ71: 0
D72: 27 | E72: libre | F72: [km] | G72: 0 | H72: 0 | I72: 0 | J72: 0 | K72: 0 | L72: 0 | M72: 0 | N72: 0 | O72: 0 | P72: 0 | Q72: 0 | R72: 0 | S72: 0 | T72: 0 | U72: 0 | V72: 0 | W72: 0 | X72: 0 | Y72: 0 | Z72: 0 | AA72: 0 | AB72: 0 | AC72: 0 | AD72: 0 | AE72: 0 | AF72: 0 | AG72: 0 | AH72: 0 | AI72: 0 | AJ72: 0
D73: 28 | E73: libre | F73: [km] | G73: 0 | H73: 0 | I73: 0 | J73: 0 | K73: 0 | L73: 0 | M73: 0 | N73: 0 | O73: 0 | P73: 0 | Q73: 0 | R73: 0 | S73: 0 | T73: 0 | U73: 0 | V73: 0 | W73: 0 | X73: 0 | Y73: 0 | Z73: 0 | AA73: 0 | AB73: 0 | AC73: 0 | AD73: 0 | AE73: 0 | AF73: 0 | AG73: 0 | AH73: 0 | AI73: 0 | AJ73: 0
D74: 29 | E74: libre | F74: [km] | G74: 0 | H74: 0 | I74: 0 | J74: 0 | K74: 0 | L74: 0 | M74: 0 | N74: 0 | O74: 0 | P74: 0 | Q74: 0 | R74: 0 | S74: 0 | T74: 0 | U74: 0 | V74: 0 | W74: 0 | X74: 0 | Y74: 0 | Z74: 0 | AA74: 0 | AB74: 0 | AC74: 0 | AD74: 0 | AE74: 0 | AF74: 0 | AG74: 0 | AH74: 0 | AI74: 0 | AJ74: 0
D75: 30 | E75: libre | F75: [km] | G75: 0 | H75: 0 | I75: 0 | J75: 0 | K75: 0 | L75: 0 | M75: 0 | N75: 0 | O75: 0 | P75: 0 | Q75: 0 | R75: 0 | S75: 0 | T75: 0 | U75: 0 | V75: 0 | W75: 0 | X75: 0 | Y75: 0 | Z75: 0 | AA75: 0 | AB75: 0 | AC75: 0 | AD75: 0 | AE75: 0 | AF75: 0 | AG75: 0 | AH75: 0 | AI75: 0 | AJ75: 0
G77: =INDEX(lista.escenarios,G$4) -> escenario 1 | M77: =INDEX(lista.escenarios,M$4) -> escenario 2 | S77: =INDEX(lista.escenarios,S$4) -> escenario 3 | Y77: =INDEX(lista.escenarios,Y$4) -> escenario 4 | AE77: =INDEX(lista.escenarios,AE$4) -> escenario 5
D78: id | E78: Superficie o longitud sitios de radio máximo | G78: =INDEX(años,G$3) -> 2010 | H78: 2011 | I78: 2012 | J78: 2013 | K78: 2014 | L78: 2015 | M78: 2010 | N78: 2011 | O78: 2012 | P78: 2013 | Q78: 2014 | R78: 2015 | S78: 2010 | T78: 2011 | U78: 2012 | V78: 2013 | W78: 2014 | X78: 2015 | Y78: 2010 | Z78: 2011 | AA78: 2012 | AB78: 2013 | AC78: 2014 | AD78: 2015 | AE78: 2010 | AF78: 2011 | AG78: 2012 | AH78: 2013 | AI78: 2014 | AJ78: 2015
D79: 1 | E79: =INDEX(lista.tipo.sitios,$D79) -> Sitio tipo 1 | F79: [km^2] | G79: =IF($F79="[km]",2*INDEX(radio.celdas,$D79,G$3),factor.área*(INDEX(radio.celdas,$D79,G$3)^2)) -> 1 | H79: 1 | I79: 1 | J79: 1 | K79: 1 | L79: 1 | M79: 1 | N79: 1 | O79: 1 | P79: 1 | Q79: =IF($F79="[km]",2*INDEX(radio.celdas,$D79,Q$3),factor.área*(INDEX(radio.celdas,$D79,Q$3)^2)) -> 1 | R79: 1 | S79: 1 | T79: 1 | U79: 1 | V79: 1 | W79: 1 | X79: 1 | Y79: 1 | Z79: 1 | AA79: =IF($F79="[km]",2*INDEX(radio.celdas,$D79,AA$3),factor.área*(INDEX(radio.celdas,$D79,AA$3)^2)) -> 1 | AB79: 1 | AC79: 1 | AD79: 1 | AE79: 1 | AF79: 1 | AG79: 1 | AH79: 1 | AI79: 1 | AJ79: 1
D80: =D79+1 -> 2 | E80: Sitio tipo 2 | F80: [km^2] | G80: 1 | H80: 1 | I80: 1 | J80: 1 | K80: 1 | L80: 1 | M80: 1 | N80: 1 | O80: 1 | P80: 1 | Q80: 1 | R80: 1 | S80: 1 | T80: 1 | U80: 1 | V80: 1 | W80: 1 | X80: 1 | Y80: 1 | Z80: 1 | AA80: 1 | AB80: 1 | AC80: 1 | AD80: 1 | AE80: 1 | AF80: 1 | AG80: 1 | AH80: 1 | AI80: 1 | AJ80: 1
D81: 3 | E81: Sitio tipo 3 | F81: [km^2] | G81: 1 | H81: 1 | I81: 1 | J81: 1 | K81: 1 | L81: 1 | M81: 1 | N81: 1 | O81: 1 | P81: 1 | Q81: 1 | R81: 1 | S81: 1 | T81: 1 | U81: 1 | V81: 1 | W81: 1 | X81: 1 | Y81: 1 | Z81: 1 | AA81: 1 | AB81: 1 | AC81: 1 | AD81: 1 | AE81: 1 | AF81: 1 | AG81: 1 | AH81: 1 | AI81: 1 | AJ81: 1
D82: 4 | E82: Sitio tipo 4 | F82: [km] | G82: 2 | H82: 2 | I82: 2 | J82: 2 | K82: 2 | L82: 2 | M82: 2 | N82: 2 | O82: 2 | P82: 2 | Q82: 2 | R82: 2 | S82: 2 | T82: 2 | U82: 2 | V82: 2 | W82: 2 | X82: 2 | Y82: 2 | Z82: 2 | AA82: 2 | AB82: 2 | AC82: 2 | AD82: 2 | AE82: 2 | AF82: 2 | AG82: 2 | AH82: 2 | AI82: 2 | AJ82: 2
D83: 5 | E83: Sitio tipo 5 | F83: [km^2] | G83: 0 | H83: 0 | I83: 0 | J83: 0 | K83: 0 | L83: 0 | M83: 0 | N83: 0 | O83: 0 | P83: 0 | Q83: 0 | R83: 0 | S83: 0 | T83: 0 | U83: 0 | V83: 0 | W83: 0 | X83: 0 | Y83: 0 | Z83: 0 | AA83: 0 | AB83: 0 | AC83: 0 | AD83: 0 | AE83: 0 | AF83: 0 | AG83: 0 | AH83: 0 | AI83: 0 | AJ83: 0
D84: 6 | E84: Sitio tipo 6 | F84: [km^2] | G84: 0 | H84: 0 | I84: 0 | J84: 0 | K84: 0 | L84: 0 | M84: 0 | N84: 0 | O84: 0 | P84: 0 | Q84: 0 | R84: 0 | S84: 0 | T84: 0 | U84: 0 | V84: 0 | W84: 0 | X84: 0 | Y84: 0 | Z84: 0 | AA84: 0 | AB84: 0 | AC84: 0 | AD84: 0 | AE84: 0 | AF84: 0 | AG84: 0 | AH84: 0 | AI84: 0 | AJ84: 0
D85: 7 | E85: Sitio tipo 7 | F85: [km^2] | G85: 1 | H85: 1 | I85: 1 | J85: 1 | K85: 1 | L85: 1 | M85: 1 | N85: 1 | O85: 1 | P85: 1 | Q85: 1 | R85: 1 | S85: 1 | T85: 1 | U85: 1 | V85: 1 | W85: 1 | X85: 1 | Y85: 1 | Z85: 1 | AA85: 1 | AB85: 1 | AC85: 1 | AD85: 1 | AE85: 1 | AF85: 1 | AG85: 1 | AH85: 1 | AI85: 1 | AJ85: 1
D86: 8 | E86: Sitio tipo 8 | F86: [km^2] | G86: 1 | H86: 1 | I86: 1 | J86: 1 | K86: 1 | L86: 1 | M86: 1 | N86: 1 | O86: 1 | P86: 1 | Q86: 1 | R86: 1 | S86: 1 | T86: 1 | U86: 1 | V86: 1 | W86: 1 | X86: 1 | Y86: 1 | Z86: 1 | AA86: 1 | AB86: 1 | AC86: 1 | AD86: 1 | AE86: 1 | AF86: 1 | AG86: 1 | AH86: 1 | AI86: 1 | AJ86: 1
D87: 9 | E87: Sitio tipo 9 | F87: [km^2] | G87: 1 | H87: 1 | I87: 1 | J87: 1 | K87: 1 | L87: 1 | M87: 1 | N87: 1 | O87: 1 | P87: 1 | Q87: 1 | R87: 1 | S87: 1 | T87: 1 | U87: 1 | V87: 1 | W87: 1 | X87: 1 | Y87: 1 | Z87: 1 | AA87: 1 | AB87: 1 | AC87: 1 | AD87: 1 | AE87: 1 | AF87: 1 | AG87: 1 | AH87: 1 | AI87: 1 | AJ87: 1
D88: 10 | E88: Sitio tipo 10 | F88: [km] | G88: 2 | H88: 2 | I88: 2 | J88: 2 | K88: 2 | L88: 2 | M88: 2 | N88: 2 | O88: 2 | P88: 2 | Q88: 2 | R88: 2 | S88: 2 | T88: 2 | U88: 2 | V88: 2 | W88: 2 | X88: 2 | Y88: 2 | Z88: 2 | AA88: 2 | AB88: 2 | AC88: 2 | AD88: 2 | AE88: 2 | AF88: 2 | AG88: 2 | AH88: 2 | AI88: 2 | AJ88: 2
D89: 11 | E89: Sitio tipo 11 | F89: [km^2] | G89: =IF($F89="[km]",2*INDEX(radio.celdas,$D89,G$3),factor.área*(INDEX(radio.celdas,$D89,G$3)^2)) -> 0 | H89: 0 | I89: 0 | J89: 0 | K89: 0 | L89: 0 | M89: 0 | N89: 0 | O89: 0 | P89: 0 | Q89: =IF($F89="[km]",2*INDEX(radio.celdas,$D89,Q$3),factor.área*(INDEX(radio.celdas,$D89,Q$3)^2)) -> 0 | R89: 0 | S89: 0 | T89: 0 | U89: 0 | V89: 0 | W89: 0 | X89: 0 | Y89: 0 | Z89: 0 | AA89: =IF($F89="[km]",2*INDEX(radio.celdas,$D89,AA$3),factor.área*(INDEX(radio.celdas,$D89,AA$3)^2)) -> 0 | AB89: 0 | AC89: 0 | AD89: 0 | AE89: 0 | AF89: 0 | AG89: 0 | AH89: 0 | AI89: 0 | AJ89: 0
D90: 12 | E90: Sitio tipo 12 | F90: [km^2] | G90: 0 | H90: 0 | I90: 0 | J90: 0 | K90: 0 | L90: 0 | M90: 0 | N90: 0 | O90: 0 | P90: 0 | Q90: 0 | R90: 0 | S90: 0 | T90: 0 | U90: 0 | V90: 0 | W90: 0 | X90: 0 | Y90: 0 | Z90: 0 | AA90: 0 | AB90: 0 | AC90: 0 | AD90: 0 | AE90: 0 | AF90: 0 | AG90: 0 | AH90: 0 | AI90: 0 | AJ90: 0
D91: 13 | E91: Sitio tipo 13 | F91: [km^2] | G91: 1 | H91: 1 | I91: 1 | J91: 1 | K91: 1 | L91: 1 | M91: 1 | N91: 1 | O91: 1 | P91: 1 | Q91: 1 | R91: 1 | S91: 1 | T91: 1 | U91: 1 | V91: 1 | W91: 1 | X91: 1 | Y91: 1 | Z91: 1 | AA91: 1 | AB91: 1 | AC91: 1 | AD91: 1 | AE91: 1 | AF91: 1 | AG91: 1 | AH91: 1 | AI91: 1 | AJ91: 1
D92: 14 | E92: Sitio tipo 14 | F92: [km^2] | G92: 1 | H92: 1 | I92: 1 | J92: 1 | K92: 1 | L92: 1 | M92: 1 | N92: 1 | O92: 1 | P92: 1 | Q92: 1 | R92: 1 | S92: 1 | T92: 1 | U92: 1 | V92: 1 | W92: 1 | X92: 1 | Y92: 1 | Z92: 1 | AA92: 1 | AB92: 1 | AC92: 1 | AD92: 1 | AE92: 1 | AF92: 1 | AG92: 1 | AH92: 1 | AI92: 1 | AJ92: 1
D93: 15 | E93: Sitio tipo 15 | F93: [km^2] | G93: 1 | H93: 1 | I93: 1 | J93: 1 | K93: 1 | L93: 1 | M93: 1 | N93: 1 | O93: 1 | P93: 1 | Q93: 1 | R93: 1 | S93: 1 | T93: 1 | U93: 1 | V93: 1 | W93: 1 | X93: 1 | Y93: 1 | Z93: 1 | AA93: 1 | AB93: 1 | AC93: 1 | AD93: 1 | AE93: 1 | AF93: 1 | AG93: 1 | AH93: 1 | AI93: 1 | AJ93: 1
D94: 16 | E94: Sitio tipo 16 | F94: [km] | G94: 2 | H94: 2 | I94: 2 | J94: 2 | K94: 2 | L94: 2 | M94: 2 | N94: 2 | O94: 2 | P94: 2 | Q94: 2 | R94: 2 | S94: 2 | T94: 2 | U94: 2 | V94: 2 | W94: 2 | X94: 2 | Y94: 2 | Z94: 2 | AA94: 2 | AB94: 2 | AC94: 2 | AD94: 2 | AE94: 2 | AF94: 2 | AG94: 2 | AH94: 2 | AI94: 2 | AJ94: 2
D95: 17 | E95: Sitio tipo 17 | F95: [km^2] | G95: 0 | H95: 0 | I95: 0 | J95: 0 | K95: 0 | L95: 0 | M95: 0 | N95: 0 | O95: 0 | P95: 0 | Q95: 0 | R95: 0 | S95: 0 | T95: 0 | U95: 0 | V95: 0 | W95: 0 | X95: 0 | Y95: 0 | Z95: 0 | AA95: 0 | AB95: 0 | AC95: 0 | AD95: 0 | AE95: 0 | AF95: 0 | AG95: 0 | AH95: 0 | AI95: 0 | AJ95: 0
D96: 18 | E96: Sitio tipo 18 | F96: [km^2] | G96: 0 | H96: 0 | I96: 0 | J96: 0 | K96: 0 | L96: 0 | M96: 0 | N96: 0 | O96: 0 | P96: 0 | Q96: 0 | R96: 0 | S96: 0 | T96: 0 | U96: 0 | V96: 0 | W96: 0 | X96: 0 | Y96: 0 | Z96: 0 | AA96: 0 | AB96: 0 | AC96: 0 | AD96: 0 | AE96: 0 | AF96: 0 | AG96: 0 | AH96: 0 | AI96: 0 | AJ96: 0
D97: 19 | E97: libre | G97: 0 | H97: 0 | I97: 0 | J97: 0 | K97: 0 | L97: 0 | M97: 0 | N97: 0 | O97: 0 | P97: 0 | Q97: 0 | R97: 0 | S97: 0 | T97: 0 | U97: 0 | V97: 0 | W97: 0 | X97: 0 | Y97: 0 | Z97: 0 | AA97: 0 | AB97: 0 | AC97: 0 | AD97: 0 | AE97: 0 | AF97: 0 | AG97: 0 | AH97: 0 | AI97: 0 | AJ97: 0
D98: 20 | E98: libre | G98: 0 | H98: 0 | I98: 0 | J98: 0 | K98: 0 | L98: 0 | M98: 0 | N98: 0 | O98: 0 | P98: 0 | Q98: 0 | R98: 0 | S98: 0 | T98: 0 | U98: 0 | V98: 0 | W98: 0 | X98: 0 | Y98: 0 | Z98: 0 | AA98: 0 | AB98: 0 | AC98: 0 | AD98: 0 | AE98: 0 | AF98: 0 | AG98: 0 | AH98: 0 | AI98: 0 | AJ98: 0
D99: 21 | E99: libre | G99: =IF($F99="[km]",2*INDEX(radio.celdas,$D99,G$3),factor.área*(INDEX(radio.celdas,$D99,G$3)^2)) -> 0 | H99: 0 | I99: 0 | J99: 0 | K99: 0 | L99: 0 | M99: 0 | N99: 0 | O99: 0 | P99: 0 | Q99: =IF($F99="[km]",2*INDEX(radio.celdas,$D99,Q$3),factor.área*(INDEX(radio.celdas,$D99,Q$3)^2)) -> 0 | R99: 0 | S99: 0 | T99: 0 | U99: 0 | V99: 0 | W99: 0 | X99: 0 | Y99: 0 | Z99: 0 | AA99: =IF($F99="[km]",2*INDEX(radio.celdas,$D99,AA$3),factor.área*(INDEX(radio.celdas,$D99,AA$3)^2)) -> 0 | AB99: 0 | AC99: 0 | AD99: 0 | AE99: 0 | AF99: 0 | AG99: 0 | AH99: 0 | AI99: 0 | AJ99: 0
D100: 22 | E100: libre | G100: 0 | H100: 0 | I100: 0 | J100: 0 | K100: 0 | L100: 0 | M100: 0 | N100: 0 | O100: 0 | P100: 0 | Q100: 0 | R100: 0 | S100: 0 | T100: 0 | U100: 0 | V100: 0 | W100: 0 | X100: 0 | Y100: 0 | Z100: 0 | AA100: 0 | AB100: 0 | AC100: 0 | AD100: 0 | AE100: 0 | AF100: 0 | AG100: 0 | AH100: 0 | AI100: 0 | AJ100: 0
D101: 23 | E101: libre | G101: 0 | H101: 0 | I101: 0 | J101: 0 | K101: 0 | L101: 0 | M101: 0 | N101: 0 | O101: 0 | P101: 0 | Q101: 0 | R101: 0 | S101: 0 | T101: 0 | U101: 0 | V101: 0 | W101: 0 | X101: 0 | Y101: 0 | Z101: 0 | AA101: 0 | AB101: 0 | AC101: 0 | AD101: 0 | AE101: 0 | AF101: 0 | AG101: 0 | AH101: 0 | AI101: 0 | AJ101: 0
D102: 24 | E102: libre | G102: 0 | H102: 0 | I102: 0 | J102: 0 | K102: 0 | L102: 0 | M102: 0 | N102: 0 | O102: 0 | P102: 0 | Q102: 0 | R102: 0 | S102: 0 | T102: 0 | U102: 0 | V102: 0 | W102: 0 | X102: 0 | Y102: 0 | Z102: 0 | AA102: 0 | AB102: 0 | AC102: 0 | AD102: 0 | AE102: 0 | AF102: 0 | AG102: 0 | AH102: 0 | AI102: 0 | AJ102: 0
D103: 25 | E103: libre | G103: 0 | H103: 0 | I103: 0 | J103: 0 | K103: 0 | L103: 0 | M103: 0 | N103: 0 | O103: 0 | P103: 0 | Q103: 0 | R103: 0 | S103: 0 | T103: 0 | U103: 0 | V103: 0 | W103: 0 | X103: 0 | Y103: 0 | Z103: 0 | AA103: 0 | AB103: 0 | AC103: 0 | AD103: 0 | AE103: 0 | AF103: 0 | AG103: 0 | AH103: 0 | AI103: 0 | AJ103: 0
D104: 26 | E104: libre | G104: 0 | H104: 0 | I104: 0 | J104: 0 | K104: 0 | L104: 0 | M104: 0 | N104: 0 | O104: 0 | P104: 0 | Q104: 0 | R104: 0 | S104: 0 | T104: 0 | U104: 0 | V104: 0 | W104: 0 | X104: 0 | Y104: 0 | Z104: 0 | AA104: 0 | AB104: 0 | AC104: 0 | AD104: 0 | AE104: 0 | AF104: 0 | AG104: 0 | AH104: 0 | AI104: 0 | AJ104: 0
D105: 27 | E105: libre | G105: 0 | H105: 0 | I105: 0 | J105: 0 | K105: 0 | L105: 0 | M105: 0 | N105: 0 | O105: 0 | P105: 0 | Q105: 0 | R105: 0 | S105: 0 | T105: 0 | U105: 0 | V105: 0 | W105: 0 | X105: 0 | Y105: 0 | Z105: 0 | AA105: 0 | AB105: 0 | AC105: 0 | AD105: 0 | AE105: 0 | AF105: 0 | AG105: 0 | AH105: 0 | AI105: 0 | AJ105: 0
D106: 28 | E106: libre | G106: 0 | H106: 0 | I106: 0 | J106: 0 | K106: 0 | L106: 0 | M106: 0 | N106: 0 | O106: 0 | P106: 0 | Q106: 0 | R106: 0 | S106: 0 | T106: 0 | U106: 0 | V106: 0 | W106: 0 | X106: 0 | Y106: 0 | Z106: 0 | AA106: 0 | AB106: 0 | AC106: 0 | AD106: 0 | AE106: 0 | AF106: 0 | AG106: 0 | AH106: 0 | AI106: 0 | AJ106: 0
D107: 29 | E107: libre | G107: 0 | H107: 0 | I107: 0 | J107: 0 | K107: 0 | L107: 0 | M107: 0 | N107: 0 | O107: 0 | P107: 0 | Q107: 0 | R107: 0 | S107: 0 | T107: 0 | U107: 0 | V107: 0 | W107: 0 | X107: 0 | Y107: 0 | Z107: 0 | AA107: 0 | AB107: 0 | AC107: 0 | AD107: 0 | AE107: 0 | AF107: 0 | AG107: 0 | AH107: 0 | AI107: 0 | AJ107: 0
D108: 30 | E108: libre | G108: 0 | H108: 0 | I108: 0 | J108: 0 | K108: 0 | L108: 0 | M108: 0 | N108: 0 | O108: 0 | P108: 0 | Q108: 0 | R108: 0 | S108: 0 | T108: 0 | U108: 0 | V108: 0 | W108: 0 | X108: 0 | Y108: 0 | Z108: 0 | AA108: 0 | AB108: 0 | AC108: 0 | AD108: 0 | AE108: 0 | AF108: 0 | AG108: 0 | AH108: 0 | AI108: 0 | AJ108: 0
G110: =INDEX(lista.escenarios,G$4) -> escenario 1 | M110: =INDEX(lista.escenarios,M$4) -> escenario 2 | S110: =INDEX(lista.escenarios,S$4) -> escenario 3 | Y110: =INDEX(lista.escenarios,Y$4) -> escenario 4 | AE110: =INDEX(lista.escenarios,AE$4) -> escenario 5
D111: id | E111: Cantidad de sitios radio máximo de cobertura | G111: =INDEX(años,G$3) -> 2010 | H111: 2011 | I111: 2012 | J111: 2013 | K111: 2014 | L111: 2015 | M111: 2010 | N111: 2011 | O111: 2012 | P111: 2013 | Q111: 2014 | R111: 2015 | S111: 2010 | T111: 2011 | U111: 2012 | V111: 2013 | W111: 2014 | X111: 2015 | Y111: 2010 | Z111: 2011 | AA111: 2012 | AB111: 2013 | AC111: 2014 | AD111: 2015 | AE111: 2010 | AF111: 2011 | AG111: 2012 | AH111: 2013 | AI111: 2014 | AJ111: 2015
D112: 1 | E112: =INDEX(lista.tipo.sitios,$D112) -> Sitio tipo 1 | F112: [sitio] | G112: =IF(G79=0,0,CEILING(G10/G79,1)) -> 1 | H112: 1 | I112: 1 | J112: 1 | K112: 1 | L112: 1 | M112: 1 | N112: 1 | O112: 1 | P112: 1 | Q112: 1 | R112: 1 | S112: 1 | T112: 1 | U112: 1 | V112: 1 | W112: 1 | X112: 1 | Y112: 0 | Z112: 0 | AA112: 0 | AB112: 0 | AC112: 0 | AD112: 0 | AE112: 1 | AF112: 1 | AG112: 1 | AH112: 1 | AI112: 1 | AJ112: 1
D113: =D112+1 -> 2 | E113: Sitio tipo 2 | F113: [sitio] | G113: =IF(G80=0,0,CEILING(G11/G80,1)) -> 1 | H113: 1 | I113: 1 | J113: 1 | K113: 1 | L113: 1 | M113: 1 | N113: 1 | O113: 1 | P113: 1 | Q113: 1 | R113: 1 | S113: 1 | T113: 1 | U113: 1 | V113: 1 | W113: 1 | X113: 1 | Y113: 0 | Z113: 0 | AA113: 0 | AB113: 0 | AC113: 0 | AD113: 0 | AE113: 1 | AF113: 1 | AG113: 1 | AH113: 1 | AI113: 1 | AJ113: 1
D114: 3 | E114: Sitio tipo 3 | F114: [sitio] | G114: =IF(G81=0,0,CEILING(G12/G81,1)) -> 1 | H114: 1 | I114: 1 | J114: 1 | K114: 1 | L114: 1 | M114: 1 | N114: 1 | O114: 1 | P114: 1 | Q114: 1 | R114: 1 | S114: 1 | T114: 1 | U114: 1 | V114: 1 | W114: 1 | X114: 1 | Y114: 0 | Z114: 0 | AA114: 0 | AB114: 0 | AC114: 0 | AD114: 0 | AE114: 1 | AF114: 1 | AG114: 1 | AH114: 1 | AI114: 1 | AJ114: 1
D115: 4 | E115: Sitio tipo 4 | F115: [sitio] | G115: =IF(G82=0,0,CEILING(G13/G82,1)) -> 1 | H115: 1 | I115: 1 | J115: 1 | K115: 1 | L115: 1 | M115: 1 | N115: 1 | O115: 1 | P115: 1 | Q115: 1 | R115: 1 | S115: 1 | T115: 1 | U115: 1 | V115: 1 | W115: 1 | X115: 1 | Y115: 0 | Z115: 0 | AA115: 0 | AB115: 0 | AC115: 0 | AD115: 0 | AE115: 1 | AF115: 1 | AG115: 1 | AH115: 1 | AI115: 1 | AJ115: 1
D116: 5 | E116: Sitio tipo 5 | F116: [sitio] | G116: =IF(G83=0,0,CEILING(G14/G83,1)) -> 0 | H116: 0 | I116: 0 | J116: 0 | K116: 0 | L116: 0 | M116: 0 | N116: 0 | O116: 0 | P116: 0 | Q116: 0 | R116: 0 | S116: 0 | T116: 0 | U116: 0 | V116: 0 | W116: 0 | X116: 0 | Y116: 0 | Z116: 0 | AA116: 0 | AB116: 0 | AC116: 0 | AD116: 0 | AE116: 0 | AF116: 0 | AG116: 0 | AH116: 0 | AI116: 0 | AJ116: 0
D117: 6 | E117: Sitio tipo 6 | F117: [sitio] | G117: =IF(G84=0,0,CEILING(G15/G84,1)) -> 0 | H117: 0 | I117: 0 | J117: 0 | K117: 0 | L117: 0 | M117: 0 | N117: 0 | O117: 0 | P117: 0 | Q117: 0 | R117: 0 | S117: 0 | T117: 0 | U117: 0 | V117: 0 | W117: 0 | X117: 0 | Y117: 0 | Z117: 0 | AA117: 0 | AB117: 0 | AC117: 0 | AD117: 0 | AE117: 0 | AF117: 0 | AG117: 0 | AH117: 0 | AI117: 0 | AJ117: 0
D118: 7 | E118: Sitio tipo 7 | F118: [sitio] | G118: =IF(G85=0,0,CEILING(G16/G85,1)) -> 0 | H118: 0 | I118: 0 | J118: 0 | K118: 0 | L118: 0 | M118: 0 | N118: 0 | O118: 0 | P118: 0 | Q118: 0 | R118: 0 | S118: 0 | T118: 0 | U118: 0 | V118: 0 | W118: 0 | X118: 0 | Y118: 1 | Z118: 1 | AA118: 1 | AB118: 1 | AC118: 1 | AD118: 1 | AE118: 0 | AF118: 0 | AG118: 0 | AH118: 0 | AI118: 0 | AJ118: 0
D119: 8 | E119: Sitio tipo 8 | F119: [sitio] | G119: =IF(G86=0,0,CEILING(G17/G86,1)) -> 0 | H119: 0 | I119: 0 | J119: 0 | K119: 0 | L119: 0 | M119: 0 | N119: 0 | O119: 0 | P119: 0 | Q119: 0 | R119: 0 | S119: 0 | T119: 0 | U119: 0 | V119: 0 | W119: 0 | X119: 0 | Y119: 1 | Z119: 1 | AA119: 1 | AB119: 1 | AC119: 1 | AD119: 1 | AE119: 0 | AF119: 0 | AG119: 0 | AH119: 0 | AI119: 0 | AJ119: 0
D120: 9 | E120: Sitio tipo 9 | F120: [sitio] | G120: =IF(G87=0,0,CEILING(G18/G87,1)) -> 0 | H120: 0 | I120: 0 | J120: 0 | K120: 0 | L120: 0 | M120: 0 | N120: 0 | O120: 0 | P120: 0 | Q120: 0 | R120: 0 | S120: 0 | T120: 0 | U120: 0 | V120: 0 | W120: 0 | X120: 0 | Y120: 1 | Z120: 1 | AA120: 1 | AB120: 1 | AC120: 1 | AD120: 1 | AE120: 0 | AF120: 0 | AG120: 0 | AH120: 0 | AI120: 0 | AJ120: 0
D121: 10 | E121: Sitio tipo 10 | F121: [sitio] | G121: =IF(G88=0,0,CEILING(G19/G88,1)) -> 0 | H121: 0 | I121: 0 | J121: 0 | K121: 0 | L121: 0 | M121: 0 | N121: 0 | O121: 0 | P121: 0 | Q121: 0 | R121: 0 | S121: 0 | T121: 0 | U121: 0 | V121: 0 | W121: 0 | X121: 0 | Y121: 1 | Z121: 1 | AA121: 1 | AB121: 1 | AC121: 1 | AD121: 1 | AE121: 0 | AF121: 0 | AG121: 0 | AH121: 0 | AI121: 0 | AJ121: 0
D122: 11 | E122: Sitio tipo 11 | F122: [sitio] | G122: =IF(G89=0,0,CEILING(G20/G89,1)) -> 0 | H122: 0 | I122: 0 | J122: 0 | K122: 0 | L122: 0 | M122: 0 | N122: 0 | O122: 0 | P122: 0 | Q122: 0 | R122: 0 | S122: 0 | T122: 0 | U122: 0 | V122: 0 | W122: 0 | X122: 0 | Y122: 0 | Z122: 0 | AA122: 0 | AB122: 0 | AC122: 0 | AD122: 0 | AE122: 0 | AF122: 0 | AG122: 0 | AH122: 0 | AI122: 0 | AJ122: 0
D123: 12 | E123: Sitio tipo 12 | F123: [sitio] | G123: =IF(G90=0,0,CEILING(G21/G90,1)) -> 0 | H123: 0 | I123: 0 | J123: 0 | K123: 0 | L123: 0 | M123: 0 | N123: 0 | O123: 0 | P123: 0 | Q123: 0 | R123: 0 | S123: 0 | T123: 0 | U123: 0 | V123: 0 | W123: 0 | X123: 0 | Y123: 0 | Z123: 0 | AA123: 0 | AB123: 0 | AC123: 0 | AD123: 0 | AE123: 0 | AF123: 0 | AG123: 0 | AH123: 0 | AI123: 0 | AJ123: 0
D124: 13 | E124: Sitio tipo 13 | F124: [sitio] | G124: =IF(G91=0,0,CEILING(G22/G91,1)) -> 0 | H124: 0 | I124: 0 | J124: 0 | K124: 0 | L124: 0 | M124: 0 | N124: 0 | O124: 0 | P124: 0 | Q124: 0 | R124: 0 | S124: 0 | T124: 0 | U124: 0 | V124: 0 | W124: 0 | X124: 0 | Y124: 0 | Z124: 0 | AA124: 0 | AB124: 0 | AC124: 0 | AD124: 0 | AE124: 0 | AF124: 0 | AG124: 0 | AH124: 0 | AI124: 0 | AJ124: 0
D125: 14 | E125: Sitio tipo 14 | F125: [sitio] | G125: =IF(G92=0,0,CEILING(G23/G92,1)) -> 0 | H125: 0 | I125: 0 | J125: 0 | K125: 0 | L125: 0 | M125: 0 | N125: 0 | O125: 0 | P125: 0 | Q125: 0 | R125: 0 | S125: 0 | T125: 0 | U125: 0 | V125: 0 | W125: 0 | X125: 0 | Y125: 0 | Z125: 0 | AA125: 0 | AB125: 0 | AC125: 0 | AD125: 0 | AE125: 0 | AF125: 0 | AG125: 0 | AH125: 0 | AI125: 0 | AJ125: 0
D126: 15 | E126: Sitio tipo 15 | F126: [sitio] | G126: =IF(G93=0,0,CEILING(G24/G93,1)) -> 0 | H126: 0 | I126: 0 | J126: 0 | K126: 0 | L126: 0 | M126: 0 | N126: 0 | O126: 0 | P126: 0 | Q126: 0 | R126: 0 | S126: 0 | T126: 0 | U126: 0 | V126: 0 | W126: 0 | X126: 0 | Y126: 0 | Z126: 0 | AA126: 0 | AB126: 0 | AC126: 0 | AD126: 0 | AE126: 0 | AF126: 0 | AG126: 0 | AH126: 0 | AI126: 0 | AJ126: 0
D127: 16 | E127: Sitio tipo 16 | F127: [sitio] | G127: =IF(G94=0,0,CEILING(G25/G94,1)) -> 0 | H127: 0 | I127: 0 | J127: 0 | K127: 0 | L127: 0 | M127: 0 | N127: 0 | O127: 0 | P127: 0 | Q127: 0 | R127: 0 | S127: 0 | T127: 0 | U127: 0 | V127: 0 | W127: 0 | X127: 0 | Y127: 0 | Z127: 0 | AA127: 0 | AB127: 0 | AC127: 0 | AD127: 0 | AE127: 0 | AF127: 0 | AG127: 0 | AH127: 0 | AI127: 0 | AJ127: 0
D128: 17 | E128: Sitio tipo 17 | F128: [sitio] | G128: =IF(G95=0,0,CEILING(G26/G95,1)) -> 0 | H128: 0 | I128: 0 | J128: 0 | K128: 0 | L128: 0 | M128: 0 | N128: 0 | O128: 0 | P128: 0 | Q128: 0 | R128: 0 | S128: 0 | T128: 0 | U128: 0 | V128: 0 | W128: 0 | X128: 0 | Y128: 0 | Z128: 0 | AA128: 0 | AB128: 0 | AC128: 0 | AD128: 0 | AE128: 0 | AF128: 0 | AG128: 0 | AH128: 0 | AI128: 0 | AJ128: 0
D129: 18 | E129: Sitio tipo 18 | F129: [sitio] | G129: =IF(G96=0,0,CEILING(G27/G96,1)) -> 0 | H129: 0 | I129: 0 | J129: 0 | K129: 0 | L129: 0 | M129: 0 | N129: 0 | O129: 0 | P129: 0 | Q129: 0 | R129: 0 | S129: 0 | T129: 0 | U129: 0 | V129: 0 | W129: 0 | X129: 0 | Y129: 0 | Z129: 0 | AA129: 0 | AB129: 0 | AC129: 0 | AD129: 0 | AE129: 0 | AF129: 0 | AG129: 0 | AH129: 0 | AI129: 0 | AJ129: 0
D130: 19 | E130: libre | F130: [sitio] | G130: =IF(G97=0,0,CEILING(G28/G97,1)) -> 0 | H130: 0 | I130: 0 | J130: 0 | K130: 0 | L130: 0 | M130: 0 | N130: 0 | O130: 0 | P130: 0 | Q130: 0 | R130: 0 | S130: 0 | T130: 0 | U130: 0 | V130: 0 | W130: 0 | X130: 0 | Y130: 0 | Z130: 0 | AA130: 0 | AB130: 0 | AC130: 0 | AD130: 0 | AE130: 0 | AF130: 0 | AG130: 0 | AH130: 0 | AI130: 0 | AJ130: 0
D131: 20 | E131: libre | F131: [sitio] | G131: =IF(G98=0,0,CEILING(G29/G98,1)) -> 0 | H131: 0 | I131: 0 | J131: 0 | K131: 0 | L131: 0 | M131: 0 | N131: 0 | O131: 0 | P131: 0 | Q131: 0 | R131: 0 | S131: 0 | T131: 0 | U131: 0 | V131: 0 | W131: 0 | X131: 0 | Y131: 0 | Z131: 0 | AA131: 0 | AB131: 0 | AC131: 0 | AD131: 0 | AE131: 0 | AF131: 0 | AG131: 0 | AH131: 0 | AI131: 0 | AJ131: 0
D132: 21 | E132: libre | F132: [sitio] | G132: =IF(G99=0,0,CEILING(G30/G99,1)) -> 0 | H132: 0 | I132: 0 | J132: 0 | K132: 0 | L132: 0 | M132: 0 | N132: 0 | O132: 0 | P132: 0 | Q132: 0 | R132: 0 | S132: 0 | T132: 0 | U132: 0 | V132: 0 | W132: 0 | X132: 0 | Y132: 0 | Z132: 0 | AA132: 0 | AB132: 0 | AC132: 0 | AD132: 0 | AE132: 0 | AF132: 0 | AG132: 0 | AH132: 0 | AI132: 0 | AJ132: 0
D133: 22 | E133: libre | F133: [sitio] | G133: =IF(G100=0,0,CEILING(G31/G100,1)) -> 0 | H133: 0 | I133: 0 | J133: 0 | K133: 0 | L133: 0 | M133: 0 | N133: 0 | O133: 0 | P133: 0 | Q133: 0 | R133: 0 | S133: 0 | T133: 0 | U133: 0 | V133: 0 | W133: 0 | X133: 0 | Y133: 0 | Z133: 0 | AA133: 0 | AB133: 0 | AC133: 0 | AD133: 0 | AE133: 0 | AF133: 0 | AG133: 0 | AH133: 0 | AI133: 0 | AJ133: 0
D134: 23 | E134: libre | F134: [sitio] | G134: =IF(G101=0,0,CEILING(G32/G101,1)) -> 0 | H134: 0 | I134: 0 | J134: 0 | K134: 0 | L134: 0 | M134: 0 | N134: 0 | O134: 0 | P134: 0 | Q134: 0 | R134: 0 | S134: 0 | T134: 0 | U134: 0 | V134: 0 | W134: 0 | X134: 0 | Y134: 0 | Z134: 0 | AA134: 0 | AB134: 0 | AC134: 0 | AD134: 0 | AE134: 0 | AF134: 0 | AG134: 0 | AH134: 0 | AI134: 0 | AJ134: 0
D135: 24 | E135: libre | F135: [sitio] | G135: =IF(G102=0,0,CEILING(G33/G102,1)) -> 0 | H135: 0 | I135: 0 | J135: 0 | K135: 0 | L135: 0 | M135: 0 | N135: 0 | O135: 0 | P135: 0 | Q135: 0 | R135: 0 | S135: 0 | T135: 0 | U135: 0 | V135: 0 | W135: 0 | X135: 0 | Y135: 0 | Z135: 0 | AA135: 0 | AB135: 0 | AC135: 0 | AD135: 0 | AE135: 0 | AF135: 0 | AG135: 0 | AH135: 0 | AI135: 0 | AJ135: 0
D136: 25 | E136: libre | F136: [sitio] | G136: =IF(G103=0,0,CEILING(G34/G103,1)) -> 0 | H136: 0 | I136: 0 | J136: 0 | K136: 0 | L136: 0 | M136: 0 | N136: 0 | O136: 0 | P136: 0 | Q136: 0 | R136: 0 | S136: 0 | T136: 0 | U136: 0 | V136: 0 | W136: 0 | X136: 0 | Y136: 0 | Z136: 0 | AA136: 0 | AB136: 0 | AC136: 0 | AD136: 0 | AE136: 0 | AF136: 0 | AG136: 0 | AH136: 0 | AI136: 0 | AJ136: 0
D137: 26 | E137: libre | F137: [sitio] | G137: =IF(G104=0,0,CEILING(G35/G104,1)) -> 0 | H137: 0 | I137: 0 | J137: 0 | K137: 0 | L137: 0 | M137: 0 | N137: 0 | O137: 0 | P137: 0 | Q137: 0 | R137: 0 | S137: 0 | T137: 0 | U137: 0 | V137: 0 | W137: 0 | X137: 0 | Y137: 0 | Z137: 0 | AA137: 0 | AB137: 0 | AC137: 0 | AD137: 0 | AE137: 0 | AF137: 0 | AG137: 0 | AH137: 0 | AI137: 0 | AJ137: 0
D138: 27 | E138: libre | F138: [sitio] | G138: =IF(G105=0,0,CEILING(G36/G105,1)) -> 0 | H138: 0 | I138: 0 | J138: 0 | K138: 0 | L138: 0 | M138: 0 | N138: 0 | O138: 0 | P138: 0 | Q138: 0 | R138: 0 | S138: 0 | T138: 0 | U138: 0 | V138: 0 | W138: 0 | X138: 0 | Y138: 0 | Z138: 0 | AA138: 0 | AB138: 0 | AC138: 0 | AD138: 0 | AE138: 0 | AF138: 0 | AG138: 0 | AH138: 0 | AI138: 0 | AJ138: 0
D139: 28 | E139: libre | F139: [sitio] | G139: =IF(G106=0,0,CEILING(G37/G106,1)) -> 0 | H139: 0 | I139: 0 | J139: 0 | K139: 0 | L139: 0 | M139: 0 | N139: 0 | O139: 0 | P139: 0 | Q139: 0 | R139: 0 | S139: 0 | T139: 0 | U139: 0 | V139: 0 | W139: 0 | X139: 0 | Y139: 0 | Z139: 0 | AA139: 0 | AB139: 0 | AC139: 0 | AD139: 0 | AE139: 0 | AF139: 0 | AG139: 0 | AH139: 0 | AI139: 0 | AJ139: 0
D140: 29 | E140: libre | F140: [sitio] | G140: =IF(G107=0,0,CEILING(G38/G107,1)) -> 0 | H140: 0 | I140: 0 | J140: 0 | K140: 0 | L140: 0 | M140: 0 | N140: 0 | O140: 0 | P140: 0 | Q140: 0 | R140: 0 | S140: 0 | T140: 0 | U140: 0 | V140: 0 | W140: 0 | X140: 0 | Y140: 0 | Z140: 0 | AA140: 0 | AB140: 0 | AC140: 0 | AD140: 0 | AE140: 0 | AF140: 0 | AG140: 0 | AH140: 0 | AI140: 0 | AJ140: 0
D141: 30 | E141: libre | F141: [sitio] | G141: =IF(G108=0,0,CEILING(G39/G108,1)) -> 0 | H141: 0 | I141: 0 | J141: 0 | K141: 0 | L141: 0 | M141: 0 | N141: 0 | O141: 0 | P141: 0 | Q141: 0 | R141: 0 | S141: 0 | T141: 0 | U141: 0 | V141: 0 | W141: 0 | X141: 0 | Y141: 0 | Z141: 0 | AA141: 0 | AB141: 0 | AC141: 0 | AD141: 0 | AE141: 0 | AF141: 0 | AG141: 0 | AH141: 0 | AI141: 0 | AJ141: 0
E143: Total | F143: [sitio] | G143: =SUM(G112:G141) -> 4 | H143: 4 | I143: 4 | J143: 4 | K143: 4 | L143: 4 | M143: 4 | N143: 4 | O143: 4 | P143: 4 | Q143: 4 | R143: 4 | S143: 4 | T143: 4 | U143: 4 | V143: 4 | W143: 4 | X143: 4 | Y143: 4 | Z143: 4 | AA143: 4 | AB143: 4 | AC143: 4 | AD143: 4 | AE143: 4 | AF143: 4 | AG143: 4 | AH143: 4 | AI143: 4 | AJ143: 4
B145: II | C145: Diseño de la red de acceso completa
B146: 1 | C146: Nivel de estaciones base
C147: a | D147: Cálculo de la cantidad de sitios
G148: Nota: Las fórmulas de este recuadro no se pueden arrastrar
F149: aux.banda | G149: 1 | H149: 1 | I149: 1 | J149: 2 | K149: 1
D150: id | E150: Capacidad espectral de un sector | G150: =lista.escenarios -> escenario 1 | H150: escenario 2 | I150: escenario 3 | J150: escenario 4 | K150: escenario 5 | M150: aux.rural.carr | O150: original | P150: propuesto | Q150: <--- activar el factor de no - homogeneidad de tráfico
D151: 1 | E151: =INDEX(lista.tipo.sitios,D151) -> Sitio tipo 1 | F151: [TRX/sector] | G151: =IF(INDEX(espectro.gsm850,G$5)=0,0,FLOOR(INDEX(espectro.gsm850,G$5)/(ancho.banda.TRX*INDEX(factor.reuso.urbana,G$4))-SIGN($M151)*factor.nohomogeneidad.tráfico,1)) -> 0 | H151: =IF(INDEX(espectro.gsm850,H$5)=0,0,FLOOR(INDEX(espectro.gsm850,H$5)/(ancho.banda.TRX*INDEX(factor.reuso.urbana,H$4))-SIGN($M151)*factor.nohomogeneidad.tráfico,1)) -> 0 | I151: =IF(INDEX(espectro.gsm850,I$5)=0,0,FLOOR(INDEX(espectro.gsm850,I$5)/(ancho.banda.TRX*INDEX(factor.reuso.urbana,I$4))-SIGN($M151)*factor.nohomogeneidad.tráfico,1)) -> 0 | J151: =IF(INDEX(espectro.gsm850,J$5)=0,0,FLOOR(INDEX(espectro.gsm850,J$5)/(ancho.banda.TRX*INDEX(factor.reuso.urbana,J$4))-SIGN($M151)*factor.nohomogeneidad.tráfico,1)) -> 0 | K151: =IF(INDEX(espectro.gsm850,K$5)=0,0,FLOOR(INDEX(espectro.gsm850,K$5)/(ancho.banda.TRX*INDEX(factor.reuso.urbana,K$4))-SIGN($M151)*factor.nohomogeneidad.tráfico,1)) -> 0 | M151: 0 | O151: 0 | P151: 1
D152: =D151+1 -> 2 | E152: Sitio tipo 2 | F152: [TRX/sector] | G152: =IF(INDEX(espectro.gsm850,G$5)=0,0,FLOOR(INDEX(espectro.gsm850,G$5)/(ancho.banda.TRX*INDEX(factor.reuso.semiurbana,G$4))-SIGN($M152)*factor.nohomogeneidad.tráfico,1)) -> 0 | H152: =IF(INDEX(espectro.gsm850,H$5)=0,0,FLOOR(INDEX(espectro.gsm850,H$5)/(ancho.banda.TRX*INDEX(factor.reuso.semiurbana,H$4))-SIGN($M152)*factor.nohomogeneidad.tráfico,1)) -> 0 | I152: =IF(INDEX(espectro.gsm850,I$5)=0,0,FLOOR(INDEX(espectro.gsm850,I$5)/(ancho.banda.TRX*INDEX(factor.reuso.semiurbana,I$4))-SIGN($M152)*factor.nohomogeneidad.tráfico,1)) -> 0 | J152: =IF(INDEX(espectro.gsm850,J$5)=0,0,FLOOR(INDEX(espectro.gsm850,J$5)/(ancho.banda.TRX*INDEX(factor.reuso.semiurbana,J$4))-SIGN($M152)*factor.nohomogeneidad.tráfico,1)) -> 0 | K152: =IF(INDEX(espectro.gsm850,K$5)=0,0,FLOOR(INDEX(espectro.gsm850,K$5)/(ancho.banda.TRX*INDEX(factor.reuso.semiurbana,K$4))-SIGN($M152)*factor.nohomogeneidad.tráfico,1)) -> 0 | M152: 0 | O152: 0 | P152: 1
D153: 3 | E153: Sitio tipo 3 | F153: [TRX/sector] | G153: =IF(INDEX(espectro.gsm850,G$5)=0,0,FLOOR(INDEX(espectro.gsm850,G$5)/(ancho.banda.TRX*INDEX(factor.reuso.rural,G$4))-SIGN($M153)*factor.nohomogeneidad.tráfico,1)) -> 0 | H153: 0 | I153: 0 | J153: 0 | K153: 0 | M153: 0 | O153: 1 | P153: 0
D154: 4 | E154: Sitio tipo 4 | F154: [TRX/sector] | G154: 0 | H154: 0 | I154: 0 | J154: 0 | K154: 0 | M154: 0 | O154: 1 | P154: 0
D155: 5 | E155: Sitio tipo 5 | F155: [TRX/sector] | G155: =IF(INDEX(espectro.gsm850,G$5)=0,0,FLOOR(INDEX(espectro.gsm850,G$5)/(ancho.banda.TRX*INDEX(factor.reuso.urbana,G$4))-SIGN($M155)*factor.nohomogeneidad.tráfico,1)) -> 0 | H155: =IF(INDEX(espectro.gsm850,H$5)=0,0,FLOOR(INDEX(espectro.gsm850,H$5)/(ancho.banda.TRX*INDEX(factor.reuso.urbana,H$4))-SIGN($M155)*factor.nohomogeneidad.tráfico,1)) -> 0 | I155: =IF(INDEX(espectro.gsm850,I$5)=0,0,FLOOR(INDEX(espectro.gsm850,I$5)/(ancho.banda.TRX*INDEX(factor.reuso.urbana,I$4))-SIGN($M155)*factor.nohomogeneidad.tráfico,1)) -> 0 | J155: =IF(INDEX(espectro.gsm850,J$5)=0,0,FLOOR(INDEX(espectro.gsm850,J$5)/(ancho.banda.TRX*INDEX(factor.reuso.urbana,J$4))-SIGN($M155)*factor.nohomogeneidad.tráfico,1)) -> 0 | K155: =IF(INDEX(espectro.gsm850,K$5)=0,0,FLOOR(INDEX(espectro.gsm850,K$5)/(ancho.banda.TRX*INDEX(factor.reuso.urbana,K$4))-SIGN($M155)*factor.nohomogeneidad.tráfico,1)) -> 0 | M155: 0 | O155: 0 | P155: 1
D156: 6 | E156: Sitio tipo 6 | F156: [TRX/sector] | G156: =IF(INDEX(espectro.gsm850,G$5)=0,0,FLOOR(INDEX(espectro.gsm850,G$5)/(ancho.banda.TRX*INDEX(factor.reuso.semiurbana,G$4))-SIGN($M156)*factor.nohomogeneidad.tráfico,1)) -> 0 | H156: =IF(INDEX(espectro.gsm850,H$5)=0,0,FLOOR(INDEX(espectro.gsm850,H$5)/(ancho.banda.TRX*INDEX(factor.reuso.semiurbana,H$4))-SIGN($M156)*factor.nohomogeneidad.tráfico,1)) -> 0 | I156: =IF(INDEX(espectro.gsm850,I$5)=0,0,FLOOR(INDEX(espectro.gsm850,I$5)/(ancho.banda.TRX*INDEX(factor.reuso.semiurbana,I$4))-SIGN($M156)*factor.nohomogeneidad.tráfico,1)) -> 0 | J156: =IF(INDEX(espectro.gsm850,J$5)=0,0,FLOOR(INDEX(espectro.gsm850,J$5)/(ancho.banda.TRX*INDEX(factor.reuso.semiurbana,J$4))-SIGN($M156)*factor.nohomogeneidad.tráfico,1)) -> 0 | K156: =IF(INDEX(espectro.gsm850,K$5)=0,0,FLOOR(INDEX(espectro.gsm850,K$5)/(ancho.banda.TRX*INDEX(factor.reuso.semiurbana,K$4))-SIGN($M156)*factor.nohomogeneidad.tráfico,1)) -> 0 | M156: 0 | O156: 0 | P156: 1
D157: 7 | E157: Sitio tipo 7 | F157: [TRX/sector] | G157: =IF(INDEX(espectro.gsm1900,G$5)=0,0,FLOOR(INDEX(espectro.gsm1900,G$5)/(ancho.banda.TRX*INDEX(factor.reuso.urbana,G$4))-SIGN($M157)*factor.nohomogeneidad.tráfico,1)) -> 0 | H157: =IF(INDEX(espectro.gsm1900,H$5)=0,0,FLOOR(INDEX(espectro.gsm1900,H$5)/(ancho.banda.TRX*INDEX(factor.reuso.urbana,H$4))-SIGN($M157)*factor.nohomogeneidad.tráfico,1)) -> 0 | I157: =IF(INDEX(espectro.gsm1900,I$5)=0,0,FLOOR(INDEX(espectro.gsm1900,I$5)/(ancho.banda.TRX*INDEX(factor.reuso.urbana,I$4))-SIGN($M157)*factor.nohomogeneidad.tráfico,1)) -> 0 | J157: =IF(INDEX(espectro.gsm1900,J$5)=0,0,FLOOR(INDEX(espectro.gsm1900,J$5)/(ancho.banda.TRX*INDEX(factor.reuso.urbana,J$4))-SIGN($M157)*factor.nohomogeneidad.tráfico,1)) -> 0 | K157: =IF(INDEX(espectro.gsm1900,K$5)=0,0,FLOOR(INDEX(espectro.gsm1900,K$5)/(ancho.banda.TRX*INDEX(factor.reuso.urbana,K$4))-SIGN($M157)*factor.nohomogeneidad.tráfico,1)) -> 0 | M157: 0 | O157: 0 | P157: 1
D158: 8 | E158: Sitio tipo 8 | F158: [TRX/sector] | G158: =IF(INDEX(espectro.gsm1900,G$5)=0,0,FLOOR(INDEX(espectro.gsm1900,G$5)/(ancho.banda.TRX*INDEX(factor.reuso.semiurbana,G$4))-SIGN($M158)*factor.nohomogeneidad.tráfico,1)) -> 0 | H158: =IF(INDEX(espectro.gsm1900,H$5)=0,0,FLOOR(INDEX(espectro.gsm1900,H$5)/(ancho.banda.TRX*INDEX(factor.reuso.semiurbana,H$4))-SIGN($M158)*factor.nohomogeneidad.tráfico,1)) -> 0 | I158: =IF(INDEX(espectro.gsm1900,I$5)=0,0,FLOOR(INDEX(espectro.gsm1900,I$5)/(ancho.banda.TRX*INDEX(factor.reuso.semiurbana,I$4))-SIGN($M158)*factor.nohomogeneidad.tráfico,1)) -> 0 | J158: =IF(INDEX(espectro.gsm1900,J$5)=0,0,FLOOR(INDEX(espectro.gsm1900,J$5)/(ancho.banda.TRX*INDEX(factor.reuso.semiurbana,J$4))-SIGN($M158)*factor.nohomogeneidad.tráfico,1)) -> 0 | K158: =IF(INDEX(espectro.gsm1900,K$5)=0,0,FLOOR(INDEX(espectro.gsm1900,K$5)/(ancho.banda.TRX*INDEX(factor.reuso.semiurbana,K$4))-SIGN($M158)*factor.nohomogeneidad.tráfico,1)) -> 0 | M158: 0 | O158: 0 | P158: 1
D159: 9 | E159: Sitio tipo 9 | F159: [TRX/sector] | G159: =IF(INDEX(espectro.gsm1900,G$5)=0,0,FLOOR(INDEX(espectro.gsm1900,G$5)/(ancho.banda.TRX*INDEX(factor.reuso.rural,G$4))-SIGN($M159)*factor.nohomogeneidad.tráfico,1)) -> 0 | H159: 0 | I159: 0 | J159: 0 | K159: 0 | M159: 0 | O159: 1 | P159: 0
D160: 10 | E160: Sitio tipo 10 | F160: [TRX/sector] | G160: 0 | H160: 0 | I160: 0 | J160: 0 | K160: 0 | M160: 0 | O160: 1 | P160: 0
D161: 11 | E161: Sitio tipo 11 | F161: [TRX/sector] | G161: =IF(INDEX(espectro.gsm1900,G$5)=0,0,FLOOR(INDEX(espectro.gsm1900,G$5)/(ancho.banda.TRX*INDEX(factor.reuso.urbana,G$4))-SIGN($M161)*factor.nohomogeneidad.tráfico,1)) -> 0 | H161: =IF(INDEX(espectro.gsm1900,H$5)=0,0,FLOOR(INDEX(espectro.gsm1900,H$5)/(ancho.banda.TRX*INDEX(factor.reuso.urbana,H$4))-SIGN($M161)*factor.nohomogeneidad.tráfico,1)) -> 0 | I161: =IF(INDEX(espectro.gsm1900,I$5)=0,0,FLOOR(INDEX(espectro.gsm1900,I$5)/(ancho.banda.TRX*INDEX(factor.reuso.urbana,I$4))-SIGN($M161)*factor.nohomogeneidad.tráfico,1)) -> 0 | J161: =IF(INDEX(espectro.gsm1900,J$5)=0,0,FLOOR(INDEX(espectro.gsm1900,J$5)/(ancho.banda.TRX*INDEX(factor.reuso.urbana,J$4))-SIGN($M161)*factor.nohomogeneidad.tráfico,1)) -> 0 | K161: =IF(INDEX(espectro.gsm1900,K$5)=0,0,FLOOR(INDEX(espectro.gsm1900,K$5)/(ancho.banda.TRX*INDEX(factor.reuso.urbana,K$4))-SIGN($M161)*factor.nohomogeneidad.tráfico,1)) -> 0 | M161: 0 | O161: 0 | P161: 1
D162: 12 | E162: Sitio tipo 12 | F162: [TRX/sector] | G162: =IF(INDEX(espectro.gsm1900,G$5)=0,0,FLOOR(INDEX(espectro.gsm1900,G$5)/(ancho.banda.TRX*INDEX(factor.reuso.semiurbana,G$4))-SIGN($M162)*factor.nohomogeneidad.tráfico,1)) -> 0 | H162: =IF(INDEX(espectro.gsm1900,H$5)=0,0,FLOOR(INDEX(espectro.gsm1900,H$5)/(ancho.banda.TRX*INDEX(factor.reuso.semiurbana,H$4))-SIGN($M162)*factor.nohomogeneidad.tráfico,1)) -> 0 | I162: =IF(INDEX(espectro.gsm1900,I$5)=0,0,FLOOR(INDEX(espectro.gsm1900,I$5)/(ancho.banda.TRX*INDEX(factor.reuso.semiurbana,I$4))-SIGN($M162)*factor.nohomogeneidad.tráfico,1)) -> 0 | J162: =IF(INDEX(espectro.gsm1900,J$5)=0,0,FLOOR(INDEX(espectro.gsm1900,J$5)/(ancho.banda.TRX*INDEX(factor.reuso.semiurbana,J$4))-SIGN($M162)*factor.nohomogeneidad.tráfico,1)) -> 0 | K162: =IF(INDEX(espectro.gsm1900,K$5)=0,0,FLOOR(INDEX(espectro.gsm1900,K$5)/(ancho.banda.TRX*INDEX(factor.reuso.semiurbana,K$4))-SIGN($M162)*factor.nohomogeneidad.tráfico,1)) -> 0 | M162: 0 | O162: 0 | P162: 1
D163: 13 | E163: Sitio tipo 13 | F163: [TRX/sector] | G163: =IF(OR(INDEX(espectro.gsm850,G$5)=0,INDEX(espectro.gsm1900,G$5)=0),0,FLOOR((G151*INDEX(espectro.gsm850,G$5)+G157*INDEX(espectro.gsm1900,G$5))/(INDEX(espectro.gsm850,G$5)+INDEX(espectro.gsm1900,G$5)),1)) -> 0 | H163: 0 | I163: 0 | J163: 0 | K163: 0 | M163: 0 | O163: 0 | P163: 1
D164: 14 | E164: Sitio tipo 14 | F164: [TRX/sector] | G164: 0 | H164: 0 | I164: 0 | J164: 0 | K164: 0 | M164: 0 | O164: 0 | P164: 1
D165: 15 | E165: Sitio tipo 15 | F165: [TRX/sector] | G165: 0 | H165: 0 | I165: 0 | J165: 0 | K165: 0 | M165: 0 | O165: 1 | P165: 0
D166: 16 | E166: Sitio tipo 16 | F166: [TRX/sector] | G166: 0 | H166: 0 | I166: 0 | J166: 0 | K166: 0 | M166: 0 | O166: 1 | P166: 0
D167: 17 | E167: Sitio tipo 17 | F167: [TRX/sector] | G167: 0 | H167: 0 | I167: 0 | J167: 0 | K167: 0 | M167: 0 | O167: 0 | P167: 1
D168: 18 | E168: Sitio tipo 18 | F168: [TRX/sector] | G168: 0 | H168: 0 | I168: 0 | J168: 0 | K168: 0 | M168: 0 | O168: 0 | P168: 1
D169: 19 | E169: libre | F169: [TRX/sector] | G169: 0 | H169: 0 | I169: 0 | J169: 0 | K169: 0 | M169: 0 | O169: 0 | P169: 0
D170: 20 | E170: libre | F170: [TRX/sector] | G170: 0 | H170: 0 | I170: 0 | J170: 0 | K170: 0 | M170: 0 | O170: 0 | P170: 0
D171: 21 | E171: libre | F171: [TRX/sector] | G171: 0 | H171: 0 | I171: 0 | J171: 0 | K171: 0 | M171: 0 | O171: 0 | P171: 0
D172: 22 | E172: libre | F172: [TRX/sector] | G172: 0 | H172: 0 | I172: 0 | J172: 0 | K172: 0 | M172: 0 | O172: 0 | P172: 0
D173: 23 | E173: libre | F173: [TRX/sector] | G173: 0 | H173: 0 | I173: 0 | J173: 0 | K173: 0 | M173: 0 | O173: 0 | P173: 0
D174: 24 | E174: libre | F174: [TRX/sector] | G174: 0 | H174: 0 | I174: 0 | J174: 0 | K174: 0 | M174: 0 | O174: 0 | P174: 0
D175: 25 | E175: libre | F175: [TRX/sector] | G175: 0 | H175: 0 | I175: 0 | J175: 0 | K175: 0 | M175: 0 | O175: 0 | P175: 0
D176: 26 | E176: libre | F176: [TRX/sector] | G176: 0 | H176: 0 | I176: 0 | J176: 0 | K176: 0 | M176: 0 | O176: 0 | P176: 0
D177: 27 | E177: libre | F177: [TRX/sector] | G177: 0 | H177: 0 | I177: 0 | J177: 0 | K177: 0 | M177: 0 | O177: 0 | P177: 0
D178: 28 | E178: libre | F178: [TRX/sector] | G178: 0 | H178: 0 | I178: 0 | J178: 0 | K178: 0 | M178: 0 | O178: 0 | P178: 0
D179: 29 | E179: libre | F179: [TRX/sector] | G179: 0 | H179: 0 | I179: 0 | J179: 0 | K179: 0 | M179: 0 | O179: 0 | P179: 0
D180: 30 | E180: libre | F180: [TRX/sector] | G180: 0 | H180: 0 | I180: 0 | J180: 0 | K180: 0 | M180: 0 | O180: 0 | P180: 0 | Q180: Comentario: Es la capacidad límite debido a la cantidad de espectro y su reuso
G182: 1 | H182: 2 | I182: 3
D183: id | E183: Capacidad física de un sector | G183: =TRANSPOSE(lista.tecnología) -> GSM_850 | H183: GSM_1900 | I183: Dual | J183: Total
D184: 1 | E184: =INDEX(lista.tipo.sitios,D184) -> Sitio tipo 1 | F184: [TRX/sector] | G184: =INDEX(capacidad.física.sector.TRX,$D184,G$182) -> 1 | H184: 0 | I184: 0 | J184: =SUM(G184:I184) -> 1
D185: =D184+1 -> 2 | E185: Sitio tipo 2 | F185: [TRX/sector] | G185: 1 | H185: 0 | I185: 0 | J185: =SUM(G185:I185) -> 1
D186: 3 | E186: Sitio tipo 3 | F186: [TRX/sector] | G186: 1 | H186: 0 | I186: 0 | J186: 1
D187: 4 | E187: Sitio tipo 4 | F187: [TRX/sector] | G187: 1 | H187: 0 | I187: 0 | J187: 1
D188: 5 | E188: Sitio tipo 5 | F188: [TRX/sector] | G188: 1 | H188: 0 | I188: 0 | J188: 1
D189: 6 | E189: Sitio tipo 6 | F189: [TRX/sector] | G189: 1 | H189: 0 | I189: 0 | J189: 1
D190: 7 | E190: Sitio tipo 7 | F190: [TRX/sector] | G190: 0 | H190: 1 | I190: 0 | J190: 1
D191: 8 | E191: Sitio tipo 8 | F191: [TRX/sector] | G191: 0 | H191: 1 | I191: 0 | J191: 1
D192: 9 | E192: Sitio tipo 9 | F192: [TRX/sector] | G192: 0 | H192: 1 | I192: 0 | J192: 1
D193: 10 | E193: Sitio tipo 10 | F193: [TRX/sector] | G193: 0 | H193: 1 | I193: 0 | J193: 1
D194: 11 | E194: Sitio tipo 11 | F194: [TRX/sector] | G194: 0 | H194: 1 | I194: 0 | J194: 1
D195: 12 | E195: Sitio tipo 12 | F195: [TRX/sector] | G195: 0 | H195: 1 | I195: 0 | J195: 1
D196: 13 | E196: Sitio tipo 13 | F196: [TRX/sector] | G196: 0 | H196: 0 | I196: 1 | J196: 1
D197: 14 | E197: Sitio tipo 14 | F197: [TRX/sector] | G197: 0 | H197: 0 | I197: 1 | J197: 1
D198: 15 | E198: Sitio tipo 15 | F198: [TRX/sector] | G198: 0 | H198: 0 | I198: 1 | J198: 1
D199: 16 | E199: Sitio tipo 16 | F199: [TRX/sector] | G199: 0 | H199: 0 | I199: 1 | J199: 1
D200: 17 | E200: Sitio tipo 17 | F200: [TRX/sector] | G200: 0 | H200: 0 | I200: 1 | J200: 1
D201: 18 | E201: Sitio tipo 18 | F201: [TRX/sector] | G201: 0 | H201: 0 | I201: 1 | J201: 1
D202: 19 | E202: libre | F202: [TRX/sector] | G202: 0 | H202: 0 | I202: 0 | J202: 0
D203: 20 | E203: libre | F203: [TRX/sector] | G203: 0 | H203: 0 | I203: 0 | J203: 0
D204: 21 | E204: libre | F204: [TRX/sector] | G204: 0 | H204: 0 | I204: 0 | J204: 0
D205: 22 | E205: libre | F205: [TRX/sector] | G205: 0 | H205: 0 | I205: 0 | J205: 0
D206: 23 | E206: libre | F206: [TRX/sector] | G206: 0 | H206: 0 | I206: 0 | J206: 0
D207: 24 | E207: libre | F207: [TRX/sector] | G207: 0 | H207: 0 | I207: 0 | J207: 0
D208: 25 | E208: libre | F208: [TRX/sector] | G208: 0 | H208: 0 | I208: 0 | J208: 0
D209: 26 | E209: libre | F209: [TRX/sector] | G209: 0 | H209: 0 | I209: 0 | J209: 0
... 1721 more rows

Sheet Diseño.Red.Núcleo
E1: Diseño de la red núcleo
F3: años | G3: 1 | H3: 2 | I3: 3 | J3: 4 | K3: 5 | L3: 6 | M3: =G3 -> 1 | N3: 2 | O3: 3 | P3: 4 | Q3: 5 | R3: 6 | S3: =M3 -> 1 | T3: 2 | U3: 3 | V3: 4 | W3: 5 | X3: 6 | Y3: =S3 -> 1 | Z3: 2 | AA3: 3 | AB3: 4 | AC3: 5 | AD3: 6 | AE3: =Y3 -> 1 | AF3: 2 | AG3: 3 | AH3: 4 | AI3: 5 | AJ3: 6 | AK3: =G3 -> 1 | AL3: =H3 -> 2 | AM3: =I3 -> 3 | AN3: =J3 -> 4 | AO3: =K3 -> 5 | AP3: =L3 -> 6 | AQ3: =M3 -> 1 | AR3: =N3 -> 2 | AS3: =O3 -> 3 | AT3: =P3 -> 4 | AU3: =Q3 -> 5 | AV3: =R3 -> 6 | AW3: =S3 -> 1 | AX3: =T3 -> 2 | AY3: =U3 -> 3 | AZ3: =V3 -> 4 | BA3: =W3 -> 5 | BB3: =X3 -> 6 | BC3: =Y3 -> 1 | BD3: =Z3 -> 2 | BE3: =AA3 -> 3 | BF3: =AB3 -> 4 | BG3: =AC3 -> 5 | BH3: =AD3 -> 6 | BI3: =AE3 -> 1 | BJ3: =AF3 -> 2 | BK3: =AG3 -> 3 | BL3: =AH3 -> 4 | BM3: =AI3 -> 5 | BN3: =AJ3 -> 6 | BO3: =AK3 -> 1 | BP3: =AL3 -> 2 | BQ3: =AM3 -> 3 | BR3: =AN3 -> 4 | BS3: =AO3 -> 5 | BT3: =AP3 -> 6 | BU3: =AQ3 -> 1 | BV3: =AR3 -> 2 | BW3: =AS3 -> 3 | BX3: =AT3 -> 4 | BY3: =AU3 -> 5 | BZ3: =AV3 -> 6 | CA3: =AW3 -> 1 | CB3: =AX3 -> 2 | CC3: =AY3 -> 3 | CD3: =AZ3 -> 4 | CE3: =BA3 -> 5 | CF3: =BB3 -> 6 | CG3: =BC3 -> 1 | CH3: =BD3 -> 2 | CI3: =BE3 -> 3 | CJ3: =BF3 -> 4 | CK3: =BG3 -> 5 | CL3: =BH3 -> 6 | CM3: =BI3 -> 1 | CN3: =BJ3 -> 2 | CO3: =BK3 -> 3 | CP3: =BL3 -> 4 | CQ3: =BM3 -> 5 | CR3: =BN3 -> 6 | CS3: =BO3 -> 1 | CT3: =BP3 -> 2 | CU3: =BQ3 -> 3 | CV3: =BR3 -> 4 | CW3: =BS3 -> 5 | CX3: =BT3 -> 6 | CY3: =BU3 -> 1 | CZ3: =BV3 -> 2 | DA3: =BW3 -> 3 | DB3: =BX3 -> 4 | DC3: =BY3 -> 5 | DD3: =BZ3 -> 6 | DE3: =CA3 -> 1 | DF3: =CB3 -> 2 | DG3: =CC3 -> 3 | DH3: =CD3 -> 4 | DI3: =CE3 -> 5 | DJ3: =CF3 -> 6 | DK3: =CG3 -> 1 | DL3: =CH3 -> 2 | DM3: =CI3 -> 3 | DN3: =CJ3 -> 4 | DO3: =CK3 -> 5 | DP3: =CL3 -> 6 | DQ3: =CM3 -> 1 | DR3: =CN3 -> 2 | DS3: =CO3 -> 3 | DT3: =CP3 -> 4 | DU3: =CQ3 -> 5 | DV3: =CR3 -> 6 | DW3: =CS3 -> 1 | DX3: =CT3 -> 2 | DY3: =CU3 -> 3 | DZ3: =CV3 -> 4 | EA3: =CW3 -> 5 | EB3: =CX3 -> 6 | EC3: =CY3 -> 1 | ED3: =CZ3 -> 2 | EE3: =DA3 -> 3 | EF3: =DB3 -> 4 | EG3: =DC3 -> 5 | EH3: =DD3 -> 6 | EI3: =DE3 -> 1 | EJ3: =DF3 -> 2 | EK3: =DG3 -> 3 | EL3: =DH3 -> 4 | EM3: =DI3 -> 5 | EN3: =DJ3 -> 6 | EO3: =DK3 -> 1 | EP3: =DL3 -> 2 | EQ3: =DM3 -> 3 | ER3: =DN3 -> 4 | ES3: =DO3 -> 5 | ET3: =DP3 -> 6 | EU3: =DQ3 -> 1 | EV3: =DR3 -> 2 | EW3: =DS3 -> 3 | EX3: =DT3 -> 4 | EY3: =DU3 -> 5 | EZ3: =DV3 -> 6 | FA3: =DW3 -> 1 | FB3: =DX3 -> 2 | FC3: =DY3 -> 3 | FD3: =DZ3 -> 4 | FE3: =EA3 -> 5 | FF3: =EB3 -> 6 | FG3: =EC3 -> 1 | FH3: =ED3 -> 2 | FI3: =EE3 -> 3 | FJ3: =EF3 -> 4 | FK3: =EG3 -> 5 | FL3: =EH3 -> 6 | FM3: =EI3 -> 1 | FN3: =EJ3 -> 2 | FO3: =EK3 -> 3 | FP3: =EL3 -> 4 | FQ3: =EM3 -> 5 | FR3: =EN3 -> 6 | FS3: =EO3 -> 1 | FT3: =EP3 -> 2 | FU3: =EQ3 -> 3 | FV3: =ER3 -> 4 | FW3: =ES3 -> 5 | FX3: =ET3 -> 6 | FY3: =EU3 -> 1 | FZ3: =EV3 -> 2 | GA3: =EW3 -> 3 | GB3: =EX3 -> 4 | GC3: =EY3 -> 5 | GD3: =EZ3 -> 6 | GE3: =FA3 -> 1 | GF3: =FB3 -> 2 | GG3: =FC3 -> 3 | GH3: =FD3 -> 4 | GI3: =FE3 -> 5 | GJ3: =FF3 -> 6 | GK3: =FG3 -> 1 | GL3: =FH3 -> 2 | GM3: =FI3 -> 3 | GN3: =FJ3 -> 4 | GO3: =FK3 -> 5 | GP3: =FL3 -> 6 | GQ3: =FM3 -> 1 | GR3: =FN3 -> 2 | GS3: =FO3 -> 3 | GT3: =FP3 -> 4 | GU3: =FQ3 -> 5 | GV3: =FR3 -> 6 | GW3: =FS3 -> 1 | GX3: =FT3 -> 2 | GY3: =FU3 -> 3 | GZ3: =FV3 -> 4 | HA3: =FW3 -> 5 | HB3: =FX3 -> 6 | HC3: =FY3 -> 1 | HD3: =FZ3 -> 2 | HE3: =GA3 -> 3 | HF3: =GB3 -> 4 | HG3: =GC3 -> 5 | HH3: =GD3 -> 6 | HI3: =GE3 -> 1 | HJ3: =GF3 -> 2 | HK3: =GG3 -> 3 | HL3: =GH3 -> 4 | HM3: =GI3 -> 5 | HN3: =GJ3 -> 6 | HO3: =GK3 -> 1 | HP3: =GL3 -> 2 | HQ3: =GM3 -> 3 | HR3: =GN3 -> 4 | HS3: =GO3 -> 5 | HT3: =GP3 -> 6 | HU3: =GQ3 -> 1 | HV3: =GR3 -> 2 | HW3: =GS3 -> 3 | HX3: =GT3 -> 4 | HY3: =GU3 -> 5 | HZ3: =GV3 -> 6 | IA3: =GW3 -> 1 | IB3: =GX3 -> 2 | IC3: =GY3 -> 3 | ID3: =GZ3 -> 4 | IE3: =HA3 -> 5 | IF3: =HB3 -> 6 | IG3: =HC3 -> 1 | IH3: =HD3 -> 2 | II3: =HE3 -> 3 | IJ3: =HF3 -> 4 | IK3: =HG3 -> 5 | IL3: =HH3 -> 6 | IM3: =HI3 -> 1 | IN3: =HJ3 -> 2 | IO3: =HK3 -> 3 | IP3: =HL3 -> 4 | IQ3: =HM3 -> 5 | IR3: =HN3 -> 6 | IS3: =HO3 -> 1 | IT3: =HP3 -> 2 | IU3: =HQ3 -> 3 | IV3: =HR3 -> 4 | IW3: =HS3 -> 5 | IX3: =HT3 -> 6 | IY3: =HU3 -> 1 | IZ3: =HV3 -> 2 | JA3: =HW3 -> 3 | JB3: =HX3 -> 4 | JC3: =HY3 -> 5 | JD3: =HZ3 -> 6 | JE3: =IA3 -> 1 | JF3: =IB3 -> 2 | JG3: =IC3 -> 3 | JH3: =ID3 -> 4 | JI3: =IE3 -> 5 | JJ3: =IF3 -> 6 | JK3: =IG3 -> 1 | JL3: =IH3 -> 2 | JM3: =II3 -> 3 | JN3: =IJ3 -> 4 | JO3: =IK3 -> 5 | JP3: =IL3 -> 6 | JQ3: =IM3 -> 1 | JR3: =IN3 -> 2 | JS3: =IO3 -> 3 | JT3: =IP3 -> 4 | JU3: =IQ3 -> 5 | JV3: =IR3 -> 6 | JW3: =IS3 -> 1 | JX3: =IT3 -> 2 | JY3: =IU3 -> 3 | JZ3: =IV3 -> 4 | KA3: =IW3 -> 5 | KB3: =IX3 -> 6 | KC3: =IY3 -> 1 | KD3: =IZ3 -> 2 | KE3: =JA3 -> 3 | KF3: =JB3 -> 4 | KG3: =JC3 -> 5 | KH3: =JD3 -> 6 | KI3: =JE3 -> 1 | KJ3: =JF3 -> 2 | KK3: =JG3 -> 3 | KL3: =JH3 -> 4 | KM3: =JI3 -> 5 | KN3: =JJ3 -> 6 | KO3: =JK3 -> 1 | KP3: =JL3 -> 2 | KQ3: =JM3 -> 3 | KR3: =JN3 -> 4 | KS3: =JO3 -> 5 | KT3: =JP3 -> 6 | KU3: =JQ3 -> 1 | KV3: =JR3 -> 2 | KW3: =JS3 -> 3 | KX3: =JT3 -> 4 | KY3: =JU3 -> 5 | KZ3: =JV3 -> 6 | LA3: =JW3 -> 1 | LB3: =JX3 -> 2 | LC3: =JY3 -> 3 | LD3: =JZ3 -> 4 | LE3: =KA3 -> 5 | LF3: =KB3 -> 6 | LG3: =KC3 -> 1 | LH3: =KD3 -> 2 | LI3: =KE3 -> 3 | LJ3: =KF3 -> 4 | LK3: =KG3 -> 5 | LL3: =KH3 -> 6 | LM3: =KI3 -> 1 | LN3: =KJ3 -> 2 | LO3: =KK3 -> 3 | LP3: =KL3 -> 4 | LQ3: =KM3 -> 5 | LR3: =KN3 -> 6 | LS3: =KO3 -> 1 | LT3: =KP3 -> 2 | LU3: =KQ3 -> 3 | LV3: =KR3 -> 4 | LW3: =KS3 -> 5 | LX3: =KT3 -> 6 | LY3: =KU3 -> 1 | LZ3: =KV3 -> 2 | MA3: =KW3 -> 3 | MB3: =KX3 -> 4 | MC3: =KY3 -> 5 | MD3: =KZ3 -> 6 | ME3: =LA3 -> 1 | MF3: =LB3 -> 2 | MG3: =LC3 -> 3 | MH3: =LD3 -> 4 | MI3: =LE3 -> 5 | MJ3: =LF3 -> 6 | MK3: =LG3 -> 1 | ML3: =LH3 -> 2 | MM3: =LI3 -> 3 | MN3: =LJ3 -> 4 | MO3: =LK3 -> 5 | MP3: =LL3 -> 6 | MQ3: =LM3 -> 1 | MR3: =LN3 -> 2 | MS3: =LO3 -> 3 | MT3: =LP3 -> 4 | MU3: =LQ3 -> 5 | MV3: =LR3 -> 6 | MW3: =LS3 -> 1 | MX3: =LT3 -> 2 | MY3: =LU3 -> 3 | MZ3: =LV3 -> 4 | NA3: =LW3 -> 5 | NB3: =LX3 -> 6 | NC3: =LY3 -> 1 | ND3: =LZ3 -> 2 | NE3: =MA3 -> 3 | NF3: =MB3 -> 4 | NG3: =MC3 -> 5 | NH3: =MD3 -> 6 | NI3: =ME3 -> 1 | NJ3: =MF3 -> 2 | NK3: =MG3 -> 3 | NL3: =MH3 -> 4 | NM3: =MI3 -> 5 | NN3: =MJ3 -> 6 | NO3: =MK3 -> 1 | NP3: =ML3 -> 2 | NQ3: =MM3 -> 3 | NR3: =MN3 -> 4 | NS3: =MO3 -> 5 | NT3: =MP3 -> 6 | NU3: =MQ3 -> 1 | NV3: =MR3 -> 2 | NW3: =MS3 -> 3 | NX3: =MT3 -> 4 | NY3: =MU3 -> 5 | NZ3: =MV3 -> 6 | OA3: =MW3 -> 1 | OB3: =MX3 -> 2 | OC3: =MY3 -> 3 | OD3: =MZ3 -> 4 | OE3: =NA3 -> 5 | OF3: =NB3 -> 6 | OG3: =NC3 -> 1 | OH3: =ND3 -> 2 | OI3: =NE3 -> 3 | OJ3: =NF3 -> 4 | OK3: =NG3 -> 5 | OL3: =NH3 -> 6 | OM3: =NI3 -> 1 | ON3: =NJ3 -> 2 | OO3: =NK3 -> 3 | OP3: =NL3 -> 4 | OQ3: =NM3 -> 5 | OR3: =NN3 -> 6 | OS3: =NO3 -> 1 | OT3: =NP3 -> 2 | OU3: =NQ3 -> 3 | OV3: =NR3 -> 4 | OW3: =NS3 -> 5 | OX3: =NT3 -> 6 | OY3: =NU3 -> 1 | OZ3: =NV3 -> 2 | PA3: =NW3 -> 3 | PB3: =NX3 -> 4 | PC3: =NY3 -> 5 | PD3: =NZ3 -> 6 | PE3: =OA3 -> 1 | PF3: =OB3 -> 2 | PG3: =OC3 -> 3 | PH3: =OD3 -> 4 | PI3: =OE3 -> 5 | PJ3: =OF3 -> 6 | PK3: =OG3 -> 1 | PL3: =OH3 -> 2 | PM3: =OI3 -> 3 | PN3: =OJ3 -> 4 | PO3: =OK3 -> 5 | PP3: =OL3 -> 6 | PQ3: =OM3 -> 1 | PR3: =ON3 -> 2 | PS3: =OO3 -> 3 | PT3: =OP3 -> 4 | PU3: =OQ3 -> 5 | PV3: =OR3 -> 6 | PW3: =OS3 -> 1 | PX3: =OT3 -> 2 | PY3: =OU3 -> 3 | PZ3: =OV3 -> 4 | QA3: =OW3 -> 5 | QB3: =OX3 -> 6 | QC3: =OY3 -> 1 | QD3: =OZ3 -> 2 | QE3: =PA3 -> 3 | QF3: =PB3 -> 4 | QG3: =PC3 -> 5 | QH3: =PD3 -> 6 | QI3: =PE3 -> 1 | QJ3: =PF3 -> 2 | QK3: =PG3 -> 3 | QL3: =PH3 -> 4 | QM3: =PI3 -> 5 | QN3: =PJ3 -> 6 | QO3: =PK3 -> 1 | QP3: =PL3 -> 2 | QQ3: =PM3 -> 3 | QR3: =PN3 -> 4 | QS3: =PO3 -> 5 | QT3: =PP3 -> 6 | QU3: =PQ3 -> 1 | QV3: =PR3 -> 2 | QW3: =PS3 -> 3 | QX3: =PT3 -> 4 | QY3: =PU3 -> 5 | QZ3: =PV3 -> 6 | RA3: =PW3 -> 1 | RB3: =PX3 -> 2 | RC3: =PY3 -> 3 | RD3: =PZ3 -> 4 | RE3: =QA3 -> 5 | RF3: =QB3 -> 6 | RG3: =QC3 -> 1 | RH3: =QD3 -> 2 | RI3: =QE3 -> 3 | RJ3: =QF3 -> 4 | RK3: =QG3 -> 5 | RL3: =QH3 -> 6 | RM3: =QI3 -> 1 | RN3: =QJ3 -> 2 | RO3: =QK3 -> 3 | RP3: =QL3 -> 4 | RQ3: =QM3 -> 5 | RR3: =QN3 -> 6 | RS3: =QO3 -> 1 | RT3: =QP3 -> 2 | RU3: =QQ3 -> 3 | RV3: =QR3 -> 4 | RW3: =QS3 -> 5 | RX3: =QT3 -> 6 | RY3: =QU3 -> 1 | RZ3: =QV3 -> 2 | SA3: =QW3 -> 3 | SB3: =QX3 -> 4 | SC3: =QY3 -> 5 | SD3: =QZ3 -> 6 | SE3: =RA3 -> 1 | SF3: =RB3 -> 2 | SG3: =RC3 -> 3 | SH3: =RD3 -> 4 | SI3: =RE3 -> 5 | SJ3: =RF3 -> 6 | SK3: =RG3 -> 1 | SL3: =RH3 -> 2 | SM3: =RI3 -> 3 | SN3: =RJ3 -> 4 | SO3: =RK3 -> 5 | SP3: =RL3 -> 6 | SQ3: =RM3 -> 1 | SR3: =RN3 -> 2 | SS3: =RO3 -> 3 | ST3: =RP3 -> 4 | SU3: =RQ3 -> 5 | SV3: =RR3 -> 6 | SW3: =RS3 -> 1 | SX3: =RT3 -> 2 | SY3: =RU3 -> 3 | SZ3: =RV3 -> 4 | TA3: =RW3 -> 5 | TB3: =RX3 -> 6 | TC3: =RY3 -> 1 | TD3: =RZ3 -> 2 | TE3: =SA3 -> 3 | TF3: =SB3 -> 4 | TG3: =SC3 -> 5 | TH3: =SD3 -> 6 | TI3: =SE3 -> 1 | TJ3: =SF3 -> 2 | TK3: =SG3 -> 3 | TL3: =SH3 -> 4 | TM3: =SI3 -> 5 | TN3: =SJ3 -> 6 | TO3: =SK3 -> 1 | TP3: =SL3 -> 2 | TQ3: =SM3 -> 3 | TR3: =SN3 -> 4 | TS3: =SO3 -> 5 | TT3: =SP3 -> 6 | TU3: =SQ3 -> 1 | TV3: =SR3 -> 2 | TW3: =SS3 -> 3 | TX3: =ST3 -> 4 | TY3: =SU3 -> 5 | TZ3: =SV3 -> 6 | UA3: =SW3 -> 1 | UB3: =SX3 -> 2 | UC3: =SY3 -> 3 | UD3: =SZ3 -> 4 | UE3: =TA3 -> 5 | UF3: =TB3 -> 6 | UG3: =TC3 -> 1 | UH3: =TD3 -> 2 | UI3: =TE3 -> 3 | UJ3: =TF3 -> 4 | UK3: =TG3 -> 5 | UL3: =TH3 -> 6 | UM3: =TI3 -> 1 | UN3: =TJ3 -> 2 | UO3: =TK3 -> 3 | UP3: =TL3 -> 4 | UQ3: =TM3 -> 5 | UR3: =TN3 -> 6 | US3: =TO3 -> 1 | UT3: =TP3 -> 2 | UU3: =TQ3 -> 3 | UV3: =TR3 -> 4 | UW3: =TS3 -> 5 | UX3: =TT3 -> 6 | UY3: =TU3 -> 1 | UZ3: =TV3 -> 2 | VA3: =TW3 -> 3 | VB3: =TX3 -> 4 | VC3: =TY3 -> 5 | VD3: =TZ3 -> 6 | VE3: =UA3 -> 1 | VF3: =UB3 -> 2 | VG3: =UC3 -> 3 | VH3: =UD3 -> 4 | VI3: =UE3 -> 5 | VJ3: =UF3 -> 6 | VK3: =UG3 -> 1 | VL3: =UH3 -> 2 | VM3: =UI3 -> 3 | VN3: =UJ3 -> 4 | VO3: =UK3 -> 5 | VP3: =UL3 -> 6 | VQ3: =UM3 -> 1 | VR3: =UN3 -> 2 | VS3: =UO3 -> 3 | VT3: =UP3 -> 4 | VU3: =UQ3 -> 5 | VV3: =UR3 -> 6 | VW3: =US3 -> 1 | VX3: =UT3 -> 2 | VY3: =UU3 -> 3 | VZ3: =UV3 -> 4 | WA3: =UW3 -> 5 | WB3: =UX3 -> 6 | WC3: =UY3 -> 1 | WD3: =UZ3 -> 2 | WE3: =VA3 -> 3 | WF3: =VB3 -> 4 | WG3: =VC3 -> 5 | WH3: =VD3 -> 6 | WI3: =VE3 -> 1 | WJ3: =VF3 -> 2 | WK3: =VG3 -> 3 | WL3: =VH3 -> 4 | WM3: =VI3 -> 5 | WN3: =VJ3 -> 6 | WO3: =VK3 -> 1 | WP3: =VL3 -> 2 | WQ3: =VM3 -> 3 | WR3: =VN3 -> 4 | WS3: =VO3 -> 5 | WT3: =VP3 -> 6 | WU3: =VQ3 -> 1 | WV3: =VR3 -> 2 | WW3: =VS3 -> 3 | WX3: =VT3 -> 4 | WY3: =VU3 -> 5 | WZ3: =VV3 -> 6 | XA3: =VW3 -> 1 | XB3: =VX3 -> 2 | XC3: =VY3 -> 3 | XD3: =VZ3 -> 4 | XE3: =WA3 -> 5 | XF3: =WB3 -> 6 | XG3: =WC3 -> 1 | XH3: =WD3 -> 2 | XI3: =WE3 -> 3 | XJ3: =WF3 -> 4 | XK3: =WG3 -> 5 | XL3: =WH3 -> 6 | XM3: =WI3 -> 1 | XN3: =WJ3 -> 2 | XO3: =WK3 -> 3 | XP3: =WL3 -> 4 | XQ3: =WM3 -> 5 | XR3: =WN3 -> 6 | XS3: =WO3 -> 1 | XT3: =WP3 -> 2 | XU3: =WQ3 -> 3 | XV3: =WR3 -> 4 | XW3: =WS3 -> 5 | XX3: =WT3 -> 6 | XY3: =WU3 -> 1 | XZ3: =WV3 -> 2 | YA3: =WW3 -> 3 | YB3: =WX3 -> 4 | YC3: =WY3 -> 5 | YD3: =WZ3 -> 6 | YE3: =XA3 -> 1 | YF3: =XB3 -> 2 | YG3: =XC3 -> 3 | YH3: =XD3 -> 4 | YI3: =XE3 -> 5 | YJ3: =XF3 -> 6 | YK3: =XG3 -> 1 | YL3: =XH3 -> 2 | YM3: =XI3 -> 3 | YN3: =XJ3 -> 4 | YO3: =XK3 -> 5 | YP3: =XL3 -> 6 | YQ3: =XM3 -> 1 | YR3: =XN3 -> 2 | YS3: =XO3 -> 3 | YT3: =XP3 -> 4 | YU3: =XQ3 -> 5 | YV3: =XR3 -> 6 | YW3: =XS3 -> 1 | YX3: =XT3 -> 2 | YY3: =XU3 -> 3 | YZ3: =XV3 -> 4 | ZA3: =XW3 -> 5 | ZB3: =XX3 -> 6 | ZC3: =XY3 -> 1 | ZD3: =XZ3 -> 2 | ZE3: =YA3 -> 3 | ZF3: =YB3 -> 4 | ZG3: =YC3 -> 5 | ZH3: =YD3 -> 6 | ZI3: =YE3 -> 1 | ZJ3: =YF3 -> 2 | ZK3: =YG3 -> 3 | ZL3: =YH3 -> 4 | ZM3: =YI3 -> 5 | ZN3: =YJ3 -> 6 | ZO3: =YK3 -> 1 | ZP3: =YL3 -> 2 | ZQ3: =YM3 -> 3 | ZR3: =YN3 -> 4 | ZS3: =YO3 -> 5 | ZT3: =YP3 -> 6 | ZU3: =YQ3 -> 1 | ZV3: =YR3 -> 2 | ZW3: =YS3 -> 3 | ZX3: =YT3 -> 4 | ZY3: =YU3 -> 5 | ZZ3: =YV3 -> 6 | AAA3: =YW3 -> 1 | AAB3: =YX3 -> 2 | AAC3: =YY3 -> 3 | AAD3: =YZ3 -> 4 | AAE3: =ZA3 -> 5 | AAF3: =ZB3 -> 6 | AAG3: =ZC3 -> 1 | AAH3: =ZD3 -> 2 | AAI3: =ZE3 -> 3 | AAJ3: =ZF3 -> 4 | AAK3: =ZG3 -> 5 | AAL3: =ZH3 -> 6 | AAM3: =ZI3 -> 1 | AAN3: =ZJ3 -> 2 | AAO3: =ZK3 -> 3 | AAP3: =ZL3 -> 4 | AAQ3: =ZM3 -> 5 | AAR3: =ZN3 -> 6 | AAS3: =ZO3 -> 1 | AAT3: =ZP3 -> 2 | AAU3: =ZQ3 -> 3 | AAV3: =ZR3 -> 4 | AAW3: =ZS3 -> 5 | AAX3: =ZT3 -> 6 | AAY3: =ZU3 -> 1 | AAZ3: =ZV3 -> 2 | ABA3: =ZW3 -> 3 | ABB3: =ZX3 -> 4 | ABC3: =ZY3 -> 5 | ABD3: =ZZ3 -> 6 | ABE3: =AAA3 -> 1 | ABF3: =AAB3 -> 2 | ABG3: =AAC3 -> 3 | ABH3: =AAD3 -> 4 | ABI3: =AAE3 -> 5 | ABJ3: =AAF3 -> 6 | ABK3: =AAG3 -> 1 | ABL3: =AAH3 -> 2 | ABM3: =AAI3 -> 3 | ABN3: =AAJ3 -> 4 | ABO3: =AAK3 -> 5 | ABP3: =AAL3 -> 6 | ABQ3: =AAM3 -> 1 | ABR3: =AAN3 -> 2 | ABS3: =AAO3 -> 3 | ABT3: =AAP3 -> 4 | ABU3: =AAQ3 -> 5 | ABV3: =AAR3 -> 6 | ABW3: =AAS3 -> 1 | ABX3: =AAT3 -> 2 | ABY3: =AAU3 -> 3 | ABZ3: =AAV3 -> 4 | ACA3: =AAW3 -> 5 | ACB3: =AAX3 -> 6 | ACC3: =AAY3 -> 1 | ACD3: =AAZ3 -> 2 | ACE3: =ABA3 -> 3 | ACF3: =ABB3 -> 4 | ACG3: =ABC3 -> 5 | ACH3: =ABD3 -> 6 | ACI3: =ABE3 -> 1 | ACJ3: =ABF3 -> 2 | ACK3: =ABG3 -> 3 | ACL3: =ABH3 -> 4 | ACM3: =ABI3 -> 5 | ACN3: =ABJ3 -> 6 | ACO3: =ABK3 -> 1 | ACP3: =ABL3 -> 2 | ACQ3: =ABM3 -> 3 | ACR3: =ABN3 -> 4 | ACS3: =ABO3 -> 5 | ACT3: =ABP3 -> 6 | ACU3: =ABQ3 -> 1 | ACV3: =ABR3 -> 2 | ACW3: =ABS3 -> 3 | ACX3: =ABT3 -> 4 | ACY3: =ABU3 -> 5 | ACZ3: =ABV3 -> 6 | ADA3: =ABW3 -> 1 | ADB3: =ABX3 -> 2 | ADC3: =ABY3 -> 3 | ADD3: =ABZ3 -> 4 | ADE3: =ACA3 -> 5 | ADF3: =ACB3 -> 6 | ADG3: =ACC3 -> 1 | ADH3: =ACD3 -> 2 | ADI3: =ACE3 -> 3 | ADJ3: =ACF3 -> 4 | ADK3: =ACG3 -> 5 | ADL3: =ACH3 -> 6 | ADM3: =ACI3 -> 1 | ADN3: =ACJ3 -> 2 | ADO3: =ACK3 -> 3 | ADP3: =ACL3 -> 4 | ADQ3: =ACM3 -> 5 | ADR3: =ACN3 -> 6 | ADS3: =ACO3 -> 1 | ADT3: =ACP3 -> 2 | ADU3: =ACQ3 -> 3 | ADV3: =ACR3 -> 4 | ADW3: =ACS3 -> 5 | ADX3: =ACT3 -> 6 | ADY3: =ACU3 -> 1 | ADZ3: =ACV3 -> 2 | AEA3: =ACW3 -> 3 | AEB3: =ACX3 -> 4 | AEC3: =ACY3 -> 5 | AED3: =ACZ3 -> 6 | AEE3: =ADA3 -> 1 | AEF3: =ADB3 -> 2 | AEG3: =ADC3 -> 3 | AEH3: =ADD3 -> 4 | AEI3: =ADE3 -> 5 | AEJ3: =ADF3 -> 6 | AEK3: =ADG3 -> 1 | AEL3: =ADH3 -> 2 | AEM3: =ADI3 -> 3 | AEN3: =ADJ3 -> 4 | AEO3: =ADK3 -> 5 | AEP3: =ADL3 -> 6 | AEQ3: =ADM3 -> 1 | AER3: =ADN3 -> 2 | AES3: =ADO3 -> 3 | AET3: =ADP3 -> 4 | AEU3: =ADQ3 -> 5 | AEV3: =ADR3 -> 6 | AEW3: =ADS3 -> 1 | AEX3: =ADT3 -> 2 | AEY3: =ADU3 -> 3 | AEZ3: =ADV3 -> 4 | AFA3: =ADW3 -> 5 | AFB3: =ADX3 -> 6 | AFC3: =ADY3 -> 1 | AFD3: =ADZ3 -> 2 | AFE3: =AEA3 -> 3 | AFF3: =AEB3 -> 4 | AFG3: =AEC3 -> 5 | AFH3: =AED3 -> 6 | AFI3: =AEE3 -> 1 | AFJ3: =AEF3 -> 2 | AFK3: =AEG3 -> 3 | AFL3: =AEH3 -> 4 | AFM3: =AEI3 -> 5 | AFN3: =AEJ3 -> 6 | AFO3: =AEK3 -> 1 | AFP3: =AEL3 -> 2 | AFQ3: =AEM3 -> 3 | AFR3: =AEN3 -> 4 | AFS3: =AEO3 -> 5 | AFT3: =AEP3 -> 6 | AFU3: =AEQ3 -> 1 | AFV3: =AER3 -> 2 | AFW3: =AES3 -> 3 | AFX3: =AET3 -> 4 | AFY3: =AEU3 -> 5 | AFZ3: =AEV3 -> 6 | AGA3: =AEW3 -> 1 | AGB3: =AEX3 -> 2 | AGC3: =AEY3 -> 3 | AGD3: =AEZ3 -> 4 | AGE3: =AFA3 -> 5 | AGF3: =AFB3 -> 6 | AGG3: =AFC3 -> 1 | AGH3: =AFD3 -> 2 | AGI3: =AFE3 -> 3 | AGJ3: =AFF3 -> 4 | AGK3: =AFG3 -> 5 | AGL3: =AFH3 -> 6 | AGM3: =AFI3 -> 1 | AGN3: =AFJ3 -> 2 | AGO3: =AFK3 -> 3 | AGP3: =AFL3 -> 4 | AGQ3: =AFM3 -> 5 | AGR3: =AFN3 -> 6 | AGS3: =AFO3 -> 1 | AGT3: =AFP3 -> 2 | AGU3: =AFQ3 -> 3 | AGV3: =AFR3 -> 4 | AGW3: =AFS3 -> 5 | AGX3: =AFT3 -> 6 | AGY3: =AFU3 -> 1 | AGZ3: =AFV3 -> 2 | AHA3: =AFW3 -> 3 | AHB3: =AFX3 -> 4 | AHC3: =AFY3 -> 5 | AHD3: =AFZ3 -> 6 | AHE3: =AGA3 -> 1 | AHF3: =AGB3 -> 2 | AHG3: =AGC3 -> 3 | AHH3: =AGD3 -> 4 | AHI3: =AGE3 -> 5 | AHJ3: =AGF3 -> 6 | AHK3: =AGG3 -> 1 | AHL3: =AGH3 -> 2 | AHM3: =AGI3 -> 3 | AHN3: =AGJ3 -> 4 | AHO3: =AGK3 -> 5 | AHP3: =AGL3 -> 6 | AHQ3: =AGM3 -> 1 | AHR3: =AGN3 -> 2 | AHS3: =AGO3 -> 3 | AHT3: =AGP3 -> 4 | AHU3: =AGQ3 -> 5 | AHV3: =AGR3 -> 6
F4: escenario | G4: 1 | H4: 1 | I4: 1 | J4: 1 | K4: 1 | L4: 1 | M4: =G4+1 -> 2 | N4: 2 | O4: 2 | P4: 2 | Q4: 2 | R4: 2 | S4: 3 | T4: 3 | U4: 3 | V4: 3 | W4: 3 | X4: 3 | Y4: 4 | Z4: 4 | AA4: 4 | AB4: 4 | AC4: 4 | AD4: 4 | AE4: 5 | AF4: 5 | AG4: 5 | AH4: 5 | AI4: 5 | AJ4: 5 | AK4: =G4 -> 1 | AL4: =H4 -> 1 | AM4: =I4 -> 1 | AN4: =J4 -> 1 | AO4: =K4 -> 1 | AP4: =L4 -> 1 | AQ4: =M4 -> 2 | AR4: =N4 -> 2 | AS4: =O4 -> 2 | AT4: =P4 -> 2 | AU4: =Q4 -> 2 | AV4: =R4 -> 2 | AW4: =S4 -> 3 | AX4: =T4 -> 3 | AY4: =U4 -> 3 | AZ4: =V4 -> 3 | BA4: =W4 -> 3 | BB4: =X4 -> 3 | BC4: =Y4 -> 4 | BD4: =Z4 -> 4 | BE4: =AA4 -> 4 | BF4: =AB4 -> 4 | BG4: =AC4 -> 4 | BH4: =AD4 -> 4 | BI4: =AE4 -> 5 | BJ4: =AF4 -> 5 | BK4: =AG4 -> 5 | BL4: =AH4 -> 5 | BM4: =AI4 -> 5 | BN4: =AJ4 -> 5 | BO4: =AK4 -> 1 | BP4: 1 | BQ4: 1 | BR4: 1 | BS4: 1 | BT4: 1 | BU4: 2 | BV4: 2 | BW4: 2 | BX4: 2 | BY4: 2 | BZ4: 2 | CA4: 3 | CB4: 3 | CC4: 3 | CD4: 3 | CE4: 3 | CF4: 3 | CG4: 4 | CH4: 4 | CI4: 4 | CJ4: 4 | CK4: 4 | CL4: 4 | CM4: 5 | CN4: 5 | CO4: 5 | CP4: 5 | CQ4: 5 | CR4: 5 | CS4: =BO4 -> 1 | CT4: 1 | CU4: 1 | CV4: 1 | CW4: 1 | CX4: 1 | CY4: 2 | CZ4: 2 | DA4: 2 | DB4: 2 | DC4: 2 | DD4: 2 | DE4: 3 | DF4: 3 | DG4: 3 | DH4: 3 | DI4: 3 | DJ4: 3 | DK4: 4 | DL4: 4 | DM4: 4 | DN4: 4 | DO4: 4 | DP4: 4 | DQ4: 5 | DR4: 5 | DS4: 5 | DT4: 5 | DU4: 5 | DV4: 5 | DW4: =CS4 -> 1 | DX4: 1 | DY4: 1 | DZ4: 1 | EA4: 1 | EB4: 1 | EC4: 2 | ED4: 2 | EE4: 2 | EF4: 2 | EG4: 2 | EH4: 2 | EI4: 3 | EJ4: 3 | EK4: 3 | EL4: 3 | EM4: 3 | EN4: 3 | EO4: 4 | EP4: 4 | EQ4: 4 | ER4: 4 | ES4: 4 | ET4: 4 | EU4: 5 | EV4: 5 | EW4: 5 | EX4: 5 | EY4: 5 | EZ4: 5 | FA4: =DW4 -> 1 | FB4: 1 | FC4: 1 | FD4: 1 | FE4: 1 | FF4: 1 | FG4: 2 | FH4: 2 | FI4: 2 | FJ4: 2 | FK4: 2 | FL4: 2 | FM4: 3 | FN4: 3 | FO4: 3 | FP4: 3 | FQ4: 3 | FR4: 3 | FS4: 4 | FT4: 4 | FU4: 4 | FV4: 4 | FW4: 4 | FX4: 4 | FY4: 5 | FZ4: 5 | GA4: 5 | GB4: 5 | GC4: 5 | GD4: 5 | GE4: =FA4 -> 1 | GF4: 1 | GG4: 1 | GH4: 1 | GI4: 1 | GJ4: 1 | GK4: 2 | GL4: 2 | GM4: 2 | GN4: 2 | GO4: 2 | GP4: 2 | GQ4: 3 | GR4: 3 | GS4: 3 | GT4: 3 | GU4: 3 | GV4: 3 | GW4: 4 | GX4: 4 | GY4: 4 | GZ4: 4 | HA4: 4 | HB4: 4 | HC4: 5 | HD4: 5 | HE4: 5 | HF4: 5 | HG4: 5 | HH4: 5 | HI4: =GE4 -> 1 | HJ4: 1 | HK4: 1 | HL4: 1 | HM4: 1 | HN4: 1 | HO4: 2 | HP4: 2 | HQ4: 2 | HR4: 2 | HS4: 2 | HT4: 2 | HU4: 3 | HV4: 3 | HW4: 3 | HX4: 3 | HY4: 3 | HZ4: 3 | IA4: 4 | IB4: 4 | IC4: 4 | ID4: 4 | IE4: 4 | IF4: 4 | IG4: 5 | IH4: 5 | II4: 5 | IJ4: 5 | IK4: 5 | IL4: 5 | IM4: =HI4 -> 1 | IN4: 1 | IO4: 1 | IP4: 1 | IQ4: 1 | IR4: 1 | IS4: 2 | IT4: 2 | IU4: 2 | IV4: 2 | IW4: 2 | IX4: 2 | IY4: 3 | IZ4: 3 | JA4: 3 | JB4: 3 | JC4: 3 | JD4: 3 | JE4: 4 | JF4: 4 | JG4: 4 | JH4: 4 | JI4: 4 | JJ4: 4 | JK4: 5 | JL4: 5 | JM4: 5 | JN4: 5 | JO4: 5 | JP4: 5 | JQ4: =IM4 -> 1 | JR4: 1 | JS4: 1 | JT4: 1 | JU4: 1 | JV4: 1 | JW4: 2 | JX4: 2 | JY4: 2 | JZ4: 2 | KA4: 2 | KB4: 2 | KC4: 3 | KD4: 3 | KE4: 3 | KF4: 3 | KG4: 3 | KH4: 3 | KI4: 4 | KJ4: 4 | KK4: 4 | KL4: 4 | KM4: 4 | KN4: 4 | KO4: 5 | KP4: 5 | KQ4: 5 | KR4: 5 | KS4: 5 | KT4: 5 | KU4: =JQ4 -> 1 | KV4: 1 | KW4: 1 | KX4: 1 | KY4: 1 | KZ4: 1 | LA4: 2 | LB4: 2 | LC4: 2 | LD4: 2 | LE4: 2 | LF4: 2 | LG4: 3 | LH4: 3 | LI4: 3 | LJ4: 3 | LK4: 3 | LL4: 3 | LM4: 4 | LN4: 4 | LO4: 4 | LP4: 4 | LQ4: 4 | LR4: 4 | LS4: 5 | LT4: 5 | LU4: 5 | LV4: 5 | LW4: 5 | LX4: 5 | LY4: =KU4 -> 1 | LZ4: 1 | MA4: 1 | MB4: 1 | MC4: 1 | MD4: 1 | ME4: 2 | MF4: 2 | MG4: 2 | MH4: 2 | MI4: 2 | MJ4: 2 | MK4: 3 | ML4: 3 | MM4: 3 | MN4: 3 | MO4: 3 | MP4: 3 | MQ4: 4 | MR4: 4 | MS4: 4 | MT4: 4 | MU4: 4 | MV4: 4 | MW4: 5 | MX4: 5 | MY4: 5 | MZ4: 5 | NA4: 5 | NB4: 5 | NC4: =LY4 -> 1 | ND4: 1 | NE4: 1 | NF4: 1 | NG4: 1 | NH4: 1 | NI4: 2 | NJ4: 2 | NK4: 2 | NL4: 2 | NM4: 2 | NN4: 2 | NO4: 3 | NP4: 3 | NQ4: 3 | NR4: 3 | NS4: 3 | NT4: 3 | NU4: 4 | NV4: 4 | NW4: 4 | NX4: 4 | NY4: 4 | NZ4: 4 | OA4: 5 | OB4: 5 | OC4: 5 | OD4: 5 | OE4: 5 | OF4: 5 | OG4: =NC4 -> 1 | OH4: 1 | OI4: 1 | OJ4: 1 | OK4: 1 | OL4: 1 | OM4: 2 | ON4: 2 | OO4: 2 | OP4: 2 | OQ4: 2 | OR4: 2 | OS4: 3 | OT4: 3 | OU4: 3 | OV4: 3 | OW4: 3 | OX4: 3 | OY4: 4 | OZ4: 4 | PA4: 4 | PB4: 4 | PC4: 4 | PD4: 4 | PE4: 5 | PF4: 5 | PG4: 5 | PH4: 5 | PI4: 5 | PJ4: 5 | PK4: =OG4 -> 1 | PL4: 1 | PM4: 1 | PN4: 1 | PO4: 1 | PP4: 1 | PQ4: 2 | PR4: 2 | PS4: 2 | PT4: 2 | PU4: 2 | PV4: 2 | PW4: 3 | PX4: 3 | PY4: 3 | PZ4: 3 | QA4: 3 | QB4: 3 | QC4: 4 | QD4: 4 | QE4: 4 | QF4: 4 | QG4: 4 | QH4: 4 | QI4: 5 | QJ4: 5 | QK4: 5 | QL4: 5 | QM4: 5 | QN4: 5 | QO4: =PK4 -> 1 | QP4: 1 | QQ4: 1 | QR4: 1 | QS4: 1 | QT4: 1 | QU4: 2 | QV4: 2 | QW4: 2 | QX4: 2 | QY4: 2 | QZ4: 2 | RA4: 3 | RB4: 3 | RC4: 3 | RD4: 3 | RE4: 3 | RF4: 3 | RG4: 4 | RH4: 4 | RI4: 4 | RJ4: 4 | RK4: 4 | RL4: 4 | RM4: 5 | RN4: 5 | RO4: 5 | RP4: 5 | RQ4: 5 | RR4: 5 | RS4: =QO4 -> 1 | RT4: 1 | RU4: 1 | RV4: 1 | RW4: 1 | RX4: 1 | RY4: 2 | RZ4: 2 | SA4: 2 | SB4: 2 | SC4: 2 | SD4: 2 | SE4: 3 | SF4: 3 | SG4: 3 | SH4: 3 | SI4: 3 | SJ4: 3 | SK4: 4 | SL4: 4 | SM4: 4 | SN4: 4 | SO4: 4 | SP4: 4 | SQ4: 5 | SR4: 5 | SS4: 5 | ST4: 5 | SU4: 5 | SV4: 5 | SW4: =RS4 -> 1 | SX4: 1 | SY4: 1 | SZ4: 1 | TA4: 1 | TB4: 1 | TC4: 2 | TD4: 2 | TE4: 2 | TF4: 2 | TG4: 2 | TH4: 2 | TI4: 3 | TJ4: 3 | TK4: 3 | TL4: 3 | TM4: 3 | TN4: 3 | TO4: 4 | TP4: 4 | TQ4: 4 | TR4: 4 | TS4: 4 | TT4: 4 | TU4: 5 | TV4: 5 | TW4: 5 | TX4: 5 | TY4: 5 | TZ4: 5 | UA4: =SW4 -> 1 | UB4: 1 | UC4: 1 | UD4: 1 | UE4: 1 | UF4: 1 | UG4: 2 | UH4: 2 | UI4: 2 | UJ4: 2 | UK4: 2 | UL4: 2 | UM4: 3 | UN4: 3 | UO4: 3 | UP4: 3 | UQ4: 3 | UR4: 3 | US4: 4 | UT4: 4 | UU4: 4 | UV4: 4 | UW4: 4 | UX4: 4 | UY4: 5 | UZ4: 5 | VA4: 5 | VB4: 5 | VC4: 5 | VD4: 5 | VE4: =UA4 -> 1 | VF4: 1 | VG4: 1 | VH4: 1 | VI4: 1 | VJ4: 1 | VK4: 2 | VL4: 2 | VM4: 2 | VN4: 2 | VO4: 2 | VP4: 2 | VQ4: 3 | VR4: 3 | VS4: 3 | VT4: 3 | VU4: 3 | VV4: 3 | VW4: 4 | VX4: 4 | VY4: 4 | VZ4: 4 | WA4: 4 | WB4: 4 | WC4: 5 | WD4: 5 | WE4: 5 | WF4: 5 | WG4: 5 | WH4: 5 | WI4: 1 | WJ4: 1 | WK4: 1 | WL4: 1 | WM4: 1 | WN4: 1 | WO4: =VK4 -> 2 | WP4: 2 | WQ4: 2 | WR4: 2 | WS4: 2 | WT4: 2 | WU4: 3 | WV4: 3 | WW4: 3 | WX4: 3 | WY4: 3 | WZ4: 3 | XA4: 4 | XB4: 4 | XC4: 4 | XD4: 4 | XE4: 4 | XF4: 4 | XG4: 5 | XH4: 5 | XI4: 5 | XJ4: 5 | XK4: 5 | XL4: 5 | XM4: 1 | XN4: 1 | XO4: 1 | XP4: 1 | XQ4: 1 | XR4: 1 | XS4: =WO4 -> 2 | XT4: 2 | XU4: 2 | XV4: 2 | XW4: 2 | XX4: 2 | XY4: 3 | XZ4: 3 | YA4: 3 | YB4: 3 | YC4: 3 | YD4: 3 | YE4: 4 | YF4: 4 | YG4: 4 | YH4: 4 | YI4: 4 | YJ4: 4 | YK4: 5 | YL4: 5 | YM4: 5 | YN4: 5 | YO4: 5 | YP4: 5 | YQ4: 1 | YR4: 1 | YS4: 1 | YT4: 1 | YU4: 1 | YV4: 1 | YW4: =XS4 -> 2 | YX4: 2 | YY4: 2 | YZ4: 2 | ZA4: 2 | ZB4: 2 | ZC4: 3 | ZD4: 3 | ZE4: 3 | ZF4: 3 | ZG4: 3 | ZH4: 3 | ZI4: 4 | ZJ4: 4 | ZK4: 4 | ZL4: 4 | ZM4: 4 | ZN4: 4 | ZO4: 5 | ZP4: 5 | ZQ4: 5 | ZR4: 5 | ZS4: 5 | ZT4: 5 | ZU4: 1 | ZV4: 1 | ZW4: 1 | ZX4: 1 | ZY4: 1 | ZZ4: 1 | AAA4: =YW4 -> 2 | AAB4: 2 | AAC4: 2 | AAD4: 2 | AAE4: 2 | AAF4: 2 | AAG4: 3 | AAH4: 3 | AAI4: 3 | AAJ4: 3 | AAK4: 3 | AAL4: 3 | AAM4: 4 | AAN4: 4 | AAO4: 4 | AAP4: 4 | AAQ4: 4 | AAR4: 4 | AAS4: 5 | AAT4: 5 | AAU4: 5 | AAV4: 5 | AAW4: 5 | AAX4: 5 | AAY4: 1 | AAZ4: 1 | ABA4: 1 | ABB4: 1 | ABC4: 1 | ABD4: 1 | ABE4: =AAA4 -> 2 | ABF4: 2 | ABG4: 2 | ABH4: 2 | ABI4: 2 | ABJ4: 2 | ABK4: 3 | ABL4: 3 | ABM4: 3 | ABN4: 3 | ABO4: 3 | ABP4: 3 | ABQ4: 4 | ABR4: 4 | ABS4: 4 | ABT4: 4 | ABU4: 4 | ABV4: 4 | ABW4: 5 | ABX4: 5 | ABY4: 5 | ABZ4: 5 | ACA4: 5 | ACB4: 5 | ACC4: 1 | ACD4: 1 | ACE4: 1 | ACF4: 1 | ACG4: 1 | ACH4: 1 | ACI4: =ABE4 -> 2 | ACJ4: 2 | ACK4: 2 | ACL4: 2 | ACM4: 2 | ACN4: 2 | ACO4: 3 | ACP4: 3 | ACQ4: 3 | ACR4: 3 | ACS4: 3 | ACT4: 3 | ACU4: 4 | ACV4: 4 | ACW4: 4 | ACX4: 4 | ACY4: 4 | ACZ4: 4 | ADA4: 5 | ADB4: 5 | ADC4: 5 | ADD4: 5 | ADE4: 5 | ADF4: 5 | ADG4: 1 | ADH4: 1 | ADI4: 1 | ADJ4: 1 | ADK4: 1 | ADL4: 1 | ADM4: =ACI4 -> 2 | ADN4: 2 | ADO4: 2 | ADP4: 2 | ADQ4: 2 | ADR4: 2 | ADS4: 3 | ADT4: 3 | ADU4: 3 | ADV4: 3 | ADW4: 3 | ADX4: 3 | ADY4: 4 | ADZ4: 4 | AEA4: 4 | AEB4: 4 | AEC4: 4 | AED4: 4 | AEE4: 5 | AEF4: 5 | AEG4: 5 | AEH4: 5 | AEI4: 5 | AEJ4: 5 | AEK4: 1 | AEL4: 1 | AEM4: 1 | AEN4: 1 | AEO4: 1 | AEP4: 1 | AEQ4: =ADM4 -> 2 | AER4: 2 | AES4: 2 | AET4: 2 | AEU4: 2 | AEV4: 2 | AEW4: 3 | AEX4: 3 | AEY4: 3 | AEZ4: 3 | AFA4: 3 | AFB4: 3 | AFC4: 4 | AFD4: 4 | AFE4: 4 | AFF4: 4 | AFG4: 4 | AFH4: 4 | AFI4: 5 | AFJ4: 5 | AFK4: 5 | AFL4: 5 | AFM4: 5 | AFN4: 5 | AFO4: 1 | AFP4: 1 | AFQ4: 1 | AFR4: 1 | AFS4: 1 | AFT4: 1 | AFU4: =AEQ4 -> 2 | AFV4: 2 | AFW4: 2 | AFX4: 2 | AFY4: 2 | AFZ4: 2 | AGA4: 3 | AGB4: 3 | AGC4: 3 | AGD4: 3 | AGE4: 3 | AGF4: 3 | AGG4: 4 | AGH4: 4 | AGI4: 4 | AGJ4: 4 | AGK4: 4 | AGL4: 4 | AGM4: 5 | AGN4: 5 | AGO4: 5 | AGP4: 5 | AGQ4: 5 | AGR4: 5 | AGS4: 1 | AGT4: 1 | AGU4: 1 | AGV4: 1 | AGW4: 1 | AGX4: 1 | AGY4: =AFU4 -> 2 | AGZ4: 2 | AHA4: 2 | AHB4: 2 | AHC4: 2 | AHD4: 2 | AHE4: 3 | AHF4: 3 | AHG4: 3 | AHH4: 3 | AHI4: 3 | AHJ4: 3 | AHK4: 4 | AHL4: 4 | AHM4: 4 | AHN4: 4 | AHO4: 4 | AHP4: 4 | AHQ4: 5 | AHR4: 5 | AHS4: 5 | AHT4: 5 | AHU4: 5 | AHV4: 5
F5: columna | G5: 1 | H5: 2 | I5: 3 | J5: 4 | K5: 5 | L5: 6 | M5: 7 | N5: 8 | O5: 9 | P5: 10 | Q5: 11 | R5: 12 | S5: 13 | T5: 14 | U5: 15 | V5: 16 | W5: 17 | X5: 18 | Y5: 19 | Z5: 20 | AA5: 21 | AB5: 22 | AC5: 23 | AD5: 24 | AE5: 25 | AF5: 26 | AG5: 27 | AH5: 28 | AI5: 29 | AJ5: 30 | AK5: =G5 -> 1 | AL5: =H5 -> 2 | AM5: 3 | AN5: 4 | AO5: 5 | AP5: 6 | AQ5: 7 | AR5: 8 | AS5: 9 | AT5: 10 | AU5: 11 | AV5: 12 | AW5: 13 | AX5: 14 | AY5: 15 | AZ5: 16 | BA5: 17 | BB5: 18 | BC5: 19 | BD5: 20 | BE5: 21 | BF5: 22 | BG5: 23 | BH5: 24 | BI5: 25 | BJ5: 26 | BK5: 27 | BL5: 28 | BM5: 29 | BN5: 30 | BO5: =AK5 -> 1 | BP5: 2 | BQ5: 3 | BR5: 4 | BS5: 5 | BT5: 6 | BU5: 7 | BV5: 8 | BW5: 9 | BX5: 10 | BY5: 11 | BZ5: 12 | CA5: 13 | CB5: 14 | CC5: 15 | CD5: 16 | CE5: 17 | CF5: 18 | CG5: 19 | CH5: 20 | CI5: 21 | CJ5: 22 | CK5: 23 | CL5: 24 | CM5: 25 | CN5: 26 | CO5: 27 | CP5: 28 | CQ5: 29 | CR5: 30 | CS5: =BO5 -> 1 | CT5: 2 | CU5: 3 | CV5: 4 | CW5: 5 | CX5: 6 | CY5: 7 | CZ5: 8 | DA5: 9 | DB5: 10 | DC5: 11 | DD5: 12 | DE5: 13 | DF5: 14 | DG5: 15 | DH5: 16 | DI5: 17 | DJ5: 18 | DK5: 19 | DL5: 20 | DM5: 21 | DN5: 22 | DO5: 23 | DP5: 24 | DQ5: 25 | DR5: 26 | DS5: 27 | DT5: 28 | DU5: 29 | DV5: 30 | DW5: =CS5 -> 1 | DX5: 2 | DY5: 3 | DZ5: 4 | EA5: 5 | EB5: 6 | EC5: 7 | ED5: 8 | EE5: 9 | EF5: 10 | EG5: 11 | EH5: 12 | EI5: 13 | EJ5: 14 | EK5: 15 | EL5: 16 | EM5: 17 | EN5: 18 | EO5: 19 | EP5: 20 | EQ5: 21 | ER5: 22 | ES5: 23 | ET5: 24 | EU5: 25 | EV5: 26 | EW5: 27 | EX5: 28 | EY5: 29 | EZ5: 30 | FA5: =DW5 -> 1 | FB5: 2 | FC5: 3 | FD5: 4 | FE5: 5 | FF5: 6 | FG5: 7 | FH5: 8 | FI5: 9 | FJ5: 10 | FK5: 11 | FL5: 12 | FM5: 13 | FN5: 14 | FO5: 15 | FP5: 16 | FQ5: 17 | FR5: 18 | FS5: 19 | FT5: 20 | FU5: 21 | FV5: 22 | FW5: 23 | FX5: 24 | FY5: 25 | FZ5: 26 | GA5: 27 | GB5: 28 | GC5: 29 | GD5: 30 | GE5: =FA5 -> 1 | GF5: 2 | GG5: 3 | GH5: 4 | GI5: 5 | GJ5: 6 | GK5: 7 | GL5: 8 | GM5: 9 | GN5: 10 | GO5: 11 | GP5: 12 | GQ5: 13 | GR5: 14 | GS5: 15 | GT5: 16 | GU5: 17 | GV5: 18 | GW5: 19 | GX5: 20 | GY5: 21 | GZ5: 22 | HA5: 23 | HB5: 24 | HC5: 25 | HD5: 26 | HE5: 27 | HF5: 28 | HG5: 29 | HH5: 30 | HI5: =GE5 -> 1 | HJ5: 2 | HK5: 3 | HL5: 4 | HM5: 5 | HN5: 6 | HO5: 7 | HP5: 8 | HQ5: 9 | HR5: 10 | HS5: 11 | HT5: 12 | HU5: 13 | HV5: 14 | HW5: 15 | HX5: 16 | HY5: 17 | HZ5: 18 | IA5: 19 | IB5: 20 | IC5: 21 | ID5: 22 | IE5: 23 | IF5: 24 | IG5: 25 | IH5: 26 | II5: 27 | IJ5: 28 | IK5: 29 | IL5: 30 | IM5: =HI5 -> 1 | IN5: 2 | IO5: 3 | IP5: 4 | IQ5: 5 | IR5: 6 | IS5: 7 | IT5: 8 | IU5: 9 | IV5: 10 | IW5: 11 | IX5: 12 | IY5: 13 | IZ5: 14 | JA5: 15 | JB5: 16 | JC5: 17 | JD5: 18 | JE5: 19 | JF5: 20 | JG5: 21 | JH5: 22 | JI5: 23 | JJ5: 24 | JK5: 25 | JL5: 26 | JM5: 27 | JN5: 28 | JO5: 29 | JP5: 30 | JQ5: =IM5 -> 1 | JR5: 2 | JS5: 3 | JT5: 4 | JU5: 5 | JV5: 6 | JW5: 7 | JX5: 8 | JY5: 9 | JZ5: 10 | KA5: 11 | KB5: 12 | KC5: 13 | KD5: 14 | KE5: 15 | KF5: 16 | KG5: 17 | KH5: 18 | KI5: 19 | KJ5: 20 | KK5: 21 | KL5: 22 | KM5: 23 | KN5: 24 | KO5: 25 | KP5: 26 | KQ5: 27 | KR5: 28 | KS5: 29 | KT5: 30 | KU5: =JQ5 -> 1 | KV5: 2 | KW5: 3 | KX5: 4 | KY5: 5 | KZ5: 6 | LA5: 7 | LB5: 8 | LC5: 9 | LD5: 10 | LE5: 11 | LF5: 12 | LG5: 13 | LH5: 14 | LI5: 15 | LJ5: 16 | LK5: 17 | LL5: 18 | LM5: 19 | LN5: 20 | LO5: 21 | LP5: 22 | LQ5: 23 | LR5: 24 | LS5: 25 | LT5: 26 | LU5: 27 | LV5: 28 | LW5: 29 | LX5: 30 | LY5: =KU5 -> 1 | LZ5: 2 | MA5: 3 | MB5: 4 | MC5: 5 | MD5: 6 | ME5: 7 | MF5: 8 | MG5: 9 | MH5: 10 | MI5: 11 | MJ5: 12 | MK5: 13 | ML5: 14 | MM5: 15 | MN5: 16 | MO5: 17 | MP5: 18 | MQ5: 19 | MR5: 20 | MS5: 21 | MT5: 22 | MU5: 23 | MV5: 24 | MW5: 25 | MX5: 26 | MY5: 27 | MZ5: 28 | NA5: 29 | NB5: 30 | NC5: =LY5 -> 1 | ND5: 2 | NE5: 3 | NF5: 4 | NG5: 5 | NH5: 6 | NI5: 7 | NJ5: 8 | NK5: 9 | NL5: 10 | NM5: 11 | NN5: 12 | NO5: 13 | NP5: 14 | NQ5: 15 | NR5: 16 | NS5: 17 | NT5: 18 | NU5: 19 | NV5: 20 | NW5: 21 | NX5: 22 | NY5: 23 | NZ5: 24 | OA5: 25 | OB5: 26 | OC5: 27 | OD5: 28 | OE5: 29 | OF5: 30 | OG5: =NC5 -> 1 | OH5: 2 | OI5: 3 | OJ5: 4 | OK5: 5 | OL5: 6 | OM5: 7 | ON5: 8 | OO5: 9 | OP5: 10 | OQ5: 11 | OR5: 12 | OS5: 13 | OT5: 14 | OU5: 15 | OV5: 16 | OW5: 17 | OX5: 18 | OY5: 19 | OZ5: 20 | PA5: 21 | PB5: 22 | PC5: 23 | PD5: 24 | PE5: 25 | PF5: 26 | PG5: 27 | PH5: 28 | PI5: 29 | PJ5: 30 | PK5: =OG5 -> 1 | PL5: 2 | PM5: 3 | PN5: 4 | PO5: 5 | PP5: 6 | PQ5: 7 | PR5: 8 | PS5: 9 | PT5: 10 | PU5: 11 | PV5: 12 | PW5: 13 | PX5: 14 | PY5: 15 | PZ5: 16 | QA5: 17 | QB5: 18 | QC5: 19 | QD5: 20 | QE5: 21 | QF5: 22 | QG5: 23 | QH5: 24 | QI5: 25 | QJ5: 26 | QK5: 27 | QL5: 28 | QM5: 29 | QN5: 30 | QO5: =PK5 -> 1 | QP5: 2 | QQ5: 3 | QR5: 4 | QS5: 5 | QT5: 6 | QU5: 7 | QV5: 8 | QW5: 9 | QX5: 10 | QY5: 11 | QZ5: 12 | RA5: 13 | RB5: 14 | RC5: 15 | RD5: 16 | RE5: 17 | RF5: 18 | RG5: 19 | RH5: 20 | RI5: 21 | RJ5: 22 | RK5: 23 | RL5: 24 | RM5: 25 | RN5: 26 | RO5: 27 | RP5: 28 | RQ5: 29 | RR5: 30 | RS5: =QO5 -> 1 | RT5: 2 | RU5: 3 | RV5: 4 | RW5: 5 | RX5: 6 | RY5: 7 | RZ5: 8 | SA5: 9 | SB5: 10 | SC5: 11 | SD5: 12 | SE5: 13 | SF5: 14 | SG5: 15 | SH5: 16 | SI5: 17 | SJ5: 18 | SK5: 19 | SL5: 20 | SM5: 21 | SN5: 22 | SO5: 23 | SP5: 24 | SQ5: 25 | SR5: 26 | SS5: 27 | ST5: 28 | SU5: 29 | SV5: 30 | SW5: =RS5 -> 1 | SX5: 2 | SY5: 3 | SZ5: 4 | TA5: 5 | TB5: 6 | TC5: 7 | TD5: 8 | TE5: 9 | TF5: 10 | TG5: 11 | TH5: 12 | TI5: 13 | TJ5: 14 | TK5: 15 | TL5: 16 | TM5: 17 | TN5: 18 | TO5: 19 | TP5: 20 | TQ5: 21 | TR5: 22 | TS5: 23 | TT5: 24 | TU5: 25 | TV5: 26 | TW5: 27 | TX5: 28 | TY5: 29 | TZ5: 30 | UA5: =SW5 -> 1 | UB5: 2 | UC5: 3 | UD5: 4 | UE5: 5 | UF5: 6 | UG5: 7 | UH5: 8 | UI5: 9 | UJ5: 10 | UK5: 11 | UL5: 12 | UM5: 13 | UN5: 14 | UO5: 15 | UP5: 16 | UQ5: 17 | UR5: 18 | US5: 19 | UT5: 20 | UU5: 21 | UV5: 22 | UW5: 23 | UX5: 24 | UY5: 25 | UZ5: 26 | VA5: 27 | VB5: 28 | VC5: 29 | VD5: 30 | VE5: =UA5 -> 1 | VF5: 2 | VG5: 3 | VH5: 4 | VI5: 5 | VJ5: 6 | VK5: 7 | VL5: 8 | VM5: 9 | VN5: 10 | VO5: 11 | VP5: 12 | VQ5: 13 | VR5: 14 | VS5: 15 | VT5: 16 | VU5: 17 | VV5: 18 | VW5: 19 | VX5: 20 | VY5: 21 | VZ5: 22 | WA5: 23 | WB5: 24 | WC5: 25 | WD5: 26 | WE5: 27 | WF5: 28 | WG5: 29 | WH5: 30 | WI5: 1 | WJ5: 2 | WK5: 3 | WL5: 4 | WM5: 5 | WN5: 6 | WO5: =VK5 -> 7 | WP5: 8 | WQ5: 9 | WR5: 10 | WS5: 11 | WT5: 12 | WU5: 13 | WV5: 14 | WW5: 15 | WX5: 16 | WY5: 17 | WZ5: 18 | XA5: 19 | XB5: 20 | XC5: 21 | XD5: 22 | XE5: 23 | XF5: 24 | XG5: 25 | XH5: 26 | XI5: 27 | XJ5: 28 | XK5: 29 | XL5: 30 | XM5: 1 | XN5: 2 | XO5: 3 | XP5: 4 | XQ5: 5 | XR5: 6 | XS5: =WO5 -> 7 | XT5: 8 | XU5: 9 | XV5: 10 | XW5: 11 | XX5: 12 | XY5: 13 | XZ5: 14 | YA5: 15 | YB5: 16 | YC5: 17 | YD5: 18 | YE5: 19 | YF5: 20 | YG5: 21 | YH5: 22 | YI5: 23 | YJ5: 24 | YK5: 25 | YL5: 26 | YM5: 27 | YN5: 28 | YO5: 29 | YP5: 30 | YQ5: 1 | YR5: 2 | YS5: 3 | YT5: 4 | YU5: 5 | YV5: 6 | YW5: =XS5 -> 7 | YX5: 8 | YY5: 9 | YZ5: 10 | ZA5: 11 | ZB5: 12 | ZC5: 13 | ZD5: 14 | ZE5: 15 | ZF5: 16 | ZG5: 17 | ZH5: 18 | ZI5: 19 | ZJ5: 20 | ZK5: 21 | ZL5: 22 | ZM5: 23 | ZN5: 24 | ZO5: 25 | ZP5: 26 | ZQ5: 27 | ZR5: 28 | ZS5: 29 | ZT5: 30 | ZU5: 1 | ZV5: 2 | ZW5: 3 | ZX5: 4 | ZY5: 5 | ZZ5: 6 | AAA5: =YW5 -> 7 | AAB5: 8 | AAC5: 9 | AAD5: 10 | AAE5: 11 | AAF5: 12 | AAG5: 13 | AAH5: 14 | AAI5: 15 | AAJ5: 16 | AAK5: 17 | AAL5: 18 | AAM5: 19 | AAN5: 20 | AAO5: 21 | AAP5: 22 | AAQ5: 23 | AAR5: 24 | AAS5: 25 | AAT5: 26 | AAU5: 27 | AAV5: 28 | AAW5: 29 | AAX5: 30 | AAY5: 1 | AAZ5: 2 | ABA5: 3 | ABB5: 4 | ABC5: 5 | ABD5: 6 | ABE5: =AAA5 -> 7 | ABF5: 8 | ABG5: 9 | ABH5: 10 | ABI5: 11 | ABJ5: 12 | ABK5: 13 | ABL5: 14 | ABM5: 15 | ABN5: 16 | ABO5: 17 | ABP5: 18 | ABQ5: 19 | ABR5: 20 | ABS5: 21 | ABT5: 22 | ABU5: 23 | ABV5: 24 | ABW5: 25 | ABX5: 26 | ABY5: 27 | ABZ5: 28 | ACA5: 29 | ACB5: 30 | ACC5: 1 | ACD5: 2 | ACE5: 3 | ACF5: 4 | ACG5: 5 | ACH5: 6 | ACI5: =ABE5 -> 7 | ACJ5: 8 | ACK5: 9 | ACL5: 10 | ACM5: 11 | ACN5: 12 | ACO5: 13 | ACP5: 14 | ACQ5: 15 | ACR5: 16 | ACS5: 17 | ACT5: 18 | ACU5: 19 | ACV5: 20 | ACW5: 21 | ACX5: 22 | ACY5: 23 | ACZ5: 24 | ADA5: 25 | ADB5: 26 | ADC5: 27 | ADD5: 28 | ADE5: 29 | ADF5: 30 | ADG5: 1 | ADH5: 2 | ADI5: 3 | ADJ5: 4 | ADK5: 5 | ADL5: 6 | ADM5: =ACI5 -> 7 | ADN5: 8 | ADO5: 9 | ADP5: 10 | ADQ5: 11 | ADR5: 12 | ADS5: 13 | ADT5: 14 | ADU5: 15 | ADV5: 16 | ADW5: 17 | ADX5: 18 | ADY5: 19 | ADZ5: 20 | AEA5: 21 | AEB5: 22 | AEC5: 23 | AED5: 24 | AEE5: 25 | AEF5: 26 | AEG5: 27 | AEH5: 28 | AEI5: 29 | AEJ5: 30 | AEK5: 1 | AEL5: 2 | AEM5: 3 | AEN5: 4 | AEO5: 5 | AEP5: 6 | AEQ5: =ADM5 -> 7 | AER5: 8 | AES5: 9 | AET5: 10 | AEU5: 11 | AEV5: 12 | AEW5: 13 | AEX5: 14 | AEY5: 15 | AEZ5: 16 | AFA5: 17 | AFB5: 18 | AFC5: 19 | AFD5: 20 | AFE5: 21 | AFF5: 22 | AFG5: 23 | AFH5: 24 | AFI5: 25 | AFJ5: 26 | AFK5: 27 | AFL5: 28 | AFM5: 29 | AFN5: 30 | AFO5: 1 | AFP5: 2 | AFQ5: 3 | AFR5: 4 | AFS5: 5 | AFT5: 6 | AFU5: =AEQ5 -> 7 | AFV5: 8 | AFW5: 9 | AFX5: 10 | AFY5: 11 | AFZ5: 12 | AGA5: 13 | AGB5: 14 | AGC5: 15 | AGD5: 16 | AGE5: 17 | AGF5: 18 | AGG5: 19 | AGH5: 20 | AGI5: 21 | AGJ5: 22 | AGK5: 23 | AGL5: 24 | AGM5: 25 | AGN5: 26 | AGO5: 27 | AGP5: 28 | AGQ5: 29 | AGR5: 30 | AGS5: 1 | AGT5: 2 | AGU5: 3 | AGV5: 4 | AGW5: 5 | AGX5: 6 | AGY5: =AFU5 -> 7 | AGZ5: 8 | AHA5: 9 | AHB5: 10 | AHC5: 11 | AHD5: 12 | AHE5: 13 | AHF5: 14 | AHG5: 15 | AHH5: 16 | AHI5: 17 | AHJ5: 18 | AHK5: 19 | AHL5: 20 | AHM5: 21 | AHN5: 22 | AHO5: 23 | AHP5: 24 | AHQ5: 25 | AHR5: 26 | AHS5: 27 | AHT5: 28 | AHU5: 29 | AHV5: 30
F6: zona | G6: 1 | H6: 1 | I6: 1 | J6: 1 | K6: 1 | L6: 1 | M6: 1 | N6: 1 | O6: 1 | P6: 1 | Q6: 1 | R6: 1 | S6: 1 | T6: 1 | U6: 1 | V6: 1 | W6: 1 | X6: 1 | Y6: 1 | Z6: 1 | AA6: 1 | AB6: 1 | AC6: 1 | AD6: 1 | AE6: 1 | AF6: 1 | AG6: 1 | AH6: 1 | AI6: 1 | AJ6: 1 | AK6: =G6+1 -> 2 | AL6: =H6+1 -> 2 | AM6: 2 | AN6: 2 | AO6: 2 | AP6: 2 | AQ6: 2 | AR6: 2 | AS6: 2 | AT6: 2 | AU6: 2 | AV6: 2 | AW6: 2 | AX6: 2 | AY6: 2 | AZ6: 2 | BA6: 2 | BB6: 2 | BC6: 2 | BD6: 2 | BE6: 2 | BF6: 2 | BG6: 2 | BH6: 2 | BI6: 2 | BJ6: 2 | BK6: 2 | BL6: 2 | BM6: 2 | BN6: 2 | BO6: =AK6+1 -> 3 | BP6: =AL6+1 -> 3 | BQ6: =AM6+1 -> 3 | BR6: =AN6+1 -> 3 | BS6: =AO6+1 -> 3 | BT6: =AP6+1 -> 3 | BU6: =AQ6+1 -> 3 | BV6: =AR6+1 -> 3 | BW6: =AS6+1 -> 3 | BX6: =AT6+1 -> 3 | BY6: =AU6+1 -> 3 | BZ6: =AV6+1 -> 3 | CA6: =AW6+1 -> 3 | CB6: =AX6+1 -> 3 | CC6: =AY6+1 -> 3 | CD6: =AZ6+1 -> 3 | CE6: =BA6+1 -> 3 | CF6: =BB6+1 -> 3 | CG6: =BC6+1 -> 3 | CH6: =BD6+1 -> 3 | CI6: =BE6+1 -> 3 | CJ6: =BF6+1 -> 3 | CK6: =BG6+1 -> 3 | CL6: =BH6+1 -> 3 | CM6: =BI6+1 -> 3 | CN6: =BJ6+1 -> 3 | CO6: =BK6+1 -> 3 | CP6: =BL6+1 -> 3 | CQ6: =BM6+1 -> 3 | CR6: =BN6+1 -> 3 | CS6: =BO6+1 -> 4 | CT6: =BP6+1 -> 4 | CU6: =BQ6+1 -> 4 | CV6: =BR6+1 -> 4 | CW6: =BS6+1 -> 4 | CX6: =BT6+1 -> 4 | CY6: =BU6+1 -> 4 | CZ6: =BV6+1 -> 4 | DA6: =BW6+1 -> 4 | DB6: =BX6+1 -> 4 | DC6: =BY6+1 -> 4 | DD6: =BZ6+1 -> 4 | DE6: =CA6+1 -> 4 | DF6: =CB6+1 -> 4 | DG6: =CC6+1 -> 4 | DH6: =CD6+1 -> 4 | DI6: =CE6+1 -> 4 | DJ6: =CF6+1 -> 4 | DK6: =CG6+1 -> 4 | DL6: =CH6+1 -> 4 | DM6: =CI6+1 -> 4 | DN6: =CJ6+1 -> 4 | DO6: =CK6+1 -> 4 | DP6: =CL6+1 -> 4 | DQ6: =CM6+1 -> 4 | DR6: =CN6+1 -> 4 | DS6: =CO6+1 -> 4 | DT6: =CP6+1 -> 4 | DU6: =CQ6+1 -> 4 | DV6: =CR6+1 -> 4 | DW6: =CS6+1 -> 5 | DX6: =CT6+1 -> 5 | DY6: =CU6+1 -> 5 | DZ6: =CV6+1 -> 5 | EA6: =CW6+1 -> 5 | EB6: =CX6+1 -> 5 | EC6: =CY6+1 -> 5 | ED6: =CZ6+1 -> 5 | EE6: =DA6+1 -> 5 | EF6: =DB6+1 -> 5 | EG6: =DC6+1 -> 5 | EH6: =DD6+1 -> 5 | EI6: =DE6+1 -> 5 | EJ6: =DF6+1 -> 5 | EK6: =DG6+1 -> 5 | EL6: =DH6+1 -> 5 | EM6: =DI6+1 -> 5 | EN6: =DJ6+1 -> 5 | EO6: =DK6+1 -> 5 | EP6: =DL6+1 -> 5 | EQ6: =DM6+1 -> 5 | ER6: =DN6+1 -> 5 | ES6: =DO6+1 -> 5 | ET6: =DP6+1 -> 5 | EU6: =DQ6+1 -> 5 | EV6: =DR6+1 -> 5 | EW6: =DS6+1 -> 5 | EX6: =DT6+1 -> 5 | EY6: =DU6+1 -> 5 | EZ6: =DV6+1 -> 5 | FA6: =DW6+1 -> 6 | FB6: =DX6+1 -> 6 | FC6: =DY6+1 -> 6 | FD6: =DZ6+1 -> 6 | FE6: =EA6+1 -> 6 | FF6: =EB6+1 -> 6 | FG6: =EC6+1 -> 6 | FH6: =ED6+1 -> 6 | FI6: =EE6+1 -> 6 | FJ6: =EF6+1 -> 6 | FK6: =EG6+1 -> 6 | FL6: =EH6+1 -> 6 | FM6: =EI6+1 -> 6 | FN6: =EJ6+1 -> 6 | FO6: =EK6+1 -> 6 | FP6: =EL6+1 -> 6 | FQ6: =EM6+1 -> 6 | FR6: =EN6+1 -> 6 | FS6: =EO6+1 -> 6 | FT6: =EP6+1 -> 6 | FU6: =EQ6+1 -> 6 | FV6: =ER6+1 -> 6 | FW6: =ES6+1 -> 6 | FX6: =ET6+1 -> 6 | FY6: =EU6+1 -> 6 | FZ6: =EV6+1 -> 6 | GA6: =EW6+1 -> 6 | GB6: =EX6+1 -> 6 | GC6: =EY6+1 -> 6 | GD6: =EZ6+1 -> 6 | GE6: =FA6+1 -> 7 | GF6: =FB6+1 -> 7 | GG6: =FC6+1 -> 7 | GH6: =FD6+1 -> 7 | GI6: =FE6+1 -> 7 | GJ6: =FF6+1 -> 7 | GK6: =FG6+1 -> 7 | GL6: =FH6+1 -> 7 | GM6: =FI6+1 -> 7 | GN6: =FJ6+1 -> 7 | GO6: =FK6+1 -> 7 | GP6: =FL6+1 -> 7 | GQ6: =FM6+1 -> 7 | GR6: =FN6+1 -> 7 | GS6: =FO6+1 -> 7 | GT6: =FP6+1 -> 7 | GU6: =FQ6+1 -> 7 | GV6: =FR6+1 -> 7 | GW6: =FS6+1 -> 7 | GX6: =FT6+1 -> 7 | GY6: =FU6+1 -> 7 | GZ6: =FV6+1 -> 7 | HA6: =FW6+1 -> 7 | HB6: =FX6+1 -> 7 | HC6: =FY6+1 -> 7 | HD6: =FZ6+1 -> 7 | HE6: =GA6+1 -> 7 | HF6: =GB6+1 -> 7 | HG6: =GC6+1 -> 7 | HH6: =GD6+1 -> 7 | HI6: =GE6+1 -> 8 | HJ6: =GF6+1 -> 8 | HK6: =GG6+1 -> 8 | HL6: =GH6+1 -> 8 | HM6: =GI6+1 -> 8 | HN6: =GJ6+1 -> 8 | HO6: =GK6+1 -> 8 | HP6: =GL6+1 -> 8 | HQ6: =GM6+1 -> 8 | HR6: =GN6+1 -> 8 | HS6: =GO6+1 -> 8 | HT6: =GP6+1 -> 8 | HU6: =GQ6+1 -> 8 | HV6: =GR6+1 -> 8 | HW6: =GS6+1 -> 8 | HX6: =GT6+1 -> 8 | HY6: =GU6+1 -> 8 | HZ6: =GV6+1 -> 8 | IA6: =GW6+1 -> 8 | IB6: =GX6+1 -> 8 | IC6: =GY6+1 -> 8 | ID6: =GZ6+1 -> 8 | IE6: =HA6+1 -> 8 | IF6: =HB6+1 -> 8 | IG6: =HC6+1 -> 8 | IH6: =HD6+1 -> 8 | II6: =HE6+1 -> 8 | IJ6: =HF6+1 -> 8 | IK6: =HG6+1 -> 8 | IL6: =HH6+1 -> 8 | IM6: =HI6+1 -> 9 | IN6: =HJ6+1 -> 9 | IO6: =HK6+1 -> 9 | IP6: =HL6+1 -> 9 | IQ6: =HM6+1 -> 9 | IR6: =HN6+1 -> 9 | IS6: =HO6+1 -> 9 | IT6: =HP6+1 -> 9 | IU6: =HQ6+1 -> 9 | IV6: =HR6+1 -> 9 | IW6: =HS6+1 -> 9 | IX6: =HT6+1 -> 9 | IY6: =HU6+1 -> 9 | IZ6: =HV6+1 -> 9 | JA6: =HW6+1 -> 9 | JB6: =HX6+1 -> 9 | JC6: =HY6+1 -> 9 | JD6: =HZ6+1 -> 9 | JE6: =IA6+1 -> 9 | JF6: =IB6+1 -> 9 | JG6: =IC6+1 -> 9 | JH6: =ID6+1 -> 9 | JI6: =IE6+1 -> 9 | JJ6: =IF6+1 -> 9 | JK6: =IG6+1 -> 9 | JL6: =IH6+1 -> 9 | JM6: =II6+1 -> 9 | JN6: =IJ6+1 -> 9 | JO6: =IK6+1 -> 9 | JP6: =IL6+1 -> 9 | JQ6: =IM6+1 -> 10 | JR6: =IN6+1 -> 10 | JS6: =IO6+1 -> 10 | JT6: =IP6+1 -> 10 | JU6: =IQ6+1 -> 10 | JV6: =IR6+1 -> 10 | JW6: =IS6+1 -> 10 | JX6: =IT6+1 -> 10 | JY6: =IU6+1 -> 10 | JZ6: =IV6+1 -> 10 | KA6: =IW6+1 -> 10 | KB6: =IX6+1 -> 10 | KC6: =IY6+1 -> 10 | KD6: =IZ6+1 -> 10 | KE6: =JA6+1 -> 10 | KF6: =JB6+1 -> 10 | KG6: =JC6+1 -> 10 | KH6: =JD6+1 -> 10 | KI6: =JE6+1 -> 10 | KJ6: =JF6+1 -> 10 | KK6: =JG6+1 -> 10 | KL6: =JH6+1 -> 10 | KM6: =JI6+1 -> 10 | KN6: =JJ6+1 -> 10 | KO6: =JK6+1 -> 10 | KP6: =JL6+1 -> 10 | KQ6: =JM6+1 -> 10 | KR6: =JN6+1 -> 10 | KS6: =JO6+1 -> 10 | KT6: =JP6+1 -> 10 | KU6: =JQ6+1 -> 11 | KV6: =JR6+1 -> 11 | KW6: =JS6+1 -> 11 | KX6: =JT6+1 -> 11 | KY6: =JU6+1 -> 11 | KZ6: =JV6+1 -> 11 | LA6: =JW6+1 -> 11 | LB6: =JX6+1 -> 11 | LC6: =JY6+1 -> 11 | LD6: =JZ6+1 -> 11 | LE6: =KA6+1 -> 11 | LF6: =KB6+1 -> 11 | LG6: =KC6+1 -> 11 | LH6: =KD6+1 -> 11 | LI6: =KE6+1 -> 11 | LJ6: =KF6+1 -> 11 | LK6: =KG6+1 -> 11 | LL6: =KH6+1 -> 11 | LM6: =KI6+1 -> 11 | LN6: =KJ6+1 -> 11 | LO6: =KK6+1 -> 11 | LP6: =KL6+1 -> 11 | LQ6: =KM6+1 -> 11 | LR6: =KN6+1 -> 11 | LS6: =KO6+1 -> 11 | LT6: =KP6+1 -> 11 | LU6: =KQ6+1 -> 11 | LV6: =KR6+1 -> 11 | LW6: =KS6+1 -> 11 | LX6: =KT6+1 -> 11 | LY6: =KU6+1 -> 12 | LZ6: =KV6+1 -> 12 | MA6: =KW6+1 -> 12 | MB6: =KX6+1 -> 12 | MC6: =KY6+1 -> 12 | MD6: =KZ6+1 -> 12 | ME6: =LA6+1 -> 12 | MF6: =LB6+1 -> 12 | MG6: =LC6+1 -> 12 | MH6: =LD6+1 -> 12 | MI6: =LE6+1 -> 12 | MJ6: =LF6+1 -> 12 | MK6: =LG6+1 -> 12 | ML6: =LH6+1 -> 12 | MM6: =LI6+1 -> 12 | MN6: =LJ6+1 -> 12 | MO6: =LK6+1 -> 12 | MP6: =LL6+1 -> 12 | MQ6: =LM6+1 -> 12 | MR6: =LN6+1 -> 12 | MS6: =LO6+1 -> 12 | MT6: =LP6+1 -> 12 | MU6: =LQ6+1 -> 12 | MV6: =LR6+1 -> 12 | MW6: =LS6+1 -> 12 | MX6: =LT6+1 -> 12 | MY6: =LU6+1 -> 12 | MZ6: =LV6+1 -> 12 | NA6: =LW6+1 -> 12 | NB6: =LX6+1 -> 12 | NC6: =LY6+1 -> 13 | ND6: =LZ6+1 -> 13 | NE6: =MA6+1 -> 13 | NF6: =MB6+1 -> 13 | NG6: =MC6+1 -> 13 | NH6: =MD6+1 -> 13 | NI6: =ME6+1 -> 13 | NJ6: =MF6+1 -> 13 | NK6: =MG6+1 -> 13 | NL6: =MH6+1 -> 13 | NM6: =MI6+1 -> 13 | NN6: =MJ6+1 -> 13 | NO6: =MK6+1 -> 13 | NP6: =ML6+1 -> 13 | NQ6: =MM6+1 -> 13 | NR6: =MN6+1 -> 13 | NS6: =MO6+1 -> 13 | NT6: =MP6+1 -> 13 | NU6: =MQ6+1 -> 13 | NV6: =MR6+1 -> 13 | NW6: =MS6+1 -> 13 | NX6: =MT6+1 -> 13 | NY6: =MU6+1 -> 13 | NZ6: =MV6+1 -> 13 | OA6: =MW6+1 -> 13 | OB6: =MX6+1 -> 13 | OC6: =MY6+1 -> 13 | OD6: =MZ6+1 -> 13 | OE6: =NA6+1 -> 13 | OF6: =NB6+1 -> 13 | OG6: =NC6+1 -> 14 | OH6: =ND6+1 -> 14 | OI6: =NE6+1 -> 14 | OJ6: =NF6+1 -> 14 | OK6: =NG6+1 -> 14 | OL6: =NH6+1 -> 14 | OM6: =NI6+1 -> 14 | ON6: =NJ6+1 -> 14 | OO6: =NK6+1 -> 14 | OP6: =NL6+1 -> 14 | OQ6: =NM6+1 -> 14 | OR6: =NN6+1 -> 14 | OS6: =NO6+1 -> 14 | OT6: =NP6+1 -> 14 | OU6: =NQ6+1 -> 14 | OV6: =NR6+1 -> 14 | OW6: =NS6+1 -> 14 | OX6: =NT6+1 -> 14 | OY6: =NU6+1 -> 14 | OZ6: =NV6+1 -> 14 | PA6: =NW6+1 -> 14 | PB6: =NX6+1 -> 14 | PC6: =NY6+1 -> 14 | PD6: =NZ6+1 -> 14 | PE6: =OA6+1 -> 14 | PF6: =OB6+1 -> 14 | PG6: =OC6+1 -> 14 | PH6: =OD6+1 -> 14 | PI6: =OE6+1 -> 14 | PJ6: =OF6+1 -> 14 | PK6: =OG6+1 -> 15 | PL6: =OH6+1 -> 15 | PM6: =OI6+1 -> 15 | PN6: =OJ6+1 -> 15 | PO6: =OK6+1 -> 15 | PP6: =OL6+1 -> 15 | PQ6: =OM6+1 -> 15 | PR6: =ON6+1 -> 15 | PS6: =OO6+1 -> 15 | PT6: =OP6+1 -> 15 | PU6: =OQ6+1 -> 15 | PV6: =OR6+1 -> 15 | PW6: =OS6+1 -> 15 | PX6: =OT6+1 -> 15 | PY6: =OU6+1 -> 15 | PZ6: =OV6+1 -> 15 | QA6: =OW6+1 -> 15 | QB6: =OX6+1 -> 15 | QC6: =OY6+1 -> 15 | QD6: =OZ6+1 -> 15 | QE6: =PA6+1 -> 15 | QF6: =PB6+1 -> 15 | QG6: =PC6+1 -> 15 | QH6: =PD6+1 -> 15 | QI6: =PE6+1 -> 15 | QJ6: =PF6+1 -> 15 | QK6: =PG6+1 -> 15 | QL6: =PH6+1 -> 15 | QM6: =PI6+1 -> 15 | QN6: =PJ6+1 -> 15 | QO6: =PK6+1 -> 16 | QP6: =PL6+1 -> 16 | QQ6: =PM6+1 -> 16 | QR6: =PN6+1 -> 16 | QS6: =PO6+1 -> 16 | QT6: =PP6+1 -> 16 | QU6: =PQ6+1 -> 16 | QV6: =PR6+1 -> 16 | QW6: =PS6+1 -> 16 | QX6: =PT6+1 -> 16 | QY6: =PU6+1 -> 16 | QZ6: =PV6+1 -> 16 | RA6: =PW6+1 -> 16 | RB6: =PX6+1 -> 16 | RC6: =PY6+1 -> 16 | RD6: =PZ6+1 -> 16 | RE6: =QA6+1 -> 16 | RF6: =QB6+1 -> 16 | RG6: =QC6+1 -> 16 | RH6: =QD6+1 -> 16 | RI6: =QE6+1 -> 16 | RJ6: =QF6+1 -> 16 | RK6: =QG6+1 -> 16 | RL6: =QH6+1 -> 16 | RM6: =QI6+1 -> 16 | RN6: =QJ6+1 -> 16 | RO6: =QK6+1 -> 16 | RP6: =QL6+1 -> 16 | RQ6: =QM6+1 -> 16 | RR6: =QN6+1 -> 16 | RS6: =QO6+1 -> 17 | RT6: =QP6+1 -> 17 | RU6: =QQ6+1 -> 17 | RV6: =QR6+1 -> 17 | RW6: =QS6+1 -> 17 | RX6: =QT6+1 -> 17 | RY6: =QU6+1 -> 17 | RZ6: =QV6+1 -> 17 | SA6: =QW6+1 -> 17 | SB6: =QX6+1 -> 17 | SC6: =QY6+1 -> 17 | SD6: =QZ6+1 -> 17 | SE6: =RA6+1 -> 17 | SF6: =RB6+1 -> 17 | SG6: =RC6+1 -> 17 | SH6: =RD6+1 -> 17 | SI6: =RE6+1 -> 17 | SJ6: =RF6+1 -> 17 | SK6: =RG6+1 -> 17 | SL6: =RH6+1 -> 17 | SM6: =RI6+1 -> 17 | SN6: =RJ6+1 -> 17 | SO6: =RK6+1 -> 17 | SP6: =RL6+1 -> 17 | SQ6: =RM6+1 -> 17 | SR6: =RN6+1 -> 17 | SS6: =RO6+1 -> 17 | ST6: =RP6+1 -> 17 | SU6: =RQ6+1 -> 17 | SV6: =RR6+1 -> 17 | SW6: =RS6+1 -> 18 | SX6: =RT6+1 -> 18 | SY6: =RU6+1 -> 18 | SZ6: =RV6+1 -> 18 | TA6: =RW6+1 -> 18 | TB6: =RX6+1 -> 18 | TC6: =RY6+1 -> 18 | TD6: =RZ6+1 -> 18 | TE6: =SA6+1 -> 18 | TF6: =SB6+1 -> 18 | TG6: =SC6+1 -> 18 | TH6: =SD6+1 -> 18 | TI6: =SE6+1 -> 18 | TJ6: =SF6+1 -> 18 | TK6: =SG6+1 -> 18 | TL6: =SH6+1 -> 18 | TM6: =SI6+1 -> 18 | TN6: =SJ6+1 -> 18 | TO6: =SK6+1 -> 18 | TP6: =SL6+1 -> 18 | TQ6: =SM6+1 -> 18 | TR6: =SN6+1 -> 18 | TS6: =SO6+1 -> 18 | TT6: =SP6+1 -> 18 | TU6: =SQ6+1 -> 18 | TV6: =SR6+1 -> 18 | TW6: =SS6+1 -> 18 | TX6: =ST6+1 -> 18 | TY6: =SU6+1 -> 18 | TZ6: =SV6+1 -> 18 | UA6: =SW6+1 -> 19 | UB6: =SX6+1 -> 19 | UC6: =SY6+1 -> 19 | UD6: =SZ6+1 -> 19 | UE6: =TA6+1 -> 19 | UF6: =TB6+1 -> 19 | UG6: =TC6+1 -> 19 | UH6: =TD6+1 -> 19 | UI6: =TE6+1 -> 19 | UJ6: =TF6+1 -> 19 | UK6: =TG6+1 -> 19 | UL6: =TH6+1 -> 19 | UM6: =TI6+1 -> 19 | UN6: =TJ6+1 -> 19 | UO6: =TK6+1 -> 19 | UP6: =TL6+1 -> 19 | UQ6: =TM6+1 -> 19 | UR6: =TN6+1 -> 19 | US6: =TO6+1 -> 19 | UT6: =TP6+1 -> 19 | UU6: =TQ6+1 -> 19 | UV6: =TR6+1 -> 19 | UW6: =TS6+1 -> 19 | UX6: =TT6+1 -> 19 | UY6: =TU6+1 -> 19 | UZ6: =TV6+1 -> 19 | VA6: =TW6+1 -> 19 | VB6: =TX6+1 -> 19 | VC6: =TY6+1 -> 19 | VD6: =TZ6+1 -> 19 | VE6: =UA6+1 -> 20 | VF6: =UB6+1 -> 20 | VG6: =UC6+1 -> 20 | VH6: =UD6+1 -> 20 | VI6: =UE6+1 -> 20 | VJ6: =UF6+1 -> 20 | VK6: =UG6+1 -> 20 | VL6: =UH6+1 -> 20 | VM6: =UI6+1 -> 20 | VN6: =UJ6+1 -> 20 | VO6: =UK6+1 -> 20 | VP6: =UL6+1 -> 20 | VQ6: =UM6+1 -> 20 | VR6: =UN6+1 -> 20 | VS6: =UO6+1 -> 20 | VT6: =UP6+1 -> 20 | VU6: =UQ6+1 -> 20 | VV6: =UR6+1 -> 20 | VW6: =US6+1 -> 20 | VX6: =UT6+1 -> 20 | VY6: =UU6+1 -> 20 | VZ6: =UV6+1 -> 20 | WA6: =UW6+1 -> 20 | WB6: =UX6+1 -> 20 | WC6: =UY6+1 -> 20 | WD6: =UZ6+1 -> 20 | WE6: =VA6+1 -> 20 | WF6: =VB6+1 -> 20 | WG6: =VC6+1 -> 20 | WH6: =VD6+1 -> 20 | WI6: =VE6+1 -> 21 | WJ6: =VF6+1 -> 21 | WK6: =VG6+1 -> 21 | WL6: =VH6+1 -> 21 | WM6: =VI6+1 -> 21 | WN6: =VJ6+1 -> 21 | WO6: =VK6+1 -> 21 | WP6: =VL6+1 -> 21 | WQ6: =VM6+1 -> 21 | WR6: =VN6+1 -> 21 | WS6: =VO6+1 -> 21 | WT6: =VP6+1 -> 21 | WU6: =VQ6+1 -> 21 | WV6: =VR6+1 -> 21 | WW6: =VS6+1 -> 21 | WX6: =VT6+1 -> 21 | WY6: =VU6+1 -> 21 | WZ6: =VV6+1 -> 21 | XA6: =VW6+1 -> 21 | XB6: =VX6+1 -> 21 | XC6: =VY6+1 -> 21 | XD6: =VZ6+1 -> 21 | XE6: =WA6+1 -> 21 | XF6: =WB6+1 -> 21 | XG6: =WC6+1 -> 21 | XH6: =WD6+1 -> 21 | XI6: =WE6+1 -> 21 | XJ6: =WF6+1 -> 21 | XK6: =WG6+1 -> 21 | XL6: =WH6+1 -> 21 | XM6: =WI6+1 -> 22 | XN6: =WJ6+1 -> 22 | XO6: =WK6+1 -> 22 | XP6: =WL6+1 -> 22 | XQ6: =WM6+1 -> 22 | XR6: =WN6+1 -> 22 | XS6: =WO6+1 -> 22 | XT6: =WP6+1 -> 22 | XU6: =WQ6+1 -> 22 | XV6: =WR6+1 -> 22 | XW6: =WS6+1 -> 22 | XX6: =WT6+1 -> 22 | XY6: =WU6+1 -> 22 | XZ6: =WV6+1 -> 22 | YA6: =WW6+1 -> 22 | YB6: =WX6+1 -> 22 | YC6: =WY6+1 -> 22 | YD6: =WZ6+1 -> 22 | YE6: =XA6+1 -> 22 | YF6: =XB6+1 -> 22 | YG6: =XC6+1 -> 22 | YH6: =XD6+1 -> 22 | YI6: =XE6+1 -> 22 | YJ6: =XF6+1 -> 22 | YK6: =XG6+1 -> 22 | YL6: =XH6+1 -> 22 | YM6: =XI6+1 -> 22 | YN6: =XJ6+1 -> 22 | YO6: =XK6+1 -> 22 | YP6: =XL6+1 -> 22 | YQ6: =XM6+1 -> 23 | YR6: =XN6+1 -> 23 | YS6: =XO6+1 -> 23 | YT6: =XP6+1 -> 23 | YU6: =XQ6+1 -> 23 | YV6: =XR6+1 -> 23 | YW6: =XS6+1 -> 23 | YX6: =XT6+1 -> 23 | YY6: =XU6+1 -> 23 | YZ6: =XV6+1 -> 23 | ZA6: =XW6+1 -> 23 | ZB6: =XX6+1 -> 23 | ZC6: =XY6+1 -> 23 | ZD6: =XZ6+1 -> 23 | ZE6: =YA6+1 -> 23 | ZF6: =YB6+1 -> 23 | ZG6: =YC6+1 -> 23 | ZH6: =YD6+1 -> 23 | ZI6: =YE6+1 -> 23 | ZJ6: =YF6+1 -> 23 | ZK6: =YG6+1 -> 23 | ZL6: =YH6+1 -> 23 | ZM6: =YI6+1 -> 23 | ZN6: =YJ6+1 -> 23 | ZO6: =YK6+1 -> 23 | ZP6: =YL6+1 -> 23 | ZQ6: =YM6+1 -> 23 | ZR6: =YN6+1 -> 23 | ZS6: =YO6+1 -> 23 | ZT6: =YP6+1 -> 23 | ZU6: =YQ6+1 -> 24 | ZV6: =YR6+1 -> 24 | ZW6: =YS6+1 -> 24 | ZX6: =YT6+1 -> 24 | ZY6: =YU6+1 -> 24 | ZZ6: =YV6+1 -> 24 | AAA6: =YW6+1 -> 24 | AAB6: =YX6+1 -> 24 | AAC6: =YY6+1 -> 24 | AAD6: =YZ6+1 -> 24 | AAE6: =ZA6+1 -> 24 | AAF6: =ZB6+1 -> 24 | AAG6: =ZC6+1 -> 24 | AAH6: =ZD6+1 -> 24 | AAI6: =ZE6+1 -> 24 | AAJ6: =ZF6+1 -> 24 | AAK6: =ZG6+1 -> 24 | AAL6: =ZH6+1 -> 24 | AAM6: =ZI6+1 -> 24 | AAN6: =ZJ6+1 -> 24 | AAO6: =ZK6+1 -> 24 | AAP6: =ZL6+1 -> 24 | AAQ6: =ZM6+1 -> 24 | AAR6: =ZN6+1 -> 24 | AAS6: =ZO6+1 -> 24 | AAT6: =ZP6+1 -> 24 | AAU6: =ZQ6+1 -> 24 | AAV6: =ZR6+1 -> 24 | AAW6: =ZS6+1 -> 24 | AAX6: =ZT6+1 -> 24 | AAY6: =ZU6+1 -> 25 | AAZ6: =ZV6+1 -> 25 | ABA6: =ZW6+1 -> 25 | ABB6: =ZX6+1 -> 25 | ABC6: =ZY6+1 -> 25 | ABD6: =ZZ6+1 -> 25 | ABE6: =AAA6+1 -> 25 | ABF6: =AAB6+1 -> 25 | ABG6: =AAC6+1 -> 25 | ABH6: =AAD6+1 -> 25 | ABI6: =AAE6+1 -> 25 | ABJ6: =AAF6+1 -> 25 | ABK6: =AAG6+1 -> 25 | ABL6: =AAH6+1 -> 25 | ABM6: =AAI6+1 -> 25 | ABN6: =AAJ6+1 -> 25 | ABO6: =AAK6+1 -> 25 | ABP6: =AAL6+1 -> 25 | ABQ6: =AAM6+1 -> 25 | ABR6: =AAN6+1 -> 25 | ABS6: =AAO6+1 -> 25 | ABT6: =AAP6+1 -> 25 | ABU6: =AAQ6+1 -> 25 | ABV6: =AAR6+1 -> 25 | ABW6: =AAS6+1 -> 25 | ABX6: =AAT6+1 -> 25 | ABY6: =AAU6+1 -> 25 | ABZ6: =AAV6+1 -> 25 | ACA6: =AAW6+1 -> 25 | ACB6: =AAX6+1 -> 25 | ACC6: =AAY6+1 -> 26 | ACD6: =AAZ6+1 -> 26 | ACE6: =ABA6+1 -> 26 | ACF6: =ABB6+1 -> 26 | ACG6: =ABC6+1 -> 26 | ACH6: =ABD6+1 -> 26 | ACI6: =ABE6+1 -> 26 | ACJ6: =ABF6+1 -> 26 | ACK6: =ABG6+1 -> 26 | ACL6: =ABH6+1 -> 26 | ACM6: =ABI6+1 -> 26 | ACN6: =ABJ6+1 -> 26 | ACO6: =ABK6+1 -> 26 | ACP6: =ABL6+1 -> 26 | ACQ6: =ABM6+1 -> 26 | ACR6: =ABN6+1 -> 26 | ACS6: =ABO6+1 -> 26 | ACT6: =ABP6+1 -> 26 | ACU6: =ABQ6+1 -> 26 | ACV6: =ABR6+1 -> 26 | ACW6: =ABS6+1 -> 26 | ACX6: =ABT6+1 -> 26 | ACY6: =ABU6+1 -> 26 | ACZ6: =ABV6+1 -> 26 | ADA6: =ABW6+1 -> 26 | ADB6: =ABX6+1 -> 26 | ADC6: =ABY6+1 -> 26 | ADD6: =ABZ6+1 -> 26 | ADE6: =ACA6+1 -> 26 | ADF6: =ACB6+1 -> 26 | ADG6: =ACC6+1 -> 27 | ADH6: =ACD6+1 -> 27 | ADI6: =ACE6+1 -> 27 | ADJ6: =ACF6+1 -> 27 | ADK6: =ACG6+1 -> 27 | ADL6: =ACH6+1 -> 27 | ADM6: =ACI6+1 -> 27 | ADN6: =ACJ6+1 -> 27 | ADO6: =ACK6+1 -> 27 | ADP6: =ACL6+1 -> 27 | ADQ6: =ACM6+1 -> 27 | ADR6: =ACN6+1 -> 27 | ADS6: =ACO6+1 -> 27 | ADT6: =ACP6+1 -> 27 | ADU6: =ACQ6+1 -> 27 | ADV6: =ACR6+1 -> 27 | ADW6: =ACS6+1 -> 27 | ADX6: =ACT6+1 -> 27 | ADY6: =ACU6+1 -> 27 | ADZ6: =ACV6+1 -> 27 | AEA6: =ACW6+1 -> 27 | AEB6: =ACX6+1 -> 27 | AEC6: =ACY6+1 -> 27 | AED6: =ACZ6+1 -> 27 | AEE6: =ADA6+1 -> 27 | AEF6: =ADB6+1 -> 27 | AEG6: =ADC6+1 -> 27 | AEH6: =ADD6+1 -> 27 | AEI6: =ADE6+1 -> 27 | AEJ6: =ADF6+1 -> 27 | AEK6: =ADG6+1 -> 28 | AEL6: =ADH6+1 -> 28 | AEM6: =ADI6+1 -> 28 | AEN6: =ADJ6+1 -> 28 | AEO6: =ADK6+1 -> 28 | AEP6: =ADL6+1 -> 28 | AEQ6: =ADM6+1 -> 28 | AER6: =ADN6+1 -> 28 | AES6: =ADO6+1 -> 28 | AET6: =ADP6+1 -> 28 | AEU6: =ADQ6+1 -> 28 | AEV6: =ADR6+1 -> 28 | AEW6: =ADS6+1 -> 28 | AEX6: =ADT6+1 -> 28 | AEY6: =ADU6+1 -> 28 | AEZ6: =ADV6+1 -> 28 | AFA6: =ADW6+1 -> 28 | AFB6: =ADX6+1 -> 28 | AFC6: =ADY6+1 -> 28 | AFD6: =ADZ6+1 -> 28 | AFE6: =AEA6+1 -> 28 | AFF6: =AEB6+1 -> 28 | AFG6: =AEC6+1 -> 28 | AFH6: =AED6+1 -> 28 | AFI6: =AEE6+1 -> 28 | AFJ6: =AEF6+1 -> 28 | AFK6: =AEG6+1 -> 28 | AFL6: =AEH6+1 -> 28 | AFM6: =AEI6+1 -> 28 | AFN6: =AEJ6+1 -> 28 | AFO6: =AEK6+1 -> 29 | AFP6: =AEL6+1 -> 29 | AFQ6: =AEM6+1 -> 29 | AFR6: =AEN6+1 -> 29 | AFS6: =AEO6+1 -> 29 | AFT6: =AEP6+1 -> 29 | AFU6: =AEQ6+1 -> 29 | AFV6: =AER6+1 -> 29 | AFW6: =AES6+1 -> 29 | AFX6: =AET6+1 -> 29 | AFY6: =AEU6+1 -> 29 | AFZ6: =AEV6+1 -> 29 | AGA6: =AEW6+1 -> 29 | AGB6: =AEX6+1 -> 29 | AGC6: =AEY6+1 -> 29 | AGD6: =AEZ6+1 -> 29 | AGE6: =AFA6+1 -> 29 | AGF6: =AFB6+1 -> 29 | AGG6: =AFC6+1 -> 29 | AGH6: =AFD6+1 -> 29 | AGI6: =AFE6+1 -> 29 | AGJ6: =AFF6+1 -> 29 | AGK6: =AFG6+1 -> 29 | AGL6: =AFH6+1 -> 29 | AGM6: =AFI6+1 -> 29 | AGN6: =AFJ6+1 -> 29 | AGO6: =AFK6+1 -> 29 | AGP6: =AFL6+1 -> 29 | AGQ6: =AFM6+1 -> 29 | AGR6: =AFN6+1 -> 29 | AGS6: =AFO6+1 -> 30 | AGT6: =AFP6+1 -> 30 | AGU6: =AFQ6+1 -> 30 | AGV6: =AFR6+1 -> 30 | AGW6: =AFS6+1 -> 30 | AGX6: =AFT6+1 -> 30 | AGY6: =AFU6+1 -> 30 | AGZ6: =AFV6+1 -> 30 | AHA6: =AFW6+1 -> 30 | AHB6: =AFX6+1 -> 30 | AHC6: =AFY6+1 -> 30 | AHD6: =AFZ6+1 -> 30 | AHE6: =AGA6+1 -> 30 | AHF6: =AGB6+1 -> 30 | AHG6: =AGC6+1 -> 30 | AHH6: =AGD6+1 -> 30 | AHI6: =AGE6+1 -> 30 | AHJ6: =AGF6+1 -> 30 | AHK6: =AGG6+1 -> 30 | AHL6: =AGH6+1 -> 30 | AHM6: =AGI6+1 -> 30 | AHN6: =AGJ6+1 -> 30 | AHO6: =AGK6+1 -> 30 | AHP6: =AGL6+1 -> 30 | AHQ6: =AGM6+1 -> 30 | AHR6: =AGN6+1 -> 30 | AHS6: =AGO6+1 -> 30 | AHT6: =AGP6+1 -> 30 | AHU6: =AGQ6+1 -> 30 | AHV6: =AGR6+1 -> 30
C7: BSC
G9: =INDEX(lista.escenarios,G$4) -> escenario 1 | M9: =INDEX(lista.escenarios,M$4) -> escenario 2 | S9: =INDEX(lista.escenarios,S$4) -> escenario 3 | Y9: =INDEX(lista.escenarios,Y$4) -> escenario 4 | AE9: =INDEX(lista.escenarios,AE$4) -> escenario 5
D10: id | E10: TRX por locación según población sin redondeo | G10: =INDEX(años,G$3) -> 2010 | H10: 2011 | I10: 2012 | J10: 2013 | K10: 2014 | L10: 2015 | M10: 2010 | N10: 2011 | O10: 2012 | P10: 2013 | Q10: 2014 | R10: 2015 | S10: 2010 | T10: 2011 | U10: 2012 | V10: 2013 | W10: 2014 | X10: 2015 | Y10: 2010 | Z10: 2011 | AA10: 2012 | AB10: 2013 | AC10: 2014 | AD10: 2015 | AE10: 2010 | AF10: 2011 | AG10: 2012 | AH10: 2013 | AI10: 2014 | AJ10: 2015
